Workbook

Sheet outline (hidden)

Sheet title
C13: Pulmonary Rehabilitation Capacity Planning Tool
C19: Select the play button on the right to get started

Sheet disclaimer

Sheet introduction

Sheet modelStructure
D33: Note: The QOF reports prevalent COPD patients (interpreted as the number of patients who have been registered with a COPD diagnosis)

Sheet modelStructure2
A31: Results from the PR pathway will not be displayed by subgroup, such as by age or sex. Instead, regional average values for these characteristics will be used to determine proportions for referral, uptake and completion of PR.

Sheet userGuide

Sheet dashboard
A1: 1 | X1: 1 | Z1: 2 | AA1: ="COPD prevalence projections for "&AA3 -> COPD prevalence projections for England
X2: Log/linear switch | Z2: Location switch | AA2: =_xlfn.XLOOKUP(_Mtech!B26,_Mtech!E12:G12,_Mtech!E13:G13) -> ICSs
AA3: =CalculationSheet!B1 -> England
AA4: Graph title
G6: ERROR: cannot choose start year later than or equal to end year
F10: =IF(CalculationSheet!B31>=CalculationSheet!B32,"Error: start year is later than the end year","") ->  | G10: ERROR: cannot choose start year earlier than or equal to end year
H20: 10
F23: Please choose the start and stop year for the data set. These will be used to project COPD prevalence from QOF data
G27: Start Year | J27: Stop Year | N27: Observed data refers to the actual data taken from the QOF database

Sheet populationFunnel
Z1: 2 | AB1: 1 | AC1: 2 | AD1: 1 | AF1: 1
X2: =IF(dataLookup1!D2=0,"","ICB:") ->  | Z2: =IF(dataLookup1!D2=0,"",dataLookup1!B11) ->  | AE2: 2
X3: =IF(dataLookup1!E2=0,"","Sub ICB (old CCG footprint):") ->  | Z3: =IF(dataLookup1!E2=0,"",dataLookup1!B12) -> 
Z4: =IF(dashboard!X1=1,_xlfn.XLOOKUP(CalculationSheet!E32, CalculationSheet!A115:A140, CalculationSheet!C115:C140),_xlfn.XLOOKUP(CalculationSheet!E32, CalculationSheet!A115:A140, CalculationSheet!F115:F140)) -> 
Z5: =IF(dashboard!X1=1,_xlfn.XLOOKUP(CalculationSheet!E32, CalculationSheet!A115:A140, CalculationSheet!I115:I140),_xlfn.XLOOKUP(CalculationSheet!E32, CalculationSheet!A115:A140, CalculationSheet!L115:L140)) -> 
Z6: =IF(dataLookup1!B2=1,dataLookup1!B9,dataLookup1!B10)&" "&IF(dataLookup1!E2=0,Z2,Z3) -> 
A10: =IF(_Mtech!G2=1,FALSE,TRUE) -> FALSE | K10: 1000 | R10: =IF(K11>K10,"ERROR: COPD register size should not be higher than the list size","") -> 
A11: =IF(_Mtech!G2=1,TRUE,FALSE) -> TRUE | K11: 500
A12: =A10 -> FALSE
A13: =A11 -> TRUE
A14: =A13 -> TRUE
A15: Values will be calculated from the selection made on the dashboard tab. If you wish to enter your own register size click the 'input custom register size' button. | K15: 1
K20: 0.26
AD22: =INDEX(popdata!$I$3:$I$6,AD1) -> North of England
K23: =_xlfn.XLOOKUP(LOOKUP(2, 1/(dataLookup1!$B9:$B12<>""), dataLookup1!$B9:B$12), Attrition_data!$A:$A, INDEX(Attrition_data!$1:$1048576, 0, 2 + MAX(0, MIN(1, 2025 - CalculationSheet!$E32))*6)) -> 0.2721 | M23: =_xlfn.XLOOKUP(LOOKUP(2, 1/(dataLookup1!$B9:$B12<>""), dataLookup1!$B9:B$12), Attrition_data!$A:$A, INDEX(Attrition_data!$1:$1048576, 0, 3 + MAX(0, MIN(1, 2025 - CalculationSheet!$E32))*6)) -> 0.3975
K27: =_xlfn.XLOOKUP(LOOKUP(2, 1/(dataLookup1!$B9:$B12<>""), dataLookup1!$B9:B$12), Attrition_data!$A:$A, INDEX(Attrition_data!$1:$1048576, 0, 4 + MAX(0, MIN(1, 2025 - CalculationSheet!$E32))*6)) -> 0.2254
K33: =_xlfn.XLOOKUP(LOOKUP(2, 1/(dataLookup1!$B9:$B12<>""), dataLookup1!$B9:B$12), Attrition_data!$A:$A, INDEX(Attrition_data!$1:$1048576, 0, 5 + MAX(0, MIN(1, 2025 - CalculationSheet!$E32))*6)) -> 0.3031
K38: =_xlfn.XLOOKUP(LOOKUP(2, 1/(dataLookup1!$B9:$B12<>""), dataLookup1!$B9:B$12), Attrition_data!$A:$A, INDEX(Attrition_data!$1:$1048576, 0, 6 + MAX(0, MIN(1, 2025 - CalculationSheet!$E32))*6)) -> 0.689830226
K43: 0.1
F46: =IF(_Mtech!G2=1,Z5,K11)*(1+K20) -> 
C47: Corrected population | F47: =K15*IF(_Mtech!G2=1,Z5,K11) -> 
C48: Eligible population | F48: =K23*F46 ->  | G48: =M23*F46 ->  | I48: Not eligible | K48: =F47-F48 -> 
A49: FALSE | C49: Referred population | F49: =K27*F48 ->  | G49: =K27*G48 ->  | I49: Not referred | K49: =F48-F49 -> 
C50: Started population | F50: =K33*F49 ->  | G50: =K33*G49 ->  | I50: Not started | K50: =F49-F50 -> 
C51: Completed population | F51: =IF(A49,(K38*F50)+(K43*F50*K38),K38*F50) ->  | G51: =IF(A49,(K38*G50)+(K43*G50*K38),K38*G50) ->  | I51: Not completed
C53: ="patients completing PR in "&IF(_Mtech!$G$2=1,CalculationSheet!B1,B12) -> patients completing PR in England
C54: =IF(_Mtech!G2=1,IF(dataLookup1!C2=0,dataLookup1!B9,IF(dataLookup1!D2=0,dataLookup1!B10,IF(dataLookup1!E2=0,dataLookup1!B11,dataLookup1!B12))),B12) -> England

Sheet incidentPopulationFunnel (hidden)
X1: 2 | Z1: 1 | AA1: 2 | AB1: 1 | AD1: 1
V2: =IF(dataLookup1!D2=0,"","ICB:") ->  | X2: =IF(dataLookup1!D2=0,"",dataLookup1!B11) ->  | AC2: 2
V3: =IF(dataLookup1!E2=0,"","Sub ICB:") ->  | X3: =IF(dataLookup1!E2=0,"",dataLookup1!B12) -> 
X4: =IF(dashboard!X1=1,CalculationSheet!C132,CalculationSheet!F132) -> 
X5: =IF(dashboard!X1=1,CalculationSheet!I132,CalculationSheet!L132) -> 
X6: =IF(dataLookup1!B2=1,dataLookup1!B9,dataLookup1!B10) -> 
A10: =IF(_Mtech!G2=1,FALSE,TRUE) -> FALSE | B10: Practice name: | D10: =populationFunnel!F10 -> 0 | H10: =populationFunnel!K10 -> 1000 | K10: 0.0015 | N10: =H10*K10 -> 1.5
A11: =IF(_Mtech!G2=1,TRUE,FALSE) -> TRUE | H11: =incidentPopulationFunnel!X4 ->  | K11: 0.0015 | N11: =H11*K11 -> 
G16: =CPRD_regressionCoefficients!AF16 -> 0.409828569
B18: Factors that will influence referral, uptake and completion rates for PR | AB18: =INDEX(popdata!$I$3:$I$6,AB1) -> North of England
G19: =CPRD_regressionCoefficients!AF17 -> 0.0819748233
C20: Average age | E20: 30
C21: Average % male | E21: 0.5
C22: Average IMD decile | E22: 5 | G22: =CPRD_regressionCoefficients!AF18 -> 0.2964722322
C23: Ethnicity placeholder
C24: White British | E24: 0.3
G25: =CPRD_regressionCoefficients!#REF! -> 
B34: *PR, pulmonary rehabilitation
C40: Corrected population | E40: =IF(_Mtech!G2=1,N11,N10) -> 
C41: Eligible population | E41: =G16*E40 ->  | G41: Not eligible | I41: =E40-E41 -> 
C42: Referred population | E42: =G19*E41 ->  | G42: Not referred | I42: =E41-E42 -> 
C43: Started population | E43: =G22*E42 ->  | G43: Not started
C44: Completed population | E44: =G25*E43 ->  | G44: Not completed
C46: ="patients completed PR in "&C47 -> patients completed PR in England
C47: =IF(_Mtech!G2=1,IF(dataLookup1!C2=0,dataLookup1!B9,IF(dataLookup1!D2=0,dataLookup1!B10,IF(dataLookup1!E2=0,dataLookup1!B11,dataLookup1!B12))),populationFunnel!F10) -> England

Sheet PulmonaryRehabGraph (hidden)
A1: 1 | X1: 1 | Y1: 1 | AF1: TRUE | AG1: =IF(AF1=TRUE,1,0) -> 1
AF2: TRUE | AG2: =IF(AF2=TRUE,1,0) -> 1
AF3: TRUE | AG3: 1
X4: Linear | AF4: TRUE | AG4: =IF(AF4=TRUE,1,0) -> 1
H5: =PulmonaryRehabGraph!$Y$7 -> Projected pulmonary rehabilitation trends for England | X5: Logarithmic
Y7: ="Projected pulmonary rehabilitation trends for "&populationFunnel!C54 -> Projected pulmonary rehabilitation trends for England
Y8: =_xlfn.XLOOKUP(_Mtech!B26,_Mtech!E12:G12,_Mtech!E13:G13) -> ICSs
G11: ERROR: cannot choose start year later than or equal to end year
C13: COPD register size | X13: =IF(_Mtech!B26<>2,1,2) -> 2
G15: ERROR: cannot choose start year earlier than or equal to end year
C17: Eligible
C19: Referral
C21: Uptake
C25: Completion

Sheet PulmonaryRehabTable (hidden)
E10: ="Projected pulmonary rehabilitation trends for "&populationFunnel!C54 -> Projected pulmonary rehabilitation trends for England
D12: 1 | E12: 2 | F12: 3 | G12: 4 | H12: 5 | I12: 6 | J12: 7 | K12: 8 | L12: 9
D13: 2022 | E13: 2023 | F13: 2024 | G13: 2025 | H13: 2026 | I13: 2027 | J13: 2028 | K13: 2029 | L13: 2030
C14: Number of patients on COPD register | D14: =IF(dashboard!$X$1=1,CalculationSheet!$O132,CalculationSheet!$P132) ->  | E14: =IF(dashboard!$X$1=1,CalculationSheet!$O133,CalculationSheet!$P133) ->  | F14: =IF(dashboard!$X$1=1,CalculationSheet!$O134,CalculationSheet!$P134) ->  | G14: =IF(dashboard!$X$1=1,CalculationSheet!$O135,CalculationSheet!$P135) ->  | H14: =IF(dashboard!$X$1=1,CalculationSheet!$O136,CalculationSheet!$P136) ->  | I14: =IF(dashboard!$X$1=1,CalculationSheet!$O137,CalculationSheet!$P137) ->  | J14: =IF(dashboard!$X$1=1,CalculationSheet!$O138,CalculationSheet!$P138) ->  | K14: =IF(dashboard!$X$1=1,CalculationSheet!$O139,CalculationSheet!$P139) ->  | L14: =IF(dashboard!$X$1=1,CalculationSheet!$O140,CalculationSheet!$P140) -> 
C15: Number of patients eligible for PR | D15: =IF(dashboard!$X$1=1,CalculationSheet!Q132,CalculationSheet!R132) ->  | E15: =IF(dashboard!$X$1=1,CalculationSheet!Q133,CalculationSheet!R133) ->  | F15: =IF(dashboard!$X$1=1,CalculationSheet!$Q134,CalculationSheet!$R134) ->  | G15: =IF(dashboard!$X$1=1,CalculationSheet!$Q135,CalculationSheet!$R135) ->  | H15: =IF(dashboard!$X$1=1,CalculationSheet!$Q136,CalculationSheet!$R136) ->  | I15: =IF(dashboard!$X$1=1,CalculationSheet!$Q137,CalculationSheet!$R137) ->  | J15: =IF(dashboard!$X$1=1,CalculationSheet!$Q138,CalculationSheet!$R138) ->  | K15: =IF(dashboard!$X$1=1,CalculationSheet!$Q139,CalculationSheet!$R139) ->  | L15: =IF(dashboard!$X$1=1,CalculationSheet!$Q140,CalculationSheet!$R140) -> 
C16: Number of patients referred to PR | D16: =IF(dashboard!$X$1=1,CalculationSheet!$S$132,CalculationSheet!$T$132) ->  | E16: =IF(dashboard!$X$1=1,CalculationSheet!$S133,CalculationSheet!$T133) ->  | F16: =IF(dashboard!$X$1=1,CalculationSheet!$S134,CalculationSheet!$T134) ->  | G16: =IF(dashboard!$X$1=1,CalculationSheet!$S135,CalculationSheet!$T135) ->  | H16: =IF(dashboard!$X$1=1,CalculationSheet!$S136,CalculationSheet!$T136) ->  | I16: =IF(dashboard!$X$1=1,CalculationSheet!$S137,CalculationSheet!$T137) ->  | J16: =IF(dashboard!$X$1=1,CalculationSheet!$S138,CalculationSheet!$T138) ->  | K16: =IF(dashboard!$X$1=1,CalculationSheet!$S139,CalculationSheet!$T139) ->  | L16: =IF(dashboard!$X$1=1,CalculationSheet!$S140,CalculationSheet!$T140) -> 
C17: Number of patients who start PR | D17: =IF(dashboard!$X$1=1,CalculationSheet!$U132,CalculationSheet!$V132) ->  | E17: =IF(dashboard!$X$1=1,CalculationSheet!$U133,CalculationSheet!$V133) ->  | F17: =IF(dashboard!$X$1=1,CalculationSheet!$U134,CalculationSheet!$V134) ->  | G17: =IF(dashboard!$X$1=1,CalculationSheet!$U135,CalculationSheet!$V135) ->  | H17: =IF(dashboard!$X$1=1,CalculationSheet!$U136,CalculationSheet!$V136) ->  | I17: =IF(dashboard!$X$1=1,CalculationSheet!$U137,CalculationSheet!$V137) ->  | J17: =IF(dashboard!$X$1=1,CalculationSheet!$U138,CalculationSheet!$V138) ->  | K17: =IF(dashboard!$X$1=1,CalculationSheet!$U139,CalculationSheet!$V139) ->  | L17: =IF(dashboard!$X$1=1,CalculationSheet!$U140,CalculationSheet!$V140) -> 
C18: Number of patients who complete PR | D18: =IF(dashboard!$X$1=1,CalculationSheet!$W132,CalculationSheet!$X132) ->  | E18: =IF(dashboard!$X$1=1,CalculationSheet!$W133,CalculationSheet!$X133) ->  | F18: =IF(dashboard!$X$1=1,CalculationSheet!$W134,CalculationSheet!$X134) ->  | G18: =IF(dashboard!$X$1=1,CalculationSheet!$W135,CalculationSheet!$X135) ->  | H18: =IF(dashboard!$X$1=1,CalculationSheet!$W136,CalculationSheet!$X136) ->  | I18: =IF(dashboard!$X$1=1,CalculationSheet!$W137,CalculationSheet!$X137) ->  | J18: =IF(dashboard!$X$1=1,CalculationSheet!$W138,CalculationSheet!$X138) ->  | K18: =IF(dashboard!$X$1=1,CalculationSheet!$W139,CalculationSheet!$X139) ->  | L18: =IF(dashboard!$X$1=1,CalculationSheet!$W140,CalculationSheet!$X140) -> 
A28: Maximum values | C28: Completion | D28: =MAX(D15:D18) ->  | E28: =PulmonaryRehabGraph!$AG$4 -> 1
C29: Register | D29: =MAX(G15:G18) ->  | E29: =PulmonaryRehabGraph!$AG4 -> 1
C30: Eligible | D30: =MAX(J15:J18) ->  | E30: =PulmonaryRehabGraph!$AG1 -> 1
C31: Referal | D31: =MAX(M12:M17) -> 0 | E31: =PulmonaryRehabGraph!$AG2 -> 1
C32: Uptake | D32: =MAX(P12:P17) -> 0 | E32: =PulmonaryRehabGraph!$AG3 -> 1
C37: =CEILING(_xlfn.MAXIFS(D29:D32,E29:E32,1),100) -> 

Sheet PulmonaryRehabTable1 (hidden)
E7: ="Projected pulmonary rehabilitation trends for "&populationFunnel!C54 -> Projected pulmonary rehabilitation trends for England
E9: Patient numbers
E11: Number of patients who complete PR | H11: Predicted COPD register size | K11: Number of COPD patients eligible for PR | N11: Number of eligible COPD patients referred to PR | Q11: Number of referred patients who start PR
C12: 1 | D12: 2022 | E12: =IF(dashboard!$X$1=1,CalculationSheet!W132,CalculationSheet!X132) ->  | H12: =IF(dashboard!$X$1=1,CalculationSheet!O132,CalculationSheet!P132) ->  | K12: =IF(dashboard!$X$1=1,CalculationSheet!Q132,CalculationSheet!R132) ->  | N12: =IF(dashboard!$X$1=1,CalculationSheet!S132,CalculationSheet!T132) ->  | Q12: =IF(dashboard!$X$1=1,CalculationSheet!U132,CalculationSheet!V132) -> 
C13: 2 | D13: 2023 | E13: =IF(dashboard!$X$1=1,CalculationSheet!W133,CalculationSheet!X133) ->  | H13: =IF(dashboard!$X$1=1,CalculationSheet!O133,CalculationSheet!P133) ->  | K13: =IF(dashboard!$X$1=1,CalculationSheet!Q133,CalculationSheet!R133) ->  | N13: =IF(dashboard!$X$1=1,CalculationSheet!S133,CalculationSheet!T133) ->  | Q13: =IF(dashboard!$X$1=1,CalculationSheet!U133,CalculationSheet!V133) -> 
C14: 3 | D14: 2024 | E14: =IF(dashboard!$X$1=1,CalculationSheet!W134,CalculationSheet!X134) ->  | H14: =IF(dashboard!$X$1=1,CalculationSheet!O134,CalculationSheet!P134) ->  | K14: =IF(dashboard!$X$1=1,CalculationSheet!Q134,CalculationSheet!R134) ->  | N14: =IF(dashboard!$X$1=1,CalculationSheet!S134,CalculationSheet!T134) ->  | Q14: =IF(dashboard!$X$1=1,CalculationSheet!U134,CalculationSheet!V134) -> 
C15: 4 | D15: 2025 | E15: =IF(dashboard!$X$1=1,CalculationSheet!W135,CalculationSheet!X135) ->  | H15: =IF(dashboard!$X$1=1,CalculationSheet!O135,CalculationSheet!P135) ->  | K15: =IF(dashboard!$X$1=1,CalculationSheet!Q135,CalculationSheet!R135) ->  | N15: =IF(dashboard!$X$1=1,CalculationSheet!S135,CalculationSheet!T135) ->  | Q15: =IF(dashboard!$X$1=1,CalculationSheet!U135,CalculationSheet!V135) -> 
D16: 2026 | E16: =IF(dashboard!$X$1=1,CalculationSheet!W136,CalculationSheet!X136) ->  | H16: =IF(dashboard!$X$1=1,CalculationSheet!O136,CalculationSheet!P136) ->  | K16: =IF(dashboard!$X$1=1,CalculationSheet!Q136,CalculationSheet!R136) ->  | N16: =IF(dashboard!$X$1=1,CalculationSheet!S136,CalculationSheet!T136) ->  | Q16: =IF(dashboard!$X$1=1,CalculationSheet!U136,CalculationSheet!V136) -> 
C17: 5 | D17: 2027 | E17: =IF(dashboard!$X$1=1,CalculationSheet!W137,CalculationSheet!X137) ->  | H17: =IF(dashboard!$X$1=1,CalculationSheet!O137,CalculationSheet!P137) ->  | K17: =IF(dashboard!$X$1=1,CalculationSheet!Q137,CalculationSheet!R137) ->  | N17: =IF(dashboard!$X$1=1,CalculationSheet!S137,CalculationSheet!T137) ->  | Q17: =IF(dashboard!$X$1=1,CalculationSheet!U137,CalculationSheet!V137) -> 
C18: 6 | D18: 2028 | E18: =IF(dashboard!$X$1=1,CalculationSheet!W138,CalculationSheet!X138) ->  | H18: =IF(dashboard!$X$1=1,CalculationSheet!O138,CalculationSheet!P138) ->  | K18: =IF(dashboard!$X$1=1,CalculationSheet!Q138,CalculationSheet!R138) ->  | N18: =IF(dashboard!$X$1=1,CalculationSheet!S138,CalculationSheet!T138) ->  | Q18: =IF(dashboard!$X$1=1,CalculationSheet!U138,CalculationSheet!V138) -> 
C19: 7 | D19: 2029 | E19: =IF(dashboard!$X$1=1,CalculationSheet!W139,CalculationSheet!X139) ->  | H19: =IF(dashboard!$X$1=1,CalculationSheet!O139,CalculationSheet!P139) ->  | K19: =IF(dashboard!$X$1=1,CalculationSheet!Q139,CalculationSheet!R139) ->  | N19: =IF(dashboard!$X$1=1,CalculationSheet!S139,CalculationSheet!T139) ->  | Q19: =IF(dashboard!$X$1=1,CalculationSheet!U139,CalculationSheet!V139) -> 
C20: 8 | D20: 2030 | E20: =IF(dashboard!$X$1=1,CalculationSheet!W140,CalculationSheet!X140) ->  | H20: =IF(dashboard!$X$1=1,CalculationSheet!O140,CalculationSheet!P140) ->  | K20: =IF(dashboard!$X$1=1,CalculationSheet!Q140,CalculationSheet!R140) ->  | N20: =IF(dashboard!$X$1=1,CalculationSheet!S140,CalculationSheet!T140) ->  | Q20: =IF(dashboard!$X$1=1,CalculationSheet!U140,CalculationSheet!V140) -> 
C23: 10
C25: 11
A31: Maximum values | D31: Completion | E31: =MAX(E12:E20) ->  | F31: =PulmonaryRehabGraph!$AG$4 -> 1
D32: Register | E32: =MAX(H12:H20) ->  | F32: =PulmonaryRehabGraph!$AG4 -> 1
D33: Eligible | E33: =MAX(K12:K20) ->  | F33: =PulmonaryRehabGraph!$AG1 -> 1
D34: Referal | E34: =MAX(N12:N20) ->  | F34: =PulmonaryRehabGraph!$AG2 -> 1
D35: Uptake | E35: =MAX(Q12:Q20) ->  | F35: =PulmonaryRehabGraph!$AG3 -> 1
D40: =CEILING(_xlfn.MAXIFS(E32:E35,F32:F35,1),100) -> 

Sheet comparisons (hidden)
W1: 2
B12: Referral, uptake and completion: modelled population
C14: Eligible patients | G14: =populationFunnel!F48 -> 
C16: Referral | E16: =populationFunnel!K27 -> 0.2254 | G16: =populationFunnel!F49 -> 
C18: Uptake | E18: =populationFunnel!K33 -> 0.3031 | G18: =populationFunnel!F50 -> 
C20: Completion | E20: =populationFunnel!K38 -> 0.689830226 | G20: =populationFunnel!F51 -> 
B21: =IF(populationFunnel!$A$49,"Completed populaton includes non-COPD uplift","") -> 
B25: =B43 -> Referral, uptake and completion: National Respiratory Audit Programme (NRAP)-recommended
C27: Eligible patients | G27: =populationFunnel!F48 -> 
C29: Referal1 | E29: =CPRD_regressionCoefficients!B103 -> 0.94 | G29: =E29*G27 -> 
C31: Uptake1 | E31: =CPRD_regressionCoefficients!C103 -> 0.56 | G31: =E31*G29 -> 
C33: Completion1 | E33: =CPRD_regressionCoefficients!D103 -> 0.79 | G33: =IF(populationFunnel!A49=TRUE,((comparisons!E33*comparisons!G31)*(1+populationFunnel!K43)),comparisons!E33*comparisons!G31) -> 
B34: =IF(populationFunnel!$A$49,"Completed populaton includes non-COPD uplift","") -> 
B43: Referral, uptake and completion: National Respiratory Audit Programme (NRAP)-recommended
B44: Comparison between modelled and NRAP-recommended data
B45: NRAP recommendations
B49: Not referred | C49: =G27-G29 -> 
B50: Not started | C50: =G29-G31 -> 
B51: Not completed | C51: =G31-G33 -> 
B52: Total not completed PR | C52: =SUM(C49:C51) -> 

Sheet planning
W5: =W17*0.28 -> 
E10: =CalculationSheet!E32 -> 2025 | G10: =E10+1 -> 2026 | I10: =G10+1 -> 2027 | K10: =I10+1 -> 2028 | M10: =K10+1 -> 2029 | O10: =M10+1 -> 2030
V11: 2023 | W11: =E10-1 -> 2024 | X11: =E10 -> 2025 | Y11: =E10+1 -> 2026 | AA11: =Y11+1 -> 2027 | AC11: =Y11+2 -> 2028 | AE11: =Y11+3 -> 2029 | AG11: =Y11+4 -> 2030
U12: Not referred | V12: =V18-V19 ->  | W12: =W18-W19 ->  | X12: =X18-X19 ->  | Y12: =Y18-Y19 ->  | AA12: =I14-I16 ->  | AC12: =K14-K16 ->  | AE12: =M14-M16 ->  | AG12: =O14-O16 -> 
U13: Not started | V13: =V19-V20 ->  | W13: =W19-W20 ->  | X13: =X19-X20 ->  | AA13: =I16-I18 ->  | AC13: =K16-K18 ->  | AE13: =M16-M18 ->  | AG13: =O16-O18 -> 
C14: Modelled total number of patients requiring PR | E14: =populationFunnel!F48 ->  | G14: =Y18 ->  | I14: =AA18 ->  | K14: =AC18 ->  | M14: =AE18 ->  | O14: =AG18 ->  | U14: Not completed | V14: =V20-V21 ->  | W14: =W20-W21 ->  | X14: =X20-X21 ->  | AA14: =I18-I20 ->  | AC14: =K18-K20 ->  | AE14: =M18-M20 ->  | AG14: =O18-O20 -> 
U15: Total who did not complete PR | V15: =SUM(V12:V14) ->  | W15: =SUM(W12:W14) ->  | X15: =SUM(X12:X14) ->  | AA15: =SUM(AA12:AA14) -> 
C16: Modelled number of patients who are referred to PR | E16: =populationFunnel!F49 ->  | G16: =Y19 ->  | I16: =AA19 ->  | K16: =AC19 ->  | M16: =AE19 ->  | O16: =AG19 ->  | W16: 1 | X16: 2 | Y16: 3 | AA16: 4 | AC16: 5 | AE16: 6 | AG16: 7
V17: =(IF(dashboard!W1=1,_xlfn.XLOOKUP((CalculationSheet!E32-2), CalculationSheet!A115:A140, CalculationSheet!I115:I140),_xlfn.XLOOKUP(CalculationSheet!E32-2, CalculationSheet!A115:A140, CalculationSheet!L115:L140)))*1.26 ->  | W17: =(IF(dashboard!X1=1,_xlfn.XLOOKUP((CalculationSheet!E32-1), CalculationSheet!A115:A140, CalculationSheet!I115:I140),_xlfn.XLOOKUP(CalculationSheet!E32-1, CalculationSheet!A115:A140, CalculationSheet!L115:L140)))*1.26 ->  | X17: =(IF(dashboard!X1=1,_xlfn.XLOOKUP((CalculationSheet!E32), CalculationSheet!A115:A140, CalculationSheet!I115:I140),_xlfn.XLOOKUP(CalculationSheet!E32, CalculationSheet!A115:A140, CalculationSheet!L115:L140)))*1.26 ->  | Y17: =(IF(dashboard!X1=1,_xlfn.XLOOKUP((CalculationSheet!E32+1), CalculationSheet!A115:A140, CalculationSheet!I115:I140),_xlfn.XLOOKUP(CalculationSheet!E32+1, CalculationSheet!A115:A140, CalculationSheet!L115:L140)))*1.26 ->  | AA17: =(IF(dashboard!X1=1,_xlfn.XLOOKUP((CalculationSheet!E32+2), CalculationSheet!A115:A140, CalculationSheet!I115:I140),_xlfn.XLOOKUP(CalculationSheet!E32+2, CalculationSheet!A115:A140, CalculationSheet!L115:L140)))*1.26 ->  | AC17: =(IF(dashboard!X1=1,_xlfn.XLOOKUP((CalculationSheet!E32+3), CalculationSheet!A115:A140, CalculationSheet!I115:I140),_xlfn.XLOOKUP(CalculationSheet!E32+3, CalculationSheet!A115:A140, CalculationSheet!L115:L140)))*1.26 ->  | AE17: =(IF(dashboard!X1=1,_xlfn.XLOOKUP((CalculationSheet!E32+4), CalculationSheet!A115:A140, CalculationSheet!I115:I140),_xlfn.XLOOKUP(CalculationSheet!E32+4, CalculationSheet!A115:A140, CalculationSheet!L115:L140)))*1.26 ->  | AG17: =(IF(dashboard!X1=1,_xlfn.XLOOKUP((CalculationSheet!E32+5), CalculationSheet!A115:A140, CalculationSheet!I115:I140),_xlfn.XLOOKUP(CalculationSheet!E32+5, CalculationSheet!A115:A140, CalculationSheet!L115:L140)))*1.26 -> 
C18: Modelled number of patients who start PR | E18: =populationFunnel!F50 ->  | G18: =Y20 ->  | I18: =AA20 ->  | K18: =AC20 ->  | M18: =AE20 ->  | O18: =AG20 ->  | V18: =V17*populationFunnel!$K$23 ->  | W18: =W17*populationFunnel!$K$23 ->  | X18: =X17*populationFunnel!$K$23 ->  | Y18: =Y17*populationFunnel!$K$23 ->  | AA18: =AA17*populationFunnel!$K$23 ->  | AC18: =AC17*populationFunnel!$K$23 ->  | AE18: =AE17*populationFunnel!$K$23 ->  | AG18: =AG17*populationFunnel!$K$23 -> 
V19: =V18*populationFunnel!$K$27 ->  | W19: =W18*populationFunnel!$K$27 ->  | X19: =X18*populationFunnel!$K$27 ->  | Y19: =Y18*populationFunnel!$K$27 ->  | AA19: =AA18*populationFunnel!$K$27 ->  | AC19: =AC18*populationFunnel!$K$27 ->  | AE19: =AE18*populationFunnel!$K$27 ->  | AG19: =AG18*populationFunnel!$K$27 -> 
C20: Modelled number of patients who complete PR | E20: =populationFunnel!F51 ->  | G20: =Y21 ->  | I20: =AA21 ->  | K20: =AC21 ->  | M20: =AE21 ->  | O20: =AG21 ->  | V20: =V19*populationFunnel!$K$33 ->  | W20: =W19*populationFunnel!$K$33 ->  | X20: =X19*populationFunnel!$K$33 ->  | Y20: =Y19*populationFunnel!$K$33 ->  | AA20: =AA19*populationFunnel!$K$33 ->  | AC20: =AC19*populationFunnel!$K$33 ->  | AE20: =AE19*populationFunnel!$K$33 ->  | AG20: =AG19*populationFunnel!$K$33 -> 
G21: 1 | I21: 2 | K21: 3 | M21: 4 | O21: 5 | V21: =IF(populationFunnel!$A$49="FALSE",(populationFunnel!$K$38*planning!V20)+(populationFunnel!$K$43*planning!V20*populationFunnel!$K$38),populationFunnel!$K$38*planning!V20) ->  | W21: =IF(populationFunnel!$A$49="FALSE",(populationFunnel!$K$38*planning!W20)+(populationFunnel!$K$43*planning!W20*populationFunnel!$K$38),populationFunnel!$K$38*planning!W20) ->  | X21: =IF(populationFunnel!$A$49="FALSE",(populationFunnel!$K$38*planning!X20)+(populationFunnel!$K$43*planning!X20*populationFunnel!$K$38),populationFunnel!$K$38*planning!X20) ->  | Y21: =IF(populationFunnel!$A$49="FALSE",(populationFunnel!$K$38*planning!Y20)+(populationFunnel!$K$43*planning!Y20*populationFunnel!$K$38),populationFunnel!$K$38*planning!Y20) ->  | AA21: =IF(populationFunnel!$A$49="FALSE",(populationFunnel!$K$38*planning!AA20)+(populationFunnel!$K$43*planning!AA20*populationFunnel!$K$38),populationFunnel!$K$38*planning!AA20) ->  | AC21: =IF(populationFunnel!$A$49="FALSE",(populationFunnel!$K$38*planning!AC20)+(populationFunnel!$K$43*planning!AC20*populationFunnel!$K$38),populationFunnel!$K$38*planning!AC20) ->  | AE21: =IF(populationFunnel!$A$49="FALSE",(populationFunnel!$K$38*planning!AE20)+(populationFunnel!$K$43*planning!AE20*populationFunnel!$K$38),populationFunnel!$K$38*planning!AE20) ->  | AG21: =IF(populationFunnel!$A$49="FALSE",(populationFunnel!$K$38*planning!AG20)+(populationFunnel!$K$43*planning!AG20*populationFunnel!$K$38),populationFunnel!$K$38*planning!AG20) -> 
W22: 1 | X22: 2 | Y22: 3 | AA22: 4 | AC22: 5 | AE22: 6 | AG22: 7
C23: Number of commissioned places for PR
C25: In-year unmet population need | E25: =IFERROR(E20-E23,E20) ->  | G25: =IFERROR(G20-G23,G20) ->  | I25: =IFERROR(I20-I23,I20) ->  | K25: =IFERROR(K20-K23,K20) ->  | M25: =IFERROR(M20-M23,M20) ->  | O25: =IFERROR(O20-O23,O20) -> 
A26: ="The five-year view for "&populationFunnel!C54&" (modelled population)" -> The five-year view for England (modelled population)
A32: 1
A33: Register
A34: Eligible | O34: incident patients
A35: Refer | O35: *
O36: eligibility
O37: +
O38: remaining number eligible from last year
O39: -
O40: number of completers
O41: -
O42: mortality
O43: =
O44: number requiring PR

Sheet comparisonsPlanning (hidden)
E10: 2023 | G10: =E10+1 -> 2024 | I10: =G10+1 -> 2025 | K10: =I10+1 -> 2026 | M10: =K10+1 -> 2027 | O10: =M10+1 -> 2028
V12: 2023 | X12: 2024 | Z12: 2025 | AB12: 2026
U13: Not referred | V13: =G14-G16 ->  | X13: =I14-I16 -> 
C14: Modelled total number of patients requiring PR | E14: =comparisons!G27 ->  | G14: =comparisonsPlanningPopUp!G26 ->  | I14: =comparisonsPlanningPopUp!I26 ->  | K14: =comparisonsPlanningPopUp!K26 ->  | M14: =comparisonsPlanningPopUp!M26 ->  | O14: =comparisonsPlanningPopUp!O26 ->  | U14: Not started | V14: =G16-G18 ->  | X14: =I16-I18 -> 
U15: Not completed | V15: =G18-G20 ->  | X15: =I18-I20 -> 
C16: Modelled number of patients who are referred to PR | E16: =comparisons!G29 ->  | G16: =comparisonsPlanningPopUp1!I15*comparisonsPlanning!G14 ->  | I16: =comparisonsPlanningPopUp1!K15*comparisonsPlanning!I14 ->  | K16: =comparisonsPlanningPopUp1!M15*comparisonsPlanning!K14 ->  | M16: =comparisonsPlanningPopUp1!O15*comparisonsPlanning!M14 ->  | O16: =comparisonsPlanningPopUp1!Q15*comparisonsPlanning!O14 ->  | U16: Total | V16: =SUM(V13:V15) ->  | X16: =SUM(X13:X15) -> 
C18: Modelled number of patients who start PR | E18: =comparisons!G31 ->  | G18: =planningPopUp1!I18*comparisonsPlanning!G16 ->  | I18: =comparisonsPlanningPopUp1!K18*comparisonsPlanning!I16 ->  | K18: =comparisonsPlanningPopUp1!M18*comparisonsPlanning!K16 ->  | M18: =comparisonsPlanningPopUp1!O18*comparisonsPlanning!M16 ->  | O18: =comparisonsPlanningPopUp1!Q18*comparisonsPlanning!O16 -> 
C20: Modelled number of patients who complete PR | E20: =comparisons!G33 ->  | G20: =planningPopUp1!I21*comparisonsPlanning!G18 ->  | I20: =comparisonsPlanningPopUp1!K21*comparisonsPlanning!I18 ->  | K20: =comparisonsPlanningPopUp1!M21*comparisonsPlanning!K18 ->  | M20: =comparisonsPlanningPopUp1!O21*comparisonsPlanning!M18 ->  | O20: =comparisonsPlanningPopUp1!Q21*comparisonsPlanning!O18 -> 
G21: 1 | I21: 2 | K21: 3 | M21: 4 | O21: 5
C23: Number of commissioned places for PR | E23: 200 | G23: 200 | I23: 200 | K23: 200 | M23: 200 | O23: 200
C25: In-year unmet population need | E25: =E20-E23 ->  | G25: =G20-G23 ->  | I25: =I20-I23 ->  | K25: =K20-K23 ->  | M25: =M20-M23 ->  | O25: =O20-O23 -> 
A26: ="The five-year view for "&populationFunnel!C54&" (NRAP-recommended)" -> The five-year view for England (NRAP-recommended)
A32: 1
A33: Register
A34: Eligible | O34: incident patients
A35: Refer | O35: *
O36: eligibility
O37: +
O38: remaining number eligible from last year
O39: -
O40: number of completers
O41: -
O42: mortality
O43: =
O44: number requiring PR

Sheet planningSummary (hidden)
H1: =IF($X$1=1,TRUE,FALSE) -> TRUE | I1: =IF($X$1=1,TRUE,FALSE) -> TRUE | J1: TRUE | K1: =IF($X$1=2,TRUE,FALSE) -> FALSE | L1: =IF($X$1=2,TRUE,FALSE) -> FALSE | M1: FALSE | N1: =IF($X$1=3,TRUE,FALSE) -> FALSE | O1: =IF($X$1=3,TRUE,FALSE) -> FALSE | P1: FALSE | Q1: =IF($X$1=4,TRUE,FALSE) -> FALSE | R1: =IF($X$1=4,TRUE,FALSE) -> FALSE | S1: FALSE | T1: =IF($X$1=5,TRUE,FALSE) -> FALSE | U1: =IF($X$1=5,TRUE,FALSE) -> FALSE | V1: =U1 -> FALSE | W1: 5 | X1: 1
E10: 2023 | H10: =E10+1 -> 2024 | K10: =H10+1 -> 2025 | N10: =K10+1 -> 2026 | Q10: =N10+1 -> 2027 | T10: =Q10+1 -> 2028
C14: Modelled total number of patients requiring PR | E14: =planning!E14 ->  | F14: =comparisonsPlanning!$E14 ->  | H14: =planning!G14 ->  | I14: =comparisonsPlanning!$G14 ->  | K14: =planning!I14 ->  | L14: =comparisonsPlanning!$I14 ->  | N14: =planning!K14 ->  | O14: =comparisonsPlanning!$K14 ->  | Q14: =planning!M14 ->  | R14: =comparisonsPlanning!$M14 ->  | T14: =planning!O14 ->  | U14: =comparisonsPlanning!$O14 -> 
C16: Modelled number of patients who are referred to PR | E16: =planning!E16 ->  | F16: =comparisonsPlanning!$E16 ->  | H16: =planning!G16 ->  | I16: =comparisonsPlanning!$G16 ->  | K16: =planning!I16 ->  | L16: =comparisonsPlanning!$I16 ->  | N16: =planning!K16 ->  | O16: =comparisonsPlanning!$K16 ->  | Q16: =planning!M16 ->  | R16: =comparisonsPlanning!$M16 ->  | T16: =planning!O16 ->  | U16: =comparisonsPlanning!$O16 -> 
C18: Modelled number of patients who start PR | E18: =planning!E18 ->  | F18: =comparisonsPlanning!$E18 ->  | H18: =planning!G18 ->  | I18: =comparisonsPlanning!$G18 ->  | K18: =planning!I18 ->  | L18: =comparisonsPlanning!$I18 ->  | N18: =planning!K18 ->  | O18: =comparisonsPlanning!$K18 ->  | Q18: =planning!M18 ->  | R18: =comparisonsPlanning!$M18 ->  | T18: =planning!O18 ->  | U18: =comparisonsPlanning!$O18 -> 
C20: Modelled number of patients who complete PR | E20: =planning!E20 ->  | F20: =comparisonsPlanning!$E20 ->  | H20: =planning!G20 ->  | I20: =comparisonsPlanning!$G20 ->  | K20: =planning!I20 ->  | L20: =comparisonsPlanning!$I20 ->  | N20: =planning!K20 ->  | O20: =comparisonsPlanning!$K20 ->  | Q20: =planning!M20 ->  | R20: =comparisonsPlanning!$M20 ->  | T20: =planning!O20 ->  | U20: =comparisonsPlanning!$O20 -> 
I21: 1 | L21: 2 | O21: 3 | R21: 4 | U21: 5
C23: Number of commissioned places for PR | E23: =planning!E23 -> 0 | F23: =comparisonsPlanning!$G23 -> 200 | H23: =planning!G23 -> 0 | I23: =comparisonsPlanning!$I23 -> 200 | K23: =planning!I23 -> 0 | L23: =comparisonsPlanning!$I23 -> 200 | N23: =planning!K23 -> 0 | O23: =comparisonsPlanning!$K23 -> 200 | Q23: =planning!M23 -> 0 | R23: =comparisonsPlanning!$M23 -> 200 | T23: =planning!O23 -> 0 | U23: =comparisonsPlanning!$O23 -> 200
C25: Unmet population need | E25: =planning!E25 ->  | F25: =comparisonsPlanning!$G25 ->  | H25: =planning!G25 ->  | I25: =comparisonsPlanning!$I25 ->  | K25: =planning!I25 ->  | L25: =comparisonsPlanning!$I25 ->  | N25: =planning!K25 ->  | O25: =comparisonsPlanning!$K25 ->  | Q25: =planning!M25 ->  | R25: =comparisonsPlanning!$M25 ->  | T25: =planning!O25 ->  | U25: =comparisonsPlanning!$O25 -> 
A26: ="The five-year view for "&populationFunnel!C54&" (comparison of CPRD-modelled data and WGLL)" -> The five-year view for England (comparison of CPRD-modelled data and WGLL)
A32: 1
A33: Register
A34: Eligible | U34: incident patients
A35: Refer | U35: *
U36: eligibility
U37: +
U38: remaining number eligible from last year
U39: -
U40: number of completers
U41: -
U42: mortality
U43: =
U44: number requiring PR

Sheet healthEconomicsIntro
C37: 11

Sheet healthEconomicsCalculation
Z1: =workforceModelling4!X1 -> 2
C9: The economic values of PR completions:
J11: 0.086
J13: 2854
J16: 0.065 | M16: 20000 | P16: =J11*J13 -> 245.444 | S16: =(J16*M16)+P16 -> 1545.444
R22: =_xlfn.XLOOKUP(Z1,planning!$W$16:$AG$16,planning!$W$21:$AG$21) -> 
R25: =R22*S16 -> 
A33: ="Number of patients completing PR in "&CalculationSheet!D1&" in "&_xlfn.XLOOKUP(healthEconomicsCalculation!Z1,planning!$W$16:$AG$16,planning!$W$11:$AG$11) -> Number of patients completing PR in England in 2025 | C33: 11
A34: ="Economically beneficial investment in PR in "&CalculationSheet!D1&" in "&_xlfn.XLOOKUP(healthEconomicsCalculation!Z1,planning!$W$16:$AG$16,planning!$W$11:$AG$11) -> Economically beneficial investment in PR in England in 2025
A35: ="Number of patients completing PR ("&comparisons!B45&") in "&CalculationSheet!D1&" in "&_xlfn.XLOOKUP(healthEconomicsCalculation!Z1,planning!$E$21:$O$21,planning!$E$10:$O$10) -> Number of patients completing PR (NRAP recommendations) in England in 2027

Sheet workforceModelling4
X1: 2 | AB1: =workforceModelling1!$X$1 -> 2
B9: Staffing requirements per PR completer
F12: 1314.1 | H12: 1399.6 | J12: 1343.7
F15: =workforceModelling1!L21 ->  | H15: =workforceModelling2!L21 ->  | J15: =workforceModelling3!$D$21 -> 
F17: =workforceModelling1!L23 ->  | H17: =workforceModelling2!L23 ->  | J17: =workforceModelling3!$D$23 -> 
F20: =F15/F12 ->  | H20: =H15/H12 ->  | J20: =J15/J12 -> 
F22: =F17/F12 ->  | H22: =H17/H12 ->  | J22: =J17/J12 -> 

Sheet workforceModelling1
X1: =workforceModelling4!X1 -> 2
C15: Assessment | D15: Clinical triage | E15: Supervising exercise class | F15: Education classes | G15: Final outcomes assessment | H15: Discharge | I15: Travel between venues | J15: Group set up and pack down | K15: Documentation | L15: Total hours required per completer | M15: Hours required per 1,000 completers
C19: 1.5 | D19: 0.17 | E19: 3 | F19: 0.75 | G19: 0.75 | H19: 0.08 | I19: 0.75 | J19: 0.625 | K19: 1 | M19: =SUM(C19:K19)*1000 -> 8625
C21: =C19*_xlfn.XLOOKUP($X$1,planning!$W$22:$AG$22,planning!$W$21:$AG$21) ->  | D21: =D19*_xlfn.XLOOKUP($X$1,planning!$W$22:$AG$22,planning!$W$21:$AG$21) ->  | E21: =E19*_xlfn.XLOOKUP($X$1,planning!$W$22:$AG$22,planning!$W$21:$AG$21) ->  | F21: =F19*_xlfn.XLOOKUP($X$1,planning!$W$22:$AG$22,planning!$W$21:$AG$21) ->  | G21: =G19*_xlfn.XLOOKUP($X$1,planning!$W$22:$AG$22,planning!$W$21:$AG$21) ->  | H21: =H19*_xlfn.XLOOKUP($X$1,planning!$W$22:$AG$22,planning!$W$21:$AG$21) ->  | I21: =I19*_xlfn.XLOOKUP($X$1,planning!$W$22:$AG$22,planning!$W$21:$AG$21) ->  | J21: =J19*_xlfn.XLOOKUP($X$1,planning!$W$22:$AG$22,planning!$W$21:$AG$21) ->  | K21: =K19*_xlfn.XLOOKUP($X$1,planning!$W$22:$AG$22,planning!$W$21:$AG$21) ->  | L21: =SUM(C21:K21) -> 
C23: =C19*_xlfn.XLOOKUP($X$1,comparisonsPlanning!$G$21:$O$21,comparisonsPlanning!$G$20:$O$20) ->  | D23: =D19*_xlfn.XLOOKUP($X$1,comparisonsPlanning!$G$21:$O$21,comparisonsPlanning!$G$20:$O$20) ->  | E23: =E19*_xlfn.XLOOKUP($X$1,comparisonsPlanning!$G$21:$O$21,comparisonsPlanning!$G$20:$O$20) ->  | F23: =F19*_xlfn.XLOOKUP($X$1,comparisonsPlanning!$G$21:$O$21,comparisonsPlanning!$G$20:$O$20) ->  | G23: =G19*_xlfn.XLOOKUP($X$1,comparisonsPlanning!$G$21:$O$21,comparisonsPlanning!$G$20:$O$20) ->  | H23: =H19*_xlfn.XLOOKUP($X$1,comparisonsPlanning!$G$21:$O$21,comparisonsPlanning!$G$20:$O$20) ->  | I23: =I19*_xlfn.XLOOKUP($X$1,comparisonsPlanning!$G$21:$O$21,comparisonsPlanning!$G$20:$O$20) ->  | J23: =J19*_xlfn.XLOOKUP($X$1,comparisonsPlanning!$G$21:$O$21,comparisonsPlanning!$G$20:$O$20) ->  | K23: =K19*_xlfn.XLOOKUP($X$1,comparisonsPlanning!$G$21:$O$21,comparisonsPlanning!$G$20:$O$20) ->  | L23: =SUM(C23:K23) -> 

Sheet workforceModelling2
X1: =workforceModelling4!X1 -> 2
C15: Assessment | D15: Clinical triage | E15: Supervising exercise class | F15: Education classes | G15: Final outcomes assessment | H15: Discharge | I15: Travel between venues | J15: Group set up and pack down | K15: Documentation | L15: Total hours required per completer | M15: Hours required per 1,000 completers
C19: 1 | D19: 0.1666666667 | E19: 3 | F19: 0.75 | G19: 0.75 | H19: 0.08333333333 | I19: 0.75 | J19: 0.625 | K19: 2.5 | M19: =SUM(C19:K19)*1000 -> 9625
C21: =C19*_xlfn.XLOOKUP($X$1,planning!$W$22:$AG$22,planning!$W$21:$AG$21) ->  | D21: =D19*_xlfn.XLOOKUP($X$1,planning!$W$22:$AG$22,planning!$W$21:$AG$21) ->  | E21: =E19*_xlfn.XLOOKUP($X$1,planning!$W$22:$AG$22,planning!$W$21:$AG$21) ->  | F21: =F19*_xlfn.XLOOKUP($X$1,planning!$W$22:$AG$22,planning!$W$21:$AG$21) ->  | G21: =G19*_xlfn.XLOOKUP($X$1,planning!$W$22:$AG$22,planning!$W$21:$AG$21) ->  | H21: =H19*_xlfn.XLOOKUP($X$1,planning!$W$22:$AG$22,planning!$W$21:$AG$21) ->  | I21: =I19*_xlfn.XLOOKUP($X$1,planning!$W$22:$AG$22,planning!$W$21:$AG$21) ->  | J21: =J19*_xlfn.XLOOKUP($X$1,planning!$W$22:$AG$22,planning!$W$21:$AG$21) ->  | K21: =K19*_xlfn.XLOOKUP($X$1,planning!$W$22:$AG$22,planning!$W$21:$AG$21) ->  | L21: =SUM(C21:K21) -> 
C23: =C19*_xlfn.XLOOKUP($X$1,comparisonsPlanning!$G$21:$O$21,comparisonsPlanning!$G$20:$O$20) ->  | D23: =D19*_xlfn.XLOOKUP($X$1,comparisonsPlanning!$G$21:$O$21,comparisonsPlanning!$G$20:$O$20) ->  | E23: =E19*_xlfn.XLOOKUP($X$1,comparisonsPlanning!$G$21:$O$21,comparisonsPlanning!$G$20:$O$20) ->  | F23: =F19*_xlfn.XLOOKUP($X$1,comparisonsPlanning!$G$21:$O$21,comparisonsPlanning!$G$20:$O$20) ->  | G23: =G19*_xlfn.XLOOKUP($X$1,comparisonsPlanning!$G$21:$O$21,comparisonsPlanning!$G$20:$O$20) ->  | H23: =H19*_xlfn.XLOOKUP($X$1,comparisonsPlanning!$G$21:$O$21,comparisonsPlanning!$G$20:$O$20) ->  | I23: =I19*_xlfn.XLOOKUP($X$1,comparisonsPlanning!$G$21:$O$21,comparisonsPlanning!$G$20:$O$20) ->  | J23: =J19*_xlfn.XLOOKUP($X$1,comparisonsPlanning!$G$21:$O$21,comparisonsPlanning!$G$20:$O$20) ->  | K23: =K19*_xlfn.XLOOKUP($X$1,comparisonsPlanning!$G$21:$O$21,comparisonsPlanning!$G$20:$O$20) ->  | L23: =SUM(C23:K23) -> 

Sheet workforceModelling3
Q1: 1
D15: Appointments and outcomes | F15: Hours required per 1,000 completers
D19: 1.25 | F19: =D19*1000 -> 1250
D21: =D19*_xlfn.XLOOKUP(workforceModelling4!X1,planning!$W$22:$AG$22,planning!$W$21:$AG$21) -> 
D23: =D19*_xlfn.XLOOKUP(workforceModelling4!X1,comparisonsPlanning!$G$21:$O$21,comparisonsPlanning!$G$20:$O$20) -> 

Sheet summary
X1: =workforceModelling4!X1 -> 2 | Z1: 2024 | AA1: 1 | AB1: =_xlfn.XLOOKUP(X1,AA1:AA5,Z1:Z5) -> 2025
Z2: 2025 | AA2: 2
Z3: 2026 | AA3: 3
Z4: 2027 | AA4: 4
Z5: 2028 | AA5: 5
Z6: 2029 | AA6: 6
Y7: ="Modelled Outcomes for "&populationFunnel!C54&" in "&_xlfn.XLOOKUP(X1,AA1:AA5,Z1:Z5) -> Modelled Outcomes for England in 2025 | Z7: 2030 | AA7: 7
Y8: =AB1&" outcomes" -> 2025 outcomes
Y9: =X28&" ("&AB1&")" -> NRAP recommended outcomes (2025)
B15: ="Modelled* register size in "&CalculationSheet!E32 -> Modelled* register size in 2025 | G15: =populationFunnel!Z4 -> 
X16: 2022 outcomes
X18: Number referred | AG18: =planningSummary!E16 -> 
X19: Number started | AG19: =planningSummary!E18 -> 
B20: ="Modelled* list size in "&CalculationSheet!E32 -> Modelled* list size in 2025 | G20: =populationFunnel!Z5 ->  | X20: Number completed | AG20: =planningSummary!E20 -> 
X23: =_xlfn.XLOOKUP(X1,AA1:AA5,Z1:Z5)&" outcomes " -> 2025 outcomes
X24: Number referred | AD24: =_xlfn.XLOOKUP($AB$1,planning!$W$11:$AG$11,planning!W19:AG19) -> 
X25: Number started | AD25: =_xlfn.XLOOKUP($AB$1,planning!$W$11:$AG$11,planning!W20:AG20) -> 
X26: Number completed | AD26: =_xlfn.XLOOKUP($AB$1,planning!$W$11:$AG$11,planning!W21:AG21) -> 
X28: ="NRAP recommended outcomes" -> NRAP recommended outcomes
X29: Number referred | AD29: =_xlfn.XLOOKUP(X$1,comparisonsPlanning!G$21:O$21,comparisonsPlanning!G16:O16) -> 
X30: Number started | AD30: =_xlfn.XLOOKUP(X$1,comparisonsPlanning!G$21:O$21,comparisonsPlanning!G18:O18) -> 
X31: Number completed | AD31: =_xlfn.XLOOKUP(X$1,comparisonsPlanning!G$21:O$21,comparisonsPlanning!G20:O20) -> 
X34: ="Economic value in "&_xlfn.XLOOKUP(X1,AA1:AA5,Z1:Z5) -> Economic value in 2025
X35: Modelled completers | AC35: 0 | AD35: =healthEconomicsCalculation!$S$16*summary!AD26 -> 
X36: NRAP recommended completers | AC36: 0 | AD36: =healthEconomicsCalculation!$S$16*summary!AD31 -> 
X38: ="Cost-effective investment in patients who complete PR in " &AB1 -> Cost-effective investment in patients who complete PR in 2025

Sheet populationFunnelPopUp (hidden)
W1: Eligible | X1: 1
W2: Referred
W3: Commenced
W4: Completed
A9: =IF($X$1=1,TRUE,FALSE) -> TRUE | B9: Eligible population
A10: =IF($X$1=1,TRUE,FALSE) -> TRUE
A11: TRUE | B11: Age | E11: % of patients | G11: Gender | L11: IMD decile | Q11: Ethnicity
A12: TRUE | C12: 35-49 | E12: 0.01 | H12: % male | J12: =_xlfn.XLOOKUP(CalculationSheet!$D$1,CPRD_regressionCoefficients!$A$59:$A$68,CPRD_regressionCoefficients!$K$59:$K$68) -> 0.5334 | M12: 1 | O12: =_xlfn.XLOOKUP(CalculationSheet!$D$1,CPRD_regressionCoefficients!$A$59:$A$68,CPRD_regressionCoefficients!$M$59:$M$68) -> 0.1479 | R12: White | T12: =_xlfn.XLOOKUP(CalculationSheet!$D$1,CPRD_regressionCoefficients!$A$59:$A$68,CPRD_regressionCoefficients!$R$59:$R$68) -> 0.8003
A13: TRUE | C13: 50-59 | E13: =_xlfn.XLOOKUP(CalculationSheet!$D$1,CPRD_regressionCoefficients!$A$59:$A$68,CPRD_regressionCoefficients!$G$59:$G$68) -> 0.1935 | H13: % female | J13: =1-J12 -> 0.4666 | M13: 2 | O13: =_xlfn.XLOOKUP(CalculationSheet!$D$1,CPRD_regressionCoefficients!$A$59:$A$68,CPRD_regressionCoefficients!$N$59:$N$68) -> 0.1724 | R13: South Asian | T13: =_xlfn.XLOOKUP(CalculationSheet!$D$1,CPRD_regressionCoefficients!$A$59:$A$68,CPRD_regressionCoefficients!$S$59:$S$68) -> 0.0181
A14: TRUE | C14: 60-69 | E14: =_xlfn.XLOOKUP(CalculationSheet!$D$1,CPRD_regressionCoefficients!$A$59:$A$68,CPRD_regressionCoefficients!$H$59:$H$68) -> 0.3128 | M14: 3 | O14: =_xlfn.XLOOKUP(CalculationSheet!$D$1,CPRD_regressionCoefficients!$A$59:$A$68,CPRD_regressionCoefficients!$O$59:$O$68) -> 0.1886 | R14: Black | T14: =_xlfn.XLOOKUP(CalculationSheet!$D$1,CPRD_regressionCoefficients!$A$59:$A$68,CPRD_regressionCoefficients!$T$59:$T$68) -> 0.0104
A15: TRUE | C15: 70-79 | E15: =_xlfn.XLOOKUP(CalculationSheet!$D$1,CPRD_regressionCoefficients!$A$59:$A$68,CPRD_regressionCoefficients!$I$59:$I$68) -> 0.2779 | M15: 4 | O15: =_xlfn.XLOOKUP(CalculationSheet!$D$1,CPRD_regressionCoefficients!$A$59:$A$68,CPRD_regressionCoefficients!$P$59:$P$68) -> 0.2178 | R15: Other | T15: =_xlfn.XLOOKUP(CalculationSheet!$D$1,CPRD_regressionCoefficients!$A$59:$A$68,CPRD_regressionCoefficients!$U$59:$U$68) -> 0.0034
A16: TRUE | C16: 80+ | E16: =1-SUM(E12:E15) -> 0.2058 | M16: 5 | O16: =1-SUM(O12:O15) -> 0.2733 | R16: Mixed | T16: =_xlfn.XLOOKUP(CalculationSheet!$D$1,CPRD_regressionCoefficients!$A$59:$A$68,CPRD_regressionCoefficients!$V$59:$V$68) -> 0.0031
A17: TRUE | E17: =IF(SUM(E12:E16)<>1,"Total percentage of patients should equal 100%","") ->  | O17: =IF(SUM(O12:O16)<>1,"Total percentage of patients should equal 100%","") ->  | R17: Not Stated | T17: =1-SUM(T12:T16) -> 0.1647
A18: =IF($X$1=2,TRUE,FALSE) -> FALSE | B18: Referred population | T18: =IF(SUM(T12:T17)<>1,"Total percentage of patients should equal 100%","") -> 
A19: =IF($X$1=2,TRUE,FALSE) -> FALSE
A20: FALSE | B20: Age | E20: % of patients | G20: Gender | L20: IMD decile | Q20: Ethnicity
A21: FALSE | C21: 35-49 | E21: =_xlfn.XLOOKUP(CalculationSheet!$D$1,CPRD_regressionCoefficients!$A$64:$A$72,CPRD_regressionCoefficients!$F$64:$F$72) -> 0.0457 | H21: % male | J21: =_xlfn.XLOOKUP(CalculationSheet!$D$1,CPRD_regressionCoefficients!$A$64:$A$72,CPRD_regressionCoefficients!$K$64:$K$72) -> 0.5181 | M21: 1 | O21: =_xlfn.XLOOKUP(CalculationSheet!$D$1,CPRD_regressionCoefficients!$A$64:$A$72,CPRD_regressionCoefficients!$M$64:$M$72) -> 0.1379 | R21: White | T21: =_xlfn.XLOOKUP(CalculationSheet!$D$1,CPRD_regressionCoefficients!$A$64:$A$72,CPRD_regressionCoefficients!$R$64:$R$72) -> 0.8088
A22: FALSE | C22: 50-59 | E22: =_xlfn.XLOOKUP(CalculationSheet!$D$1,CPRD_regressionCoefficients!$A$64:$A$72,CPRD_regressionCoefficients!$G$64:$G$72) -> 0.1461 | H22: % female | J22: =1-J21 -> 0.4819 | M22: 2 | O22: =_xlfn.XLOOKUP(CalculationSheet!$D$1,CPRD_regressionCoefficients!$A$64:$A$72,CPRD_regressionCoefficients!$N$64:$N$72) -> 0.1658 | R22: South Asian | T22: =_xlfn.XLOOKUP(CalculationSheet!$D$1,CPRD_regressionCoefficients!$A$64:$A$72,CPRD_regressionCoefficients!$S$64:$S$72) -> 0.0168
A23: FALSE | C23: 60-69 | E23: =_xlfn.XLOOKUP(CalculationSheet!$D$1,CPRD_regressionCoefficients!$A$64:$A$72,CPRD_regressionCoefficients!$H$64:$H$72) -> 0.2878 | M23: 3 | O23: =_xlfn.XLOOKUP(CalculationSheet!$D$1,CPRD_regressionCoefficients!$A$64:$A$72,CPRD_regressionCoefficients!$O$64:$O$72) -> 0.1863 | R23: Black | T23: =_xlfn.XLOOKUP(CalculationSheet!$D$1,CPRD_regressionCoefficients!$A$64:$A$72,CPRD_regressionCoefficients!$T$64:$T$72) -> 0.0083
A24: FALSE | C24: 70-79 | E24: =_xlfn.XLOOKUP(CalculationSheet!$D$1,CPRD_regressionCoefficients!$A$64:$A$72,CPRD_regressionCoefficients!$I$64:$I$72) -> 0.3202 | M24: 4 | O24: =_xlfn.XLOOKUP(CalculationSheet!$D$1,CPRD_regressionCoefficients!$A$64:$A$72,CPRD_regressionCoefficients!$P$64:$P$72) -> 0.2223 | R24: Other | T24: =_xlfn.XLOOKUP(CalculationSheet!$D$1,CPRD_regressionCoefficients!$A$64:$A$72,CPRD_regressionCoefficients!$U$64:$U$72) -> 0.0027
A25: FALSE | C25: 80+ | E25: =1-SUM(E21:E24) -> 0.2002 | M25: 5 | O25: =1-SUM(O21:O24) -> 0.2877 | R25: Mixed | T25: =_xlfn.XLOOKUP(CalculationSheet!$D$1,CPRD_regressionCoefficients!$A$64:$A$72,CPRD_regressionCoefficients!$V$64:$V$72) -> 0.0024
A26: FALSE | E26: =IF(SUM(E21:E25)<>1,"Total percentage of patients should equal 100%","") ->  | O26: =IF(SUM(O21:O25)<>1,"Total percentage of patients should equal 100%","") ->  | R26: Not Stated | T26: =1-SUM(T21:T25) -> 0.161
A27: =IF($X$1=3,TRUE,FALSE) -> FALSE | B27: Commencement population | T27: =IF(SUM(T21:T26)<>1,"Total percentage of patients should equal 100%","") -> 
A28: =IF($X$1=3,TRUE,FALSE) -> FALSE
A29: FALSE | B29: Age | E29: % of patients | G29: Gender | L29: IMD decile | Q29: Ethnicity
A30: FALSE | C30: 35-49 | E30: =_xlfn.XLOOKUP(CalculationSheet!$D$1,CPRD_regressionCoefficients!$A$74:$A$82,CPRD_regressionCoefficients!$F$74:$F$82) -> 0.0338 | H30: % male | J30: =_xlfn.XLOOKUP(CalculationSheet!$D$1,CPRD_regressionCoefficients!$A$74:$A$82,CPRD_regressionCoefficients!$K$74:$K$82) -> 0.5234 | M30: 1 | O30: =_xlfn.XLOOKUP(CalculationSheet!$D$1,CPRD_regressionCoefficients!$A$74:$A$82,CPRD_regressionCoefficients!$M$74:$M$82) -> 0.1292 | R30: White | T30: =_xlfn.XLOOKUP(CalculationSheet!$D$1,CPRD_regressionCoefficients!$A$74:$A$82,CPRD_regressionCoefficients!$R$74:$R$82) -> 0.8372
A31: FALSE | C31: 50-59 | E31: =_xlfn.XLOOKUP(CalculationSheet!$D$1,CPRD_regressionCoefficients!$A$74:$A$82,CPRD_regressionCoefficients!$G$74:$G$82) -> 0.142 | H31: % female | J31: =1-J30 -> 0.4766 | M31: 2 | O31: =_xlfn.XLOOKUP(CalculationSheet!$D$1,CPRD_regressionCoefficients!$A$74:$A$82,CPRD_regressionCoefficients!$N$74:$N$82) -> 0.1619 | R31: South Asian | T31: =_xlfn.XLOOKUP(CalculationSheet!$D$1,CPRD_regressionCoefficients!$A$74:$A$82,CPRD_regressionCoefficients!$S$74:$S$82) -> 0.0157
A32: FALSE | C32: 60-69 | E32: =_xlfn.XLOOKUP(CalculationSheet!$D$1,CPRD_regressionCoefficients!$A$74:$A$82,CPRD_regressionCoefficients!$H$74:$H$82) -> 0.3232 | M32: 3 | O32: =_xlfn.XLOOKUP(CalculationSheet!$D$1,CPRD_regressionCoefficients!$A$74:$A$82,CPRD_regressionCoefficients!$O$74:$O$82) -> 0.1788 | R32: Black | T32: =_xlfn.XLOOKUP(CalculationSheet!$D$1,CPRD_regressionCoefficients!$A$74:$A$82,CPRD_regressionCoefficients!$T$74:$T$82) -> 0.0102
A33: FALSE | C33: 70-79 | E33: =_xlfn.XLOOKUP(CalculationSheet!$D$1,CPRD_regressionCoefficients!$A$74:$A$82,CPRD_regressionCoefficients!$I$74:$I$82) -> 0.3474 | M33: 4 | O33: =_xlfn.XLOOKUP(CalculationSheet!$D$1,CPRD_regressionCoefficients!$A$74:$A$82,CPRD_regressionCoefficients!$P$74:$P$82) -> 0.2242 | R33: Other | T33: =_xlfn.XLOOKUP(CalculationSheet!$D$1,CPRD_regressionCoefficients!$A$74:$A$82,CPRD_regressionCoefficients!$U$74:$U$82) -> 0.0026
A34: FALSE | C34: 80+ | E34: =1-SUM(E30:E33) -> 0.1536 | M34: 5 | O34: =1-SUM(O30:O33) -> 0.3059 | R34: Mixed | T34: =_xlfn.XLOOKUP(CalculationSheet!$D$1,CPRD_regressionCoefficients!$A$74:$A$82,CPRD_regressionCoefficients!$V$74:$V$82) -> 0.0023
A35: FALSE | E35: =IF(SUM(E30:E34)<>1,"Total percentage of patients should equal 100%","") ->  | O35: =IF(SUM(O30:O34)<>1,"Total percentage of patients should equal 100%","") ->  | R35: Not Stated | T35: =1-SUM(T30:T34) -> 0.132
A36: =IF($X$1=4,TRUE,FALSE) -> FALSE | B36: Completion population | T36: =IF(SUM(T30:T35)<>1,"Total percentage of patients should equal 100%","") -> 
A37: =IF($X$1=4,TRUE,FALSE) -> FALSE
A38: =IF($X$1=4,TRUE,FALSE) -> FALSE | B38: Age | E38: % of patients | G38: Gender | L38: IMD decile | Q38: Ethnicity
A39: =IF($X$1=4,TRUE,FALSE) -> FALSE | C39: 35-49 | E39: =_xlfn.XLOOKUP(CalculationSheet!$D$1,CPRD_regressionCoefficients!$A$81:$A$88,CPRD_regressionCoefficients!$F$81:$F$88) -> 0.0236 | H39: % male | J39: =_xlfn.XLOOKUP(CalculationSheet!$D$1,CPRD_regressionCoefficients!$A$81:$A$88,CPRD_regressionCoefficients!$K$81:$K$88) -> 0.529 | M39: 1 | O39: =_xlfn.XLOOKUP(CalculationSheet!$D$1,CPRD_regressionCoefficients!$A$81:$A$88,CPRD_regressionCoefficients!$M$81:$M$88) -> 0.1352 | R39: White | T39: =_xlfn.XLOOKUP(CalculationSheet!$D$1,CPRD_regressionCoefficients!$A$81:$A$88,CPRD_regressionCoefficients!$R$81:$R$88) -> 0.8571
A40: =IF($X$1=4,TRUE,FALSE) -> FALSE | C40: 50-59 | E40: =_xlfn.XLOOKUP(CalculationSheet!$D$1,CPRD_regressionCoefficients!$A$81:$A$88,CPRD_regressionCoefficients!$G$81:$G$88) -> 0.1144 | H40: % female | J40: =1-J39 -> 0.471 | M40: 2 | O40: =_xlfn.XLOOKUP(CalculationSheet!$D$1,CPRD_regressionCoefficients!$A$81:$A$88,CPRD_regressionCoefficients!$N$81:$N$88) -> 0.1659 | R40: South Asian | T40: =_xlfn.XLOOKUP(CalculationSheet!$D$1,CPRD_regressionCoefficients!$A$81:$A$88,CPRD_regressionCoefficients!$S$81:$S$88) -> 0.0108
A41: FALSE | C41: 60-69 | E41: =_xlfn.XLOOKUP(CalculationSheet!$D$1,CPRD_regressionCoefficients!$A$81:$A$88,CPRD_regressionCoefficients!$H$81:$H$88) -> 0.3273 | M41: 3 | O41: =_xlfn.XLOOKUP(CalculationSheet!$D$1,CPRD_regressionCoefficients!$A$81:$A$88,CPRD_regressionCoefficients!$O$81:$O$88) -> 0.1821 | R41: Black | T41: =_xlfn.XLOOKUP(CalculationSheet!$D$1,CPRD_regressionCoefficients!$A$81:$A$88,CPRD_regressionCoefficients!$T$81:$T$88) -> 0.009
A42: FALSE | C42: 70-79 | E42: =_xlfn.XLOOKUP(CalculationSheet!$D$1,CPRD_regressionCoefficients!$A$81:$A$88,CPRD_regressionCoefficients!$I$81:$I$88) -> 0.3783 | M42: 4 | O42: =_xlfn.XLOOKUP(CalculationSheet!$D$1,CPRD_regressionCoefficients!$A$81:$A$88,CPRD_regressionCoefficients!$P$81:$P$88) -> 0.2225 | R42: Other | T42: =_xlfn.XLOOKUP(CalculationSheet!$D$1,CPRD_regressionCoefficients!$A$81:$A$88,CPRD_regressionCoefficients!$U$81:$U$88) -> 0.0022
A43: FALSE | C43: 80+ | E43: =1-SUM(E39:E42) -> 0.1564 | M43: 5 | O43: =1-SUM(O39:O42) -> 0.2943 | R43: Mixed | T43: =_xlfn.XLOOKUP(CalculationSheet!$D$1,CPRD_regressionCoefficients!$A$81:$A$88,CPRD_regressionCoefficients!$V$81:$V$88) -> 0.0017
A44: =A43 -> FALSE | E44: =IF(SUM(E39:E43)<>1,"Total percentage of patients should equal 100%","") ->  | O44: =IF(SUM(O39:O43)<>1,"Total percentage of patients should equal 100%","") ->  | R44: Not Stated | T44: =1-SUM(T39:T43) -> 0.1192
A45: =A44 -> FALSE | T45: =IF(SUM(T39:T44)<>1,"Total percentage of patients should equal 100%","") -> 

Sheet planningPopUp
G1: =IF($T$1=1,TRUE,FALSE) -> FALSE | H1: =IF($T$1=1,TRUE,FALSE) -> FALSE | I1: =IF($T$1=2,TRUE,FALSE) -> FALSE | J1: =IF($T$1=2,TRUE,FALSE) -> FALSE | K1: =IF($T$1=3,TRUE,FALSE) -> TRUE | L1: =IF($T$1=3,TRUE,FALSE) -> TRUE | M1: =IF($T$1=4,TRUE,FALSE) -> FALSE | N1: =IF($T$1=4,TRUE,FALSE) -> FALSE | O1: =IF($T$1=5,TRUE,FALSE) -> FALSE | P1: =IF($T$1=5,TRUE,FALSE) -> FALSE | S1: 1 | T1: 3
G11: 2023 | I11: 2024 | K11: 2025 | M11: 2026 | O11: 2027
D12: Forecasted list size | G12: =IF(dashboard!X1=1,_xlfn.XLOOKUP(_Mtech!$X$1-1+$T$1, CalculationSheet!A115:A140, CalculationSheet!C115:C140),_xlfn.XLOOKUP(_Mtech!$X$1-1+$T$1, CalculationSheet!A115:A140, CalculationSheet!F115:F140)) ->  | I12: =IF(dashboard!X1=1,_xlfn.XLOOKUP(_Mtech!$X$1-1+$T$1, CalculationSheet!A115:A140, CalculationSheet!C115:C140),_xlfn.XLOOKUP(_Mtech!$X$1-1+$T$1, CalculationSheet!A115:A140, CalculationSheet!F115:F140)) ->  | K12: =IF(dashboard!X1=1,_xlfn.XLOOKUP(_Mtech!$X$1-1+$T$1, CalculationSheet!A115:A140, CalculationSheet!C115:C140),_xlfn.XLOOKUP(_Mtech!$X$1-1+$T$1, CalculationSheet!A115:A140, CalculationSheet!F115:F140)) ->  | M12: =IF(dashboard!X1=1,_xlfn.XLOOKUP(_Mtech!$X$1-1+$T$1, CalculationSheet!A115:A140, CalculationSheet!C115:C140),_xlfn.XLOOKUP(_Mtech!$X$1-1+$T$1, CalculationSheet!A115:A140, CalculationSheet!F115:F140)) ->  | O12: =IF(dashboard!X1=1,_xlfn.XLOOKUP(_Mtech!$X$1-1+$T$1, CalculationSheet!A115:A140, CalculationSheet!C115:C140),_xlfn.XLOOKUP(_Mtech!$X$1-1+$T$1, CalculationSheet!A115:A140, CalculationSheet!F115:F140)) -> 
C13: New COPD patients (incidence) | E13: 0.0019 | G13: =$E13*G12 ->  | I13: =$E13*I12 ->  | K13: =$E13*K12 ->  | M13: =$E13*M12 ->  | O13: =$E13*O12 -> 
D16: New COPD patients with an MRC score of 3+ | E16: 0.46 | G16: =G13*$E16 ->  | I16: =I13*$E16 ->  | K16: =K13*$E16 ->  | M16: =M13*$E16 ->  | O16: =O13*$E16 -> 
D18: Remaining eligible patients from previous year (backlog) | G18: =IF(dashboard!X1=1,_xlfn.XLOOKUP(_Mtech!$X$1-1, planning!$V$11:$AG$11, planning!$V$15:$AG$15),_xlfn.XLOOKUP(_Mtech!$X$1-1, planning!$V$11:$AG$11, planning!$V$15:$AG$15)) ->  | I18: =IF(dashboard!X1=1,_xlfn.XLOOKUP(_Mtech!$X$1-1+$T$1-1, planning!$W$11:$AG$11, planning!$W$15:$AG$15),_xlfn.XLOOKUP(_Mtech!$X$1-1+$T$1-1, planning!$W$11:$AG$11, planning!$W$15:$AG$15)) ->  | K18: =IF(dashboard!$X$1=1,_xlfn.XLOOKUP(_Mtech!$X$1-1+$T$1-1, planning!$W$11:$AG$11, planning!$W$15:$AG$15),_xlfn.XLOOKUP(_Mtech!$X$1-1+$T$1-1, planning!$W$11:$AG$11, planning!$W$15:$AG$15)) ->  | M18: =IF(dashboard!$X$1=1,_xlfn.XLOOKUP(_Mtech!$X$1-1+$T$1-1, planning!$W$11:$AG$11, planning!$W$15:$AG$15),_xlfn.XLOOKUP(_Mtech!$X$1-1+$T$1-1, planning!$W$11:$AG$11, planning!$W$15:$AG$15)) ->  | O18: =IF(dashboard!$X$1=1,_xlfn.XLOOKUP(_Mtech!$X$1-1+$T$1-1, planning!$W$11:$AG$11, planning!$W$15:$AG$15),_xlfn.XLOOKUP(_Mtech!$X$1-1+$T$1-1, planning!$W$11:$AG$11, planning!$W$15:$AG$15)) -> 
D20: Percentage of completers from previous years who repeat PR | E20: 0.01 | G20: =E20*planning!V21 ->  | I20: =$E$20*planning!W21 ->  | K20: =$E$20*planning!X21 ->  | M20: =$E$20*planning!Y21 ->  | O20: =$E$20*planning!AA21 -> 
D22: COPD mortality | E22: 0.00394 | G22: =$E$22*(G13+G18) ->  | I22: =$E$22*(I13+I18) ->  | K22: =$E$22*(K13+K18) ->  | M22: =$E$22*(M13+M18) ->  | O22: =$E$22*(O13+O18) -> 
D24: Patients who completed PR in the previous year | G24: =populationFunnel!F51 ->  | I24: =planning!G20 ->  | K24: =planning!I20 ->  | M24: =planning!K20 ->  | O24: =planning!M20 -> 
D26: ="Total remaining patients requiring PR in "&_xlfn.XLOOKUP(T1,planning!G21:O21,planning!G10:O10) -> Total remaining patients requiring PR in 2028 | G26: =G16+G18+G20-G22 ->  | I26: =I16+I18+I20-I22 ->  | K26: =K16+K18+K20-K22 ->  | M26: =M16+M18+M20-M22 ->  | O26: =O16+O18+O20-O22 -> 
G30: 1 | I30: 2 | K30: 3 | M30: 4 | O30: 5
A35: 1
A36: ="The modelled* patients requiring PR in "&populationFunnel!C54 -> The modelled* patients requiring PR in England

Sheet planningPopUp1
G13: 2024 | I13: =G13+1 -> 2025 | K13: =I13+1 -> 2026 | M13: =K13+1 -> 2027 | O13: =M13+1 -> 2028 | Q13: =O13+1 -> 2029
B15: Percentage of patients eligible for PR who are referred | G15: =populationFunnel!K27 -> 0.2254 | I15: =$G$15 -> 0.2254 | K15: =$G$15 -> 0.2254 | M15: =$G$15 -> 0.2254 | O15: =$G$15 -> 0.2254 | Q15: =$G$15 -> 0.2254
B18: Percentage of patients who are referred to PR who start PR | G18: =populationFunnel!K33 -> 0.3031 | I18: 0.3 | K18: 0.3 | M18: 0.3 | O18: 0.3 | Q18: 0.3
B21: Percentage of patients who started PR who completed | G21: =populationFunnel!K38 -> 0.689830226 | I21: 0.45 | K21: 0.45 | M21: 0.45 | O21: 0.45 | Q21: 0.45

Sheet planningGraph

Sheet predictedComparisons (hidden)
W5: Modelled from CPRD | AB5: Comparison
X7: Referral | Y7: Uptake | Z7: Completion | AB7: Referral | AC7: Uptake | AD7: Completion
B8: What good looks like | W8: 2022 | X8: =IF(dashboard!$X$1=1,CalculationSheet!S115,CalculationSheet!T115) ->  | Y8: =IF(dashboard!$X$1=1,CalculationSheet!U115,CalculationSheet!V115) ->  | Z8: =IF(dashboard!$X$1=1,CalculationSheet!W115,CalculationSheet!X115) ->  | AB8: =IF(dashboard!$X$1=1,CalculationSheet!S146,CalculationSheet!T146) ->  | AC8: =IF(dashboard!$X$1=1,CalculationSheet!U146,CalculationSheet!V146) ->  | AD8: =IF(dashboard!$X$1=1,CalculationSheet!W146,CalculationSheet!X146) -> 
W9: 2023 | X9: =IF(dashboard!$X$1=1,CalculationSheet!S116,CalculationSheet!T116) ->  | Y9: =IF(dashboard!$X$1=1,CalculationSheet!U116,CalculationSheet!V116) ->  | Z9: =IF(dashboard!$X$1=1,CalculationSheet!W116,CalculationSheet!X116) ->  | AB9: =IF(dashboard!$X$1=1,CalculationSheet!S147,CalculationSheet!T147) ->  | AC9: =IF(dashboard!$X$1=1,CalculationSheet!U147,CalculationSheet!V147) ->  | AD9: =IF(dashboard!$X$1=1,CalculationSheet!W147,CalculationSheet!X147) -> 
W10: 2024 | X10: =IF(dashboard!$X$1=1,CalculationSheet!S117,CalculationSheet!T117) ->  | Y10: =IF(dashboard!$X$1=1,CalculationSheet!U117,CalculationSheet!V117) ->  | Z10: =IF(dashboard!$X$1=1,CalculationSheet!W117,CalculationSheet!X117) ->  | AB10: =IF(dashboard!$X$1=1,CalculationSheet!S148,CalculationSheet!T148) ->  | AC10: =IF(dashboard!$X$1=1,CalculationSheet!U148,CalculationSheet!V148) ->  | AD10: =IF(dashboard!$X$1=1,CalculationSheet!W148,CalculationSheet!X148) -> 
W11: 2025 | X11: =IF(dashboard!$X$1=1,CalculationSheet!S118,CalculationSheet!T118) ->  | Y11: =IF(dashboard!$X$1=1,CalculationSheet!U118,CalculationSheet!V118) ->  | Z11: =IF(dashboard!$X$1=1,CalculationSheet!W118,CalculationSheet!X118) ->  | AB11: =IF(dashboard!$X$1=1,CalculationSheet!S149,CalculationSheet!T149) ->  | AC11: =IF(dashboard!$X$1=1,CalculationSheet!U149,CalculationSheet!V149) ->  | AD11: =IF(dashboard!$X$1=1,CalculationSheet!W149,CalculationSheet!X149) -> 
W12: 2026 | X12: =IF(dashboard!$X$1=1,CalculationSheet!S119,CalculationSheet!T119) ->  | Y12: =IF(dashboard!$X$1=1,CalculationSheet!U119,CalculationSheet!V119) ->  | Z12: =IF(dashboard!$X$1=1,CalculationSheet!W119,CalculationSheet!X119) ->  | AB12: =IF(dashboard!$X$1=1,CalculationSheet!S150,CalculationSheet!T150) ->  | AC12: =IF(dashboard!$X$1=1,CalculationSheet!U150,CalculationSheet!V150) ->  | AD12: =IF(dashboard!$X$1=1,CalculationSheet!W150,CalculationSheet!X150) -> 
W13: 2027 | X13: =IF(dashboard!$X$1=1,CalculationSheet!S120,CalculationSheet!T120) ->  | Y13: =IF(dashboard!$X$1=1,CalculationSheet!U120,CalculationSheet!V120) ->  | Z13: =IF(dashboard!$X$1=1,CalculationSheet!W120,CalculationSheet!X120) ->  | AB13: =IF(dashboard!$X$1=1,CalculationSheet!S151,CalculationSheet!T151) ->  | AC13: =IF(dashboard!$X$1=1,CalculationSheet!U151,CalculationSheet!V151) ->  | AD13: =IF(dashboard!$X$1=1,CalculationSheet!W151,CalculationSheet!X151) -> 
W14: 2028 | X14: =IF(dashboard!$X$1=1,CalculationSheet!S121,CalculationSheet!T121) ->  | Y14: =IF(dashboard!$X$1=1,CalculationSheet!U121,CalculationSheet!V121) ->  | Z14: =IF(dashboard!$X$1=1,CalculationSheet!W121,CalculationSheet!X121) ->  | AB14: =IF(dashboard!$X$1=1,CalculationSheet!S152,CalculationSheet!T152) ->  | AC14: =IF(dashboard!$X$1=1,CalculationSheet!U152,CalculationSheet!V152) ->  | AD14: =IF(dashboard!$X$1=1,CalculationSheet!W152,CalculationSheet!X152) -> 
W15: 2029 | X15: =IF(dashboard!$X$1=1,CalculationSheet!S122,CalculationSheet!T122) ->  | Y15: =IF(dashboard!$X$1=1,CalculationSheet!U122,CalculationSheet!V122) ->  | Z15: =IF(dashboard!$X$1=1,CalculationSheet!W122,CalculationSheet!X122) ->  | AB15: =IF(dashboard!$X$1=1,CalculationSheet!S153,CalculationSheet!T153) ->  | AC15: =IF(dashboard!$X$1=1,CalculationSheet!U153,CalculationSheet!V153) ->  | AD15: =IF(dashboard!$X$1=1,CalculationSheet!W153,CalculationSheet!X153) -> 
W16: 2030 | X16: =IF(dashboard!$X$1=1,CalculationSheet!S123,CalculationSheet!T123) ->  | Y16: =IF(dashboard!$X$1=1,CalculationSheet!U123,CalculationSheet!V123) ->  | Z16: =IF(dashboard!$X$1=1,CalculationSheet!W123,CalculationSheet!X123) ->  | AB16: =IF(dashboard!$X$1=1,CalculationSheet!S154,CalculationSheet!T154) ->  | AC16: =IF(dashboard!$X$1=1,CalculationSheet!U154,CalculationSheet!V154) ->  | AD16: =IF(dashboard!$X$1=1,CalculationSheet!W154,CalculationSheet!X154) -> 

Sheet comparisonsPlanningPopUp (hidden)
G1: =IF($T$1=1,TRUE,FALSE) -> FALSE | H1: =IF($T$1=1,TRUE,FALSE) -> FALSE | I1: =IF($T$1=2,TRUE,FALSE) -> FALSE | J1: =IF($T$1=2,TRUE,FALSE) -> FALSE | K1: =IF($T$1=3,TRUE,FALSE) -> TRUE | L1: =IF($T$1=3,TRUE,FALSE) -> TRUE | M1: =IF($T$1=4,TRUE,FALSE) -> FALSE | N1: =IF($T$1=4,TRUE,FALSE) -> FALSE | O1: =IF($T$1=5,TRUE,FALSE) -> FALSE | P1: =IF($T$1=5,TRUE,FALSE) -> FALSE | S1: 1 | T1: 3
G11: 2023 | I11: 2024 | K11: 2025 | M11: 2026 | O11: 2027
D12: Forecasted list size | G12: =IF(_Mtech!$G$2=1,CalculationSheet!C133,CalculationSheet!E133) ->  | I12: =IF(_Mtech!$G$2=1,CalculationSheet!C134,CalculationSheet!E134) ->  | K12: =IF(_Mtech!$G$2=1,CalculationSheet!C135,CalculationSheet!E135) ->  | M12: =IF(_Mtech!$G$2=1,CalculationSheet!C136,CalculationSheet!E136) ->  | O12: =IF(_Mtech!$G$2=1,CalculationSheet!C137,CalculationSheet!E137) -> 
C14: New COPD patients (incidence)1 | E14: =planningPopUp!E13 -> 0.0019 | G14: =$E14*G12 ->  | I14: =$E14*I12 ->  | K14: =$E14*K12 ->  | M14: =$E14*M12 ->  | O14: =$E14*O12 -> 
D16: New COPD patients with an MRC score of 3+2 | E16: =planningPopUp!E16 -> 0.46 | G16: =G14*$E16 ->  | I16: =I14*$E16 ->  | K16: =K14*$E16 ->  | M16: =M14*$E16 ->  | O16: =O14*$E16 -> 
D18: Remaining eligible patients from previous year (backlog) | G18: =comparisons!C52 ->  | I18: =comparisonsPlanning!V16 ->  | K18: =comparisonsPlanning!X16 ->  | M18: =comparisonsPlanning!Z16 ->  | O18: =comparisonsPlanning!AB16 -> 
D20: Percentage of completers from previous years who repeat PR3 | E20: =planningPopUp!E20 -> 0.01 | G20: =E20*comparisons!G33 ->  | I20: =$E$20*comparisonsPlanning!G20 ->  | K20: =$E$20*comparisonsPlanning!I20 ->  | M20: =$E$20*comparisonsPlanning!K20 ->  | O20: =$E$20*comparisonsPlanning!M20 -> 
D22: In-year COPD mortality4 | E22: =planningPopUp!E22 -> 0.00394 | G22: =(G14+G18)*$E22 ->  | I22: =(I14+I18)*$E22 ->  | K22: =(K14+K18)*$E22 ->  | M22: =(M14+M18)*$E22 ->  | O22: =(O14+O18)*$E22 -> 
D24: Patients who completed PR in the previous year | G24: =comparisons!G33 ->  | I24: =planning!G20 ->  | K24: =planning!I20 ->  | M24: =planning!K20 ->  | O24: =planning!M20 -> 
D26: ="Total remaining patients requiring PR in "&_xlfn.XLOOKUP(T1,comparisonsPlanning!G21:O21,comparisonsPlanning!G10:O10) -> Total remaining patients requiring PR in 2026 | G26: =G16+G18+G20-G22 ->  | I26: =I16+I18+I20-I22 ->  | K26: =K16+K18+K20-K22 ->  | M26: =M16+M18+M20-M22 ->  | O26: =O16+O18+O20-O22 -> 
G30: 1 | I30: 2 | K30: 3 | M30: 4 | O30: 5
A35: 1
A36: ="Patients requiring PR in "&populationFunnel!C54&" (NRAP reccommended)" -> Patients requiring PR in England (NRAP reccommended)

Sheet comparisonsPlanningPopUp1 (hidden)
G13: 2023 | I13: =G13+1 -> 2024 | K13: =I13+1 -> 2025 | M13: =K13+1 -> 2026 | O13: =M13+1 -> 2027 | Q13: =O13+1 -> 2028
B15: Percentage of patients eligible for PR who are referred | G15: =comparisons!E29 -> 0.94 | I15: =$G$15 -> 0.94 | K15: =$G$15 -> 0.94 | M15: =$G$15 -> 0.94 | O15: =$G$15 -> 0.94 | Q15: =$G$15 -> 0.94
B18: Percentage of patients who are referred to PR who start PR | G18: =comparisons!E31 -> 0.56 | I18: =$G$18 -> 0.56 | K18: =$G$18 -> 0.56 | M18: =$G$18 -> 0.56 | O18: =$G$18 -> 0.56 | Q18: =$G$18 -> 0.56
B21: Percentage of patients who are start PR who complete | G21: =comparisons!E33 -> 0.79 | I21: =$G$21 -> 0.79 | K21: =$G$21 -> 0.79 | M21: =$G$21 -> 0.79 | O21: =$G$21 -> 0.79 | Q21: =$G$21 -> 0.79

Sheet comparisonsPlanningGraph (hidden)

Sheet ICSs (hidden)
A1: STP ONS code (practice parent) | C1: E54000040 | D1: E54000024 | E1: E54000017 | F1: E54000039 | G1: E54000044 | H1: E54000021 | I1: E54000008 | J1: E54000036 | K1: E54000018 | L1: E54000050 | M1: E54000037 | N1: E54000041 | O1: E54000029 | P1: E54000034 | Q1: E54000043 | R1: E54000007 | S1: E54000042 | T1: E54000048 | U1: E54000019 | V1: E54000025 | W1: E54000051 | X1: E54000012 | Y1: E54000032 | Z1: E54000015 | AA1: E54000013 | AB1: E54000026 | AC1: E54000022 | AD1: E54000028 | AE1: E54000027 | AF1: E54000020 | AG1: E54000014 | AH1: E54000030 | AI1: E54000011 | AJ1: E54000038 | AK1: E54000031 | AL1: E54000009 | AM1: E54000010 | AN1: E54000023 | AO1: E54000052 | AP1: E54000053 | AQ1: E54000016 | AR1: E54000054
A2: STP name (practice parent) | C2: Bath and North East Somerset, Swindon and Wiltshire | D2: Bedfordshire, Luton and Milton Keynes | E2: Birmingham and Solihull | F2: Bristol, North Somerset and South Gloucestershire | G2: Buckinghamshire, Oxfordshire and Berkshire West | H2: Cambridgeshire and Peterborough | I2: Cheshire and Merseyside | J2: Cornwall and the Isles of Scilly Health and Social Care Partnership | K2: Coventry and Warwickshire | L2: Cumbria and North East | M2: Devon | N2: Dorset | O2: East London Health and Care Partnership | P2: Frimley Health and Care ICS | Q2: Gloucestershire | R2: Greater Manchester Health and Social Care Partnership | S2: Hampshire and the Isle of Wight | T2: Healthier Lancashire and South Cumbria | U2: Herefordshire and Worcestershire | V2: Hertfordshire and West Essex | W2: Humber, Coast and Vale | X2: Joined Up Care Derbyshire | Y2: Kent and Medway | Z2: Leicester, Leicestershire and Rutland | AA2: Lincolnshire | AB2: Mid and South Essex | AC2: Norfolk and Waveney Health and Care Partnership | AD2: North London Partners in Health and Care | AE2: North West London Health and Care Partnership | AF2: Northamptonshire | AG2: Nottingham and Nottinghamshire Health and Care | AH2: Our Healthier South East London | AI2: Shropshire and Telford and Wrekin | AJ2: Somerset | AK2: South West London Health and Care Partnership | AL2: South Yorkshire and Bassetlaw | AM2: Staffordshire and Stoke on Trent | AN2: Suffolk and North East Essex | AO2: Surrey Heartlands Health and Care Partnership | AP2: Sussex and East Surrey Health and Care Partnership | AQ2: The Black Country and West Birmingham | AR2: West Yorkshire and Harrogate (Health and Care Partnership)
C4: 1 | D4: 2 | E4: 3 | F4: 4 | G4: 5 | H4: 6 | I4: 7 | J4: 8 | K4: 9 | L4: 10 | M4: 11 | N4: 12 | O4: 13 | P4: 14 | Q4: 15 | R4: 16 | S4: 17 | T4: 18 | U4: 19 | V4: 20 | W4: 21 | X4: 22 | Y4: 23 | Z4: 24 | AA4: 25 | AB4: 26 | AC4: 27 | AD4: 28 | AE4: 29 | AF4: 30 | AG4: 31 | AH4: 32 | AI4: 33 | AJ4: 34 | AK4: 35 | AL4: 36 | AM4: 37 | AN4: 38 | AO4: 39 | AP4: 40 | AQ4: 41 | AR4: 42 | AS4: 43 | AT4: 44 | AU4: 45 | AV4: 46 | AW4: 47 | AX4: 48 | AY4: 49 | AZ4: 50 | BA4: 51 | BB4: 52 | BC4: 53 | BD4: 54 | BE4: 55 | BF4: 56 | BG4: 57 | BH4: 58 | BI4: 59 | BJ4: 60 | BK4: 61 | BL4: 62 | BM4: 63 | BN4: 64 | BO4: 65 | BP4: 66 | BQ4: 67 | BR4: 68 | BS4: 69 | BT4: 70 | BU4: 71 | BV4: 72 | BW4: 73 | BX4: 74 | BY4: 75 | BZ4: 76 | CA4: 77 | CB4: 78 | CC4: 79 | CD4: 80 | CE4: 81 | CF4: 82 | CG4: 83 | CH4: 84 | CI4: 85 | CJ4: 86 | CK4: 87 | CL4: 88 | CM4: 89 | CN4: 90 | CO4: 91 | CP4: 92 | CQ4: 93 | CR4: 94 | CS4: 95 | CT4: 96 | CU4: 97 | CV4: 98 | CW4: 99 | CX4: 100 | CY4: 101 | CZ4: 102 | DA4: 103 | DB4: 104 | DC4: 105 | DD4: 106
A5: 2015/16 | B5: COPD Prevalence | C5: 1.639658477 | D5: 1.495624078 | E5: =AVERAGE(E7:E10) -> 1.669024537 | F5: 1.702412488 | G5: 1.28237872 | H5: 1.672836761 | I5: =AVERAGE(I$8:I$10) -> 2.580706996 | J5: 2.122833244 | K5: =AVERAGE(K7:K10) -> 1.646690187 | L5: =AVERAGE(L$9:L$10) -> 2.922763859 | M5: 2.104482342 | N5: 1.922554286 | O5: 1.172342177 | P5: 1.174112408 | Q5: 1.738129224 | R5: =AVERAGE(R$8:R$10) -> 2.338487347 | S5: 1.776297822 | T5: =AVERAGE(T$8:T$10) -> 2.521101755 | U5: 1.942111066 | V5: 1.482533424 | W5: =AVERAGE(W$9:W$10) -> 2.358204226 | X5: =AVERAGE(X$8:X$10) -> 2.241403894 | Y5: 1.926537053 | Z5: =AVERAGE(Z$8:Z$10) -> 1.675422156 | AA5: =AVERAGE(AA$8:AA$10) -> 2.306634483 | AB5: 1.874871323 | AC5: 2.1996399 | AD5: 1.135236768 | AE5: 0.9950042441 | AF5: 1.890071281 | AG5: =AVERAGE(AG$8:AG$10) -> 1.996645122 | AH5: 1.324637337 | AI5: =AVERAGE(AI$8:AI$10) -> 1.975689423 | AJ5: 2.126023806 | AK5: 1.073800896 | AL5: =AVERAGE(AL$8:AL$10) -> 2.640445132 | AM5: =AVERAGE(AM$8:AM$10) -> 2.302765678 | AN5: 1.985729998 | AO5: =AVERAGE(AO$9:AO$10) -> 1.291023723 | AP5: =AVERAGE(AP$9:AP$10) -> 1.933412957 | AQ5: =AVERAGE(AQ7:AQ10) -> 1.954041599 | AR5: =AVERAGE(AR$9:AR$10) -> 2.210702367
A6: 2016/17 | B6: COPD Prevalence | C6: 1.664287519 | D6: 1.505410348 | E6: =AVERAGE(E7:E10) -> 1.669024537 | F6: 1.762679143 | G6: 1.299075229 | H6: 1.685712482 | I6: =AVERAGE(I$8:I$10) -> 2.580706996 | J6: 2.161137507 | K6: =AVERAGE(K7:K10) -> 1.646690187 | L6: =AVERAGE(L$9:L$10) -> 2.922763859 | M6: 2.165553213 | N6: 2.015697489 | O6: 1.158498551 | P6: 1.214651565 | Q6: 1.784159798 | R6: =AVERAGE(R$8:R$10) -> 2.338487347 | S6: 1.828270647 | T6: 2.521101755 | U6: 1.9804579 | V6: 1.510377213 | W6: =AVERAGE(W$9:W$10) -> 2.358204226 | X6: =AVERAGE(X$8:X$10) -> 2.241403894 | Y6: 1.973208878 | Z6: 1.675422156 | AA6: 2.306634483 | AB6: 1.875427011 | AC6: 2.183211406 | AD6: 1.158814541 | AE6: 1.008541709 | AF6: 1.885575743 | AG6: =AVERAGE(AG$8:AG$10) -> 1.996645122 | AH6: 1.337580551 | AI6: 1.975689423 | AJ6: 2.186274217 | AK6: 1.098303417 | AL6: =AVERAGE(AL$8:AL$10) -> 2.640445132 | AM6: 2.302765678 | AN6: 2.011693272 | AO6: =AVERAGE(AO$9:AO$10) -> 1.291023723 | AP6: 1.933412957 | AQ6: =AVERAGE(AQ7:AQ10) -> 1.954041599 | AR6: 2.210702367
A7: 2017/18 | B7: COPD Prevalence | C7: 1.678657844 | D7: 1.533283137 | E7: 1.659618643 | F7: 1.78526787 | G7: 1.299068608 | H7: 1.707110566 | I7: 2.580706996 | J7: 2.207668082 | K7: 1.646504631 | L7: 2.922763859 | M7: 2.200815086 | N7: 2.099067803 | O7: 1.136467324 | P7: 1.262973791 | Q7: 1.817956088 | R7: 2.338487347 | S7: 1.890306106 | T7: 2.521101755 | U7: 2.070039185 | V7: 1.533179705 | W7: 2.358204226 | X7: 2.241403894 | Y7: 2.001595586 | Z7: 1.675422156 | AA7: 2.306634483 | AB7: 1.898329932 | AC7: 2.223397596 | AD7: 1.166418782 | AE7: 1.008421073 | AF7: 1.909413738 | AG7: 1.996645122 | AH7: 1.333819874 | AI7: 1.975689423 | AJ7: 2.253338763 | AK7: 1.108637156 | AL7: 2.640445132 | AM7: 2.302765678 | AN7: 2.045003545 | AO7: 1.291023723 | AP7: 1.933412957 | AQ7: 1.927006394 | AR7: 2.210702367
A8: 2018/19 | B8: COPD Prevalence | C8: 1.719431084 | D8: 1.549257464 | E8: 1.675904202 | F8: 1.81225563 | G8: 1.342190122 | H8: 1.732315166 | I8: 2.577636394 | J8: 2.197594863 | K8: 1.658116272 | L8: 2.922763859 | M8: 2.271498657 | N8: 2.157783237 | O8: 1.136606464 | P8: 1.287841906 | Q8: 1.828091309 | R8: 2.339895573 | S8: 1.908200801 | T8: 2.475218713 | U8: 2.140720288 | V8: 1.55370455 | W8: 2.358204226 | X8: 2.23477484 | Y8: 2.051863134 | Z8: 1.678832371 | AA8: 2.286516804 | AB8: 1.943557019 | AC8: 2.286474921 | AD8: 1.169385417 | AE8: 1.003903827 | AF8: 1.931931133 | AG8: 1.969167612 | AH8: 1.331550426 | AI8: 1.95654683 | AJ8: 2.329975679 | AK8: 1.121097639 | AL8: 2.650257854 | AM8: 2.282558476 | AN8: 2.0582154 | AO8: 1.291023723 | AP8: 1.933412957 | AQ8: 1.978699506 | AR8: 2.210702367
A9: 2019/20 | B9: COPD Prevalence | C9: 1.738693028 | D9: 1.567395101 | E9: 1.673297405 | F9: 1.807071257 | G9: 1.334661543 | H9: 1.738462801 | I9: 2.577795336 | J9: 2.349394504 | K9: 1.634327221 | L9: 2.920352253 | M9: 2.308500233 | N9: 2.192688156 | O9: 1.12840885 | P9: 1.288349903 | Q9: 1.856919291 | R9: 2.335424341 | S9: 1.972488764 | T9: 2.549018287 | U9: 2.181451312 | V9: 1.548954511 | W9: 2.365292953 | X9: 2.254441372 | Y9: 2.054288975 | Z9: 1.681097594 | AA9: 2.329413208 | AB9: 1.921573973 | AC9: 2.314020773 | AD9: 1.223699154 | AE9: 0.9802838543 | AF9: 1.952289797 | AG9: 2.013567158 | AH9: 1.317453584 | AI9: 1.97799172 | AJ9: 2.338158758 | AK9: 1.111231086 | AL9: 2.648703328 | AM9: 2.317966156 | AN9: 2.086496419 | AO9: 1.295146169 | AP9: 1.934613513 | AQ9: 1.970960076 | AR9: 2.218012426
A10: 2020/21 | B10: COPD Prevalence | C10: 1.724533402 | D10: 1.576054711 | E10: 1.667277897 | F10: 1.818021366 | G10: 1.326336033 | H10: 1.741399187 | I10: 2.586689257 | J10: 2.379400921 | K10: 1.647812623 | L10: 2.925175464 | M10: 2.324645057 | N10: 2.182421342 | O10: 1.098413315 | P10: 1.281792968 | Q10: 1.855814917 | R10: 2.340142127 | S10: 1.995028987 | T10: 2.539068266 | U10: 2.154290499 | V10: 1.529166219 | W10: 2.351115499 | X10: 2.234995469 | Y10: 2.050975491 | Z10: 1.666336504 | AA10: 2.303973438 | AB10: 1.902290526 | AC10: 2.31139599 | AD10: 1.136489548 | AE10: 0.9497616069 | AF10: 1.938844435 | AG10: 2.007200598 | AH10: 1.3142297 | AI10: 1.992529719 | AJ10: 2.303447268 | AK10: 1.102193686 | AL10: 2.622374214 | AM10: 2.307772403 | AN10: 2.074365276 | AO10: 1.286901276 | AP10: 1.932212401 | AQ10: 1.939500418 | AR10: 2.203392309
C11: 1 | D11: 2 | E11: 3 | F11: 4 | G11: 5 | H11: 6 | I11: 7 | J11: 8 | K11: 9 | L11: 10 | M11: 11 | N11: 12 | O11: 13 | P11: 14 | Q11: 15 | R11: 16 | S11: 17 | T11: 18 | U11: 19 | V11: 20 | W11: 21 | X11: 22 | Y11: 23 | Z11: 24 | AA11: 25 | AB11: 26 | AC11: 27 | AD11: 28 | AE11: 29 | AF11: 30 | AG11: 31 | AH11: 32 | AI11: 33 | AJ11: 34 | AK11: 35 | AL11: 36 | AM11: 37 | AN11: 38 | AO11: 39 | AP11: 40 | AQ11: 41 | AR11: 42 | AS11: 43 | AT11: 44 | AU11: 45 | AV11: 46 | AW11: 47 | AX11: 48 | AY11: 49 | AZ11: 50 | BA11: 51 | BB11: 52 | BC11: 53 | BD11: 54 | BE11: 55 | BF11: 56 | BG11: 57 | BH11: 58 | BI11: 59 | BJ11: 60 | BK11: 61 | BL11: 62 | BM11: 63 | BN11: 64 | BO11: 65 | BP11: 66 | BQ11: 67 | BR11: 68 | BS11: 69 | BT11: 70 | BU11: 71 | BV11: 72 | BW11: 73 | BX11: 74 | BY11: 75 | BZ11: 76 | CA11: 77 | CB11: 78 | CC11: 79 | CD11: 80 | CE11: 81 | CF11: 82 | CG11: 83 | CH11: 84 | CI11: 85 | CJ11: 86 | CK11: 87 | CL11: 88 | CM11: 89 | CN11: 90 | CO11: 91 | CP11: 92 | CQ11: 93 | CR11: 94 | CS11: 95 | CT11: 96 | CU11: 97 | CV11: 98 | CW11: 99 | CX11: 100 | CY11: 101 | CZ11: 102 | DA11: 103 | DB11: 104 | DC11: 105 | DD11: 106
A12: 2015/16 | B12: List Size | C12: 918240 | D12: 974309 | E12: =AVERAGE(E$14,E$15,E$16,E$17) -> 1326935.25 | F12: 950181 | G12: 1750185 | H12: 933265 | I12: =AVERAGE(I$15,I$16,I$17) -> 2667634.333 | J12: 557227 | K12: =AVERAGE(K$14,K$15,K$16,K$17) -> 1013434.25 | L12: =AVERAGE(L$16,L$17) -> 3123890.5 | M12: 1148596 | N12: 769029 | O12: 2018438 | P12: 756316 | Q12: 634015 | R12: =AVERAGE(R$15,R$16,R$17) -> 3117603.333 | S12: 1805159 | T12: =AVERAGE(T$15,T$16,T$17) -> 1799330.333 | U12: 777247 | V12: 1512546 | W12: =AVERAGE(W$16,W$17) -> 1759969.5 | X12: =AVERAGE(X$15,X$16,X$17) -> 1059564.333 | Y12: 1794619 | Z12: =AVERAGE(Z$15,Z$16,Z$17) -> 1158531.333 | AA12: 793817.6667 | AB12: 1199709 | AC12: 1029714 | AD12: 1503563 | AE12: 2314965 | AF12: 740025 | AG12: =AVERAGE(AG$15,AG$16,AG$17) -> 1091252 | AH12: 1808495 | AI12: =AVERAGE(AI$15,AI$16,AI$17) -> 507976.3333 | AJ12: 555403 | AK12: 1587352 | AL12: =AVERAGE(AL$15,AL$16,AL$17) -> 1583632.333 | AM12: 1159960.333 | AN12: 989208 | AO12: =AVERAGE(AO$16,AO$17) -> 1108360.5 | AP12: 1794885 | AQ12: =AVERAGE(AQ$14,AQ$15,AQ$16,AQ$17) -> 1475032.25 | AR12: =AVERAGE(AR$16,AR$17) -> 2595475
A13: 2016/17 | B13: List Size | C13: 926102 | D13: 1005573 | E13: =AVERAGE(E$14,E$15,E$16,E$17) -> 1326935.25 | F13: 986226 | G13: 1819910 | H13: 950340 | I13: =AVERAGE(I$15,I$16,I$17) -> 2667634.333 | J13: 568682 | K13: =AVERAGE(K$14,K$15,K$16,K$17) -> 1013434.25 | L13: =AVERAGE(L$16,L$17) -> 3123890.5 | M13: 1205558 | N13: 795159 | O13: 2124215 | P13: 776272 | Q13: 637555 | R13: =AVERAGE(R$15,R$16,R$17) -> 3117603.333 | S13: 1869034 | T13: =AVERAGE(T$15,T$16,T$17) -> 1799330.333 | U13: 792443 | V13: 1545839 | W13: =AVERAGE(W$16,W$17) -> 1759969.5 | X13: =AVERAGE(X$15,X$16,X$17) -> 1059564.333 | Y13: 1849120 | Z13: 1158531.333 | AA13: 793817.6667 | AB13: 1213377 | AC13: 1063067 | AD13: 1557540 | AE13: 2357959 | AF13: 755207 | AG13: =AVERAGE(AG$15,AG$16,AG$17) -> 1091252 | AH13: 1911212 | AI13: =AVERAGE(AI$15,AI$16,AI$17) -> 507976.3333 | AJ13: 569279 | AK13: 1634521 | AL13: 1583632.333 | AM13: 1159960.333 | AN13: 1003483 | AO13: 1108360.5 | AP13: 1794885 | AQ13: =AVERAGE(AQ$14,AQ$15,AQ$16,AQ$17) -> 1475032.25 | AR13: =AVERAGE(AR$16,AR$17) -> 2595475
A14: 2017/18 | B14: List Size | C14: 935271 | D14: 1008033 | E14: 1310060 | F14: 1008028 | G14: 1286999 | H14: 967307 | I14: =AVERAGE(I$15,I$16,I$17) -> 2667634.333 | J14: 574407 | K14: 991798 | L14: =AVERAGE(L$16,L$17) -> 3123890.5 | M14: 1224410 | N14: 800260 | O14: 2169970 | P14: 783310 | Q14: 636319 | R14: =AVERAGE(R$15,R$16,R$17) -> 3117603.333 | S14: 1870332 | T14: =AVERAGE(T$15,T$16,T$17) -> 1799330.333 | U14: 792642 | V14: 1556569 | W14: =AVERAGE(W$16,W$17) -> 1759969.5 | X14: =AVERAGE(X$15,X$16,X$17) -> 1059564.333 | Y14: 1883947 | Z14: 1158531.333 | AA14: 793817.6667 | AB14: 1219651 | AC14: 1030405 | AD14: 1566590 | AE14: 2429144 | AF14: 764266 | AG14: =AVERAGE(AG$15,AG$16,AG$17) -> 1091252 | AH14: 1959410 | AI14: =AVERAGE(AI$15,AI$16,AI$17) -> 507976.3333 | AJ14: 574614 | AK14: 1658613 | AL14: 1583632.333 | AM14: 1159960.333 | AN14: 1009876 | AO14: 1108360.5 | AP14: 1794885 | AQ14: 1452045 | AR14: =AVERAGE(AR$16,AR$17) -> 2595475
A15: 2018/19 | B15: List Size | C15: 931878 | D15: 1022038 | E15: 1323405 | F15: 1023807 | G15: 1872462 | H15: 983597 | I15: 2645602 | J15: 323308 | K15: 1009700 | L15: =AVERAGE(L$16,L$17) -> 3123890.5 | M15: 1180190 | N15: 804344 | O15: 2218182 | P15: 784646 | Q15: 646029 | R15: 3086548 | S15: 1920605 | T15: 1821334 | U15: 798236 | V15: 1573079 | W15: =AVERAGE(W$16,W$17) -> 1759969.5 | X15: 1048741 | Y15: 1900078 | Z15: 1147762 | AA15: 780401 | AB15: 1223890 | AC15: 1060016 | AD15: 1647019 | AE15: 2513687 | AF15: 776684 | AG15: 1063038 | AH15: 1989260 | AI15: 502518 | AJ15: 580564 | AK15: 1686383 | AL15: 1571432 | AM15: 1157955 | AN15: 1007912 | AO15: 1108360.5 | AP15: 1794885 | AQ15: 1470764 | AR15: =AVERAGE(AR$16,AR$17) -> 2595475
A16: 2019/20 | B16: List Size | C16: 960204 | D16: 1038666 | E16: 1335447 | F16: 1039306 | G16: 1901306 | H16: 998986 | I16: 2672943 | J16: 585470 | K16: 1023724 | L16: 3121507 | M16: 1247260 | N16: 809235 | O16: 2261503 | P16: 802577 | Q16: 660718 | R16: 3125128 | S16: 1897552 | T16: 1781274 | U16: 802860 | V16: 1589782 | W16: 1757499 | X16: 1062791 | Y16: 1914385 | Z16: 1161741 | AA16: 798699 | AB16: 1239869 | AC16: 1066974 | AD16: 1680887 | AE16: 2598023 | AF16: 786205 | AG16: 1106643 | AH16: 2017832 | AI16: 508445 | AJ16: 583921 | AK16: 1713325 | AL16: 1589608 | AM16: 1159853 | AN16: 1030771 | AO16: 1103582 | AP16: 1791624 | AQ16: 1487194 | AR16: 2592366
A17: 2020/21 | B17: List Size | C17: 967856 | D17: 1050027 | E17: 1338829 | F17: 1042507 | G17: 1910451 | H17: 1005341 | I17: 2684358 | J17: 592376 | K17: 1028515 | L17: 3126274 | M17: 1256751 | N17: 811484 | O17: 2284386 | P17: 804030 | Q17: 666338 | R17: 3141134 | S17: 1902228 | T17: 1795383 | U17: 807412 | V17: 1590213 | W17: 1762440 | X17: 1067161 | Y17: 1937127 | Z17: 1166091 | AA17: 802353 | AB17: 1242029 | AC17: 1073983 | AD17: 1696716 | AE17: 2650244 | AF17: 790574 | AG17: 1104075 | AH17: 2017836 | AI17: 512966 | AJ17: 588379 | AK17: 1710135 | AL17: 1589857 | AM17: 1162073 | AN17: 1036317 | AO17: 1113139 | AP17: 1798146 | AQ17: 1490126 | AR17: 2598584
C19: 1 | D19: 2 | E19: 3 | F19: 4 | G19: 5 | H19: 6 | I19: 7 | J19: 8 | K19: 9 | L19: 10 | M19: 11 | N19: 12 | O19: 13 | P19: 14 | Q19: 15 | R19: 16 | S19: 17 | T19: 18 | U19: 19 | V19: 20 | W19: 21 | X19: 22 | Y19: 23 | Z19: 24 | AA19: 25 | AB19: 26 | AC19: 27 | AD19: 28 | AE19: 29 | AF19: 30 | AG19: 31 | AH19: 32 | AI19: 33 | AJ19: 34 | AK19: 35 | AL19: 36 | AM19: 37 | AN19: 38 | AO19: 39 | AP19: 40 | AQ19: 41 | AR19: 42 | AS19: 43 | AT19: 44 | AU19: 45 | AV19: 46 | AW19: 47 | AX19: 48 | AY19: 49 | AZ19: 50 | BA19: 51 | BB19: 52 | BC19: 53 | BD19: 54 | BE19: 55 | BF19: 56 | BG19: 57 | BH19: 58 | BI19: 59 | BJ19: 60 | BK19: 61 | BL19: 62 | BM19: 63 | BN19: 64 | BO19: 65 | BP19: 66 | BQ19: 67 | BR19: 68 | BS19: 69 | BT19: 70 | BU19: 71 | BV19: 72 | BW19: 73 | BX19: 74 | BY19: 75 | BZ19: 76 | CA19: 77 | CB19: 78 | CC19: 79 | CD19: 80 | CE19: 81 | CF19: 82 | CG19: 83 | CH19: 84 | CI19: 85 | CJ19: 86 | CK19: 87 | CL19: 88 | CM19: 89 | CN19: 90 | CO19: 91 | CP19: 92 | CQ19: 93 | CR19: 94 | CS19: 95 | CT19: 96 | CU19: 97 | CV19: 98 | CW19: 99 | CX19: 100 | CY19: 101 | CZ19: 102 | DA19: 103 | DB19: 104 | DC19: 105 | DD19: 106
A20: 2015/16 | B20: Register | C20: 15056 | D20: 14572 | E20: =AVERAGE(E$22,E$23,E$24,E$25) -> 22147.25 | F20: 16176 | G20: 22444 | H20: 15612 | I20: =AVERAGE(I$23,I$24,I$25) -> 68844.33333 | J20: 11829 | K20: =AVERAGE(K$22,K$23,K$24,K$25) -> 16687.75 | L20: =AVERAGE(L$24,L$25) -> 91304 | M20: 24172 | N20: 14785 | O20: 23663 | P20: 8880 | Q20: 11020 | R20: =AVERAGE(R$23,R$24,R$25) -> 72904.66667 | S20: 32065 | T20: =AVERAGE(T$23,T$24,T$25) -> 45357.66667 | U20: 15095 | V20: 22424 | W20: =AVERAGE(W$24,W$25) -> 41503.5 | X20: =AVERAGE(X$23,X$24,X$25) -> 23749.33333 | Y20: 34574 | Z20: =AVERAGE(Z$23,Z$24,Z$25) -> 19410 | AA20: 18311.66667 | AB20: 22493 | AC20: 22650 | AD20: 17069 | AE20: 23034 | AF20: 13987 | AG20: =AVERAGE(AG$23,AG$24,AG$25) -> 21792.33333 | AH20: 23956 | AI20: =AVERAGE(AI$23,AI$24,AI$25) -> 10036.66667 | AJ20: 11808 | AK20: 17045 | AL20: =AVERAGE(AL$23,AL$24,AL$25) -> 41814.33333 | AM20: 26711.33333 | AN20: 19643 | AO20: =AVERAGE(AO$24,AO$25) -> 14309 | AP20: 34702.5 | AQ20: =AVERAGE(AQ$22,AQ$23,AQ$24,AQ$25) -> 28824 | AR20: =AVERAGE(AR$24,AR$25) -> 57378
A21: 2016/17 | B21: Register | C21: 15413 | D21: 15138 | E21: =AVERAGE(E$22,E$23,E$24,E$25) -> 22147.25 | F21: 17384 | G21: 23642 | H21: 16020 | I21: =AVERAGE(I$23,I$24,I$25) -> 68844.33333 | J21: 12290 | K21: =AVERAGE(K$22,K$23,K$24,K$25) -> 16687.75 | L21: =AVERAGE(L$24,L$25) -> 91304 | M21: 26107 | N21: 16028 | O21: 24609 | P21: 9429 | Q21: 11375 | R21: =AVERAGE(R$23,R$24,R$25) -> 72904.66667 | S21: 34171 | T21: =AVERAGE(T$23,T$24,T$25) -> 45357.66667 | U21: 15694 | V21: 23348 | W21: =AVERAGE(W$24,W$25) -> 41503.5 | X21: =AVERAGE(X$23,X$24,X$25) -> 23749.33333 | Y21: 36487 | Z21: 19410 | AA21: 18311.66667 | AB21: 22756 | AC21: 23209 | AD21: 18049 | AE21: 23781 | AF21: 14240 | AG21: =AVERAGE(AG$23,AG$24,AG$25) -> 21792.33333 | AH21: 25564 | AI21: =AVERAGE(AI$23,AI$24,AI$25) -> 10036.66667 | AJ21: 12446 | AK21: 17952 | AL21: 41814.33333 | AM21: 26711.33333 | AN21: 20187 | AO21: 14309 | AP21: 34702.5 | AQ21: =AVERAGE(AQ$22,AQ$23,AQ$24,AQ$25) -> 28824 | AR21: =AVERAGE(AR$24,AR$25) -> 57378
A22: 2017/18 | B22: Register | C22: 15700 | D22: 15456 | E22: 21742 | F22: 17996 | G22: 16719 | H22: 16513 | I22: =AVERAGE(I$23,I$24,I$25) -> 68844.33333 | J22: 12681 | K22: 16330 | L22: =AVERAGE(L$24,L$25) -> 91304 | M22: 26947 | N22: 16798 | O22: 24661 | P22: 9893 | Q22: 11568 | R22: =AVERAGE(R$23,R$24,R$25) -> 72904.66667 | S22: 35355 | T22: =AVERAGE(T$23,T$24,T$25) -> 45357.66667 | U22: 16408 | V22: 23865 | W22: =AVERAGE(W$24,W$25) -> 41503.5 | X22: =AVERAGE(X$23,X$24,X$25) -> 23749.33333 | Y22: 37709 | Z22: 19410 | AA22: 18311.66667 | AB22: 23153 | AC22: 22910 | AD22: 18273 | AE22: 24496 | AF22: 14593 | AG22: =AVERAGE(AG$23,AG$24,AG$25) -> 21792.33333 | AH22: 26135 | AI22: =AVERAGE(AI$23,AI$24,AI$25) -> 10036.66667 | AJ22: 12948 | AK22: 18388 | AL22: 41814.33333 | AM22: 26711.33333 | AN22: 20652 | AO22: 14309 | AP22: 34702.5 | AQ22: 27981 | AR22: =AVERAGE(AR$24,AR$25) -> 57378
A23: 2018/19 | B23: Register | C23: 16023 | D23: 15834 | E23: 22179 | F23: 18554 | G23: 25132 | H23: 17039 | I23: 68194 | J23: 7105 | K23: 16742 | L23: =AVERAGE(L$24,L$25) -> 91304 | M23: 26808 | N23: 17356 | O23: 25212 | P23: 10105 | Q23: 11810 | R23: 72222 | S23: 36649 | T23: 45082 | U23: 17088 | V23: 24441 | W23: =AVERAGE(W$24,W$25) -> 41503.5 | X23: 23437 | Y23: 38987 | Z23: 19269 | AA23: 17844 | AB23: 23787 | AC23: 24237 | AD23: 19260 | AE23: 25235 | AF23: 15005 | AG23: 20933 | AH23: 26488 | AI23: 9832 | AJ23: 13527 | AK23: 18906 | AL23: 41647 | AM23: 26431 | AN23: 20745 | AO23: 14309 | AP23: 34702.5 | AQ23: 29102 | AR23: =AVERAGE(AR$24,AR$25) -> 57378
A24: 2019/20 | B24: Register | C24: 16695 | D24: 16280 | E24: 22346 | F24: 18781 | G24: 25376 | H24: 17367 | I24: 68903 | J24: 13755 | K24: 16731 | L24: 91159 | M24: 28793 | N24: 17744 | O24: 25519 | P24: 10340 | Q24: 12269 | R24: 72985 | S24: 37429 | T24: 45405 | U24: 17514 | V24: 24625 | W24: 41570 | X24: 23960 | Y24: 39327 | Z24: 19530 | AA24: 18605 | AB24: 23825 | AC24: 24690 | AD24: 20569 | AE24: 25468 | AF24: 15349 | AG24: 22283 | AH24: 26584 | AI24: 10057 | AJ24: 13653 | AK24: 19039 | AL24: 42104 | AM24: 26885 | AN24: 21507 | AO24: 14293 | AP24: 34661 | AQ24: 29312 | AR24: 57499
A25: 2020/21 | B25: Register | C25: 16691 | D25: 16549 | E25: 22322 | F25: 18953 | G25: 25339 | H25: 17507 | I25: 69436 | J25: 14095 | K25: 16948 | L25: 91449 | M25: 29215 | N25: 17710 | O25: 25092 | P25: 10306 | Q25: 12366 | R25: 73507 | S25: 37950 | T25: 45586 | U25: 17394 | V25: 24317 | W25: 41437 | X25: 23851 | Y25: 39730 | Z25: 19431 | AA25: 18486 | AB25: 23627 | AC25: 24824 | AD25: 19283 | AE25: 25171 | AF25: 15328 | AG25: 22161 | AH25: 26519 | AI25: 10221 | AJ25: 13553 | AK25: 18849 | AL25: 41692 | AM25: 26818 | AN25: 21497 | AO25: 14325 | AP25: 34744 | AQ25: 28901 | AR25: 57257
A51: 918240 | C51: 15056 | D51: 1.639658477 | E51: 926102 | F51: 15413 | G51: 1.664287519 | H51: 935271 | I51: 15700 | J51: 1.678657844 | K51: 931878 | L51: 16023 | M51: 1.719431084 | N51: 960204 | O51: 16695 | P51: 1.738693028 | Q51: 967856 | R51: 16691 | S51: 1.724533402
A52: 974309 | C52: 14572 | D52: 1.495624078 | E52: 1005573 | F52: 15138 | G52: 1.505410348 | H52: 1008033 | I52: 15456 | J52: 1.533283137 | K52: 1022038 | L52: 15834 | M52: 1.549257464 | N52: 1038666 | O52: 16280 | P52: 1.567395101 | Q52: 1050027 | R52: 16549 | S52: 1.576054711
H53: 1310060 | I53: 21742 | J53: 1.659618643 | K53: 1323405 | L53: 22179 | M53: 1.675904202 | N53: 1335447 | O53: 22346 | P53: 1.673297405 | Q53: 1338829 | R53: 22322 | S53: 1.667277897
A54: 950181 | C54: 16176 | D54: 1.702412488 | E54: 986226 | F54: 17384 | G54: 1.762679143 | H54: 1008028 | I54: 17996 | J54: 1.78526787 | K54: 1023807 | L54: 18554 | M54: 1.81225563 | N54: 1039306 | O54: 18781 | P54: 1.807071257 | Q54: 1042507 | R54: 18953 | S54: 1.818021366
A55: 1750185 | C55: 22444 | D55: 1.28237872 | E55: 1819910 | F55: 23642 | G55: 1.299075229 | H55: 1286999 | I55: 16719 | J55: 1.299068608 | K55: 1872462 | L55: 25132 | M55: 1.342190122 | N55: 1901306 | O55: 25376 | P55: 1.334661543 | Q55: 1910451 | R55: 25339 | S55: 1.326336033
A56: 933265 | C56: 15612 | D56: 1.672836761 | E56: 950340 | F56: 16020 | G56: 1.685712482 | H56: 967307 | I56: 16513 | J56: 1.707110566 | K56: 983597 | L56: 17039 | M56: 1.732315166 | N56: 998986 | O56: 17367 | P56: 1.738462801 | Q56: 1005341 | R56: 17507 | S56: 1.741399187
K57: 2645602 | L57: 68194 | M57: 2.577636394 | N57: 2672943 | O57: 68903 | P57: 2.577795336 | Q57: 2684358 | R57: 69436 | S57: 2.586689257
A58: 557227 | C58: 11829 | D58: 2.122833244 | E58: 568682 | F58: 12290 | G58: 2.161137507 | H58: 574407 | I58: 12681 | J58: 2.207668082 | K58: 323308 | L58: 7105 | M58: 2.197594863 | N58: 585470 | O58: 13755 | P58: 2.349394504 | Q58: 592376 | R58: 14095 | S58: 2.379400921
H59: 991798 | I59: 16330 | J59: 1.646504631 | K59: 1009700 | L59: 16742 | M59: 1.658116272 | N59: 1023724 | O59: 16731 | P59: 1.634327221 | Q59: 1028515 | R59: 16948 | S59: 1.647812623
N60: 3121507 | O60: 91159 | P60: 2.920352253 | Q60: 3126274 | R60: 91449 | S60: 2.925175464
A61: 1148596 | C61: 24172 | D61: 2.104482342 | E61: 1205558 | F61: 26107 | G61: 2.165553213 | H61: 1224410 | I61: 26947 | J61: 2.200815086 | K61: 1180190 | L61: 26808 | M61: 2.271498657 | N61: 1247260 | O61: 28793 | P61: 2.308500233 | Q61: 1256751 | R61: 29215 | S61: 2.324645057
A62: 769029 | C62: 14785 | D62: 1.922554286 | E62: 795159 | F62: 16028 | G62: 2.015697489 | H62: 800260 | I62: 16798 | J62: 2.099067803 | K62: 804344 | L62: 17356 | M62: 2.157783237 | N62: 809235 | O62: 17744 | P62: 2.192688156 | Q62: 811484 | R62: 17710 | S62: 2.182421342
A63: 2018438 | C63: 23663 | D63: 1.172342177 | E63: 2124215 | F63: 24609 | G63: 1.158498551 | H63: 2169970 | I63: 24661 | J63: 1.136467324 | K63: 2218182 | L63: 25212 | M63: 1.136606464 | N63: 2261503 | O63: 25519 | P63: 1.12840885 | Q63: 2284386 | R63: 25092 | S63: 1.098413315
A64: 756316 | C64: 8880 | D64: 1.174112408 | E64: 776272 | F64: 9429 | G64: 1.214651565 | H64: 783310 | I64: 9893 | J64: 1.262973791 | K64: 784646 | L64: 10105 | M64: 1.287841906 | N64: 802577 | O64: 10340 | P64: 1.288349903 | Q64: 804030 | R64: 10306 | S64: 1.281792968
A65: 634015 | C65: 11020 | D65: 1.738129224 | E65: 637555 | F65: 11375 | G65: 1.784159798 | H65: 636319 | I65: 11568 | J65: 1.817956088 | K65: 646029 | L65: 11810 | M65: 1.828091309 | N65: 660718 | O65: 12269 | P65: 1.856919291 | Q65: 666338 | R65: 12366 | S65: 1.855814917
K66: 3086548 | L66: 72222 | M66: 2.339895573 | N66: 3125128 | O66: 72985 | P66: 2.335424341 | Q66: 3141134 | R66: 73507 | S66: 2.340142127
A67: 1805159 | C67: 32065 | D67: 1.776297822 | E67: 1869034 | F67: 34171 | G67: 1.828270647 | H67: 1870332 | I67: 35355 | J67: 1.890306106 | K67: 1920605 | L67: 36649 | M67: 1.908200801 | N67: 1897552 | O67: 37429 | P67: 1.972488764 | Q67: 1902228 | R67: 37950 | S67: 1.995028987
K68: 1821334 | L68: 45082 | M68: 2.475218713 | N68: 1781274 | O68: 45405 | P68: 2.549018287 | Q68: 1795383 | R68: 45586 | S68: 2.539068266
A69: 777247 | C69: 15095 | D69: 1.942111066 | E69: 792443 | F69: 15694 | G69: 1.9804579 | H69: 792642 | I69: 16408 | J69: 2.070039185 | K69: 798236 | L69: 17088 | M69: 2.140720288 | N69: 802860 | O69: 17514 | P69: 2.181451312 | Q69: 807412 | R69: 17394 | S69: 2.154290499
A70: 1512546 | C70: 22424 | D70: 1.482533424 | E70: 1545839 | F70: 23348 | G70: 1.510377213 | H70: 1556569 | I70: 23865 | J70: 1.533179705 | K70: 1573079 | L70: 24441 | M70: 1.55370455 | N70: 1589782 | O70: 24625 | P70: 1.548954511 | Q70: 1590213 | R70: 24317 | S70: 1.529166219
N71: 1757499 | O71: 41570 | P71: 2.365292953 | Q71: 1762440 | R71: 41437 | S71: 2.351115499
K72: 1048741 | L72: 23437 | M72: 2.23477484 | N72: 1062791 | O72: 23960 | P72: 2.254441372 | Q72: 1067161 | R72: 23851 | S72: 2.234995469
A73: 1794619 | C73: 34574 | D73: 1.926537053 | E73: 1849120 | F73: 36487 | G73: 1.973208878 | H73: 1883947 | I73: 37709 | J73: 2.001595586 | K73: 1900078 | L73: 38987 | M73: 2.051863134 | N73: 1914385 | O73: 39327 | P73: 2.054288975 | Q73: 1937127 | R73: 39730 | S73: 2.050975491
K74: 1147762 | L74: 19269 | M74: 1.678832371 | N74: 1161741 | O74: 19530 | P74: 1.681097594 | Q74: 1166091 | R74: 19431 | S74: 1.666336504
K75: 780401 | L75: 17844 | M75: 2.286516804 | N75: 798699 | O75: 18605 | P75: 2.329413208 | Q75: 802353 | R75: 18486 | S75: 2.303973438
A76: 1199709 | C76: 22493 | D76: 1.874871323 | E76: 1213377 | F76: 22756 | G76: 1.875427011 | H76: 1219651 | I76: 23153 | J76: 1.898329932 | K76: 1223890 | L76: 23787 | M76: 1.943557019 | N76: 1239869 | O76: 23825 | P76: 1.921573973 | Q76: 1242029 | R76: 23627 | S76: 1.902290526
A77: 1029714 | C77: 22650 | D77: 2.1996399 | E77: 1063067 | F77: 23209 | G77: 2.183211406 | H77: 1030405 | I77: 22910 | J77: 2.223397596 | K77: 1060016 | L77: 24237 | M77: 2.286474921 | N77: 1066974 | O77: 24690 | P77: 2.314020773 | Q77: 1073983 | R77: 24824 | S77: 2.31139599
A78: 1503563 | C78: 17069 | D78: 1.135236768 | E78: 1557540 | F78: 18049 | G78: 1.158814541 | H78: 1566590 | I78: 18273 | J78: 1.166418782 | K78: 1647019 | L78: 19260 | M78: 1.169385417 | N78: 1680887 | O78: 20569 | P78: 1.223699154 | Q78: 1696716 | R78: 19283 | S78: 1.136489548
A79: 2314965 | C79: 23034 | D79: 0.9950042441 | E79: 2357959 | F79: 23781 | G79: 1.008541709 | H79: 2429144 | I79: 24496 | J79: 1.008421073 | K79: 2513687 | L79: 25235 | M79: 1.003903827 | N79: 2598023 | O79: 25468 | P79: 0.9802838543 | Q79: 2650244 | R79: 25171 | S79: 0.9497616069
A80: 740025 | C80: 13987 | D80: 1.890071281 | E80: 755207 | F80: 14240 | G80: 1.885575743 | H80: 764266 | I80: 14593 | J80: 1.909413738 | K80: 776684 | L80: 15005 | M80: 1.931931133 | N80: 786205 | O80: 15349 | P80: 1.952289797 | Q80: 790574 | R80: 15328 | S80: 1.938844435
K81: 1063038 | L81: 20933 | M81: 1.969167612 | N81: 1106643 | O81: 22283 | P81: 2.013567158 | Q81: 1104075 | R81: 22161 | S81: 2.007200598
A82: 1808495 | C82: 23956 | D82: 1.324637337 | E82: 1911212 | F82: 25564 | G82: 1.337580551 | H82: 1959410 | I82: 26135 | J82: 1.333819874 | K82: 1989260 | L82: 26488 | M82: 1.331550426 | N82: 2017832 | O82: 26584 | P82: 1.317453584 | Q82: 2017836 | R82: 26519 | S82: 1.3142297
K83: 502518 | L83: 9832 | M83: 1.95654683 | N83: 508445 | O83: 10057 | P83: 1.97799172 | Q83: 512966 | R83: 10221 | S83: 1.992529719
A84: 555403 | C84: 11808 | D84: 2.126023806 | E84: 569279 | F84: 12446 | G84: 2.186274217 | H84: 574614 | I84: 12948 | J84: 2.253338763 | K84: 580564 | L84: 13527 | M84: 2.329975679 | N84: 583921 | O84: 13653 | P84: 2.338158758 | Q84: 588379 | R84: 13553 | S84: 2.303447268
A85: 1587352 | C85: 17045 | D85: 1.073800896 | E85: 1634521 | F85: 17952 | G85: 1.098303417 | H85: 1658613 | I85: 18388 | J85: 1.108637156 | K85: 1686383 | L85: 18906 | M85: 1.121097639 | N85: 1713325 | O85: 19039 | P85: 1.111231086 | Q85: 1710135 | R85: 18849 | S85: 1.102193686
K86: 1571432 | L86: 41647 | M86: 2.650257854 | N86: 1589608 | O86: 42104 | P86: 2.648703328 | Q86: 1589857 | R86: 41692 | S86: 2.622374214
K87: 1157955 | L87: 26431 | M87: 2.282558476 | N87: 1159853 | O87: 26885 | P87: 2.317966156 | Q87: 1162073 | R87: 26818 | S87: 2.307772403
A88: 989208 | C88: 19643 | D88: 1.985729998 | E88: 1003483 | F88: 20187 | G88: 2.011693272 | H88: 1009876 | I88: 20652 | J88: 2.045003545 | K88: 1007912 | L88: 20745 | M88: 2.0582154 | N88: 1030771 | O88: 21507 | P88: 2.086496419 | Q88: 1036317 | R88: 21497 | S88: 2.074365276
N89: 1103582 | O89: 14293 | P89: 1.295146169 | Q89: 1113139 | R89: 14325 | S89: 1.286901276
N90: 1791624 | O90: 34661 | P90: 1.934613513 | Q90: 1798146 | R90: 34744 | S90: 1.932212401
H91: 1452045 | I91: 27981 | J91: 1.927006394 | K91: 1470764 | L91: 29102 | M91: 1.978699506 | N91: 1487194 | O91: 29312 | P91: 1.970960076 | Q91: 1490126 | R91: 28901 | S91: 1.939500418
N92: 2592366 | O92: 57499 | P92: 2.218012426 | Q92: 2598584 | R92: 57257 | S92: 2.203392309

Sheet CCGs (hidden)
A1: CCG ODS code (practice parent) | C1: 02P | D1: 99E | E1: 02Q | F1: 92G | G1: M1J4Y | H1: 15A | I1: 15E | J1: D2P2L | K1: 00Q | L1: 00R | M1: 00T | N1: 36J | O1: 09D | P1: 15C | Q1: 14Y | R1: 00V | S1: 02T | T1: 06H | U1: 04Y | V1: 99F | W1: 27D | X1: 00X | Y1: 84H | Z1: B2M3M | AA1: 15M | AB1: 15N | AC1: 02X | AD1: 11J | AE1: 01A | AF1: 03W | AG1: 02Y | AH1: 05D | AI1: 97R | AJ1: 06K | AK1: D4U1Y | AL1: 02M | AM1: 11M | AN1: 01E | AO1: 01F | AP1: D9Y0V | AQ1: 18C | AR1: 06N | AS1: 01D | AT1: 03F | AU1: 06L | AV1: 91Q | AW1: 11N | AX1: X2C4Y | AY1: 01J | AZ1: 15F | BA1: 04C | BB1: 71E | BC1: 99A | BD1: 14L | BE1: 06Q | BF1: 01K | BG1: 13T | BH1: 26A | BI1: 93C | BJ1: 01H | BK1: 06T | BL1: 03H | BM1: A3A8R | BN1: 03K | BO1: 05G | BP1: 99C | BQ1: W2U3Z | BR1: 42D | BS1: 78H | BT1: 00L | BU1: 52R | BV1: 00Y | BW1: 10Q | BX1: 10R | BY1: 03L | BZ1: 01G | CA1: 03N | CB1: M2L0M | CC1: 11X | CD1: 72Q | CE1: 05Q | CF1: 01T | CG1: 00N | CH1: 36L | CI1: 99G | CJ1: 01V | CK1: 01X | CL1: 05V | CM1: 01W | CN1: 05W | CO1: 00P | CP1: 92A | CQ1: 01Y | CR1: 16C | CS1: 07G | CT1: 02A | CU1: 03Q | CV1: 03R | CW1: 02E | CX1: 07H | CY1: 02G | CZ1: 04V | DA1: 07K | DB1: 70F | DC1: 02H | DD1: 12F
A2: CCG ONS code (practice parent) | C2: E38000006 | D2: E38000007 | E2: E38000008 | F2: E38000231 | G2: E38000249 | H2: E38000221 | I2: E38000220 | J2: E38000250 | K2: E38000014 | L2: E38000015 | M2: E38000016 | N2: E38000232 | O2: E38000021 | P2: E38000222 | Q2: E38000223 | R2: E38000024 | S2: E38000025 | T2: E38000026 | U2: E38000028 | V2: E38000030 | W2: E38000233 | X2: E38000034 | Y2: E38000234 | Z2: E38000251 | AA2: E38000229 | AB2: E38000230 | AC2: E38000044 | AD2: E38000045 | AE2: E38000050 | AF2: E38000051 | AG2: E38000052 | AH2: E38000053 | AI2: E38000235 | AJ2: E38000049 | AK2: E38000252 | AL2: E38000226 | AM2: E38000062 | AN2: E38000227 | AO2: E38000068 | AP2: E38000253 | AQ2: E38000236 | AR2: E38000079 | AS2: E38000080 | AT2: E38000085 | AU2: E38000086 | AV2: E38000237 | AW2: E38000089 | AX2: E38000254 | AY2: E38000091 | AZ2: E38000225 | BA2: E38000097 | BB2: E38000238 | BC2: E38000101 | BD2: E38000217 | BE2: E38000106 | BF2: E38000228 | BG2: E38000212 | BH2: E38000239 | BI2: E38000240 | BJ2: E38000215 | BK2: E38000117 | BL2: E38000119 | BM2: E38000255 | BN2: E38000122 | BO2: E38000126 | BP2: E38000127 | BQ2: E38000256 | BR2: E38000241 | BS2: E38000242 | BT2: E38000130 | BU2: E38000243 | BV2: E38000135 | BW2: E38000136 | BX2: E38000137 | BY2: E38000141 | BZ2: E38000143 | CA2: E38000146 | CB2: E38000257 | CC2: E38000150 | CD2: E38000244 | CE2: E38000153 | CF2: E38000161 | CG2: E38000163 | CH2: E38000245 | CI2: E38000168 | CJ2: E38000170 | CK2: E38000172 | CL2: E38000173 | CM2: E38000174 | CN2: E38000175 | CO2: E38000176 | CP2: E38000246 | CQ2: E38000182 | CR2: E38000247 | CS2: E38000185 | CT2: E38000187 | CU2: E38000188 | CV2: E38000190 | CW2: E38000194 | CX2: E38000197 | CY2: E38000200 | CZ2: E38000201 | DA2: E38000204 | DB2: E38000248 | DC2: E38000205 | DD2: E38000208
A3: CCG name (practice parent) | C3: NHS Barnsley CCG | D3: NHS Basildon and Brentwood CCG | E3: NHS Bassetlaw CCG | F3: NHS Bath and North East Somerset, Swindon and Wiltshire CCG | G3: NHS Bedfordshire, Luton and Milton Keynes CCG | H3: NHS Berkshire West CCG | I3: NHS Birmingham and Solihull CCG | J3: NHS Black Country and West Birmingham CCG | K3: NHS Blackburn with Darwen CCG | L3: NHS Blackpool CCG | M3: NHS Bolton CCG | N3: NHS Bradford District and Craven CCG | O3: NHS Brighton and Hove CCG | P3: NHS Bristol, North Somerset and South Gloucestershire CCG | Q3: NHS Buckinghamshire CCG | R3: NHS Bury CCG | S3: NHS Calderdale CCG | T3: NHS Cambridgeshire and Peterborough CCG | U3: NHS Cannock Chase CCG | V3: NHS Castle Point and Rochford CCG | W3: NHS Cheshire CCG | X3: NHS Chorley and South Ribble CCG | Y3: NHS County Durham CCG | Z3: NHS Coventry and Warwickshire CCG | AA3: NHS Derby and Derbyshire CCG | AB3: NHS Devon CCG | AC3: NHS Doncaster CCG | AD3: NHS Dorset CCG | AE3: NHS East Lancashire CCG | AF3: NHS East Leicestershire and Rutland CCG | AG3: NHS East Riding of Yorkshire CCG | AH3: NHS East Staffordshire CCG | AI3: NHS East Sussex CCG | AJ3: NHS East and North Hertfordshire CCG | AK3: NHS Frimley CCG | AL3: NHS Fylde and Wyre CCG | AM3: NHS Gloucestershire CCG | AN3: NHS Greater Preston CCG | AO3: NHS Halton CCG | AP3: NHS Hampshire, Southampton and Isle of Wight CCG | AQ3: NHS Herefordshire CCG | AR3: NHS Herts Valley CCG | AS3: NHS Heywood, Middleton and Rochdale CCG | AT3: NHS Hull CCG | AU3: NHS Ipswich and East Suffolk CCG | AV3: NHS Kent and Medway CCG | AW3: NHS Kernow CCG | AX3: NHS Kirklees CCG | AY3: NHS Knowsley CCG | AZ3: NHS Leeds CCG | BA3: NHS Leicester City CCG | BB3: NHS Lincolnshire CCG | BC3: NHS Liverpool CCG | BD3: NHS Manchester CCG | BE3: NHS Mid Essex CCG | BF3: NHS Morecambe Bay CCG | BG3: NHS Newcastle Gateshead CCG | BH3: NHS Norfolk and Waveney CCG | BI3: NHS North Central London CCG | BJ3: NHS North Cumbria CCG | BK3: NHS North East Essex CCG | BL3: NHS North East Lincolnshire CCG | BM3: NHS North East London CCG | BN3: NHS North Lincolnshire CCG | BO3: NHS North Staffordshire CCG | BP3: NHS North Tyneside CCG | BQ3: NHS North West London CCG | BR3: NHS North Yorkshire CCG | BS3: NHS Northamptonshire CCG | BT3: NHS Northumberland CCG | BU3: NHS Nottingham and Nottinghamshire CCG | BV3: NHS Oldham CCG | BW3: NHS Oxfordshire CCG | BX3: NHS Portsmouth CCG | BY3: NHS Rotherham CCG | BZ3: NHS Salford CCG | CA3: NHS Sheffield CCG | CB3: NHS Shropshire, Telford and Wrekin CCG | CC3: NHS Somerset CCG | CD3: NHS South East London CCG | CE3: NHS South East Staffordshire and Seisdon Peninsula CCG | CF3: NHS South Sefton CCG | CG3: NHS South Tyneside CCG | CH3: NHS South West London CCG | CI3: NHS Southend CCG | CJ3: NHS Southport and Formby CCG | CK3: NHS St Helens CCG | CL3: NHS Stafford and Surrounds CCG | CM3: NHS Stockport CCG | CN3: NHS Stoke on Trent CCG | CO3: NHS Sunderland CCG | CP3: NHS Surrey Heartlands CCG | CQ3: NHS Tameside and Glossop CCG | CR3: NHS Tees Valley CCG | CS3: NHS Thurrock CCG | CT3: NHS Trafford CCG | CU3: NHS Vale of York CCG | CV3: NHS Wakefield CCG | CW3: NHS Warrington CCG | CX3: NHS West Essex CCG | CY3: NHS West Lancashire CCG | CZ3: NHS West Leicestershire CCG | DA3: NHS West Suffolk CCG | DB3: NHS West Sussex CCG | DC3: NHS Wigan Borough CCG | DD3: NHS Wirral CCG
C5: 1 | D5: 2 | E5: 3 | F5: 4 | G5: 5 | H5: 6 | I5: 7 | J5: 8 | K5: 9 | L5: 10 | M5: 11 | N5: 12 | O5: 13 | P5: 14 | Q5: 15 | R5: 16 | S5: 17 | T5: 18 | U5: 19 | V5: 20 | W5: 21 | X5: 22 | Y5: 23 | Z5: 24 | AA5: 25 | AB5: 26 | AC5: 27 | AD5: 28 | AE5: 29 | AF5: 30 | AG5: 31 | AH5: 32 | AI5: 33 | AJ5: 34 | AK5: 35 | AL5: 36 | AM5: 37 | AN5: 38 | AO5: 39 | AP5: 40 | AQ5: 41 | AR5: 42 | AS5: 43 | AT5: 44 | AU5: 45 | AV5: 46 | AW5: 47 | AX5: 48 | AY5: 49 | AZ5: 50 | BA5: 51 | BB5: 52 | BC5: 53 | BD5: 54 | BE5: 55 | BF5: 56 | BG5: 57 | BH5: 58 | BI5: 59 | BJ5: 60 | BK5: 61 | BL5: 62 | BM5: 63 | BN5: 64 | BO5: 65 | BP5: 66 | BQ5: 67 | BR5: 68 | BS5: 69 | BT5: 70 | BU5: 71 | BV5: 72 | BW5: 73 | BX5: 74 | BY5: 75 | BZ5: 76 | CA5: 77 | CB5: 78 | CC5: 79 | CD5: 80 | CE5: 81 | CF5: 82 | CG5: 83 | CH5: 84 | CI5: 85 | CJ5: 86 | CK5: 87 | CL5: 88 | CM5: 89 | CN5: 90 | CO5: 91 | CP5: 92 | CQ5: 93 | CR5: 94 | CS5: 95 | CT5: 96 | CU5: 97 | CV5: 98 | CW5: 99 | CX5: 100 | CY5: 101 | CZ5: 102 | DA5: 103 | DB5: 104 | DC5: 105 | DD5: 106
A6: 2012/13 | B6: COPD Prevalence | C6: 3.077371633 | D6: 1.861551368 | E6: 2.43098365 | F6: =AVERAGE($F$13:$F$14) -> 1.731613215 | G6: =AVERAGE($G$14,$G$13) -> 1.566662027 | H6: =AVERAGE(H$11:H$14) -> 1.231072534 | I6: 1.673394134 | J6: =AVERAGE(J$13:J$14) -> 1.957271417 | K6: 2.147910803 | L6: 3.105647579 | M6: 2.168734608 | N6: =AVERAGE(N$13:N$14) -> 2.14928391 | O6: 1.243581595 | P6: =AVERAGE($P$11:$P$14) -> 1.798508481 | Q6: =AVERAGE(Q$12:Q$14) -> 1.34238674 | R6: 2.005627183 | S6: 1.905757891 | T6: 1.595577088 | U6: 2.162790347 | V6: 2.016434718 | W6: =AVERAGE(W$13:W$14) -> 2.020077584 | X6: 2.042861725 | Y6: =AVERAGE(Y$13:Y$14) -> 3.13652428 | Z6: 1.641850986 | AA6: =AVERAGE(AA$11:AA$14) -> 2.234085311 | AB6: 2.271465669 | AC6: 2.581383725 | AD6: 1.758784854 | AE6: 2.385761 | AF6: 1.565594079 | AG6: 2.089425275 | AH6: 1.62860906 | AI6: =AVERAGE(AI$13:AI$14) -> 2.358358167 | AJ6: 1.482249305 | AK6: 1.285071435 | AL6: 2.408275095 | AM6: 1.643833409 | AN6: 1.951182513 | AO6: 2.495723838 | AP6: =AVERAGE(AP$13:AP$14) -> 1.952393139 | AQ6: 2.164276884 | AR6: 1.25845411 | AS6: 2.30650554 | AT6: 2.436781768 | AU6: 1.613089213 | AV6: =AVERAGE(AV$13:AV$14) -> 2.05391738 | AW6: 1.921771783 | AX6: 2.119159027 | AY6: 3.470540759 | AZ6: =AVERAGE(AZ$11:AZ$14) -> 2.000298474 | BA6: 1.359553739 | BB6: =AVERAGE(BB$13:BB$14) -> 2.317306029 | BC6: 2.833213427 | BD6: =AVERAGE(BD$9:BD$14) -> 1.961957841 | BE6: 1.347088905 | BF6: 2.159319412 | BG6: =AVERAGE(BG8:BG14) -> 2.41902407 | BH6: =AVERAGE(BH$13:BH$14) -> 2.312708382 | BI6: 1.177134737 | BJ6: 2.160661649 | BK6: 2.136348031 | BL6: 2.181370655 | BM6: =AVERAGE(BM$13:BM$14) -> 1.11462206 | BN6: 1.963556671 | BO6: 2.057707621 | BP6: 2.300040865 | BQ6: =AVERAGE(BQ$13:BQ$14) -> 0.9646138921 | BR6: 2.201335876 | BS6: 1.945567116 | BT6: 2.447075352 | BU6: 2.013345034 | BV6: 2.239258202 | BW6: 1.212807221 | BX6: 1.795254611 | BY6: 2.619612611 | BZ6: 2.792201822 | CA6: 1.943648041 | CB6: =AVERAGE(CB$13:CB$14) -> 1.98526072 | CC6: 1.916192345 | CD6: 1.314626258 | CE6: 1.674346651 | CF6: 2.851486681 | CG6: 3.554922649 | CH6: =AVERAGE(CH$13:CH$14) -> 1.1047531 | CI6: 1.83987312 | CJ6: 1.988462011 | CK6: 3.024442709 | CL6: 1.344814976 | CM6: 2.141406867 | CN6: 2.320346197 | CO6: 3.164735303 | CP6: =AVERAGE(CP$13:CP$14) -> 1.291023723 | CQ6: 2.550014088 | CR6: 3.040816176 | CS6: 1.74296322 | CT6: 1.693368663 | CU6: 1.665375794 | CV6: 2.737284663 | CW6: 1.7801739 | CX6: 1.601657167 | CY6: 2.12473318 | CZ6: 1.640824644 | DA6: 1.903863093 | DB6: =AVERAGE(DB$13:DB$14) -> 1.831351462 | DC6: 2.21530923 | DD6: 2.359662871
A7: 2013/14 | B7: COPD Prevalence | C7: 3.128998396 | D7: 1.876543394 | E7: 2.474605768 | F7: 1.731613215 | G7: 1.566662027 | H7: 1.231072534 | I7: 1.673394134 | J7: 1.957271417 | K7: 2.172783218 | L7: 3.358846006 | M7: 2.234186005 | N7: 2.14928391 | O7: 1.258740337 | P7: 1.798508481 | Q7: 1.34238674 | R7: 2.055831631 | S7: 2.015035083 | T7: 1.617767167 | U7: 2.204496121 | V7: 2.071133644 | W7: 2.020077584 | X7: 2.194599569 | Y7: 3.13652428 | Z7: 1.641850986 | AA7: 2.234085311 | AB7: 2.271465669 | AC7: 2.615628137 | AD7: 1.81506167 | AE7: 2.420292351 | AF7: 1.628813449 | AG7: 2.178384287 | AH7: 1.700024202 | AI7: 2.358358167 | AJ7: 1.502561972 | AK7: 1.285071435 | AL7: 2.515765018 | AM7: 1.683879874 | AN7: 2.00636482 | AO7: 2.545598301 | AP7: 1.952393139 | AQ7: 2.164276884 | AR7: 1.25475094 | AS7: 2.301735457 | AT7: 2.547157061 | AU7: 1.6594322 | AV7: 2.05391738 | AW7: 2.000901371 | AX7: 2.119159027 | AY7: 3.457478243 | AZ7: =AVERAGE(AZ$11:AZ$14) -> 2.000298474 | BA7: 1.417583234 | BB7: 2.317306029 | BC7: 2.844705021 | BD7: =AVERAGE(BD$9:BD$14) -> 1.961957841 | BE7: 1.433801988 | BF7: 2.241976722 | BG7: =AVERAGE(BG8:BG14) -> 2.41902407 | BH7: 2.312708382 | BI7: 1.177134737 | BJ7: 2.22464898 | BK7: 2.218623384 | BL7: 2.244792379 | BM7: 1.11462206 | BN7: 2.043565475 | BO7: 2.123376336 | BP7: 2.393089514 | BQ7: 0.9646138921 | BR7: 2.201335876 | BS7: 1.945567116 | BT7: 2.508563243 | BU7: 2.013345034 | BV7: 2.238821326 | BW7: 1.253317079 | BX7: 1.885472306 | BY7: 2.689975912 | BZ7: 2.765748691 | CA7: 1.971946771 | CB7: 1.98526072 | CC7: 1.999253158 | CD7: 1.314626258 | CE7: 1.713896009 | CF7: 2.85887646 | CG7: 3.624533513 | CH7: 1.1047531 | CI7: 1.928546277 | CJ7: 2.025475729 | CK7: 3.068882337 | CL7: 1.400498506 | CM7: 2.192021771 | CN7: 2.411146216 | CO7: 3.226580305 | CP7: 1.291023723 | CQ7: 2.629449163 | CR7: 3.040816176 | CS7: 1.800407185 | CT7: 1.822210966 | CU7: 1.613512228 | CV7: 2.811939015 | CW7: 1.812931932 | CX7: 1.644800325 | CY7: 2.138531077 | CZ7: 1.690426112 | DA7: 1.942498067 | DB7: 1.831351462 | DC7: 2.255962454 | DD7: 2.299967801
A8: 2014/15 | B8: COPD Prevalence | C8: 3.165094283 | D8: 1.909474571 | E8: 2.498018843 | F8: 1.731613215 | G8: 1.566662027 | H8: 1.231072534 | I8: 1.673394134 | J8: 1.957271417 | K8: 2.28474409 | L8: 3.633008511 | M8: 2.238313364 | N8: 2.14928391 | O8: 1.28226118 | P8: 1.798508481 | Q8: 1.34238674 | R8: 2.137873939 | S8: 2.107731574 | T8: 1.647680461 | U8: 2.256686691 | V8: 2.144069612 | W8: 2.020077584 | X8: 2.252751893 | Y8: 3.13652428 | Z8: 1.641850986 | AA8: 2.234085311 | AB8: 2.271465669 | AC8: 2.63795036 | AD8: 1.862437671 | AE8: 2.445784004 | AF8: 1.692975655 | AG8: 2.247816648 | AH8: 1.668572427 | AI8: 2.358358167 | AJ8: 1.517949773 | AK8: 1.285071435 | AL8: 2.654767434 | AM8: 1.715307634 | AN8: 2.038157813 | AO8: 2.577015847 | AP8: 1.952393139 | AQ8: 2.164276884 | AR8: 1.271194583 | AS8: 2.355998732 | AT8: 2.62265275 | AU8: 1.687332161 | AV8: 2.05391738 | AW8: 2.075582215 | AX8: 2.119159027 | AY8: 3.520365701 | AZ8: 2.000298474 | BA8: 1.434746934 | BB8: 2.317306029 | BC8: 2.884733572 | BD8: 1.961957841 | BE8: 1.500097358 | BF8: 2.268857403 | BG8: 2.38966473 | BH8: 2.312708382 | BI8: 1.177134737 | BJ8: 2.270874645 | BK8: 2.245172478 | BL8: 2.299279587 | BM8: 1.11462206 | BN8: 2.114400832 | BO8: 2.182581127 | BP8: 2.448792715 | BQ8: 0.9646138921 | BR8: 2.201335876 | BS8: 1.945567116 | BT8: 2.546151124 | BU8: 2.013345034 | BV8: 2.220364556 | BW8: 1.288331048 | BX8: 1.952292537 | BY8: 2.741526472 | BZ8: 2.704263342 | CA8: 2.008018431 | CB8: 1.98526072 | CC8: 2.038895465 | CD8: 1.314626258 | CE8: 1.741831516 | CF8: 2.810328244 | CG8: 3.720399281 | CH8: 1.1047531 | CI8: 2.050341814 | CJ8: 2.012659359 | CK8: 3.01772322 | CL8: 1.487277424 | CM8: 2.212959879 | CN8: 2.474876098 | CO8: 3.220480108 | CP8: 1.291023723 | CQ8: 2.677596754 | CR8: 3.040816176 | CS8: 1.832407935 | CT8: 1.878463259 | CU8: 1.65228289 | CV8: 2.827228031 | CW8: 1.799910779 | CX8: 1.693627476 | CY8: 2.178876581 | CZ8: 1.762100449 | DA8: 2.003274346 | DB8: 1.831351462 | DC8: 2.314968496 | DD8: 2.402675577
A9: 2015/16 | B9: COPD Prevalence | C9: 3.148114262 | D9: 1.935333324 | E9: 2.536159916 | F9: 1.731613215 | G9: 1.566662027 | H9: 1.231072534 | I9: 1.673394134 | J9: 1.957271417 | K9: 2.243716431 | L9: 3.699261669 | M9: 2.25198452 | N9: 2.14928391 | O9: 1.340025649 | P9: 1.798508481 | Q9: 1.34238674 | R9: 2.124346125 | S9: 2.200010069 | T9: 1.672836761 | U9: 2.279342687 | V9: 2.182647706 | W9: 2.020077584 | X9: 2.320549545 | Y9: 3.13652428 | Z9: 1.641850986 | AA9: 2.234085311 | AB9: 2.271465669 | AC9: 2.682022761 | AD9: 1.922554286 | AE9: 2.492373439 | AF9: 1.734891457 | AG9: 2.329212752 | AH9: 1.684216587 | AI9: 2.358358167 | AJ9: 1.548267995 | AK9: 1.285071435 | AL9: 2.786438564 | AM9: 1.738129224 | AN9: 2.04346161 | AO9: 2.614311259 | AP9: 1.952393139 | AQ9: 2.164276884 | AR9: 1.305694476 | AS9: 2.402983013 | AT9: 2.656968314 | AU9: 1.722959489 | AV9: 2.05391738 | AW9: 2.122833244 | AX9: 2.119159027 | AY9: 3.543586109 | AZ9: 2.000298474 | BA9: 1.416731164 | BB9: 2.317306029 | BC9: 2.925053207 | BD9: 1.935419854 | BE9: 1.546536476 | BF9: 2.160996474 | BG9: 2.399748953 | BH9: 2.312708382 | BI9: 1.177134737 | BJ9: 2.39801657 | BK9: 2.240029458 | BL9: 2.412838097 | BM9: 1.11462206 | BN9: 2.170966522 | BO9: 2.256254654 | BP9: 2.499539171 | BQ9: 0.9646138921 | BR9: 2.201335876 | BS9: 1.945567116 | BT9: 2.614271672 | BU9: 2.013345034 | BV9: 2.249355006 | BW9: 1.343509308 | BX9: 2.00498482 | BY9: 2.83156748 | BZ9: 2.676274198 | CA9: 2.057314457 | CB9: 1.98526072 | CC9: 2.126023806 | CD9: 1.314626258 | CE9: 1.764453725 | CF9: 2.863086182 | CG9: 3.726054629 | CH9: 1.1047531 | CI9: 2.13196985 | CJ9: 2.071187481 | CK9: 3.001614331 | CL9: 1.568296452 | CM9: 2.252157581 | CN9: 2.48695151 | CO9: 3.311260698 | CP9: 1.291023723 | CQ9: 2.734163734 | CR9: 3.040816176 | CS9: 1.906750012 | CT9: 1.897255418 | CU9: 1.693175692 | CV9: 2.852534474 | CW9: 1.830113413 | CX9: 1.726139718 | CY9: 2.135023246 | CZ9: 1.829592007 | DA9: 2.060167787 | DB9: 1.831351462 | DC9: 2.431194797 | DD9: 2.445039758
A10: 2016/17 | B10: COPD Prevalence | C10: 3.16131355 | D10: 1.923904514 | E10: 2.467396017 | F10: 1.731613215 | G10: 1.566662027 | H10: =AVERAGE(H$11:H$14) -> 1.231072534 | I10: =AVERAGE(I$11:I$14) -> 1.673394134 | J10: 1.957271417 | K10: 2.264711129 | L10: 3.727873352 | M10: 2.254413644 | N10: 2.14928391 | O10: 1.397871483 | P10: =AVERAGE($P$11:$P$14) -> 1.798508481 | Q10: 1.34238674 | R10: 2.110915702 | S10: 2.254034002 | T10: 1.685712482 | U10: 2.389775391 | V10: 2.214805825 | W10: 2.020077584 | X10: 2.353089908 | Y10: 3.13652428 | Z10: 1.641850986 | AA10: =AVERAGE(AA$11:AA$14) -> 2.234085311 | AB10: =AVERAGE(AB$11:AB$14) -> 2.271465669 | AC10: 2.715470814 | AD10: 2.015697489 | AE10: 2.558803112 | AF10: 1.745435427 | AG10: 2.360497477 | AH10: 1.711913392 | AI10: 2.358358167 | AJ10: 1.567684588 | AK10: 1.285071435 | AL10: 2.897850601 | AM10: 1.784159798 | AN10: 2.12915814 | AO10: 2.719257896 | AP10: 1.952393139 | AQ10: 2.164276884 | AR10: 1.349162345 | AS10: 2.432021618 | AT10: 2.591440697 | AU10: 1.747928944 | AV10: 2.05391738 | AW10: 2.161137507 | AX10: 2.119159027 | AY10: 3.528490403 | AZ10: 2.000298474 | BA10: 1.387286973 | BB10: 2.317306029 | BC10: 3.016070025 | BD10: 1.941487965 | BE10: 1.562604375 | BF10: 2.219333452 | BG10: 2.420509828 | BH10: 2.312708382 | BI10: 1.177134737 | BJ10: 2.417173661 | BK10: 2.229199462 | BL10: 2.415391424 | BM10: 1.11462206 | BN10: 2.250582596 | BO10: 2.344841532 | BP10: 2.570599852 | BQ10: 0.9646138921 | BR10: 2.201335876 | BS10: 1.945567116 | BT10: 2.687369179 | BU10: 2.013345034 | BV10: 2.291468819 | BW10: 1.355636431 | BX10: 1.926214629 | BY10: 2.811078958 | BZ10: 2.6140832 | CA10: 2.047752414 | CB10: 1.98526072 | CC10: 2.186274217 | CD10: 1.314626258 | CE10: 1.74601694 | CF10: 2.894910338 | CG10: 3.734535341 | CH10: 1.1047531 | CI10: 2.122394594 | CJ10: 2.139261407 | CK10: 3.034082521 | CL10: 1.633108108 | CM10: 2.293420985 | CN10: 2.487907692 | CO10: 3.342226227 | CP10: 1.291023723 | CQ10: 2.827205151 | CR10: 3.040816176 | CS10: 1.869696203 | CT10: 1.952780413 | CU10: 1.667844562 | CV10: 2.846259225 | CW10: 1.848624486 | CX10: 1.73641915 | CY10: 2.287420073 | CZ10: 1.853599108 | DA10: 2.133457664 | DB10: 1.831351462 | DC10: 2.531334782 | DD10: 2.437233373
A11: 2017/18 | B11: COPD Prevalence | C11: 3.255833609 | D11: 1.920608151 | E11: 2.566632883 | F11: 1.731613215 | G11: 1.566662027 | H11: 1.194849503 | I11: 1.683971321 | J11: 1.957271417 | K11: 2.232178574 | L11: 3.702592103 | M11: 2.29015782 | N11: 2.14928391 | O11: 1.43734959 | P11: 1.758471651 | Q11: =AVERAGE(Q$12:Q$14) -> 1.34238674 | R11: 2.142490024 | S11: 2.258262438 | T11: 1.707810985 | U11: 2.49399219 | V11: 2.293065858 | W11: 2.020077584 | X11: 2.3518252 | Y11: 3.13652428 | Z11: 1.641850986 | AA11: 2.206725701 | AB11: 2.188807272 | AC11: 2.758884516 | AD11: 2.082621839 | AE11: 2.595715367 | AF11: 1.764017449 | AG11: 2.443853856 | AH11: 1.852412928 | AI11: 2.358358167 | AJ11: 1.565691294 | AK11: 1.285071435 | AL11: 2.85946756 | AM11: 1.810311895 | AN11: 2.060875836 | AO11: 2.787982257 | AP11: 1.952393139 | AQ11: 2.164276884 | AR11: 1.391866742 | AS11: 2.467315359 | AT11: 2.726995352 | AU11: 1.773444708 | AV11: 2.05391738 | AW11: 2.118532249 | AX11: 2.119159027 | AY11: 3.558488142 | AZ11: 1.96042157 | BA11: 1.396751638 | BB11: 2.317306029 | BC11: 3.00754361 | BD11: 1.972709321 | BE11: 1.572816646 | BF11: 2.278135508 | BG11: 2.420944751 | BH11: 2.312708382 | BI11: 1.177134737 | BJ11: 2.427810029 | BK11: 2.190769558 | BL11: 2.544442449 | BM11: 1.11462206 | BN11: 2.325269343 | BO11: 2.410385205 | BP11: 2.620484611 | BQ11: 0.9646138921 | BR11: 2.201335876 | BS11: 1.945567116 | BT11: 2.737900142 | BU11: 2.013345034 | BV11: 2.368846037 | BW11: 1.377697256 | BX11: 2.080438286 | BY11: 2.926932066 | BZ11: 2.559503505 | CA11: 2.068812026 | CB11: 1.98526072 | CC11: 2.254113731 | CD11: 1.314626258 | CE11: 1.839798026 | CF11: 3.083083987 | CG11: 3.720945311 | CH11: 1.1047531 | CI11: 2.153468572 | CJ11: 2.124615919 | CK11: 3.065544054 | CL11: 1.709682612 | CM11: 2.276831764 | CN11: 2.576351185 | CO11: 3.393202022 | CP11: 1.291023723 | CQ11: 2.907742928 | CR11: 3.040816176 | CS11: 1.870837387 | CT11: 1.960768085 | CU11: 1.724186221 | CV11: 2.873751044 | CW11: 1.839621739 | CX11: 1.771045808 | CY11: 2.300200875 | CZ11: 1.89293975 | DA11: 2.175196929 | DB11: 1.831351462 | DC11: 2.599389794 | DD11: 2.538317041
A12: 2018/19 | B12: COPD Prevalence | C12: 3.31684886 | D12: 1.950659986 | E12: 2.662299931 | F12: =AVERAGE($F$13:$F$14) -> 1.731613215 | G12: =AVERAGE($G$14,$G$13) -> 1.566662027 | H12: 1.241980094 | I12: 1.675904202 | J12: =AVERAGE(J$13:J$14) -> 1.957271417 | K12: 2.113337933 | L12: 3.733768098 | M12: 2.298057039 | N12: =AVERAGE(N$13:N$14) -> 2.14928391 | O12: 1.421823978 | P12: 1.81225563 | Q12: 1.360974081 | R12: 2.174853349 | S12: 2.286051882 | T12: 1.732315166 | U12: 2.608656676 | V12: 2.360144096 | W12: =AVERAGE(W$13:W$14) -> 2.020077584 | X12: 2.381119542 | Y12: =AVERAGE(Y$13:Y$14) -> 3.13652428 | Z12: =AVERAGE(Z$13:Z$14) -> 1.641850986 | AA12: 2.23477484 | AB12: 2.271498657 | AC12: 2.847007036 | AD12: 2.157783237 | AE12: 2.499333959 | AF12: 1.798693062 | AG12: 2.528263305 | AH12: 1.8500365 | AI12: =AVERAGE(AI$13:AI$14) -> 2.358358167 | AJ12: 1.589776595 | AK12: =AVERAGE(AK$13:AK$14) -> 1.285071435 | AL12: 2.912686743 | AM12: 1.828091309 | AN12: 1.92138865 | AO12: 2.86600178 | AP12: =AVERAGE(AP$13:AP$14) -> 1.952393139 | AQ12: =AVERAGE(AQ$13:AQ$14) -> 2.164276884 | AR12: 1.431868263 | AS12: 2.529108689 | AT12: 2.810044698 | AU12: 1.80739746 | AV12: =AVERAGE(AV$13:AV$14) -> 2.05391738 | AW12: 2.197594863 | AX12: =AVERAGE(AX$13:AX$14) -> 2.119159027 | AY12: 3.584151873 | AZ12: 2.001083916 | BA12: 1.378916312 | BB12: =AVERAGE(BB$13:BB$14) -> 2.317306029 | BC12: 3.087898268 | BD12: 1.987210509 | BE12: 1.600142054 | BF12: 2.272999026 | BG12: 2.43003683 | BH12: =AVERAGE(BH$13:BH$14) -> 2.312708382 | BI12: =AVERAGE(BI$13:BI$14) -> 1.177134737 | BJ12: 2.474039189 | BK12: 2.234992686 | BL12: 2.657666663 | BM12: =AVERAGE(BM$13:BM$14) -> 1.11462206 | BN12: 2.408863553 | BO12: 2.561621979 | BP12: 2.643651067 | BQ12: =AVERAGE(BQ$13:BQ$14) -> 0.9646138921 | BR12: 2.201335876 | BS12: 1.945567116 | BT12: 2.800377097 | BU12: 2.013345034 | BV12: 2.360756774 | BW12: 1.400621854 | BX12: 2.093581232 | BY12: 3.002916665 | BZ12: 2.516230565 | CA12: 2.102779536 | CB12: 1.98526072 | CC12: 2.329975679 | CD12: 1.314626258 | CE12: 1.895544009 | CF12: 3.081660145 | CG12: 3.745499114 | CH12: 1.1047531 | CI12: 2.193079709 | CJ12: 2.167652713 | CK12: 3.127067415 | CL12: 1.827970704 | CM12: 2.321776963 | CN12: 2.656592903 | CO12: 3.491778459 | CP12: 1.291023723 | CQ12: 3.028868907 | CR12: 3.040816176 | CS12: 1.994160331 | CT12: 1.980523348 | CU12: 1.764139937 | CV12: 2.851443447 | CW12: 1.825820298 | CX12: 1.735541613 | CY12: 2.266478222 | CZ12: 1.892265575 | DA12: 2.225427815 | DB12: 1.831351462 | DC12: 2.645368185 | DD12: 2.58703517
A13: 2019/20 | B13: COPD Prevalence | C13: 3.279548634 | D13: 1.90791998 | E13: 2.705327762 | F13: 1.738693028 | G13: 1.557269343 | H13: 1.250758008 | I13: 1.666423115 | J13: 1.975042417 | K13: 2.164574898 | L13: 3.764114715 | M13: 2.300722118 | N13: 2.161106719 | O13: 1.480977261 | P13: 1.805285278 | Q13: 1.332327261 | R13: 2.158005825 | S13: 2.296293962 | T13: 1.73471474 | U13: 2.665935856 | V13: 2.32668183 | W13: 2.018292659 | X13: 2.405971285 | Y13: 3.12766146 | Z13: 1.635889349 | AA13: 2.259845236 | AB13: 2.30091169 | AC13: 2.868927983 | AD13: 2.193479656 | AE13: 2.6258422 | AF13: 1.82214294 | AG13: 2.554877612 | AH13: 1.831066266 | AI13: 2.354788688 | AJ13: 1.612410119 | AK13: 1.288349903 | AL13: 2.975028719 | AM13: 1.849834257 | AN13: 2.08144115 | AO13: 2.890143083 | AP13: 1.933664174 | AQ13: 2.174263269 | AR13: 1.445818601 | AS13: 2.542141842 | AT13: 2.87324056 | AU13: 1.856896174 | AV13: 2.056859269 | AW13: 2.349394504 | AX13: 2.136435248 | AY13: 3.594436572 | AZ13: 2.024065045 | BA13: 1.377904395 | BB13: 2.33063862 | BC13: 3.11790951 | BD13: 1.967807874 | BE13: 1.609572004 | BF13: 2.270471573 | BG13: 2.430246732 | BH13: 2.314020773 | BI13: 1.217779926 | BJ13: 2.488121493 | BK13: 2.220832117 | BL13: 2.739096888 | BM13: 1.130830805 | BN13: 2.456814454 | BO13: 2.612232918 | BP13: 2.645101313 | BQ13: 0.9794661773 | BR13: 2.215997698 | BS13: 1.952289797 | BT13: 2.805220273 | BU13: 2.019489469 | BV13: 2.375735533 | BW13: 1.385867672 | BX13: 2.028251984 | BY13: 3.021304213 | BZ13: 2.473540746 | CA13: 2.086057508 | CB13: 1.97799172 | CC13: 2.338158758 | CD13: 1.315022817 | CE13: 1.887839045 | CF13: 2.99763865 | CG13: 3.74114694 | CH13: 1.107312514 | CI13: 2.190729888 | CJ13: 2.05557943 | CK13: 3.011132542 | CL13: 1.892385165 | CM13: 2.325596164 | CN13: 2.7099466 | CO13: 3.471686523 | CP13: 1.295146169 | CQ13: 3.027189755 | CR13: 3.031725293 | CS13: 1.930943479 | CT13: 2.003480303 | CU13: 1.732058553 | CV13: 2.841786998 | CW13: 1.818412445 | CX13: 1.664890995 | CY13: 2.360168972 | CZ13: 1.882412716 | DA13: 2.276117084 | DB13: 1.841325864 | DC13: 2.647330354 | DD13: 2.60470022
A14: 2020/21 | B14: COPD Prevalence | C14: 3.237207261 | D14: 1.865385292 | E14: 2.69674694 | F14: 1.724533402 | G14: 1.576054711 | H14: 1.236702533 | I14: 1.667277897 | J14: 1.939500418 | K14: 2.169288006 | L14: 3.81722581 | M14: 2.28263714 | N14: 2.137461101 | O14: 1.498200064 | P14: 1.818021366 | Q14: 1.333858877 | R14: 2.162914852 | S14: 2.308194654 | T14: 1.741399187 | U14: 2.672691297 | V14: 2.338323482 | W14: 2.021862509 | X14: 2.321365547 | Y14: 3.1453871 | Z14: 1.647812623 | AA14: 2.234995469 | AB14: 2.324645057 | AC14: 2.822658543 | AD14: 2.182421342 | AE14: 2.571115974 | AF14: 1.800927519 | AG14: 2.550113606 | AH14: 1.79816288 | AI14: 2.361927646 | AJ14: 1.577017075 | AK14: 1.281792968 | AL14: 2.934868746 | AM14: 1.855814917 | AN14: 2.100989597 | AO14: 2.891009393 | AP14: 1.971122104 | AQ14: 2.154290499 | AR14: 1.424828805 | AS14: 2.546432368 | AT14: 2.850955977 | AU14: 1.820040654 | AV14: 2.050975491 | AW14: 2.379400921 | AX14: 2.101882806 | AY14: 3.613343217 | AZ14: 2.015623364 | BA14: 1.374736608 | BB14: 2.303973438 | BC14: 3.067160423 | BD14: 1.967111524 | BE14: 1.614696966 | BF14: 2.301660018 | BG14: 2.442016665 | BH14: 2.31139599 | BI14: 1.136489548 | BJ14: 2.514131289 | BK14: 2.205650405 | BL14: 2.772759268 | BM14: 1.098413315 | BN14: 2.478881572 | BO14: 2.595967456 | BP14: 2.616431422 | BQ14: 0.9497616069 | BR14: 2.186674053 | BS14: 1.938844435 | BT14: 2.812030938 | BU14: 2.007200598 | BV14: 2.341557665 | BW14: 1.384908652 | BX14: 2.168773144 | BY14: 2.995923913 | BZ14: 2.557603925 | CA14: 2.075834461 | CB14: 1.992529719 | CC14: 2.303447268 | CD14: 1.3142297 | CE14: 1.906551225 | CF14: 2.999317031 | CG14: 3.67995557 | CH14: 1.102193686 | CI14: 2.161082596 | CJ14: 2.178064968 | CK14: 2.985141986 | CL14: 1.87032419 | CM14: 2.333080604 | CN14: 2.696645143 | CO14: 3.511499246 | CP14: 1.286901276 | CQ14: 2.995646163 | CR14: 3.049907059 | CS14: 1.878175924 | CT14: 2.014075149 | CU14: 1.703529051 | CV14: 2.809016468 | CW14: 1.840299015 | CX14: 1.653812663 | CY14: 2.345223165 | CZ14: 1.857501639 | DA14: 2.299187569 | DB14: 1.821377059 | DC14: 2.673812758 | DD14: 2.692984402
C16: 1 | D16: 2 | E16: 3 | F16: 4 | G16: 5 | H16: 6 | I16: 7 | J16: 8 | K16: 9 | L16: 10 | M16: 11 | N16: 12 | O16: 13 | P16: 14 | Q16: 15 | R16: 16 | S16: 17 | T16: 18 | U16: 19 | V16: 20 | W16: 21 | X16: 22 | Y16: 23 | Z16: 24 | AA16: 25 | AB16: 26 | AC16: 27 | AD16: 28 | AE16: 29 | AF16: 30 | AG16: 31 | AH16: 32 | AI16: 33 | AJ16: 34 | AK16: 35 | AL16: 36 | AM16: 37 | AN16: 38 | AO16: 39 | AP16: 40 | AQ16: 41 | AR16: 42 | AS16: 43 | AT16: 44 | AU16: 45 | AV16: 46 | AW16: 47 | AX16: 48 | AY16: 49 | AZ16: 50 | BA16: 51 | BB16: 52 | BC16: 53 | BD16: 54 | BE16: 55 | BF16: 56 | BG16: 57 | BH16: 58 | BI16: 59 | BJ16: 60 | BK16: 61 | BL16: 62 | BM16: 63 | BN16: 64 | BO16: 65 | BP16: 66 | BQ16: 67 | BR16: 68 | BS16: 69 | BT16: 70 | BU16: 71 | BV16: 72 | BW16: 73 | BX16: 74 | BY16: 75 | BZ16: 76 | CA16: 77 | CB16: 78 | CC16: 79 | CD16: 80 | CE16: 81 | CF16: 82 | CG16: 83 | CH16: 84 | CI16: 85 | CJ16: 86 | CK16: 87 | CL16: 88 | CM16: 89 | CN16: 90 | CO16: 91 | CP16: 92 | CQ16: 93 | CR16: 94 | CS16: 95 | CT16: 96 | CU16: 97 | CV16: 98 | CW16: 99 | CX16: 100 | CY16: 101 | CZ16: 102 | DA16: 103 | DB16: 104 | DC16: 105 | DD16: 106
A17: 2012/13 | B17: List Size | C17: 250376 | D17: 264618 | E17: 111930 | F17: =AVERAGE($F$24,$F$25) -> 964030 | G17: =AVERAGE(G$24,G$25) -> 1036421.5 | H17: =AVERAGE(H$24,H$25,H$23,H$22) -> 547856 | I17: 1309939.5 | J17: =AVERAGE(J$24,J$25) -> 1479148.5 | K17: 169467 | L17: 172782 | M17: 297639 | N17: =AVERAGE(N$24,N$25) -> 639039.5 | O17: 300503 | P17: =AVERAGE(P$24,P$25,P$23,P$22) -> 1008548.25 | Q17: =AVERAGE(Q$24,Q$25,Q$23) -> 564985.6667 | R17: 185528 | S17: 214193 | T17: 875984 | U17: 132514 | V17: 180715 | W17: =AVERAGE(W$24,W$25) -> 775232.5 | X17: 174608 | Y17: =AVERAGE(Y$24,Y$25) -> 555798.5 | Z17: 1023155 | AA17: =AVERAGE(AA$24,AA$25,AA$23,AA$22) -> 1051679.5 | AB17: 1203030.25 | AC17: 310105 | AD17: 771726 | AE17: 367891 | AF17: 317643 | AG17: 300944 | AH17: 135146 | AI17: =AVERAGE(AI$24,AI$25) -> 534779 | AJ17: 573048 | AK17: =AVERAGE(AK$24,AK$25) -> 803303.5 | AL17: 151104 | AM17: 620440 | AN17: 210949 | AO17: 128620 | AP17: =AVERAGE(AP$24,AP$25) -> 1646735 | AQ17: 797862.5 | AR17: 609319 | AS17: 221027 | AT17: 290383 | AU17: 390245 | AV17: =AVERAGE(AV$24,AV$25) -> 1910169 | AW17: 558443 | AX17: =AVERAGE(AX$24,AX$25) -> 445736 | AY17: 161070 | AZ17: =AVERAGE(AZ$22:AZ$26) -> 714273.6 | BA17: 378433 | BB17: =AVERAGE(BB$24,BB$25) -> 797570 | BC17: 496221 | BD17: =AVERAGE(BD$20,BD$21,BD$22,BD$23,BD$24,BD$25) -> 647090.6667 | BE17: 381712 | BF17: 161625 | BG17: =AVERAGE(BG$19,BG$20,BG$21,BG$22,BG$23,BG$24,BG$25) -> 521918.1429 | BH17: =AVERAGE(BH$24,BH$25) -> 1070478.5 | BI17: 1644930.5 | BJ17: 524145 | BK17: 332062 | BL17: 168197 | BM17: =AVERAGE(BM$24,BM$25) -> 2264111.5 | BN17: 169743 | BO17: 213490 | BP17: 215344 | BQ17: =AVERAGE(BQ$24,BQ$25) -> 2612047.5 | BR17: 432063.5 | BS17: 788389.5 | BT17: 321731 | BU17: =AVERAGE(BU$24,BU$25) -> 1089302 | BV17: 240928 | BW17: 693515 | BX17: 217685 | BY17: 256641 | BZ17: 250161 | CA17: 578294 | CB17: =AVERAGE(CB$24,CB$25) -> 510705.5 | CC17: 548327 | CD17: =AVERAGE(CD$24,CD$25) -> 2005212.5 | CE17: 212023 | CF17: 155077 | CG17: 154490 | CH17: =AVERAGE(CH$24,CH$25) -> 1708891.5 | CI17: 184741 | CJ17: 122205 | CK17: 193391 | CL17: 144927 | CM17: 299943 | CN17: 280303 | CO17: 283910 | CP17: =AVERAGE(CP$24,CP$25) -> 1108360.5 | CQ17: 241332 | CR17: =AVERAGE(CR$24,CR$25) -> 710349.5 | CS17: 164031 | CT17: 227948 | CU17: 331817 | CV17: 356302 | CW17: 208856 | CX17: 295444 | CY17: 111967 | CZ17: 370972 | DA17: 238410 | DB17: =AVERAGE(DB$24,DB$25) -> 894104 | DC17: 320813 | DD17: 331149
A18: 2013/14 | B18: List Size | C18: 252445 | D18: 267673 | E18: 112624 | F18: 964030 | G18: 1036421.5 | H18: 547856 | I18: 1309939.5 | J18: 1479148.5 | K18: 169322 | L18: 172202 | M18: 297379 | N18: 639039.5 | O18: 303478 | P18: =AVERAGE(P$24,P$25,P$23,P$22) -> 1008548.25 | Q18: 564985.6667 | R18: 196806 | S18: 215629 | T18: 891352 | U18: 133137 | V18: 180674 | W18: 775232.5 | X18: 176023 | Y18: 555798.5 | Z18: 1023155 | AA18: 1051679.5 | AB18: 1203030.25 | AC18: 310824 | AD18: 777935 | AE18: 371608 | AF18: 321461 | AG18: 300957 | AH18: 136351 | AI18: 534779 | AJ18: 577680 | AK18: 803303.5 | AL18: 150650 | AM18: 625876 | AN18: 207390 | AO18: 129007 | AP18: 1646735 | AQ18: 797862.5 | AR18: 616457 | AS18: 223918 | AT18: 288557 | AU18: 393026 | AV18: 1910169 | AW18: 559148 | AX18: 445736 | AY18: 160753 | AZ18: =AVERAGE(AZ$22:AZ$26) -> 714273.6 | BA18: 376768 | BB18: 797570 | BC18: 500087 | BD18: =AVERAGE(BD$20,BD$21,BD$22,BD$23,BD$24,BD$25) -> 647090.6667 | BE18: 377179 | BF18: 160751 | BG18: =AVERAGE(BG$19,BG$20,BG$21,BG$22,BG$23,BG$24,BG$25) -> 521918.1429 | BH18: 1070478.5 | BI18: 1644930.5 | BJ18: 520127 | BK18: 330971 | BL18: 168167 | BM18: 2264111.5 | BN18: 169997 | BO18: 203167 | BP18: 215788 | BQ18: 2612047.5 | BR18: 432063.5 | BS18: 788389.5 | BT18: 321140 | BU18: 1089302 | BV18: 242985 | BW18: 700541 | BX18: 218672 | BY18: 257809 | BZ18: 253783 | CA18: 583890 | CB18: 510705.5 | CC18: 551656 | CD18: 2005212.5 | CE18: 212615 | CF18: 154921 | CG18: 154613 | CH18: 1708891.5 | CI18: 184595 | CJ18: 122391 | CK18: 194012 | CL18: 145234 | CM18: 301320 | CN18: 274102 | CO18: 283458 | CP18: 1108360.5 | CQ18: 239708 | CR18: 710349.5 | CS18: 166018 | CT18: 236910 | CU18: 346945 | CV18: 358187 | CW18: 211260 | CX18: 295355 | CY18: 111946 | CZ18: 372273 | DA18: 240618 | DB18: 894104 | DC18: 320883 | DD18: 332309
A19: 2014/15 | B19: List Size | C19: 250893 | D19: 270598 | E19: 113570 | F19: 964030 | G19: 1036421.5 | H19: 547856 | I19: 1309939.5 | J19: 1479148.5 | K19: 170216 | L19: 171786 | M19: 299958 | N19: 639039.5 | O19: 305398 | P19: =AVERAGE(P$24,P$25,P$23,P$22) -> 1008548.25 | Q19: 564985.6667 | R19: 198094 | S19: 217058 | T19: 910310 | U19: 131343 | V19: 182037 | W19: 775232.5 | X19: 177605 | Y19: 555798.5 | Z19: 1023155 | AA19: 1051679.5 | AB19: 1203030.25 | AC19: 312250 | AD19: 783543 | AE19: 373091 | AF19: 322450 | AG19: 301715 | AH19: 137303 | AI19: 534779 | AJ19: 583155 | AK19: 803303.5 | AL19: 150710 | AM19: 632423 | AN19: 210337 | AO19: 127279 | AP19: 1646735 | AQ19: 797862.5 | AR19: 624452 | AS19: 223939 | AT19: 290393 | AU19: 396958 | AV19: 1910169 | AW19: 553146 | AX19: 445736 | AY19: 161006 | AZ19: 714273.6 | BA19: 381461 | BB19: 797570 | BC19: 504414 | BD19: =AVERAGE(BD$20,BD$21,BD$22,BD$23,BD$24,BD$25) -> 647090.6667 | BE19: 380042 | BF19: 159155 | BG19: 504757 | BH19: 1070478.5 | BI19: 1644930.5 | BJ19: 518919 | BK19: 336767 | BL19: 168792 | BM19: 2264111.5 | BN19: 170261 | BO19: 215433 | BP19: 216229 | BQ19: 2612047.5 | BR19: 432063.5 | BS19: 788389.5 | BT19: 322094 | BU19: 1089302 | BV19: 245230 | BW19: 711075 | BX19: 218666 | BY19: 258688 | BZ19: 258037 | CA19: 586399 | CB19: 510705.5 | CC19: 556723 | CD19: 2005212.5 | CE19: 214085 | CF19: 147634 | CG19: 154177 | CH19: 1708891.5 | CI19: 184896 | CJ19: 123071 | CK19: 190541 | CL19: 145568 | CM19: 303259 | CN19: 283893 | CO19: 283436 | CP19: 1108360.5 | CQ19: 242755 | CR19: 710349.5 | CS19: 168576 | CT19: 237854 | CU19: 351090 | CV19: 361025 | CW19: 212955 | CX19: 298767 | CY19: 112122 | CZ19: 375234 | DA19: 243102 | DB19: 894104 | DC19: 322337 | DD19: 333087
A20: 2015/16 | B20: List Size | C20: 245925 | D20: 274268 | E20: 110758 | F20: 964030 | G20: 1036421.5 | H20: 547856 | I20: 1309939.5 | J20: 1479148.5 | K20: 172036 | L20: 170926 | M20: 302844 | N20: 639039.5 | O20: 298651 | P20: =AVERAGE(P$24,P$25,P$23,P$22) -> 1008548.25 | Q20: 564985.6667 | R20: 200344 | S20: 218499 | T20: 933265 | U20: 129862 | V20: 183676 | W20: 775232.5 | X20: 179785 | Y20: 555798.5 | Z20: 1023155 | AA20: 1051679.5 | AB20: 1203030.25 | AC20: 314837 | AD20: 769029 | AE20: 372055 | AF20: 322268 | AG20: 299715 | AH20: 138937 | AI20: 534779 | AJ20: 574190 | AK20: 803303.5 | AL20: 147536 | AM20: 634015 | AN20: 203674 | AO20: 125272 | AP20: 1646735 | AQ20: 797862.5 | AR20: 633456 | AS20: 224471 | AT20: 291046 | AU20: 400880 | AV20: 1910169 | AW20: 557227 | AX20: 445736 | AY20: 159443 | AZ20: 714273.6 | BA20: 390194 | BB20: 797570 | BC20: 511683 | BD20: 604675 | BE20: 384666 | BF20: 335262 | BG20: 506678 | BH20: 1070478.5 | BI20: 1644930.5 | BJ20: 291616 | BK20: 342183 | BL20: 166816 | BM20: 2264111.5 | BN20: 171905 | BO20: 216199 | BP20: 217000 | BQ20: 2612047.5 | BR20: 432063.5 | BS20: 788389.5 | BT20: 322499 | BU20: 1089302 | BV20: 249227 | BW20: 698246 | BX20: 217059 | BY20: 257949 | BZ20: 261184 | CA20: 582750 | CB20: 510705.5 | CC20: 555403 | CD20: 2005212.5 | CE20: 216951 | CF20: 148546 | CG20: 154936 | CH20: 1708891.5 | CI20: 185603 | CJ20: 123842 | CK20: 192030 | CL20: 146911 | CM20: 299757 | CN20: 281067 | CO20: 273642 | CP20: 1108360.5 | CQ20: 240366 | CR20: 710349.5 | CS20: 171496 | CT20: 238397 | CU20: 346863 | CV20: 364553 | CW20: 201299 | CX20: 304900 | CY20: 106041 | CZ20: 378609 | DA20: 246145 | DB20: 894104 | DC20: 322105 | DD20: 329238
A21: 2016/17 | B21: List Size | C21: 261094 | D21: 276521 | E21: 119924 | F21: 964030 | G21: 1036421.5 | H21: 547856 | I21: 1309939.5 | J21: 1479148.5 | K21: 173797 | L21: 172699 | M21: 306776 | N21: 639039.5 | O21: 302746 | P21: =AVERAGE(P$24,P$25,P$23,P$22) -> 1008548.25 | Q21: 564985.6667 | R21: 202424 | S21: 219695 | T21: 950340 | U21: 132230 | V21: 184576 | W21: 775232.5 | X21: 181931 | Y21: 555798.5 | Z21: 1023155 | AA21: 1051679.5 | AB21: 1203030.25 | AC21: 317514 | AD21: 795159 | AE21: 378849 | AF21: 327139 | AG21: 305783 | AH21: 144283 | AI21: 534779 | AJ21: 593104 | AK21: 803303.5 | AL21: 151112 | AM21: 637555 | AN21: 210130 | AO21: 130440 | AP21: 1646735 | AQ21: 797862.5 | AR21: 643881 | AS21: 230919 | AT21: 308670 | AU21: 404021 | AV21: 1910169 | AW21: 568682 | AX21: 445736 | AY21: 163441 | AZ21: 714273.6 | BA21: 402296 | BB21: 797570 | BC21: 522899 | BD21: 628281 | BE21: 389222 | BF21: 360784 | BG21: 520882 | BH21: 1070478.5 | BI21: 1644930.5 | BJ21: 323146 | BK21: 350664 | BL21: 171732 | BM21: 2264111.5 | BN21: 172933 | BO21: 217584 | BP21: 218237 | BQ21: 2612047.5 | BR21: 432063.5 | BS21: 788389.5 | BT21: 323439 | BU21: 1089302 | BV21: 252720 | BW21: 730063 | BX21: 239641 | BY21: 266090 | BZ21: 267283 | CA21: 596996 | CB21: 510705.5 | CC21: 569279 | CD21: 2005212.5 | CE21: 225141 | CF21: 151680 | CG21: 156405 | CH21: 1708891.5 | CI21: 189126 | CJ21: 124155 | CK21: 196435 | CL21: 148000 | CM21: 309712 | CN21: 287993 | CO21: 284122 | CP21: 1108360.5 | CQ21: 246321 | CR21: 710349.5 | CS21: 173932 | CT21: 240324 | CU21: 363643 | CV21: 369362 | CW21: 203124 | CX21: 308854 | CY21: 113228 | CZ21: 385790 | DA21: 248798 | DB21: 894104 | DC21: 325836 | DD21: 343176
A22: 2017/18 | B22: List Size | C22: 260302 | D22: 278089 | E22: 112482 | F22: 964030 | G22: 1036421.5 | H22: 534628 | I22: 1256791 | J22: 1479148.5 | K22: 174986 | L22: 173257 | M22: 309149 | N22: 639039.5 | O22: 288378 | P22: 941670 | Q22: 564985.6667 | R22: 173163 | S22: 218398 | T22: 890848 | U22: 133160 | V22: 171081 | W22: 775232.5 | X22: 183432 | Y22: 555798.5 | Z22: 1023155 | AA22: 1035788 | AB22: 1137149 | AC22: 308458 | AD22: 787661 | AE22: 381783 | AF22: 328965 | AG22: 304028 | AH22: 141923 | AI22: 534779 | AJ22: 587536 | AK22: 803303.5 | AL22: 170836 | AM22: 594207 | AN22: 209377 | AO22: 131206 | AP22: 1646735 | AQ22: 797862.5 | AR22: 593735 | AS22: 233290 | AT22: 278585 | AU22: 407512 | AV22: 1910169 | AW22: 310734 | AX22: 445736 | AY22: 165042 | AZ22: 875679 | BA22: 407159 | BB22: 797570 | BC22: 515138 | BD22: 641098 | BE22: 384088 | BF22: 345853 | BG22: 523969 | BH22: 1070478.5 | BI22: 1644930.5 | BJ22: 319712 | BK22: 301264 | BL22: 167070 | BM22: 2264111.5 | BN22: 178861 | BO22: 214613 | BP22: 213243 | BQ22: 2612047.5 | BR22: 432063.5 | BS22: 788389.5 | BT22: 320355 | BU22: 1089302 | BV22: 250164 | BW22: 743487 | BX22: 225241 | BY22: 260990 | BZ22: 272631 | CA22: 593094 | CB22: 510705.5 | CC22: 559954 | CD22: 2005212.5 | CE22: 217850 | CF22: 155072 | CG22: 154235 | CH22: 1708891.5 | CI22: 184168 | CJ22: 118139 | CK22: 192527 | CL22: 149092 | CM22: 307313 | CN22: 280513 | CO22: 276494 | CP22: 1108360.5 | CQ22: 235234 | CR22: 710349.5 | CS22: 160356 | CT22: 241640 | CU22: 357038 | CV22: 357999 | CW22: 208956 | CX22: 307389 | CY22: 111512 | CZ22: 392564 | DA22: 250598 | DB22: 894104 | DC22: 324153 | DD22: 334316
A23: 2018/19 | B23: List Size | C23: 262267 | D23: 281597 | E23: 113586 | F23: 964030 | G23: 1036421.5 | H23: 548479 | I23: 1323405 | J23: 1479148.5 | K23: 184069 | L23: 174194 | M23: 312873 | N23: 639039.5 | O23: 308688 | P23: 1023807 | Q23: 564963 | R23: 205761 | S23: 221736 | T23: 983597 | U23: 133862 | V23: 185709 | W23: 775232.5 | X23: 185165 | Y23: 555798.5 | Z23: 1023155 | AA23: 1048741 | AB23: 1180190 | AC23: 323041 | AD23: 804344 | AE23: 401627 | AF23: 332686 | AG23: 306139 | AH23: 143835 | AI23: 534779 | AJ23: 602852 | AK23: 803303.5 | AL23: 178186 | AM23: 646029 | AN23: 230094 | AO23: 132554 | AP23: 1646735 | AQ23: 797862.5 | AR23: 652574 | AS23: 236012 | AT23: 301134 | AU23: 411033 | AV23: 1910169 | AW23: 323308 | AX23: 445736 | AY23: 166455 | AZ23: 889368 | BA23: 416559 | BB23: 797570 | BC23: 541501 | BD23: 657102 | BE23: 394215 | BF23: 351254 | BG23: 530815 | BH23: 1070478.5 | BI23: 1644930.5 | BJ23: 325298 | BK23: 343849 | BL23: 170074 | BM23: 2264111.5 | BN23: 180334 | BO23: 218104 | BP23: 220604 | BQ23: 2612047.5 | BR23: 432063.5 | BS23: 788389.5 | BT23: 326706 | BU23: 1089302 | BV23: 258307 | BW23: 759020 | BX23: 232568 | BY23: 264343 | BZ23: 278949 | CA23: 608195 | CB23: 510705.5 | CC23: 580564 | CD23: 2005212.5 | CE23: 218829 | CF23: 155890 | CG23: 157469 | CH23: 1708891.5 | CI23: 189414 | CJ23: 121191 | CK23: 198013 | CL23: 148963 | CM23: 314199 | CN23: 294362 | CO23: 284010 | CP23: 1108360.5 | CQ23: 249334 | CR23: 710349.5 | CS23: 172955 | CT23: 243471 | CU23: 361706 | CV23: 377984 | CW23: 219463 | CX23: 317653 | CY23: 116745 | CZ23: 398517 | DA23: 253030 | DB23: 894104 | DC23: 330540 | DD23: 337220
A24: 2019/20 | B24: List Size | C24: 263024 | D24: 284079 | E24: 119431 | F24: 960204 | G24: 1022816 | H24: 550786 | I24: 1320733 | J24: 1468171 | K24: 178557 | L24: 174729 | M24: 316292 | N24: 632500 | O24: 326136 | P24: 1026209 | Q24: 556620 | R24: 207043 | S24: 222097 | T24: 992901 | U24: 131361 | V24: 185973 | W24: 763913 | X24: 178722 | Y24: 553033 | Z24: 1017795 | AA24: 1055028 | AB24: 1238031 | AC24: 325592 | AD24: 805387 | AE24: 384410 | AF24: 336911 | AG24: 307138 | AH24: 145489 | AI24: 506882 | AJ24: 592033 | AK24: 802577 | AL24: 179326 | AM24: 647085 | AN24: 212497 | AO24: 133419 | AP24: 1621326 | AQ24: 788313 | AR24: 631822 | AS24: 238421 | AT24: 301019 | AU24: 411170 | AV24: 1883211 | AW24: 585470 | AX24: 443683 | AY24: 167954 | AZ24: 890337 | BA24: 423324 | BB24: 792787 | BC24: 550914 | BD24: 673643 | BE24: 397994 | BF24: 341559 | BG24: 534061 | BH24: 1066974 | BI24: 1593145 | BJ24: 302437 | BK24: 359685 | BL24: 163302 | BM24: 2243837 | BN24: 181658 | BO24: 218051 | BP24: 216211 | BQ24: 2573851 | BR24: 430912 | BS24: 786205 | BT24: 295770 | BU24: 1074529 | BV24: 249649 | BW24: 760823 | BX24: 214569 | BY24: 265018 | BZ24: 265975 | CA24: 605688 | CB24: 508445 | CC24: 583921 | CD24: 1992589 | CE24: 212730 | CF24: 156690 | CG24: 158561 | CH24: 1707648 | CI24: 187700 | CJ24: 125658 | CK24: 190792 | CL24: 150128 | CM24: 314930 | CN24: 292884 | CO24: 280008 | CP24: 1103582 | CQ24: 251124 | CR24: 709497 | CS24: 181880 | CT24: 238485 | CU24: 361997 | CV24: 374729 | CW24: 220742 | CX24: 314435 | CY24: 114102 | CZ24: 401506 | DA24: 257456 | DB24: 877194 | DC24: 327122 | DD24: 329942
A25: 2020/21 | B25: List Size | C25: 264271 | D25: 284070 | E25: 120256 | F25: 967856 | G25: 1050027 | H25: 557531 | I25: 1338829 | J25: 1490126 | K25: 179552 | L25: 174970 | M25: 317177 | N25: 645579 | O25: 324456 | P25: 1042507 | Q25: 573374 | R25: 207544 | S25: 222035 | T25: 1005341 | U25: 135444 | V25: 185432 | W25: 786552 | X25: 187002 | Y25: 558564 | Z25: 1028515 | AA25: 1067161 | AB25: 1256751 | AC25: 326111 | AD25: 811484 | AE25: 391192 | AF25: 340047 | AG25: 307202 | AH25: 146316 | AI25: 562676 | AJ25: 606398 | AK25: 804030 | AL25: 180451 | AM25: 666338 | AN25: 216755 | AO25: 134140 | AP25: 1672144 | AQ25: 807412 | AR25: 662255 | AS25: 239865 | AT25: 303407 | AU25: 415705 | AV25: 1937127 | AW25: 592376 | AX25: 447789 | AY25: 168625 | AZ25: 897886 | BA25: 421899 | BB25: 802353 | BC25: 554389 | BD25: 677745 | BE25: 400137 | BF25: 351442 | BG25: 532265 | BH25: 1073983 | BI25: 1696716 | BJ25: 327111 | BK25: 361390 | BL25: 170480 | BM25: 2284386 | BN25: 182542 | BO25: 217183 | BP25: 223243 | BQ25: 2650244 | BR25: 433215 | BS25: 790574 | BT25: 331113 | BU25: 1104075 | BV25: 260852 | BW25: 779546 | BX25: 230084 | BY25: 264960 | BZ25: 289607 | CA25: 614259 | CB25: 512966 | CC25: 588379 | CD25: 2017836 | CE25: 216097 | CF25: 156669 | CG25: 158453 | CH25: 1710135 | CI25: 189766 | CJ25: 125662 | CK25: 199421 | CL25: 150776 | CM25: 317863 | CN25: 296257 | CO25: 284323 | CP25: 1113139 | CQ25: 251732 | CR25: 711202 | CS25: 182624 | CT25: 243834 | CU25: 365594 | CV25: 385295 | CW25: 220725 | CX25: 321560 | CY25: 114019 | CZ25: 404145 | DA25: 259222 | DB25: 911014 | DC25: 334915 | DD25: 338175
B26: Register | C26: 8555 | D26: 5299 | E26: 3243 | F26: 16691 | G26: 16549 | H26: 6895 | I26: 22322 | J26: 28901 | K26: 3895 | L26: 6679 | M26: 7240 | N26: 13799 | O26: 4861 | P26: 18953 | Q26: 7648 | R26: 4489 | S26: 5125 | T26: 17507 | U26: 3620 | V26: 4336 | W26: 15903 | X26: 4341 | Y26: 17569 | Z26: 16948 | AA26: 23851 | AB26: 29215 | AC26: 9205 | AD26: 17710 | AE26: 10058 | AF26: 6124 | AG26: 7834 | AH26: 2631 | AI26: 13290 | AJ26: 9563 | AK26: 10306 | AL26: 5296 | AM26: 12366 | AN26: 4554 | AO26: 3878 | AP26: 32960 | AQ26: 17394 | AR26: 9436 | AS26: 6108 | AT26: 8650 | AU26: 7566 | AV26: 39730 | AW26: 14095 | AX26: 9412 | AY26: 6093 | AZ26: 18098 | BA26: 5800 | BB26: 18486 | BC26: 17004 | BD26: 13332 | BE26: 6461 | BF26: 8089 | BG26: 12998 | BH26: 24824 | BI26: 19283 | BJ26: 8224 | BK26: 7971 | BL26: 4727 | BM26: 25092 | BN26: 4525 | BO26: 5638 | BP26: 5841 | BQ26: 25171 | BR26: 9473 | BS26: 15328 | BT26: 9311 | BU26: 22161 | BV26: 6108 | BW26: 10796 | BX26: 4990 | BY26: 7938 | BZ26: 7407 | CA26: 12751 | CB26: 10221 | CC26: 13553 | CD26: 26519 | CE26: 4120 | CF26: 4699 | CG26: 5831 | CH26: 18849 | CI26: 4101 | CJ26: 2737 | CK26: 5953 | CL26: 2820 | CM26: 7416 | CN26: 7989 | CO26: 9984 | CP26: 14325 | CQ26: 7541 | CR26: 21691 | CS26: 3430 | CT26: 4911 | CU26: 6228 | CV26: 10823 | CW26: 4062 | CX26: 5318 | CY26: 2674 | CZ26: 7507 | DA26: 5960 | DB26: 16593 | DC26: 8955 | DD26: 9107
C27: 1 | D27: 2 | E27: 3 | F27: 4 | G27: 5 | H27: 6 | I27: 7 | J27: 8 | K27: 9 | L27: 10 | M27: 11 | N27: 12 | O27: 13 | P27: 14 | Q27: 15 | R27: 16 | S27: 17 | T27: 18 | U27: 19 | V27: 20 | W27: 21 | X27: 22 | Y27: 23 | Z27: 24 | AA27: 25 | AB27: 26 | AC27: 27 | AD27: 28 | AE27: 29 | AF27: 30 | AG27: 31 | AH27: 32 | AI27: 33 | AJ27: 34 | AK27: 35 | AL27: 36 | AM27: 37 | AN27: 38 | AO27: 39 | AP27: 40 | AQ27: 41 | AR27: 42 | AS27: 43 | AT27: 44 | AU27: 45 | AV27: 46 | AW27: 47 | AX27: 48 | AY27: 49 | AZ27: 50 | BA27: 51 | BB27: 52 | BC27: 53 | BD27: 54 | BE27: 55 | BF27: 56 | BG27: 57 | BH27: 58 | BI27: 59 | BJ27: 60 | BK27: 61 | BL27: 62 | BM27: 63 | BN27: 64 | BO27: 65 | BP27: 66 | BQ27: 67 | BR27: 68 | BS27: 69 | BT27: 70 | BU27: 71 | BV27: 72 | BW27: 73 | BX27: 74 | BY27: 75 | BZ27: 76 | CA27: 77 | CB27: 78 | CC27: 79 | CD27: 80 | CE27: 81 | CF27: 82 | CG27: 83 | CH27: 84 | CI27: 85 | CJ27: 86 | CK27: 87 | CL27: 88 | CM27: 89 | CN27: 90 | CO27: 91 | CP27: 92 | CQ27: 93 | CR27: 94 | CS27: 95 | CT27: 96 | CU27: 97 | CV27: 98 | CW27: 99 | CX27: 100 | CY27: 101 | CZ27: 102 | DA27: 103 | DB27: 104 | DC27: 105 | DD27: 106
A28: 2012/13 | B28: Register | C28: 7705 | D28: 4926 | E28: 2721 | F28: =AVERAGE($F$35,$F$26) -> 16693 | G28: =AVERAGE(G$35,G$26) -> 16238.5 | H28: =AVERAGE(H$35,H$26,H$34,H$33) -> 6746 | I28: 21918.5 | J28: =AVERAGE(J$35,J$26) -> 28949 | K28: 3640 | L28: 5366 | M28: 6455 | N28: =AVERAGE(N$35,N$26) -> 13734 | O28: 3737 | P28: =AVERAGE(P$35,P$26,P$34,P$33) -> 18148 | Q28: =AVERAGE(Q$35,Q$26,Q$34) -> 7584.333333 | R28: 3721 | S28: 4082 | T28: 13977 | U28: 2866 | V28: 3644 | W28: =AVERAGE(W$35,W$26) -> 15660.5 | X28: 3567 | Y28: =AVERAGE(Y$35,Y$26) -> 17433 | Z28: 16799 | AA28: =AVERAGE(AA$35,AA$26,AA$34,AA$33) -> 23496.75 | AB28: 27349.75 | AC28: 8005 | AD28: 13573 | AE28: 8777 | AF28: 4973 | AG28: 6288 | AH28: 2201 | AI28: =AVERAGE(AI$35,AI$26) -> 12613 | AJ28: 8494 | AK28: =AVERAGE(AK$35,AK$26) -> 10323 | AL28: 3639 | AM28: 10199 | AN28: 4116 | AO28: 3210 | AP28: =AVERAGE(AP$35,AP$26) -> 32155.5 | AQ28: 17267 | AR28: 7668 | AS28: 5098 | AT28: 7076 | AU28: 6295 | AV28: =AVERAGE(AV$35,AV$26) -> 39232.5 | AW28: 10732 | AX28: =AVERAGE(AX$35,AX$26) -> 9445.5 | AY28: 5590 | BA28: 5145 | BB28: =AVERAGE(BB$35,BB$26) -> 18481.5 | BC28: 14059 | BD28: =AVERAGE(BD$31,BD$32,BD$33,BD$34,BD$35,BD$26) -> 12699 | BE28: 5142 | BF28: 3490 | BG28: =AVERAGE(BG$30,BG$31,BG$32,BG$33,BG$34,BG$35,BG$26) -> 12627.14286 | BH28: =AVERAGE(BH$35,BH$26) -> 24757 | BI28: 19342 | BJ28: 11325 | BK28: 7094 | BL28: 3669 | BM28: =AVERAGE(BM$35,BM$26) -> 25233 | BN28: 3333 | BO28: 4393 | BP28: 4953 | BQ28: =AVERAGE(BQ$35,BQ$26) -> 25190.5 | BR28: 9511 | BS28: 15338.5 | BT28: 7873 | BU28: =AVERAGE(BU$35,BU$26) -> 21930.5 | BV28: 5395 | BW28: 8411 | BX28: 3908 | BY28: 6723 | BZ28: 6985 | CA28: 11240 | CB28: =AVERAGE(CB$35,CB$26) -> 10139 | CC28: 10507 | CD28: =AVERAGE(CD$35,CD$26) -> 26361 | CE28: 3550 | CF28: 4422 | CG28: 5492 | CH28: =AVERAGE(CH$35,CH$26) -> 18879 | CI28: 3399 | CJ28: 2430 | CK28: 5849 | CL28: 1949 | CM28: 6423 | CN28: 6504 | CO28: 8985 | CP28: =AVERAGE(CP$35,CP$26) -> 14309 | CQ28: 6154 | CR28: =AVERAGE(CR$35,CR$26) -> 21600.5 | CS28: 2859 | CT28: 3860 | CU28: 5526 | CV28: 9753 | CW28: 3718 | CX28: 4732 | CY28: 2379 | CZ28: 6087 | DA28: 4539 | DB28: =AVERAGE(DB$35,DB$26) -> 16372.5 | DC28: 7107 | DD28: 7814
A29: 2013/14 | B29: Register | C29: 7899 | D29: 5023 | E29: 2787 | F29: 16693 | G29: 16238.5 | H29: 6746 | I29: 21918.5 | J29: 28949 | K29: 3679 | L29: 5784 | M29: 6644 | N29: 13734 | O29: 3820 | P29: =AVERAGE(P$35,P$26,P$34,P$33) -> 18148 | Q29: 7584.333333 | R29: 4046 | S29: 4345 | T29: 14420 | U29: 2935 | V29: 3742 | W29: 15660.5 | X29: 3863 | Y29: 17433 | Z29: 16799 | AA29: 23496.75 | AB29: 27349.75 | AC29: 8130 | AD29: 14120 | AE29: 8994 | AF29: 5236 | AG29: 6556 | AH29: 2318 | AI29: 12613 | AJ29: 8680 | AK29: 10323 | AL29: 3790 | AM29: 10539 | AN29: 4161 | AO29: 3284 | AP29: 32155.5 | AQ29: 17267 | AR29: 7735 | AS29: 5154 | AT29: 7350 | AU29: 6522 | AV29: 39232.5 | AW29: 11188 | AX29: 9445.5 | AY29: 5558 | BA29: 5341 | BB29: 18481.5 | BC29: 14226 | BD29: =AVERAGE(BD$31,BD$32,BD$33,BD$34,BD$35,BD$26) -> 12699 | BE29: 5408 | BF29: 3604 | BG29: =AVERAGE(BG$30,BG$31,BG$32,BG$33,BG$34,BG$35,BG$26) -> 12627.14286 | BH29: 24757 | BI29: 19342 | BJ29: 11571 | BK29: 7343 | BL29: 3775 | BM29: 25233 | BN29: 3474 | BO29: 4314 | BP29: 5164 | BQ29: 25190.5 | BR29: 9511 | BS29: 15338.5 | BT29: 8056 | BU29: 21930.5 | BV29: 5440 | BW29: 8780 | BX29: 4123 | BY29: 6935 | BZ29: 7019 | CA29: 11514 | CB29: 10139 | CC29: 11029 | CD29: 26361 | CE29: 3644 | CF29: 4429 | CG29: 5604 | CH29: 18879 | CI29: 3560 | CJ29: 2479 | CK29: 5954 | CL29: 2034 | CM29: 6605 | CN29: 6609 | CO29: 9146 | CP29: 14309 | CQ29: 6303 | CR29: 21600.5 | CS29: 2989 | CT29: 4317 | CU29: 5598 | CV29: 10072 | CW29: 3830 | CX29: 4858 | CY29: 2394 | CZ29: 6293 | DA29: 4674 | DB29: 16372.5 | DC29: 7239 | DD29: 7643
A30: 2014/15 | B30: Register | C30: 7941 | D30: 5167 | E30: 2837 | F30: 16693 | G30: 16238.5 | H30: 6746 | I30: 21918.5 | J30: 28949 | K30: 3889 | L30: 6241 | M30: 6714 | N30: 13734 | O30: 3916 | P30: =AVERAGE(P$35,P$26,P$34,P$33) -> 18148 | Q30: 7584.333333 | R30: 4235 | S30: 4575 | T30: 14999 | U30: 2964 | V30: 3903 | W30: 15660.5 | X30: 4001 | Y30: 17433 | Z30: 16799 | AA30: 23496.75 | AB30: 27349.75 | AC30: 8237 | AD30: 14593 | AE30: 9125 | AF30: 5459 | AG30: 6782 | AH30: 2291 | AI30: 12613 | AJ30: 8852 | AK30: 10323 | AL30: 4001 | AM30: 10848 | AN30: 4287 | AO30: 3280 | AP30: 32155.5 | AQ30: 17267 | AR30: 7938 | AS30: 5276 | AT30: 7616 | AU30: 6698 | AV30: 39232.5 | AW30: 11481 | AX30: 9445.5 | AY30: 5668 | BA30: 5473 | BB30: 18481.5 | BC30: 14551 | BD30: =AVERAGE(BD$31,BD$32,BD$33,BD$34,BD$35,BD$26) -> 12699 | BE30: 5701 | BF30: 3611 | BG30: 12062 | BH30: 24757 | BI30: 19342 | BJ30: 11784 | BK30: 7561 | BL30: 3881 | BM30: 25233 | BN30: 3600 | BO30: 4702 | BP30: 5295 | BQ30: 25190.5 | BR30: 9511 | BS30: 15338.5 | BT30: 8201 | BU30: 21930.5 | BV30: 5445 | BW30: 9161 | BX30: 4269 | BY30: 7092 | BZ30: 6978 | CA30: 11775 | CB30: 10139 | CC30: 11351 | CD30: 26361 | CE30: 3729 | CF30: 4149 | CG30: 5736 | CH30: 18879 | CI30: 3791 | CJ30: 2477 | CK30: 5750 | CL30: 2165 | CM30: 6711 | CN30: 7026 | CO30: 9128 | CP30: 14309 | CQ30: 6500 | CR30: 21600.5 | CS30: 3089 | CT30: 4468 | CU30: 5801 | CV30: 10207 | CW30: 3833 | CX30: 5060 | CY30: 2443 | CZ30: 6612 | DA30: 4870 | DB30: 16372.5 | DC30: 7462 | DD30: 8003
A31: 2015/16 | B31: Register | C31: 7742 | D31: 5308 | E31: 2809 | F31: 16693 | G31: 16238.5 | H31: 6746 | I31: 21918.5 | J31: 28949 | K31: 3860 | L31: 6323 | M31: 6820 | N31: 13734 | O31: 4002 | P31: =AVERAGE(P$35,P$26,P$34,P$33) -> 18148 | Q31: 7584.333333 | R31: 4256 | S31: 4807 | T31: 15612 | U31: 2960 | V31: 4009 | W31: 15660.5 | X31: 4172 | Y31: 17433 | Z31: 16799 | AA31: 23496.75 | AB31: 27349.75 | AC31: 8444 | AD31: 14785 | AE31: 9273 | AF31: 5591 | AG31: 6981 | AH31: 2340 | AI31: 12613 | AJ31: 8890 | AK31: 10323 | AL31: 4111 | AM31: 11020 | AN31: 4162 | AO31: 3275 | AP31: 32155.5 | AQ31: 17267 | AR31: 8271 | AS31: 5394 | AT31: 7733 | AU31: 6907 | AV31: 39232.5 | AW31: 11829 | AX31: 9445.5 | AY31: 5650 | BA31: 5528 | BB31: 18481.5 | BC31: 14967 | BD31: 11703 | BE31: 5949 | BF31: 7245 | BG31: 12159 | BH31: 24757 | BI31: 19342 | BJ31: 6993 | BK31: 7665 | BL31: 4025 | BM31: 25233 | BN31: 3732 | BO31: 4878 | BP31: 5424 | BQ31: 25190.5 | BR31: 9511 | BS31: 15338.5 | BT31: 8431 | BU31: 21930.5 | BV31: 5606 | BW31: 9381 | BX31: 4352 | BY31: 7304 | BZ31: 6990 | CA31: 11989 | CB31: 10139 | CC31: 11808 | CD31: 26361 | CE31: 3828 | CF31: 4253 | CG31: 5773 | CH31: 18879 | CI31: 3957 | CJ31: 2565 | CK31: 5764 | CL31: 2304 | CM31: 6751 | CN31: 6990 | CO31: 9061 | CP31: 14309 | CQ31: 6572 | CR31: 21600.5 | CS31: 3270 | CT31: 4523 | CU31: 5873 | CV31: 10399 | CW31: 3684 | CX31: 5263 | CY31: 2264 | CZ31: 6927 | DA31: 5071 | DB31: 16372.5 | DC31: 7831 | DD31: 8050
A32: 2016/17 | B32: Register | C32: 8254 | D32: 5320 | E32: 2959 | F32: 16693 | G32: 16238.5 | H32: 6746 | I32: 21918.5 | J32: 28949 | K32: 3936 | L32: 6438 | M32: 6916 | N32: 13734 | O32: 4232 | P32: =AVERAGE(P$35,P$26,P$34,P$33) -> 18148 | Q32: 7584.333333 | R32: 4273 | S32: 4952 | T32: 16020 | U32: 3160 | V32: 4088 | W32: 15660.5 | X32: 4281 | Y32: 17433 | Z32: 16799 | AA32: 23496.75 | AB32: 27349.75 | AC32: 8622 | AD32: 16028 | AE32: 9694 | AF32: 5710 | AG32: 7218 | AH32: 2470 | AI32: 12613 | AJ32: 9298 | AK32: 10323 | AL32: 4379 | AM32: 11375 | AN32: 4474 | AO32: 3547 | AP32: 32155.5 | AQ32: 17267 | AR32: 8687 | AS32: 5616 | AT32: 7999 | AU32: 7062 | AV32: 39232.5 | AW32: 12290 | AX32: 9445.5 | AY32: 5767 | BA32: 5581 | BB32: 18481.5 | BC32: 15771 | BD32: 12198 | BE32: 6082 | BF32: 8007 | BG32: 12608 | BH32: 24757 | BI32: 19342 | BJ32: 7811 | BK32: 7817 | BL32: 4148 | BM32: 25233 | BN32: 3892 | BO32: 5102 | BP32: 5610 | BQ32: 25190.5 | BR32: 9511 | BS32: 15338.5 | BT32: 8692 | BU32: 21930.5 | BV32: 5791 | BW32: 9897 | BX32: 4616 | BY32: 7480 | BZ32: 6987 | CA32: 12225 | CB32: 10139 | CC32: 12446 | CD32: 26361 | CE32: 3931 | CF32: 4391 | CG32: 5841 | CH32: 18879 | CI32: 4014 | CJ32: 2656 | CK32: 5960 | CL32: 2417 | CM32: 7103 | CN32: 7165 | CO32: 9496 | CP32: 14309 | CQ32: 6964 | CR32: 21600.5 | CS32: 3252 | CT32: 4693 | CU32: 6065 | CV32: 10513 | CW32: 3755 | CX32: 5363 | CY32: 2590 | CZ32: 7151 | DA32: 5308 | DB32: 16372.5 | DC32: 8248 | DD32: 8364
A33: 2017/18 | B33: Register | C33: 8475 | D33: 5341 | E33: 2887 | F33: 16693 | G33: 16238.5 | H33: 6388 | I33: 21164 | J33: 28949 | K33: 3906 | L33: 6415 | M33: 7080 | N33: 13734 | O33: 4145 | P33: 16559 | Q33: 7584.333333 | R33: 3710 | S33: 4932 | T33: 15214 | U33: 3321 | V33: 3923 | W33: 15660.5 | X33: 4314 | Y33: 17433 | Z33: 16799 | AA33: 22857 | AB33: 24890 | AC33: 8510 | AD33: 16404 | AE33: 9910 | AF33: 5803 | AG33: 7430 | AH33: 2629 | AI33: 12613 | AJ33: 9199 | AK33: 10323 | AL33: 4885 | AM33: 10757 | AN33: 4315 | AO33: 3658 | AP33: 32155.5 | AQ33: 17267 | AR33: 8264 | AS33: 5756 | AT33: 7597 | AU33: 7227 | AV33: 39232.5 | AW33: 6583 | AX33: 9445.5 | AY33: 5873 | AZ33: 17167 | BA33: 5687 | BB33: 18481.5 | BC33: 15493 | BD33: 12647 | BE33: 6041 | BF33: 7879 | BG33: 12685 | BH33: 24757 | BI33: 19342 | BJ33: 7762 | BK33: 6600 | BL33: 4251 | BM33: 25233 | BN33: 4159 | BO33: 5173 | BP33: 5588 | BQ33: 25190.5 | BR33: 9511 | BS33: 15338.5 | BT33: 8771 | BU33: 21930.5 | BV33: 5926 | BW33: 10243 | BX33: 4686 | BY33: 7639 | BZ33: 6978 | CA33: 12270 | CB33: 10139 | CC33: 12622 | CD33: 26361 | CE33: 4008 | CF33: 4781 | CG33: 5739 | CH33: 18879 | CI33: 3966 | CJ33: 2510 | CK33: 5902 | CL33: 2549 | CM33: 6997 | CN33: 7227 | CO33: 9382 | CP33: 14309 | CQ33: 6840 | CR33: 21600.5 | CS33: 3000 | CT33: 4738 | CU33: 6156 | CV33: 10288 | CW33: 3844 | CX33: 5444 | CY33: 2565 | CZ33: 7431 | DA33: 5451 | DB33: 16372.5 | DC33: 8426 | DD33: 8486
A34: 2018/19 | B34: Register | C34: 8699 | D34: 5493 | E34: 3024 | F34: 16693 | G34: 16238.5 | H34: 6812 | I34: 22179 | J34: 28949 | K34: 3890 | L34: 6504 | M34: 7190 | N34: 13734 | O34: 4389 | P34: 18554 | Q34: 7689 | R34: 4475 | S34: 5069 | T34: 17039 | U34: 3492 | V34: 4383 | W34: 15660.5 | X34: 4409 | Y34: 17433 | Z34: 16799 | AA34: 23437 | AB34: 26808 | AC34: 9197 | AD34: 17356 | AE34: 10038 | AF34: 5984 | AG34: 7740 | AH34: 2661 | AI34: 12613 | AJ34: 9584 | AK34: 10323 | AL34: 5190 | AM34: 11810 | AN34: 4421 | AO34: 3799 | AP34: 32155.5 | AQ34: 17267 | AR34: 9344 | AS34: 5969 | AT34: 8462 | AU34: 7429 | AV34: 39232.5 | AW34: 7105 | AX34: 9445.5 | AY34: 5966 | AZ34: 17797 | BA34: 5744 | BB34: 18481.5 | BC34: 16721 | BD34: 13058 | BE34: 6308 | BF34: 7984 | BG34: 12899 | BH34: 24757 | BI34: 19342 | BJ34: 8048 | BK34: 7685 | BL34: 4520 | BM34: 25233 | BN34: 4344 | BO34: 5587 | BP34: 5832 | BQ34: 25190.5 | BR34: 9511 | BS34: 15338.5 | BT34: 9149 | BU34: 21930.5 | BV34: 6098 | BW34: 10631 | BX34: 4869 | BY34: 7938 | BZ34: 7019 | CA34: 12789 | CB34: 10139 | CC34: 13527 | CD34: 26361 | CE34: 4148 | CF34: 4804 | CG34: 5898 | CH34: 18879 | CI34: 4154 | CJ34: 2627 | CK34: 6192 | CL34: 2723 | CM34: 7295 | CN34: 7820 | CO34: 9917 | CP34: 14309 | CQ34: 7552 | CR34: 21600.5 | CS34: 3449 | CT34: 4822 | CU34: 6381 | CV34: 10778 | CW34: 4007 | CX34: 5513 | CY34: 2646 | CZ34: 7541 | DA34: 5631 | DB34: 16372.5 | DC34: 8744 | DD34: 8724
A35: 2019/20 | B35: Register | C35: 8626 | D35: 5420 | E35: 3231 | F35: 16695 | G35: 15928 | H35: 6889 | I35: 22009 | J35: 28997 | K35: 3865 | L35: 6577 | M35: 7277 | N35: 13669 | O35: 4830 | P35: 18526 | Q35: 7416 | R35: 4468 | S35: 5100 | T35: 17224 | U35: 3502 | V35: 4327 | W35: 15418 | X35: 4300 | Y35: 17297 | Z35: 16650 | AA35: 23842 | AB35: 28486 | AC35: 9341 | AD35: 17666 | AE35: 10094 | AF35: 6139 | AG35: 7847 | AH35: 2664 | AI35: 11936 | AJ35: 9546 | AK35: 10340 | AL35: 5335 | AM35: 11970 | AN35: 4423 | AO35: 3856 | AP35: 31351 | AQ35: 17140 | AR35: 9135 | AS35: 6061 | AT35: 8649 | AU35: 7635 | AV35: 38735 | AW35: 13755 | AX35: 9479 | AY35: 6037 | AZ35: 18021 | BA35: 5833 | BB35: 18477 | BC35: 17177 | BD35: 13256 | BE35: 6406 | BF35: 7755 | BG35: 12979 | BH35: 24690 | BI35: 19401 | BJ35: 7525 | BK35: 7988 | BL35: 4473 | BM35: 25374 | BN35: 4463 | BO35: 5696 | BP35: 5719 | BQ35: 25210 | BR35: 9549 | BS35: 15349 | BT35: 8297 | BU35: 21700 | BV35: 5931 | BW35: 10544 | BX35: 4352 | BY35: 8007 | BZ35: 6579 | CA35: 12635 | CB35: 10057 | CC35: 13653 | CD35: 26203 | CE35: 4016 | CF35: 4697 | CG35: 5932 | CH35: 18909 | CI35: 4112 | CJ35: 2583 | CK35: 5745 | CL35: 2841 | CM35: 7324 | CN35: 7937 | CO35: 9721 | CP35: 14293 | CQ35: 7602 | CR35: 21510 | CS35: 3512 | CT35: 4778 | CU35: 6270 | CV35: 10649 | CW35: 4014 | CX35: 5235 | CY35: 2693 | CZ35: 7558 | DA35: 5860 | DB35: 16152 | DC35: 8660 | DD35: 8594
A36: 2020/21 | B36: Register | C36: 8555 | D36: 5299 | E36: 3243 | F36: 16691 | G36: 16549 | H36: 6895 | I36: 22322 | J36: 28901 | K36: 3895 | L36: 6679 | M36: 7240 | N36: 13799 | O36: 4861 | P36: 18953 | Q36: 7648 | R36: 4489 | S36: 5125 | T36: 17507 | U36: 3620 | V36: 4336 | W36: 15903 | X36: 4341 | Y36: 17569 | Z36: 16948 | AA36: 23851 | AB36: 29215 | AC36: 9205 | AD36: 17710 | AE36: 10058 | AF36: 6124 | AG36: 7834 | AH36: 2631 | AI36: 13290 | AJ36: 9563 | AK36: 10306 | AL36: 5296 | AM36: 12366 | AN36: 4554 | AO36: 3878 | AP36: 32960 | AQ36: 17394 | AR36: 9436 | AS36: 6108 | AT36: 8650 | AU36: 7566 | AV36: 39730 | AW36: 14095 | AX36: 9412 | AY36: 6093 | AZ36: 18098 | BA36: 5800 | BB36: 18486 | BC36: 17004 | BD36: 13332 | BE36: 6461 | BF36: 8089 | BG36: 12998 | BH36: 24824 | BI36: 19283 | BJ36: 8224 | BK36: 7971 | BL36: 4727 | BM36: 25092 | BN36: 4525 | BO36: 5638 | BP36: 5841 | BQ36: 25171 | BR36: 9473 | BS36: 15328 | BT36: 9311 | BU36: 22161 | BV36: 6108 | BW36: 10796 | BX36: 4990 | BY36: 7938 | BZ36: 7407 | CA36: 12751 | CB36: 10221 | CC36: 13553 | CD36: 26519 | CE36: 4120 | CF36: 4699 | CG36: 5831 | CH36: 18849 | CI36: 4101 | CJ36: 2737 | CK36: 5953 | CL36: 2820 | CM36: 7416 | CN36: 7989 | CO36: 9984 | CP36: 14325 | CQ36: 7541 | CR36: 21691 | CS36: 3430 | CT36: 4911 | CU36: 6228 | CV36: 10823 | CW36: 4062 | CX36: 5318 | CY36: 2674 | CZ36: 7507 | DA36: 5960 | DB36: 16593 | DC36: 8955 | DD36: 9107

Sheet prevalencedata (hidden)
B1: Country | C1: 2009 | D1: 2010 | E1: 2011 | F1: 2012 | G1: 2013 | H1: 2014 | I1: 2015 | J1: 2016 | K1: 2017 | L1: 2018 | M1: 2019 | N1: 2020 | P1: Region | Q1: 2012 | R1: 2013 | S1: 2014 | T1: 2015 | U1: 2016 | V1: 2017 | W1: 2018 | X1: 2019 | Y1: 2020 | AA1: ICSName | AB1: 2015 | AC1: 2016 | AD1: 2017 | AE1: 2018 | AF1: 2019 | AG1: 2020 | AI1: CCG Name | AJ1: 2012 | AK1: 2013 | AL1: 2014 | AM1: 2015 | AN1: 2016 | AO1: 2017 | AP1: 2018 | AQ1: 2019 | AR1: 2020
A2: 1 | B2: England | C2: =1.57074219150978/100 -> 0.01570742192 | D2: =1.62949939697815/100 -> 0.01629499397 | E2: =1.6902271545/100 -> 0.01690227154 | F2: =1.740693653/100 -> 0.01740693653 | G2: =1.78414916305114/100 -> 0.01784149163 | H2: =1.82087419519292/100 -> 0.01820874195 | I2: =1.853139763/100 -> 0.01853139763 | J2: =1.8747613160676/100 -> 0.01874761316 | K2: =1.90325648605894/100 -> 0.01903256486 | L2: =1.92663110907307/100 -> 0.01926631109 | M2: =1.93814081767908/100 -> 0.01938140818 | N2: =1.92771641144337/100 -> 0.01927716411 | O2: 3 | P2: London | Q2: =TRANSPOSE(_xlfn.XLOOKUP(P2,#REF!,#REF!)) ->  | Z2: =_xlfn.XLOOKUP(AA2,popdata!L:L,popdata!M:M) -> 2 | AA2: North West London Health and Care Partnership | AB2: =TRANSPOSE(_xlfn.XLOOKUP(AA2,ICSs!$2:$2,ICSs!$5:$10)) -> 0.9950042441 | AC2: 1.008541709 | AD2: 1.008421073 | AE2: 1.003903827 | AF2: 0.9802838543 | AG2: 0.9497616069 | AH2: 2 | AI2: NHS North West London CCG | AJ2: =TRANSPOSE(_xlfn.XLOOKUP(AI2,CCGs!$3:$3,CCGs!$6:$14)) -> 0.9646138921 | AK2: 0.9646138921 | AL2: 0.9646138921 | AM2: 0.9646138921 | AN2: 0.9646138921 | AO2: 0.9646138921 | AP2: 0.9646138921 | AQ2: 0.9794661773 | AR2: 0.9497616069
A3: 1 | B3: England | C3: 1.570742192 | D3: 1.629499397 | E3: 1.690227155 | F3: 1.740693653 | G3: 1.784149163 | H3: 1.820874195 | I3: 1.853139763 | J3: 1.874761316 | K3: 1.903256486 | L3: 1.926631109 | M3: 1.938140818 | N3: 1.927716411 | O3: 3 | P3: London | Q3: =TRANSPOSE(_xlfn.XLOOKUP(P3,#REF!,#REF!)) ->  | Z3: =_xlfn.XLOOKUP(AA3,popdata!L:L,popdata!M:M) -> 3 | AA3: North London Partners in Health and Care | AB3: =TRANSPOSE(_xlfn.XLOOKUP(AA3,ICSs!$2:$2,ICSs!$5:$10)) -> 1.135236768 | AC3: 1.158814541 | AD3: 1.166418782 | AE3: 1.169385417 | AF3: 1.223699154 | AG3: 1.136489548 | AH3: 3 | AI3: NHS North Central London CCG | AJ3: =TRANSPOSE(_xlfn.XLOOKUP(AI3,CCGs!$3:$3,CCGs!$6:$14)) -> 1.177134737 | AK3: 1.177134737 | AL3: 1.177134737 | AM3: 1.177134737 | AN3: 1.177134737 | AO3: 1.177134737 | AP3: 1.177134737 | AQ3: 1.217779926 | AR3: 1.136489548
A4: 1 | B4: England | C4: 1.570742192 | D4: 1.629499397 | E4: 1.690227155 | F4: 1.740693653 | G4: 1.784149163 | H4: 1.820874195 | I4: 1.853139763 | J4: 1.874761316 | K4: 1.903256486 | L4: 1.926631109 | M4: 1.938140818 | N4: 1.927716411 | O4: 3 | P4: London | Q4: =TRANSPOSE(_xlfn.XLOOKUP(P4,#REF!,#REF!)) ->  | Z4: =_xlfn.XLOOKUP(AA4,popdata!L:L,popdata!M:M) -> 4 | AA4: East London Health and Care Partnership | AB4: =TRANSPOSE(_xlfn.XLOOKUP(AA4,ICSs!$2:$2,ICSs!$5:$10)) -> 1.172342177 | AC4: 1.158498551 | AD4: 1.136467324 | AE4: 1.136606464 | AF4: 1.12840885 | AG4: 1.098413315 | AH4: 4 | AI4: NHS North East London CCG | AJ4: =TRANSPOSE(_xlfn.XLOOKUP(AI4,CCGs!$3:$3,CCGs!$6:$14)) -> 1.11462206 | AK4: 1.11462206 | AL4: 1.11462206 | AM4: 1.11462206 | AN4: 1.11462206 | AO4: 1.11462206 | AP4: 1.11462206 | AQ4: 1.130830805 | AR4: 1.098413315
A5: 1 | B5: England | C5: 1.570742192 | D5: 1.629499397 | E5: 1.690227155 | F5: 1.740693653 | G5: 1.784149163 | H5: 1.820874195 | I5: 1.853139763 | J5: 1.874761316 | K5: 1.903256486 | L5: 1.926631109 | M5: 1.938140818 | N5: 1.927716411 | O5: 3 | P5: London | Q5: =TRANSPOSE(_xlfn.XLOOKUP(P5,#REF!,#REF!)) ->  | Z5: =_xlfn.XLOOKUP(AA5,popdata!L:L,popdata!M:M) -> 5 | AA5: Our Healthier South East London | AB5: =TRANSPOSE(_xlfn.XLOOKUP(AA5,ICSs!$2:$2,ICSs!$5:$10)) -> 1.324637337 | AC5: 1.337580551 | AD5: 1.333819874 | AE5: 1.331550426 | AF5: 1.317453584 | AG5: 1.3142297 | AH5: 5 | AI5: NHS South East London CCG | AJ5: =TRANSPOSE(_xlfn.XLOOKUP(AI5,CCGs!$3:$3,CCGs!$6:$14)) -> 1.314626258 | AK5: 1.314626258 | AL5: 1.314626258 | AM5: 1.314626258 | AN5: 1.314626258 | AO5: 1.314626258 | AP5: 1.314626258 | AQ5: 1.315022817 | AR5: 1.3142297
A6: 1 | B6: England | C6: 1.570742192 | D6: 1.629499397 | E6: 1.690227155 | F6: 1.740693653 | G6: 1.784149163 | H6: 1.820874195 | I6: 1.853139763 | J6: 1.874761316 | K6: 1.903256486 | L6: 1.926631109 | M6: 1.938140818 | N6: 1.927716411 | O6: 3 | P6: London | Q6: =TRANSPOSE(_xlfn.XLOOKUP(P6,#REF!,#REF!)) ->  | Z6: =_xlfn.XLOOKUP(AA6,popdata!L:L,popdata!M:M) -> 6 | AA6: South West London Health and Care Partnership | AB6: =TRANSPOSE(_xlfn.XLOOKUP(AA6,ICSs!$2:$2,ICSs!$5:$10)) -> 1.073800896 | AC6: 1.098303417 | AD6: 1.108637156 | AE6: 1.121097639 | AF6: 1.111231086 | AG6: 1.102193686 | AH6: 6 | AI6: NHS South West London CCG | AJ6: =TRANSPOSE(_xlfn.XLOOKUP(AI6,CCGs!$3:$3,CCGs!$6:$14)) -> 1.1047531 | AK6: 1.1047531 | AL6: 1.1047531 | AM6: 1.1047531 | AN6: 1.1047531 | AO6: 1.1047531 | AP6: 1.1047531 | AQ6: 1.107312514 | AR6: 1.102193686
A7: 1 | B7: England | C7: 1.570742192 | D7: 1.629499397 | E7: 1.690227155 | F7: 1.740693653 | G7: 1.784149163 | H7: 1.820874195 | I7: 1.853139763 | J7: 1.874761316 | K7: 1.903256486 | L7: 1.926631109 | M7: 1.938140818 | N7: 1.927716411 | O7: 2 | P7: Midlands and East of England | Q7: =TRANSPOSE(_xlfn.XLOOKUP(P7,#REF!,#REF!)) ->  | Z7: =_xlfn.XLOOKUP(AA7,popdata!L:L,popdata!M:M) -> 2 | AA7: Staffordshire and Stoke on Trent | AB7: =TRANSPOSE(_xlfn.XLOOKUP(AA7,ICSs!$2:$2,ICSs!$5:$10)) -> 2.302765678 | AC7: 2.302765678 | AD7: 2.302765678 | AE7: 2.282558476 | AF7: 2.317966156 | AG7: 2.307772403 | AH7: 2 | AI7: NHS Cannock Chase CCG | AJ7: =TRANSPOSE(_xlfn.XLOOKUP(AI7,CCGs!$3:$3,CCGs!$6:$14)) -> 2.162790347 | AK7: 2.204496121 | AL7: 2.256686691 | AM7: 2.279342687 | AN7: 2.389775391 | AO7: 2.49399219 | AP7: 2.608656676 | AQ7: 2.665935856 | AR7: 2.672691297
A8: 1 | B8: England | C8: 1.570742192 | D8: 1.629499397 | E8: 1.690227155 | F8: 1.740693653 | G8: 1.784149163 | H8: 1.820874195 | I8: 1.853139763 | J8: 1.874761316 | K8: 1.903256486 | L8: 1.926631109 | M8: 1.938140818 | N8: 1.927716411 | O8: 2 | P8: Midlands and East of England | Q8: =TRANSPOSE(_xlfn.XLOOKUP(P8,#REF!,#REF!)) ->  | Z8: =_xlfn.XLOOKUP(AA8,popdata!L:L,popdata!M:M) -> 2 | AA8: Staffordshire and Stoke on Trent | AB8: =TRANSPOSE(_xlfn.XLOOKUP(AA8,ICSs!$2:$2,ICSs!$5:$10)) -> 2.302765678 | AC8: 2.302765678 | AD8: 2.302765678 | AE8: 2.282558476 | AF8: 2.317966156 | AG8: 2.307772403 | AH8: 3 | AI8: NHS East Staffordshire CCG | AJ8: =TRANSPOSE(_xlfn.XLOOKUP(AI8,CCGs!$3:$3,CCGs!$6:$14)) -> 1.62860906 | AK8: 1.700024202 | AL8: 1.668572427 | AM8: 1.684216587 | AN8: 1.711913392 | AO8: 1.852412928 | AP8: 1.8500365 | AQ8: 1.831066266 | AR8: 1.79816288
A9: 1 | B9: England | C9: 1.570742192 | D9: 1.629499397 | E9: 1.690227155 | F9: 1.740693653 | G9: 1.784149163 | H9: 1.820874195 | I9: 1.853139763 | J9: 1.874761316 | K9: 1.903256486 | L9: 1.926631109 | M9: 1.938140818 | N9: 1.927716411 | O9: 2 | P9: Midlands and East of England | Q9: =TRANSPOSE(_xlfn.XLOOKUP(P9,#REF!,#REF!)) ->  | Z9: =_xlfn.XLOOKUP(AA9,popdata!L:L,popdata!M:M) -> 2 | AA9: Staffordshire and Stoke on Trent | AB9: =TRANSPOSE(_xlfn.XLOOKUP(AA9,ICSs!$2:$2,ICSs!$5:$10)) -> 2.302765678 | AC9: 2.302765678 | AD9: 2.302765678 | AE9: 2.282558476 | AF9: 2.317966156 | AG9: 2.307772403 | AH9: 4 | AI9: NHS North Staffordshire CCG | AJ9: =TRANSPOSE(_xlfn.XLOOKUP(AI9,CCGs!$3:$3,CCGs!$6:$14)) -> 2.057707621 | AK9: 2.123376336 | AL9: 2.182581127 | AM9: 2.256254654 | AN9: 2.344841532 | AO9: 2.410385205 | AP9: 2.561621979 | AQ9: 2.612232918 | AR9: 2.595967456
A10: 1 | B10: England | C10: 1.570742192 | D10: 1.629499397 | E10: 1.690227155 | F10: 1.740693653 | G10: 1.784149163 | H10: 1.820874195 | I10: 1.853139763 | J10: 1.874761316 | K10: 1.903256486 | L10: 1.926631109 | M10: 1.938140818 | N10: 1.927716411 | O10: 2 | P10: Midlands and East of England | Q10: =TRANSPOSE(_xlfn.XLOOKUP(P10,#REF!,#REF!)) ->  | Z10: =_xlfn.XLOOKUP(AA10,popdata!L:L,popdata!M:M) -> 2 | AA10: Staffordshire and Stoke on Trent | AB10: =TRANSPOSE(_xlfn.XLOOKUP(AA10,ICSs!$2:$2,ICSs!$5:$10)) -> 2.302765678 | AC10: 2.302765678 | AD10: 2.302765678 | AE10: 2.282558476 | AF10: 2.317966156 | AG10: 2.307772403 | AH10: 5 | AI10: NHS South East Staffordshire and Seisdon Peninsula CCG | AJ10: =TRANSPOSE(_xlfn.XLOOKUP(AI10,CCGs!$3:$3,CCGs!$6:$14)) -> 1.674346651 | AK10: 1.713896009 | AL10: 1.741831516 | AM10: 1.764453725 | AN10: 1.74601694 | AO10: 1.839798026 | AP10: 1.895544009 | AQ10: 1.887839045 | AR10: 1.906551225
A11: 1 | B11: England | C11: 1.570742192 | D11: 1.629499397 | E11: 1.690227155 | F11: 1.740693653 | G11: 1.784149163 | H11: 1.820874195 | I11: 1.853139763 | J11: 1.874761316 | K11: 1.903256486 | L11: 1.926631109 | M11: 1.938140818 | N11: 1.927716411 | O11: 2 | P11: Midlands and East of England | Q11: =TRANSPOSE(_xlfn.XLOOKUP(P11,#REF!,#REF!)) ->  | Z11: =_xlfn.XLOOKUP(AA11,popdata!L:L,popdata!M:M) -> 2 | AA11: Staffordshire and Stoke on Trent | AB11: =TRANSPOSE(_xlfn.XLOOKUP(AA11,ICSs!$2:$2,ICSs!$5:$10)) -> 2.302765678 | AC11: 2.302765678 | AD11: 2.302765678 | AE11: 2.282558476 | AF11: 2.317966156 | AG11: 2.307772403 | AH11: 6 | AI11: NHS Stafford and Surrounds CCG | AJ11: =TRANSPOSE(_xlfn.XLOOKUP(AI11,CCGs!$3:$3,CCGs!$6:$14)) -> 1.344814976 | AK11: 1.400498506 | AL11: 1.487277424 | AM11: 1.568296452 | AN11: 1.633108108 | AO11: 1.709682612 | AP11: 1.827970704 | AQ11: 1.892385165 | AR11: 1.87032419
A12: 1 | B12: England | C12: 1.570742192 | D12: 1.629499397 | E12: 1.690227155 | F12: 1.740693653 | G12: 1.784149163 | H12: 1.820874195 | I12: 1.853139763 | J12: 1.874761316 | K12: 1.903256486 | L12: 1.926631109 | M12: 1.938140818 | N12: 1.927716411 | O12: 2 | P12: Midlands and East of England | Q12: =TRANSPOSE(_xlfn.XLOOKUP(P12,#REF!,#REF!)) ->  | Z12: =_xlfn.XLOOKUP(AA12,popdata!L:L,popdata!M:M) -> 2 | AA12: Staffordshire and Stoke on Trent | AB12: =TRANSPOSE(_xlfn.XLOOKUP(AA12,ICSs!$2:$2,ICSs!$5:$10)) -> 2.302765678 | AC12: 2.302765678 | AD12: 2.302765678 | AE12: 2.282558476 | AF12: 2.317966156 | AG12: 2.307772403 | AH12: 7 | AI12: NHS Stoke on Trent CCG | AJ12: =TRANSPOSE(_xlfn.XLOOKUP(AI12,CCGs!$3:$3,CCGs!$6:$14)) -> 2.320346197 | AK12: 2.411146216 | AL12: 2.474876098 | AM12: 2.48695151 | AN12: 2.487907692 | AO12: 2.576351185 | AP12: 2.656592903 | AQ12: 2.7099466 | AR12: 2.696645143
A13: 1 | B13: England | C13: 1.570742192 | D13: 1.629499397 | E13: 1.690227155 | F13: 1.740693653 | G13: 1.784149163 | H13: 1.820874195 | I13: 1.853139763 | J13: 1.874761316 | K13: 1.903256486 | L13: 1.926631109 | M13: 1.938140818 | N13: 1.927716411 | O13: 2 | P13: Midlands and East of England | Q13: =TRANSPOSE(_xlfn.XLOOKUP(P13,#REF!,#REF!)) ->  | Z13: =_xlfn.XLOOKUP(AA13,popdata!L:L,popdata!M:M) -> 3 | AA13: Shropshire and Telford and Wrekin | AB13: =TRANSPOSE(_xlfn.XLOOKUP(AA13,ICSs!$2:$2,ICSs!$5:$10)) -> 1.975689423 | AC13: 1.975689423 | AD13: 1.975689423 | AE13: 1.95654683 | AF13: 1.97799172 | AG13: 1.992529719 | AH13: 1 | AI13: NHS Shropshire, Telford and Wrekin CCG | AJ13: =TRANSPOSE(_xlfn.XLOOKUP(AI13,CCGs!$3:$3,CCGs!$6:$14)) -> 1.98526072 | AK13: 1.98526072 | AL13: 1.98526072 | AM13: 1.98526072 | AN13: 1.98526072 | AO13: 1.98526072 | AP13: 1.98526072 | AQ13: 1.97799172 | AR13: 1.992529719
A14: 1 | B14: England | C14: 1.570742192 | D14: 1.629499397 | E14: 1.690227155 | F14: 1.740693653 | G14: 1.784149163 | H14: 1.820874195 | I14: 1.853139763 | J14: 1.874761316 | K14: 1.903256486 | L14: 1.926631109 | M14: 1.938140818 | N14: 1.927716411 | O14: 2 | P14: Midlands and East of England | Q14: =TRANSPOSE(_xlfn.XLOOKUP(P14,#REF!,#REF!)) ->  | Z14: =_xlfn.XLOOKUP(AA14,popdata!L:L,popdata!M:M) -> 4 | AA14: Joined Up Care Derbyshire | AB14: =TRANSPOSE(_xlfn.XLOOKUP(AA14,ICSs!$2:$2,ICSs!$5:$10)) -> 2.241403894 | AC14: 2.241403894 | AD14: 2.241403894 | AE14: 2.23477484 | AF14: 2.254441372 | AG14: 2.234995469 | AH14: 1 | AI14: NHS Derby and Derbyshire CCG | AJ14: =TRANSPOSE(_xlfn.XLOOKUP(AI14,CCGs!$3:$3,CCGs!$6:$14)) -> 2.234085311 | AK14: 2.234085311 | AL14: 2.234085311 | AM14: 2.234085311 | AN14: 2.234085311 | AO14: 2.206725701 | AP14: 2.23477484 | AQ14: 2.259845236 | AR14: 2.234995469
A15: 1 | B15: England | C15: 1.570742192 | D15: 1.629499397 | E15: 1.690227155 | F15: 1.740693653 | G15: 1.784149163 | H15: 1.820874195 | I15: 1.853139763 | J15: 1.874761316 | K15: 1.903256486 | L15: 1.926631109 | M15: 1.938140818 | N15: 1.927716411 | O15: 2 | P15: Midlands and East of England | Q15: =TRANSPOSE(_xlfn.XLOOKUP(P15,#REF!,#REF!)) ->  | Z15: =_xlfn.XLOOKUP(AA15,popdata!L:L,popdata!M:M) -> 5 | AA15: Lincolnshire | AB15: =TRANSPOSE(_xlfn.XLOOKUP(AA15,ICSs!$2:$2,ICSs!$5:$10)) -> 2.306634483 | AC15: 2.306634483 | AD15: 2.306634483 | AE15: 2.286516804 | AF15: 2.329413208 | AG15: 2.303973438 | AH15: 1 | AI15: NHS Lincolnshire CCG | AJ15: =TRANSPOSE(_xlfn.XLOOKUP(AI15,CCGs!$3:$3,CCGs!$6:$14)) -> 2.317306029 | AK15: 2.317306029 | AL15: 2.317306029 | AM15: 2.317306029 | AN15: 2.317306029 | AO15: 2.317306029 | AP15: 2.317306029 | AQ15: 2.33063862 | AR15: 2.303973438
A16: 1 | B16: England | C16: 1.570742192 | D16: 1.629499397 | E16: 1.690227155 | F16: 1.740693653 | G16: 1.784149163 | H16: 1.820874195 | I16: 1.853139763 | J16: 1.874761316 | K16: 1.903256486 | L16: 1.926631109 | M16: 1.938140818 | N16: 1.927716411 | O16: 2 | P16: Midlands and East of England | Q16: =TRANSPOSE(_xlfn.XLOOKUP(P16,#REF!,#REF!)) ->  | Z16: =_xlfn.XLOOKUP(AA16,popdata!L:L,popdata!M:M) -> 6 | AA16: Nottingham and Nottinghamshire Health and Care | AB16: =TRANSPOSE(_xlfn.XLOOKUP(AA16,ICSs!$2:$2,ICSs!$5:$10)) -> 1.996645122 | AC16: 1.996645122 | AD16: 1.996645122 | AE16: 1.969167612 | AF16: 2.013567158 | AG16: 2.007200598 | AH16: 1 | AI16: NHS Nottingham and Nottinghamshire CCG | AJ16: =TRANSPOSE(_xlfn.XLOOKUP(AI16,CCGs!$3:$3,CCGs!$6:$14)) -> 2.013345034 | AK16: 2.013345034 | AL16: 2.013345034 | AM16: 2.013345034 | AN16: 2.013345034 | AO16: 2.013345034 | AP16: 2.013345034 | AQ16: 2.019489469 | AR16: 2.007200598
A17: 1 | B17: England | C17: 1.570742192 | D17: 1.629499397 | E17: 1.690227155 | F17: 1.740693653 | G17: 1.784149163 | H17: 1.820874195 | I17: 1.853139763 | J17: 1.874761316 | K17: 1.903256486 | L17: 1.926631109 | M17: 1.938140818 | N17: 1.927716411 | O17: 2 | P17: Midlands and East of England | Q17: =TRANSPOSE(_xlfn.XLOOKUP(P17,#REF!,#REF!)) ->  | Z17: =_xlfn.XLOOKUP(AA17,popdata!L:L,popdata!M:M) -> 7 | AA17: Leicester, Leicestershire and Rutland | AB17: =TRANSPOSE(_xlfn.XLOOKUP(AA17,ICSs!$2:$2,ICSs!$5:$10)) -> 1.675422156 | AC17: 1.675422156 | AD17: 1.675422156 | AE17: 1.678832371 | AF17: 1.681097594 | AG17: 1.666336504 | AH17: 2 | AI17: NHS East Leicestershire and Rutland CCG | AJ17: =TRANSPOSE(_xlfn.XLOOKUP(AI17,CCGs!$3:$3,CCGs!$6:$14)) -> 1.565594079 | AK17: 1.628813449 | AL17: 1.692975655 | AM17: 1.734891457 | AN17: 1.745435427 | AO17: 1.764017449 | AP17: 1.798693062 | AQ17: 1.82214294 | AR17: 1.800927519
A18: 1 | B18: England | C18: 1.570742192 | D18: 1.629499397 | E18: 1.690227155 | F18: 1.740693653 | G18: 1.784149163 | H18: 1.820874195 | I18: 1.853139763 | J18: 1.874761316 | K18: 1.903256486 | L18: 1.926631109 | M18: 1.938140818 | N18: 1.927716411 | O18: 2 | P18: Midlands and East of England | Q18: =TRANSPOSE(_xlfn.XLOOKUP(P18,#REF!,#REF!)) ->  | Z18: =_xlfn.XLOOKUP(AA18,popdata!L:L,popdata!M:M) -> 7 | AA18: Leicester, Leicestershire and Rutland | AB18: =TRANSPOSE(_xlfn.XLOOKUP(AA18,ICSs!$2:$2,ICSs!$5:$10)) -> 1.675422156 | AC18: 1.675422156 | AD18: 1.675422156 | AE18: 1.678832371 | AF18: 1.681097594 | AG18: 1.666336504 | AH18: 3 | AI18: NHS Leicester City CCG | AJ18: =TRANSPOSE(_xlfn.XLOOKUP(AI18,CCGs!$3:$3,CCGs!$6:$14)) -> 1.359553739 | AK18: 1.417583234 | AL18: 1.434746934 | AM18: 1.416731164 | AN18: 1.387286973 | AO18: 1.396751638 | AP18: 1.378916312 | AQ18: 1.377904395 | AR18: 1.374736608
A19: 1 | B19: England | C19: 1.570742192 | D19: 1.629499397 | E19: 1.690227155 | F19: 1.740693653 | G19: 1.784149163 | H19: 1.820874195 | I19: 1.853139763 | J19: 1.874761316 | K19: 1.903256486 | L19: 1.926631109 | M19: 1.938140818 | N19: 1.927716411 | O19: 2 | P19: Midlands and East of England | Q19: =TRANSPOSE(_xlfn.XLOOKUP(P19,#REF!,#REF!)) ->  | Z19: =_xlfn.XLOOKUP(AA19,popdata!L:L,popdata!M:M) -> 7 | AA19: Leicester, Leicestershire and Rutland | AB19: =TRANSPOSE(_xlfn.XLOOKUP(AA19,ICSs!$2:$2,ICSs!$5:$10)) -> 1.675422156 | AC19: 1.675422156 | AD19: 1.675422156 | AE19: 1.678832371 | AF19: 1.681097594 | AG19: 1.666336504 | AH19: 4 | AI19: NHS West Leicestershire CCG | AJ19: =TRANSPOSE(_xlfn.XLOOKUP(AI19,CCGs!$3:$3,CCGs!$6:$14)) -> 1.640824644 | AK19: 1.690426112 | AL19: 1.762100449 | AM19: 1.829592007 | AN19: 1.853599108 | AO19: 1.89293975 | AP19: 1.892265575 | AQ19: 1.882412716 | AR19: 1.857501639
A20: 1 | B20: England | C20: 1.570742192 | D20: 1.629499397 | E20: 1.690227155 | F20: 1.740693653 | G20: 1.784149163 | H20: 1.820874195 | I20: 1.853139763 | J20: 1.874761316 | K20: 1.903256486 | L20: 1.926631109 | M20: 1.938140818 | N20: 1.927716411 | O20: 2 | P20: Midlands and East of England | Q20: =TRANSPOSE(_xlfn.XLOOKUP(P20,#REF!,#REF!)) ->  | Z20: =_xlfn.XLOOKUP(AA20,popdata!L:L,popdata!M:M) -> 8 | AA20: The Black Country and West Birmingham | AB20: =TRANSPOSE(_xlfn.XLOOKUP(AA20,ICSs!$2:$2,ICSs!$5:$10)) -> 1.954041599 | AC20: 1.954041599 | AD20: 1.927006394 | AE20: 1.978699506 | AF20: 1.970960076 | AG20: 1.939500418 | AH20: 1 | AI20: NHS Black Country and West Birmingham CCG | AJ20: =TRANSPOSE(_xlfn.XLOOKUP(AI20,CCGs!$3:$3,CCGs!$6:$14)) -> 1.957271417 | AK20: 1.957271417 | AL20: 1.957271417 | AM20: 1.957271417 | AN20: 1.957271417 | AO20: 1.957271417 | AP20: 1.957271417 | AQ20: 1.975042417 | AR20: 1.939500418
A21: 1 | B21: England | C21: 1.570742192 | D21: 1.629499397 | E21: 1.690227155 | F21: 1.740693653 | G21: 1.784149163 | H21: 1.820874195 | I21: 1.853139763 | J21: 1.874761316 | K21: 1.903256486 | L21: 1.926631109 | M21: 1.938140818 | N21: 1.927716411 | O21: 2 | P21: Midlands and East of England | Q21: =TRANSPOSE(_xlfn.XLOOKUP(P21,#REF!,#REF!)) ->  | Z21: =_xlfn.XLOOKUP(AA21,popdata!L:L,popdata!M:M) -> 9 | AA21: Birmingham and Solihull | AB21: =TRANSPOSE(_xlfn.XLOOKUP(AA21,ICSs!$2:$2,ICSs!$5:$10)) -> 1.669024537 | AC21: 1.669024537 | AD21: 1.659618643 | AE21: 1.675904202 | AF21: 1.673297405 | AG21: 1.667277897 | AH21: 1 | AI21: NHS Birmingham and Solihull CCG | AJ21: =TRANSPOSE(_xlfn.XLOOKUP(AI21,CCGs!$3:$3,CCGs!$6:$14)) -> 1.673394134 | AK21: 1.673394134 | AL21: 1.673394134 | AM21: 1.673394134 | AN21: 1.673394134 | AO21: 1.683971321 | AP21: 1.675904202 | AQ21: 1.666423115 | AR21: 1.667277897
A22: 1 | B22: England | C22: 1.570742192 | D22: 1.629499397 | E22: 1.690227155 | F22: 1.740693653 | G22: 1.784149163 | H22: 1.820874195 | I22: 1.853139763 | J22: 1.874761316 | K22: 1.903256486 | L22: 1.926631109 | M22: 1.938140818 | N22: 1.927716411 | O22: 2 | P22: Midlands and East of England | Q22: =TRANSPOSE(_xlfn.XLOOKUP(P22,#REF!,#REF!)) ->  | Z22: =_xlfn.XLOOKUP(AA22,popdata!L:L,popdata!M:M) -> 10 | AA22: Coventry and Warwickshire | AB22: =TRANSPOSE(_xlfn.XLOOKUP(AA22,ICSs!$2:$2,ICSs!$5:$10)) -> 1.646690187 | AC22: 1.646690187 | AD22: 1.646504631 | AE22: 1.658116272 | AF22: 1.634327221 | AG22: 1.647812623 | AH22: 1 | AI22: NHS Coventry and Warwickshire CCG | AJ22: =TRANSPOSE(_xlfn.XLOOKUP(AI22,CCGs!$3:$3,CCGs!$6:$14)) -> 1.641850986 | AK22: 1.641850986 | AL22: 1.641850986 | AM22: 1.641850986 | AN22: 1.641850986 | AO22: 1.641850986 | AP22: 1.641850986 | AQ22: 1.635889349 | AR22: 1.647812623
A23: 1 | B23: England | C23: 1.570742192 | D23: 1.629499397 | E23: 1.690227155 | F23: 1.740693653 | G23: 1.784149163 | H23: 1.820874195 | I23: 1.853139763 | J23: 1.874761316 | K23: 1.903256486 | L23: 1.926631109 | M23: 1.938140818 | N23: 1.927716411 | O23: 2 | P23: Midlands and East of England | Q23: =TRANSPOSE(_xlfn.XLOOKUP(P23,#REF!,#REF!)) ->  | Z23: =_xlfn.XLOOKUP(AA23,popdata!L:L,popdata!M:M) -> 11 | AA23: Herefordshire and Worcestershire | AB23: =TRANSPOSE(_xlfn.XLOOKUP(AA23,ICSs!$2:$2,ICSs!$5:$10)) -> 1.942111066 | AC23: 1.9804579 | AD23: 2.070039185 | AE23: 2.140720288 | AF23: 2.181451312 | AG23: 2.154290499 | AH23: 1 | AI23: NHS Herefordshire CCG | AJ23: =TRANSPOSE(_xlfn.XLOOKUP(AI23,CCGs!$3:$3,CCGs!$6:$14)) -> 2.164276884 | AK23: 2.164276884 | AL23: 2.164276884 | AM23: 2.164276884 | AN23: 2.164276884 | AO23: 2.164276884 | AP23: 2.164276884 | AQ23: 2.174263269 | AR23: 2.154290499
A24: 1 | B24: England | C24: 1.570742192 | D24: 1.629499397 | E24: 1.690227155 | F24: 1.740693653 | G24: 1.784149163 | H24: 1.820874195 | I24: 1.853139763 | J24: 1.874761316 | K24: 1.903256486 | L24: 1.926631109 | M24: 1.938140818 | N24: 1.927716411 | O24: 2 | P24: Midlands and East of England | Q24: =TRANSPOSE(_xlfn.XLOOKUP(P24,#REF!,#REF!)) ->  | Z24: =_xlfn.XLOOKUP(AA24,popdata!L:L,popdata!M:M) -> 12 | AA24: Northamptonshire | AB24: =TRANSPOSE(_xlfn.XLOOKUP(AA24,ICSs!$2:$2,ICSs!$5:$10)) -> 1.890071281 | AC24: 1.885575743 | AD24: 1.909413738 | AE24: 1.931931133 | AF24: 1.952289797 | AG24: 1.938844435 | AH24: 1 | AI24: NHS Northamptonshire CCG | AJ24: =TRANSPOSE(_xlfn.XLOOKUP(AI24,CCGs!$3:$3,CCGs!$6:$14)) -> 1.945567116 | AK24: 1.945567116 | AL24: 1.945567116 | AM24: 1.945567116 | AN24: 1.945567116 | AO24: 1.945567116 | AP24: 1.945567116 | AQ24: 1.952289797 | AR24: 1.938844435
A25: 1 | B25: England | C25: 1.570742192 | D25: 1.629499397 | E25: 1.690227155 | F25: 1.740693653 | G25: 1.784149163 | H25: 1.820874195 | I25: 1.853139763 | J25: 1.874761316 | K25: 1.903256486 | L25: 1.926631109 | M25: 1.938140818 | N25: 1.927716411 | O25: 2 | P25: Midlands and East of England | Q25: =TRANSPOSE(_xlfn.XLOOKUP(P25,#REF!,#REF!)) ->  | Z25: =_xlfn.XLOOKUP(AA25,popdata!L:L,popdata!M:M) -> 13 | AA25: Cambridgeshire and Peterborough | AB25: =TRANSPOSE(_xlfn.XLOOKUP(AA25,ICSs!$2:$2,ICSs!$5:$10)) -> 1.672836761 | AC25: 1.685712482 | AD25: 1.707110566 | AE25: 1.732315166 | AF25: 1.738462801 | AG25: 1.741399187 | AH25: 1 | AI25: NHS Cambridgeshire and Peterborough CCG | AJ25: =TRANSPOSE(_xlfn.XLOOKUP(AI25,CCGs!$3:$3,CCGs!$6:$14)) -> 1.595577088 | AK25: 1.617767167 | AL25: 1.647680461 | AM25: 1.672836761 | AN25: 1.685712482 | AO25: 1.707810985 | AP25: 1.732315166 | AQ25: 1.73471474 | AR25: 1.741399187
A26: 1 | B26: England | C26: 1.570742192 | D26: 1.629499397 | E26: 1.690227155 | F26: 1.740693653 | G26: 1.784149163 | H26: 1.820874195 | I26: 1.853139763 | J26: 1.874761316 | K26: 1.903256486 | L26: 1.926631109 | M26: 1.938140818 | N26: 1.927716411 | O26: 2 | P26: Midlands and East of England | Q26: =TRANSPOSE(_xlfn.XLOOKUP(P26,#REF!,#REF!)) ->  | Z26: =_xlfn.XLOOKUP(AA26,popdata!L:L,popdata!M:M) -> 14 | AA26: Norfolk and Waveney Health and Care Partnership | AB26: =TRANSPOSE(_xlfn.XLOOKUP(AA26,ICSs!$2:$2,ICSs!$5:$10)) -> 2.1996399 | AC26: 2.183211406 | AD26: 2.223397596 | AE26: 2.286474921 | AF26: 2.314020773 | AG26: 2.31139599 | AH26: 1 | AI26: NHS Norfolk and Waveney CCG | AJ26: =TRANSPOSE(_xlfn.XLOOKUP(AI26,CCGs!$3:$3,CCGs!$6:$14)) -> 2.312708382 | AK26: 2.312708382 | AL26: 2.312708382 | AM26: 2.312708382 | AN26: 2.312708382 | AO26: 2.312708382 | AP26: 2.312708382 | AQ26: 2.314020773 | AR26: 2.31139599
A27: 1 | B27: England | C27: 1.570742192 | D27: 1.629499397 | E27: 1.690227155 | F27: 1.740693653 | G27: 1.784149163 | H27: 1.820874195 | I27: 1.853139763 | J27: 1.874761316 | K27: 1.903256486 | L27: 1.926631109 | M27: 1.938140818 | N27: 1.927716411 | O27: 2 | P27: Midlands and East of England | Q27: =TRANSPOSE(_xlfn.XLOOKUP(P27,#REF!,#REF!)) ->  | Z27: =_xlfn.XLOOKUP(AA27,popdata!L:L,popdata!M:M) -> 15 | AA27: Suffolk and North East Essex | AB27: =TRANSPOSE(_xlfn.XLOOKUP(AA27,ICSs!$2:$2,ICSs!$5:$10)) -> 1.985729998 | AC27: 2.011693272 | AD27: 2.045003545 | AE27: 2.0582154 | AF27: 2.086496419 | AG27: 2.074365276 | AH27: 2 | AI27: NHS Ipswich and East Suffolk CCG | AJ27: =TRANSPOSE(_xlfn.XLOOKUP(AI27,CCGs!$3:$3,CCGs!$6:$14)) -> 1.613089213 | AK27: 1.6594322 | AL27: 1.687332161 | AM27: 1.722959489 | AN27: 1.747928944 | AO27: 1.773444708 | AP27: 1.80739746 | AQ27: 1.856896174 | AR27: 1.820040654
A28: 1 | B28: England | C28: 1.570742192 | D28: 1.629499397 | E28: 1.690227155 | F28: 1.740693653 | G28: 1.784149163 | H28: 1.820874195 | I28: 1.853139763 | J28: 1.874761316 | K28: 1.903256486 | L28: 1.926631109 | M28: 1.938140818 | N28: 1.927716411 | O28: 2 | P28: Midlands and East of England | Q28: =TRANSPOSE(_xlfn.XLOOKUP(P28,#REF!,#REF!)) ->  | Z28: =_xlfn.XLOOKUP(AA28,popdata!L:L,popdata!M:M) -> 15 | AA28: Suffolk and North East Essex | AB28: =TRANSPOSE(_xlfn.XLOOKUP(AA28,ICSs!$2:$2,ICSs!$5:$10)) -> 1.985729998 | AC28: 2.011693272 | AD28: 2.045003545 | AE28: 2.0582154 | AF28: 2.086496419 | AG28: 2.074365276 | AH28: 3 | AI28: NHS North East Essex CCG | AJ28: =TRANSPOSE(_xlfn.XLOOKUP(AI28,CCGs!$3:$3,CCGs!$6:$14)) -> 2.136348031 | AK28: 2.218623384 | AL28: 2.245172478 | AM28: 2.240029458 | AN28: 2.229199462 | AO28: 2.190769558 | AP28: 2.234992686 | AQ28: 2.220832117 | AR28: 2.205650405
A29: 1 | B29: England | C29: 1.570742192 | D29: 1.629499397 | E29: 1.690227155 | F29: 1.740693653 | G29: 1.784149163 | H29: 1.820874195 | I29: 1.853139763 | J29: 1.874761316 | K29: 1.903256486 | L29: 1.926631109 | M29: 1.938140818 | N29: 1.927716411 | O29: 2 | P29: Midlands and East of England | Q29: =TRANSPOSE(_xlfn.XLOOKUP(P29,#REF!,#REF!)) ->  | Z29: =_xlfn.XLOOKUP(AA29,popdata!L:L,popdata!M:M) -> 15 | AA29: Suffolk and North East Essex | AB29: =TRANSPOSE(_xlfn.XLOOKUP(AA29,ICSs!$2:$2,ICSs!$5:$10)) -> 1.985729998 | AC29: 2.011693272 | AD29: 2.045003545 | AE29: 2.0582154 | AF29: 2.086496419 | AG29: 2.074365276 | AH29: 4 | AI29: NHS West Suffolk CCG | AJ29: =TRANSPOSE(_xlfn.XLOOKUP(AI29,CCGs!$3:$3,CCGs!$6:$14)) -> 1.903863093 | AK29: 1.942498067 | AL29: 2.003274346 | AM29: 2.060167787 | AN29: 2.133457664 | AO29: 2.175196929 | AP29: 2.225427815 | AQ29: 2.276117084 | AR29: 2.299187569
A30: 1 | B30: England | C30: 1.570742192 | D30: 1.629499397 | E30: 1.690227155 | F30: 1.740693653 | G30: 1.784149163 | H30: 1.820874195 | I30: 1.853139763 | J30: 1.874761316 | K30: 1.903256486 | L30: 1.926631109 | M30: 1.938140818 | N30: 1.927716411 | O30: 2 | P30: Midlands and East of England | Q30: =TRANSPOSE(_xlfn.XLOOKUP(P30,#REF!,#REF!)) ->  | Z30: =_xlfn.XLOOKUP(AA30,popdata!L:L,popdata!M:M) -> 16 | AA30: Bedfordshire, Luton and Milton Keynes | AB30: =TRANSPOSE(_xlfn.XLOOKUP(AA30,ICSs!$2:$2,ICSs!$5:$10)) -> 1.495624078 | AC30: 1.505410348 | AD30: 1.533283137 | AE30: 1.549257464 | AF30: 1.567395101 | AG30: 1.576054711 | AH30: 1 | AI30: NHS Bedfordshire, Luton and Milton Keynes CCG | AJ30: =TRANSPOSE(_xlfn.XLOOKUP(AI30,CCGs!$3:$3,CCGs!$6:$14)) -> 1.566662027 | AK30: 1.566662027 | AL30: 1.566662027 | AM30: 1.566662027 | AN30: 1.566662027 | AO30: 1.566662027 | AP30: 1.566662027 | AQ30: 1.557269343 | AR30: 1.576054711
A31: 1 | B31: England | C31: 1.570742192 | D31: 1.629499397 | E31: 1.690227155 | F31: 1.740693653 | G31: 1.784149163 | H31: 1.820874195 | I31: 1.853139763 | J31: 1.874761316 | K31: 1.903256486 | L31: 1.926631109 | M31: 1.938140818 | N31: 1.927716411 | O31: 2 | P31: Midlands and East of England | Q31: =TRANSPOSE(_xlfn.XLOOKUP(P31,#REF!,#REF!)) ->  | Z31: =_xlfn.XLOOKUP(AA31,popdata!L:L,popdata!M:M) -> 17 | AA31: Hertfordshire and West Essex | AB31: =TRANSPOSE(_xlfn.XLOOKUP(AA31,ICSs!$2:$2,ICSs!$5:$10)) -> 1.482533424 | AC31: 1.510377213 | AD31: 1.533179705 | AE31: 1.55370455 | AF31: 1.548954511 | AG31: 1.529166219 | AH31: 2 | AI31: NHS East and North Hertfordshire CCG | AJ31: =TRANSPOSE(_xlfn.XLOOKUP(AI31,CCGs!$3:$3,CCGs!$6:$14)) -> 1.482249305 | AK31: 1.502561972 | AL31: 1.517949773 | AM31: 1.548267995 | AN31: 1.567684588 | AO31: 1.565691294 | AP31: 1.589776595 | AQ31: 1.612410119 | AR31: 1.577017075
A32: 1 | B32: England | C32: 1.570742192 | D32: 1.629499397 | E32: 1.690227155 | F32: 1.740693653 | G32: 1.784149163 | H32: 1.820874195 | I32: 1.853139763 | J32: 1.874761316 | K32: 1.903256486 | L32: 1.926631109 | M32: 1.938140818 | N32: 1.927716411 | O32: 2 | P32: Midlands and East of England | Q32: =TRANSPOSE(_xlfn.XLOOKUP(P32,#REF!,#REF!)) ->  | Z32: =_xlfn.XLOOKUP(AA32,popdata!L:L,popdata!M:M) -> 17 | AA32: Hertfordshire and West Essex | AB32: =TRANSPOSE(_xlfn.XLOOKUP(AA32,ICSs!$2:$2,ICSs!$5:$10)) -> 1.482533424 | AC32: 1.510377213 | AD32: 1.533179705 | AE32: 1.55370455 | AF32: 1.548954511 | AG32: 1.529166219 | AH32: 3 | AI32: NHS Herts Valley CCG | AJ32: =TRANSPOSE(_xlfn.XLOOKUP(AI32,CCGs!$3:$3,CCGs!$6:$14)) -> 1.25845411 | AK32: 1.25475094 | AL32: 1.271194583 | AM32: 1.305694476 | AN32: 1.349162345 | AO32: 1.391866742 | AP32: 1.431868263 | AQ32: 1.445818601 | AR32: 1.424828805
A33: 1 | B33: England | C33: 1.570742192 | D33: 1.629499397 | E33: 1.690227155 | F33: 1.740693653 | G33: 1.784149163 | H33: 1.820874195 | I33: 1.853139763 | J33: 1.874761316 | K33: 1.903256486 | L33: 1.926631109 | M33: 1.938140818 | N33: 1.927716411 | O33: 2 | P33: Midlands and East of England | Q33: =TRANSPOSE(_xlfn.XLOOKUP(P33,#REF!,#REF!)) ->  | Z33: =_xlfn.XLOOKUP(AA33,popdata!L:L,popdata!M:M) -> 17 | AA33: Hertfordshire and West Essex | AB33: =TRANSPOSE(_xlfn.XLOOKUP(AA33,ICSs!$2:$2,ICSs!$5:$10)) -> 1.482533424 | AC33: 1.510377213 | AD33: 1.533179705 | AE33: 1.55370455 | AF33: 1.548954511 | AG33: 1.529166219 | AH33: 4 | AI33: NHS West Essex CCG | AJ33: =TRANSPOSE(_xlfn.XLOOKUP(AI33,CCGs!$3:$3,CCGs!$6:$14)) -> 1.601657167 | AK33: 1.644800325 | AL33: 1.693627476 | AM33: 1.726139718 | AN33: 1.73641915 | AO33: 1.771045808 | AP33: 1.735541613 | AQ33: 1.664890995 | AR33: 1.653812663
A34: 1 | B34: England | C34: 1.570742192 | D34: 1.629499397 | E34: 1.690227155 | F34: 1.740693653 | G34: 1.784149163 | H34: 1.820874195 | I34: 1.853139763 | J34: 1.874761316 | K34: 1.903256486 | L34: 1.926631109 | M34: 1.938140818 | N34: 1.927716411 | O34: 2 | P34: Midlands and East of England | Q34: =TRANSPOSE(_xlfn.XLOOKUP(P34,#REF!,#REF!)) ->  | Z34: =_xlfn.XLOOKUP(AA34,popdata!L:L,popdata!M:M) -> 18 | AA34: Mid and South Essex | AB34: =TRANSPOSE(_xlfn.XLOOKUP(AA34,ICSs!$2:$2,ICSs!$5:$10)) -> 1.874871323 | AC34: 1.875427011 | AD34: 1.898329932 | AE34: 1.943557019 | AF34: 1.921573973 | AG34: 1.902290526 | AH34: 2 | AI34: NHS Basildon and Brentwood CCG | AJ34: =TRANSPOSE(_xlfn.XLOOKUP(AI34,CCGs!$3:$3,CCGs!$6:$14)) -> 1.861551368 | AK34: 1.876543394 | AL34: 1.909474571 | AM34: 1.935333324 | AN34: 1.923904514 | AO34: 1.920608151 | AP34: 1.950659986 | AQ34: 1.90791998 | AR34: 1.865385292
A35: 1 | B35: England | C35: 1.570742192 | D35: 1.629499397 | E35: 1.690227155 | F35: 1.740693653 | G35: 1.784149163 | H35: 1.820874195 | I35: 1.853139763 | J35: 1.874761316 | K35: 1.903256486 | L35: 1.926631109 | M35: 1.938140818 | N35: 1.927716411 | O35: 2 | P35: Midlands and East of England | Q35: =TRANSPOSE(_xlfn.XLOOKUP(P35,#REF!,#REF!)) ->  | Z35: =_xlfn.XLOOKUP(AA35,popdata!L:L,popdata!M:M) -> 18 | AA35: Mid and South Essex | AB35: =TRANSPOSE(_xlfn.XLOOKUP(AA35,ICSs!$2:$2,ICSs!$5:$10)) -> 1.874871323 | AC35: 1.875427011 | AD35: 1.898329932 | AE35: 1.943557019 | AF35: 1.921573973 | AG35: 1.902290526 | AH35: 3 | AI35: NHS Castle Point and Rochford CCG | AJ35: =TRANSPOSE(_xlfn.XLOOKUP(AI35,CCGs!$3:$3,CCGs!$6:$14)) -> 2.016434718 | AK35: 2.071133644 | AL35: 2.144069612 | AM35: 2.182647706 | AN35: 2.214805825 | AO35: 2.293065858 | AP35: 2.360144096 | AQ35: 2.32668183 | AR35: 2.338323482
A36: 1 | B36: England | C36: 1.570742192 | D36: 1.629499397 | E36: 1.690227155 | F36: 1.740693653 | G36: 1.784149163 | H36: 1.820874195 | I36: 1.853139763 | J36: 1.874761316 | K36: 1.903256486 | L36: 1.926631109 | M36: 1.938140818 | N36: 1.927716411 | O36: 2 | P36: Midlands and East of England | Q36: =TRANSPOSE(_xlfn.XLOOKUP(P36,#REF!,#REF!)) ->  | Z36: =_xlfn.XLOOKUP(AA36,popdata!L:L,popdata!M:M) -> 18 | AA36: Mid and South Essex | AB36: =TRANSPOSE(_xlfn.XLOOKUP(AA36,ICSs!$2:$2,ICSs!$5:$10)) -> 1.874871323 | AC36: 1.875427011 | AD36: 1.898329932 | AE36: 1.943557019 | AF36: 1.921573973 | AG36: 1.902290526 | AH36: 4 | AI36: NHS Mid Essex CCG | AJ36: =TRANSPOSE(_xlfn.XLOOKUP(AI36,CCGs!$3:$3,CCGs!$6:$14)) -> 1.347088905 | AK36: 1.433801988 | AL36: 1.500097358 | AM36: 1.546536476 | AN36: 1.562604375 | AO36: 1.572816646 | AP36: 1.600142054 | AQ36: 1.609572004 | AR36: 1.614696966
A37: 1 | B37: England | C37: 1.570742192 | D37: 1.629499397 | E37: 1.690227155 | F37: 1.740693653 | G37: 1.784149163 | H37: 1.820874195 | I37: 1.853139763 | J37: 1.874761316 | K37: 1.903256486 | L37: 1.926631109 | M37: 1.938140818 | N37: 1.927716411 | O37: 2 | P37: Midlands and East of England | Q37: =TRANSPOSE(_xlfn.XLOOKUP(P37,#REF!,#REF!)) ->  | Z37: =_xlfn.XLOOKUP(AA37,popdata!L:L,popdata!M:M) -> 18 | AA37: Mid and South Essex | AB37: =TRANSPOSE(_xlfn.XLOOKUP(AA37,ICSs!$2:$2,ICSs!$5:$10)) -> 1.874871323 | AC37: 1.875427011 | AD37: 1.898329932 | AE37: 1.943557019 | AF37: 1.921573973 | AG37: 1.902290526 | AH37: 5 | AI37: NHS Southend CCG | AJ37: =TRANSPOSE(_xlfn.XLOOKUP(AI37,CCGs!$3:$3,CCGs!$6:$14)) -> 1.83987312 | AK37: 1.928546277 | AL37: 2.050341814 | AM37: 2.13196985 | AN37: 2.122394594 | AO37: 2.153468572 | AP37: 2.193079709 | AQ37: 2.190729888 | AR37: 2.161082596
A38: 1 | B38: England | C38: 1.570742192 | D38: 1.629499397 | E38: 1.690227155 | F38: 1.740693653 | G38: 1.784149163 | H38: 1.820874195 | I38: 1.853139763 | J38: 1.874761316 | K38: 1.903256486 | L38: 1.926631109 | M38: 1.938140818 | N38: 1.927716411 | O38: 2 | P38: Midlands and East of England | Q38: =TRANSPOSE(_xlfn.XLOOKUP(P38,#REF!,#REF!)) ->  | Z38: =_xlfn.XLOOKUP(AA38,popdata!L:L,popdata!M:M) -> 18 | AA38: Mid and South Essex | AB38: =TRANSPOSE(_xlfn.XLOOKUP(AA38,ICSs!$2:$2,ICSs!$5:$10)) -> 1.874871323 | AC38: 1.875427011 | AD38: 1.898329932 | AE38: 1.943557019 | AF38: 1.921573973 | AG38: 1.902290526 | AH38: 6 | AI38: NHS Thurrock CCG | AJ38: =TRANSPOSE(_xlfn.XLOOKUP(AI38,CCGs!$3:$3,CCGs!$6:$14)) -> 1.74296322 | AK38: 1.800407185 | AL38: 1.832407935 | AM38: 1.906750012 | AN38: 1.869696203 | AO38: 1.870837387 | AP38: 1.994160331 | AQ38: 1.930943479 | AR38: 1.878175924
A39: 1 | B39: England | C39: 1.570742192 | D39: 1.629499397 | E39: 1.690227155 | F39: 1.740693653 | G39: 1.784149163 | H39: 1.820874195 | I39: 1.853139763 | J39: 1.874761316 | K39: 1.903256486 | L39: 1.926631109 | M39: 1.938140818 | N39: 1.927716411 | O39: 1 | P39: North of England | Q39: =TRANSPOSE(_xlfn.XLOOKUP(P39,#REF!,#REF!)) ->  | Z39: =_xlfn.XLOOKUP(AA39,popdata!L:L,popdata!M:M) -> 2 | AA39: Greater Manchester Health and Social Care Partnership | AB39: =TRANSPOSE(_xlfn.XLOOKUP(AA39,ICSs!$2:$2,ICSs!$5:$10)) -> 2.338487347 | AC39: 2.338487347 | AD39: 2.338487347 | AE39: 2.339895573 | AF39: 2.335424341 | AG39: 2.340142127 | AH39: 2 | AI39: NHS Bolton CCG | AJ39: =TRANSPOSE(_xlfn.XLOOKUP(AI39,CCGs!$3:$3,CCGs!$6:$14)) -> 2.168734608 | AK39: 2.234186005 | AL39: 2.238313364 | AM39: 2.25198452 | AN39: 2.254413644 | AO39: 2.29015782 | AP39: 2.298057039 | AQ39: 2.300722118 | AR39: 2.28263714
A40: 1 | B40: England | C40: 1.570742192 | D40: 1.629499397 | E40: 1.690227155 | F40: 1.740693653 | G40: 1.784149163 | H40: 1.820874195 | I40: 1.853139763 | J40: 1.874761316 | K40: 1.903256486 | L40: 1.926631109 | M40: 1.938140818 | N40: 1.927716411 | O40: 1 | P40: North of England | Q40: =TRANSPOSE(_xlfn.XLOOKUP(P40,#REF!,#REF!)) ->  | Z40: =_xlfn.XLOOKUP(AA40,popdata!L:L,popdata!M:M) -> 2 | AA40: Greater Manchester Health and Social Care Partnership | AB40: =TRANSPOSE(_xlfn.XLOOKUP(AA40,ICSs!$2:$2,ICSs!$5:$10)) -> 2.338487347 | AC40: 2.338487347 | AD40: 2.338487347 | AE40: 2.339895573 | AF40: 2.335424341 | AG40: 2.340142127 | AH40: 3 | AI40: NHS Bury CCG | AJ40: =TRANSPOSE(_xlfn.XLOOKUP(AI40,CCGs!$3:$3,CCGs!$6:$14)) -> 2.005627183 | AK40: 2.055831631 | AL40: 2.137873939 | AM40: 2.124346125 | AN40: 2.110915702 | AO40: 2.142490024 | AP40: 2.174853349 | AQ40: 2.158005825 | AR40: 2.162914852
A41: 1 | B41: England | C41: 1.570742192 | D41: 1.629499397 | E41: 1.690227155 | F41: 1.740693653 | G41: 1.784149163 | H41: 1.820874195 | I41: 1.853139763 | J41: 1.874761316 | K41: 1.903256486 | L41: 1.926631109 | M41: 1.938140818 | N41: 1.927716411 | O41: 1 | P41: North of England | Q41: =TRANSPOSE(_xlfn.XLOOKUP(P41,#REF!,#REF!)) ->  | Z41: =_xlfn.XLOOKUP(AA41,popdata!L:L,popdata!M:M) -> 2 | AA41: Greater Manchester Health and Social Care Partnership | AB41: =TRANSPOSE(_xlfn.XLOOKUP(AA41,ICSs!$2:$2,ICSs!$5:$10)) -> 2.338487347 | AC41: 2.338487347 | AD41: 2.338487347 | AE41: 2.339895573 | AF41: 2.335424341 | AG41: 2.340142127 | AH41: 4 | AI41: NHS Heywood, Middleton and Rochdale CCG | AJ41: =TRANSPOSE(_xlfn.XLOOKUP(AI41,CCGs!$3:$3,CCGs!$6:$14)) -> 2.30650554 | AK41: 2.301735457 | AL41: 2.355998732 | AM41: 2.402983013 | AN41: 2.432021618 | AO41: 2.467315359 | AP41: 2.529108689 | AQ41: 2.542141842 | AR41: 2.546432368
A42: 1 | B42: England | C42: 1.570742192 | D42: 1.629499397 | E42: 1.690227155 | F42: 1.740693653 | G42: 1.784149163 | H42: 1.820874195 | I42: 1.853139763 | J42: 1.874761316 | K42: 1.903256486 | L42: 1.926631109 | M42: 1.938140818 | N42: 1.927716411 | O42: 1 | P42: North of England | Q42: =TRANSPOSE(_xlfn.XLOOKUP(P42,#REF!,#REF!)) ->  | Z42: =_xlfn.XLOOKUP(AA42,popdata!L:L,popdata!M:M) -> 2 | AA42: Greater Manchester Health and Social Care Partnership | AB42: =TRANSPOSE(_xlfn.XLOOKUP(AA42,ICSs!$2:$2,ICSs!$5:$10)) -> 2.338487347 | AC42: 2.338487347 | AD42: 2.338487347 | AE42: 2.339895573 | AF42: 2.335424341 | AG42: 2.340142127 | AH42: 5 | AI42: NHS Oldham CCG | AJ42: =TRANSPOSE(_xlfn.XLOOKUP(AI42,CCGs!$3:$3,CCGs!$6:$14)) -> 2.239258202 | AK42: 2.238821326 | AL42: 2.220364556 | AM42: 2.249355006 | AN42: 2.291468819 | AO42: 2.368846037 | AP42: 2.360756774 | AQ42: 2.375735533 | AR42: 2.341557665
A43: 1 | B43: England | C43: 1.570742192 | D43: 1.629499397 | E43: 1.690227155 | F43: 1.740693653 | G43: 1.784149163 | H43: 1.820874195 | I43: 1.853139763 | J43: 1.874761316 | K43: 1.903256486 | L43: 1.926631109 | M43: 1.938140818 | N43: 1.927716411 | O43: 1 | P43: North of England | Q43: =TRANSPOSE(_xlfn.XLOOKUP(P43,#REF!,#REF!)) ->  | Z43: =_xlfn.XLOOKUP(AA43,popdata!L:L,popdata!M:M) -> 2 | AA43: Greater Manchester Health and Social Care Partnership | AB43: =TRANSPOSE(_xlfn.XLOOKUP(AA43,ICSs!$2:$2,ICSs!$5:$10)) -> 2.338487347 | AC43: 2.338487347 | AD43: 2.338487347 | AE43: 2.339895573 | AF43: 2.335424341 | AG43: 2.340142127 | AH43: 6 | AI43: NHS Salford CCG | AJ43: =TRANSPOSE(_xlfn.XLOOKUP(AI43,CCGs!$3:$3,CCGs!$6:$14)) -> 2.792201822 | AK43: 2.765748691 | AL43: 2.704263342 | AM43: 2.676274198 | AN43: 2.6140832 | AO43: 2.559503505 | AP43: 2.516230565 | AQ43: 2.473540746 | AR43: 2.557603925
A44: 1 | B44: England | C44: 1.570742192 | D44: 1.629499397 | E44: 1.690227155 | F44: 1.740693653 | G44: 1.784149163 | H44: 1.820874195 | I44: 1.853139763 | J44: 1.874761316 | K44: 1.903256486 | L44: 1.926631109 | M44: 1.938140818 | N44: 1.927716411 | O44: 1 | P44: North of England | Q44: =TRANSPOSE(_xlfn.XLOOKUP(P44,#REF!,#REF!)) ->  | Z44: =_xlfn.XLOOKUP(AA44,popdata!L:L,popdata!M:M) -> 2 | AA44: Greater Manchester Health and Social Care Partnership | AB44: =TRANSPOSE(_xlfn.XLOOKUP(AA44,ICSs!$2:$2,ICSs!$5:$10)) -> 2.338487347 | AC44: 2.338487347 | AD44: 2.338487347 | AE44: 2.339895573 | AF44: 2.335424341 | AG44: 2.340142127 | AH44: 7 | AI44: NHS Stockport CCG | AJ44: =TRANSPOSE(_xlfn.XLOOKUP(AI44,CCGs!$3:$3,CCGs!$6:$14)) -> 2.141406867 | AK44: 2.192021771 | AL44: 2.212959879 | AM44: 2.252157581 | AN44: 2.293420985 | AO44: 2.276831764 | AP44: 2.321776963 | AQ44: 2.325596164 | AR44: 2.333080604
A45: 1 | B45: England | C45: 1.570742192 | D45: 1.629499397 | E45: 1.690227155 | F45: 1.740693653 | G45: 1.784149163 | H45: 1.820874195 | I45: 1.853139763 | J45: 1.874761316 | K45: 1.903256486 | L45: 1.926631109 | M45: 1.938140818 | N45: 1.927716411 | O45: 1 | P45: North of England | Q45: =TRANSPOSE(_xlfn.XLOOKUP(P45,#REF!,#REF!)) ->  | Z45: =_xlfn.XLOOKUP(AA45,popdata!L:L,popdata!M:M) -> 2 | AA45: Greater Manchester Health and Social Care Partnership | AB45: =TRANSPOSE(_xlfn.XLOOKUP(AA45,ICSs!$2:$2,ICSs!$5:$10)) -> 2.338487347 | AC45: 2.338487347 | AD45: 2.338487347 | AE45: 2.339895573 | AF45: 2.335424341 | AG45: 2.340142127 | AH45: 8 | AI45: NHS Tameside and Glossop CCG | AJ45: =TRANSPOSE(_xlfn.XLOOKUP(AI45,CCGs!$3:$3,CCGs!$6:$14)) -> 2.550014088 | AK45: 2.629449163 | AL45: 2.677596754 | AM45: 2.734163734 | AN45: 2.827205151 | AO45: 2.907742928 | AP45: 3.028868907 | AQ45: 3.027189755 | AR45: 2.995646163
A46: 1 | B46: England | C46: 1.570742192 | D46: 1.629499397 | E46: 1.690227155 | F46: 1.740693653 | G46: 1.784149163 | H46: 1.820874195 | I46: 1.853139763 | J46: 1.874761316 | K46: 1.903256486 | L46: 1.926631109 | M46: 1.938140818 | N46: 1.927716411 | O46: 1 | P46: North of England | Q46: =TRANSPOSE(_xlfn.XLOOKUP(P46,#REF!,#REF!)) ->  | Z46: =_xlfn.XLOOKUP(AA46,popdata!L:L,popdata!M:M) -> 2 | AA46: Greater Manchester Health and Social Care Partnership | AB46: =TRANSPOSE(_xlfn.XLOOKUP(AA46,ICSs!$2:$2,ICSs!$5:$10)) -> 2.338487347 | AC46: 2.338487347 | AD46: 2.338487347 | AE46: 2.339895573 | AF46: 2.335424341 | AG46: 2.340142127 | AH46: 9 | AI46: NHS Trafford CCG | AJ46: =TRANSPOSE(_xlfn.XLOOKUP(AI46,CCGs!$3:$3,CCGs!$6:$14)) -> 1.693368663 | AK46: 1.822210966 | AL46: 1.878463259 | AM46: 1.897255418 | AN46: 1.952780413 | AO46: 1.960768085 | AP46: 1.980523348 | AQ46: 2.003480303 | AR46: 2.014075149
A47: 1 | B47: England | C47: 1.570742192 | D47: 1.629499397 | E47: 1.690227155 | F47: 1.740693653 | G47: 1.784149163 | H47: 1.820874195 | I47: 1.853139763 | J47: 1.874761316 | K47: 1.903256486 | L47: 1.926631109 | M47: 1.938140818 | N47: 1.927716411 | O47: 1 | P47: North of England | Q47: =TRANSPOSE(_xlfn.XLOOKUP(P47,#REF!,#REF!)) ->  | Z47: =_xlfn.XLOOKUP(AA47,popdata!L:L,popdata!M:M) -> 2 | AA47: Greater Manchester Health and Social Care Partnership | AB47: =TRANSPOSE(_xlfn.XLOOKUP(AA47,ICSs!$2:$2,ICSs!$5:$10)) -> 2.338487347 | AC47: 2.338487347 | AD47: 2.338487347 | AE47: 2.339895573 | AF47: 2.335424341 | AG47: 2.340142127 | AH47: 10 | AI47: NHS Wigan Borough CCG | AJ47: =TRANSPOSE(_xlfn.XLOOKUP(AI47,CCGs!$3:$3,CCGs!$6:$14)) -> 2.21530923 | AK47: 2.255962454 | AL47: 2.314968496 | AM47: 2.431194797 | AN47: 2.531334782 | AO47: 2.599389794 | AP47: 2.645368185 | AQ47: 2.647330354 | AR47: 2.673812758
A48: 1 | B48: England | C48: 1.570742192 | D48: 1.629499397 | E48: 1.690227155 | F48: 1.740693653 | G48: 1.784149163 | H48: 1.820874195 | I48: 1.853139763 | J48: 1.874761316 | K48: 1.903256486 | L48: 1.926631109 | M48: 1.938140818 | N48: 1.927716411 | O48: 1 | P48: North of England | Q48: =TRANSPOSE(_xlfn.XLOOKUP(P48,#REF!,#REF!)) ->  | Z48: =_xlfn.XLOOKUP(AA48,popdata!L:L,popdata!M:M) -> 2 | AA48: Greater Manchester Health and Social Care Partnership | AB48: =TRANSPOSE(_xlfn.XLOOKUP(AA48,ICSs!$2:$2,ICSs!$5:$10)) -> 2.338487347 | AC48: 2.338487347 | AD48: 2.338487347 | AE48: 2.339895573 | AF48: 2.335424341 | AG48: 2.340142127 | AH48: 11 | AI48: NHS Manchester CCG | AJ48: =TRANSPOSE(_xlfn.XLOOKUP(AI48,CCGs!$3:$3,CCGs!$6:$14)) -> 1.961957841 | AK48: 1.961957841 | AL48: 1.961957841 | AM48: 1.935419854 | AN48: 1.941487965 | AO48: 1.972709321 | AP48: 1.987210509 | AQ48: 1.967807874 | AR48: 1.967111524
A49: 1 | B49: England | C49: 1.570742192 | D49: 1.629499397 | E49: 1.690227155 | F49: 1.740693653 | G49: 1.784149163 | H49: 1.820874195 | I49: 1.853139763 | J49: 1.874761316 | K49: 1.903256486 | L49: 1.926631109 | M49: 1.938140818 | N49: 1.927716411 | O49: 1 | P49: North of England | Q49: =TRANSPOSE(_xlfn.XLOOKUP(P49,#REF!,#REF!)) ->  | Z49: =_xlfn.XLOOKUP(AA49,popdata!L:L,popdata!M:M) -> 3 | AA49: Cheshire and Merseyside | AB49: =TRANSPOSE(_xlfn.XLOOKUP(AA49,ICSs!$2:$2,ICSs!$5:$10)) -> 2.580706996 | AC49: 2.580706996 | AD49: 2.580706996 | AE49: 2.577636394 | AF49: 2.577795336 | AG49: 2.586689257 | AH49: 2 | AI49: NHS Halton CCG | AJ49: =TRANSPOSE(_xlfn.XLOOKUP(AI49,CCGs!$3:$3,CCGs!$6:$14)) -> 2.495723838 | AK49: 2.545598301 | AL49: 2.577015847 | AM49: 2.614311259 | AN49: 2.719257896 | AO49: 2.787982257 | AP49: 2.86600178 | AQ49: 2.890143083 | AR49: 2.891009393
A50: 1 | B50: England | C50: 1.570742192 | D50: 1.629499397 | E50: 1.690227155 | F50: 1.740693653 | G50: 1.784149163 | H50: 1.820874195 | I50: 1.853139763 | J50: 1.874761316 | K50: 1.903256486 | L50: 1.926631109 | M50: 1.938140818 | N50: 1.927716411 | O50: 1 | P50: North of England | Q50: =TRANSPOSE(_xlfn.XLOOKUP(P50,#REF!,#REF!)) ->  | Z50: =_xlfn.XLOOKUP(AA50,popdata!L:L,popdata!M:M) -> 3 | AA50: Cheshire and Merseyside | AB50: =TRANSPOSE(_xlfn.XLOOKUP(AA50,ICSs!$2:$2,ICSs!$5:$10)) -> 2.580706996 | AC50: 2.580706996 | AD50: 2.580706996 | AE50: 2.577636394 | AF50: 2.577795336 | AG50: 2.586689257 | AH50: 3 | AI50: NHS Knowsley CCG | AJ50: =TRANSPOSE(_xlfn.XLOOKUP(AI50,CCGs!$3:$3,CCGs!$6:$14)) -> 3.470540759 | AK50: 3.457478243 | AL50: 3.520365701 | AM50: 3.543586109 | AN50: 3.528490403 | AO50: 3.558488142 | AP50: 3.584151873 | AQ50: 3.594436572 | AR50: 3.613343217
A51: 1 | B51: England | C51: 1.570742192 | D51: 1.629499397 | E51: 1.690227155 | F51: 1.740693653 | G51: 1.784149163 | H51: 1.820874195 | I51: 1.853139763 | J51: 1.874761316 | K51: 1.903256486 | L51: 1.926631109 | M51: 1.938140818 | N51: 1.927716411 | O51: 1 | P51: North of England | Q51: =TRANSPOSE(_xlfn.XLOOKUP(P51,#REF!,#REF!)) ->  | Z51: =_xlfn.XLOOKUP(AA51,popdata!L:L,popdata!M:M) -> 3 | AA51: Cheshire and Merseyside | AB51: =TRANSPOSE(_xlfn.XLOOKUP(AA51,ICSs!$2:$2,ICSs!$5:$10)) -> 2.580706996 | AC51: 2.580706996 | AD51: 2.580706996 | AE51: 2.577636394 | AF51: 2.577795336 | AG51: 2.586689257 | AH51: 4 | AI51: NHS Liverpool CCG | AJ51: =TRANSPOSE(_xlfn.XLOOKUP(AI51,CCGs!$3:$3,CCGs!$6:$14)) -> 2.833213427 | AK51: 2.844705021 | AL51: 2.884733572 | AM51: 2.925053207 | AN51: 3.016070025 | AO51: 3.00754361 | AP51: 3.087898268 | AQ51: 3.11790951 | AR51: 3.067160423
A52: 1 | B52: England | C52: 1.570742192 | D52: 1.629499397 | E52: 1.690227155 | F52: 1.740693653 | G52: 1.784149163 | H52: 1.820874195 | I52: 1.853139763 | J52: 1.874761316 | K52: 1.903256486 | L52: 1.926631109 | M52: 1.938140818 | N52: 1.927716411 | O52: 1 | P52: North of England | Q52: =TRANSPOSE(_xlfn.XLOOKUP(P52,#REF!,#REF!)) ->  | Z52: =_xlfn.XLOOKUP(AA52,popdata!L:L,popdata!M:M) -> 3 | AA52: Cheshire and Merseyside | AB52: =TRANSPOSE(_xlfn.XLOOKUP(AA52,ICSs!$2:$2,ICSs!$5:$10)) -> 2.580706996 | AC52: 2.580706996 | AD52: 2.580706996 | AE52: 2.577636394 | AF52: 2.577795336 | AG52: 2.586689257 | AH52: 5 | AI52: NHS South Sefton CCG | AJ52: =TRANSPOSE(_xlfn.XLOOKUP(AI52,CCGs!$3:$3,CCGs!$6:$14)) -> 2.851486681 | AK52: 2.85887646 | AL52: 2.810328244 | AM52: 2.863086182 | AN52: 2.894910338 | AO52: 3.083083987 | AP52: 3.081660145 | AQ52: 2.99763865 | AR52: 2.999317031
A53: 1 | B53: England | C53: 1.570742192 | D53: 1.629499397 | E53: 1.690227155 | F53: 1.740693653 | G53: 1.784149163 | H53: 1.820874195 | I53: 1.853139763 | J53: 1.874761316 | K53: 1.903256486 | L53: 1.926631109 | M53: 1.938140818 | N53: 1.927716411 | O53: 1 | P53: North of England | Q53: =TRANSPOSE(_xlfn.XLOOKUP(P53,#REF!,#REF!)) ->  | Z53: =_xlfn.XLOOKUP(AA53,popdata!L:L,popdata!M:M) -> 3 | AA53: Cheshire and Merseyside | AB53: =TRANSPOSE(_xlfn.XLOOKUP(AA53,ICSs!$2:$2,ICSs!$5:$10)) -> 2.580706996 | AC53: 2.580706996 | AD53: 2.580706996 | AE53: 2.577636394 | AF53: 2.577795336 | AG53: 2.586689257 | AH53: 6 | AI53: NHS Southport and Formby CCG | AJ53: =TRANSPOSE(_xlfn.XLOOKUP(AI53,CCGs!$3:$3,CCGs!$6:$14)) -> 1.988462011 | AK53: 2.025475729 | AL53: 2.012659359 | AM53: 2.071187481 | AN53: 2.139261407 | AO53: 2.124615919 | AP53: 2.167652713 | AQ53: 2.05557943 | AR53: 2.178064968
A54: 1 | B54: England | C54: 1.570742192 | D54: 1.629499397 | E54: 1.690227155 | F54: 1.740693653 | G54: 1.784149163 | H54: 1.820874195 | I54: 1.853139763 | J54: 1.874761316 | K54: 1.903256486 | L54: 1.926631109 | M54: 1.938140818 | N54: 1.927716411 | O54: 1 | P54: North of England | Q54: =TRANSPOSE(_xlfn.XLOOKUP(P54,#REF!,#REF!)) ->  | Z54: =_xlfn.XLOOKUP(AA54,popdata!L:L,popdata!M:M) -> 3 | AA54: Cheshire and Merseyside | AB54: =TRANSPOSE(_xlfn.XLOOKUP(AA54,ICSs!$2:$2,ICSs!$5:$10)) -> 2.580706996 | AC54: 2.580706996 | AD54: 2.580706996 | AE54: 2.577636394 | AF54: 2.577795336 | AG54: 2.586689257 | AH54: 7 | AI54: NHS St Helens CCG | AJ54: =TRANSPOSE(_xlfn.XLOOKUP(AI54,CCGs!$3:$3,CCGs!$6:$14)) -> 3.024442709 | AK54: 3.068882337 | AL54: 3.01772322 | AM54: 3.001614331 | AN54: 3.034082521 | AO54: 3.065544054 | AP54: 3.127067415 | AQ54: 3.011132542 | AR54: 2.985141986
A55: 1 | B55: England | C55: 1.570742192 | D55: 1.629499397 | E55: 1.690227155 | F55: 1.740693653 | G55: 1.784149163 | H55: 1.820874195 | I55: 1.853139763 | J55: 1.874761316 | K55: 1.903256486 | L55: 1.926631109 | M55: 1.938140818 | N55: 1.927716411 | O55: 1 | P55: North of England | Q55: =TRANSPOSE(_xlfn.XLOOKUP(P55,#REF!,#REF!)) ->  | Z55: =_xlfn.XLOOKUP(AA55,popdata!L:L,popdata!M:M) -> 3 | AA55: Cheshire and Merseyside | AB55: =TRANSPOSE(_xlfn.XLOOKUP(AA55,ICSs!$2:$2,ICSs!$5:$10)) -> 2.580706996 | AC55: 2.580706996 | AD55: 2.580706996 | AE55: 2.577636394 | AF55: 2.577795336 | AG55: 2.586689257 | AH55: 8 | AI55: NHS Warrington CCG | AJ55: =TRANSPOSE(_xlfn.XLOOKUP(AI55,CCGs!$3:$3,CCGs!$6:$14)) -> 1.7801739 | AK55: 1.812931932 | AL55: 1.799910779 | AM55: 1.830113413 | AN55: 1.848624486 | AO55: 1.839621739 | AP55: 1.825820298 | AQ55: 1.818412445 | AR55: 1.840299015
A56: 1 | B56: England | C56: 1.570742192 | D56: 1.629499397 | E56: 1.690227155 | F56: 1.740693653 | G56: 1.784149163 | H56: 1.820874195 | I56: 1.853139763 | J56: 1.874761316 | K56: 1.903256486 | L56: 1.926631109 | M56: 1.938140818 | N56: 1.927716411 | O56: 1 | P56: North of England | Q56: =TRANSPOSE(_xlfn.XLOOKUP(P56,#REF!,#REF!)) ->  | Z56: =_xlfn.XLOOKUP(AA56,popdata!L:L,popdata!M:M) -> 3 | AA56: Cheshire and Merseyside | AB56: =TRANSPOSE(_xlfn.XLOOKUP(AA56,ICSs!$2:$2,ICSs!$5:$10)) -> 2.580706996 | AC56: 2.580706996 | AD56: 2.580706996 | AE56: 2.577636394 | AF56: 2.577795336 | AG56: 2.586689257 | AH56: 9 | AI56: NHS Wirral CCG | AJ56: =TRANSPOSE(_xlfn.XLOOKUP(AI56,CCGs!$3:$3,CCGs!$6:$14)) -> 2.359662871 | AK56: 2.299967801 | AL56: 2.402675577 | AM56: 2.445039758 | AN56: 2.437233373 | AO56: 2.538317041 | AP56: 2.58703517 | AQ56: 2.60470022 | AR56: 2.692984402
A57: 1 | B57: England | C57: 1.570742192 | D57: 1.629499397 | E57: 1.690227155 | F57: 1.740693653 | G57: 1.784149163 | H57: 1.820874195 | I57: 1.853139763 | J57: 1.874761316 | K57: 1.903256486 | L57: 1.926631109 | M57: 1.938140818 | N57: 1.927716411 | O57: 1 | P57: North of England | Q57: =TRANSPOSE(_xlfn.XLOOKUP(P57,#REF!,#REF!)) ->  | Z57: =_xlfn.XLOOKUP(AA57,popdata!L:L,popdata!M:M) -> 3 | AA57: Cheshire and Merseyside | AB57: =TRANSPOSE(_xlfn.XLOOKUP(AA57,ICSs!$2:$2,ICSs!$5:$10)) -> 2.580706996 | AC57: 2.580706996 | AD57: 2.580706996 | AE57: 2.577636394 | AF57: 2.577795336 | AG57: 2.586689257 | AH57: 10 | AI57: NHS Cheshire CCG | AJ57: =TRANSPOSE(_xlfn.XLOOKUP(AI57,CCGs!$3:$3,CCGs!$6:$14)) -> 2.020077584 | AK57: 2.020077584 | AL57: 2.020077584 | AM57: 2.020077584 | AN57: 2.020077584 | AO57: 2.020077584 | AP57: 2.020077584 | AQ57: 2.018292659 | AR57: 2.021862509
A58: 1 | B58: England | C58: 1.570742192 | D58: 1.629499397 | E58: 1.690227155 | F58: 1.740693653 | G58: 1.784149163 | H58: 1.820874195 | I58: 1.853139763 | J58: 1.874761316 | K58: 1.903256486 | L58: 1.926631109 | M58: 1.938140818 | N58: 1.927716411 | O58: 1 | P58: North of England | Q58: =TRANSPOSE(_xlfn.XLOOKUP(P58,#REF!,#REF!)) ->  | Z58: =_xlfn.XLOOKUP(AA58,popdata!L:L,popdata!M:M) -> 4 | AA58: South Yorkshire and Bassetlaw | AB58: =TRANSPOSE(_xlfn.XLOOKUP(AA58,ICSs!$2:$2,ICSs!$5:$10)) -> 2.640445132 | AC58: 2.640445132 | AD58: 2.640445132 | AE58: 2.650257854 | AF58: 2.648703328 | AG58: 2.622374214 | AH58: 2 | AI58: NHS Barnsley CCG | AJ58: =TRANSPOSE(_xlfn.XLOOKUP(AI58,CCGs!$3:$3,CCGs!$6:$14)) -> 3.077371633 | AK58: 3.128998396 | AL58: 3.165094283 | AM58: 3.148114262 | AN58: 3.16131355 | AO58: 3.255833609 | AP58: 3.31684886 | AQ58: 3.279548634 | AR58: 3.237207261
A59: 1 | B59: England | C59: 1.570742192 | D59: 1.629499397 | E59: 1.690227155 | F59: 1.740693653 | G59: 1.784149163 | H59: 1.820874195 | I59: 1.853139763 | J59: 1.874761316 | K59: 1.903256486 | L59: 1.926631109 | M59: 1.938140818 | N59: 1.927716411 | O59: 1 | P59: North of England | Q59: =TRANSPOSE(_xlfn.XLOOKUP(P59,#REF!,#REF!)) ->  | Z59: =_xlfn.XLOOKUP(AA59,popdata!L:L,popdata!M:M) -> 4 | AA59: South Yorkshire and Bassetlaw | AB59: =TRANSPOSE(_xlfn.XLOOKUP(AA59,ICSs!$2:$2,ICSs!$5:$10)) -> 2.640445132 | AC59: 2.640445132 | AD59: 2.640445132 | AE59: 2.650257854 | AF59: 2.648703328 | AG59: 2.622374214 | AH59: 3 | AI59: NHS Bassetlaw CCG | AJ59: =TRANSPOSE(_xlfn.XLOOKUP(AI59,CCGs!$3:$3,CCGs!$6:$14)) -> 2.43098365 | AK59: 2.474605768 | AL59: 2.498018843 | AM59: 2.536159916 | AN59: 2.467396017 | AO59: 2.566632883 | AP59: 2.662299931 | AQ59: 2.705327762 | AR59: 2.69674694
A60: 1 | B60: England | C60: 1.570742192 | D60: 1.629499397 | E60: 1.690227155 | F60: 1.740693653 | G60: 1.784149163 | H60: 1.820874195 | I60: 1.853139763 | J60: 1.874761316 | K60: 1.903256486 | L60: 1.926631109 | M60: 1.938140818 | N60: 1.927716411 | O60: 1 | P60: North of England | Q60: =TRANSPOSE(_xlfn.XLOOKUP(P60,#REF!,#REF!)) ->  | Z60: =_xlfn.XLOOKUP(AA60,popdata!L:L,popdata!M:M) -> 4 | AA60: South Yorkshire and Bassetlaw | AB60: =TRANSPOSE(_xlfn.XLOOKUP(AA60,ICSs!$2:$2,ICSs!$5:$10)) -> 2.640445132 | AC60: 2.640445132 | AD60: 2.640445132 | AE60: 2.650257854 | AF60: 2.648703328 | AG60: 2.622374214 | AH60: 4 | AI60: NHS Doncaster CCG | AJ60: =TRANSPOSE(_xlfn.XLOOKUP(AI60,CCGs!$3:$3,CCGs!$6:$14)) -> 2.581383725 | AK60: 2.615628137 | AL60: 2.63795036 | AM60: 2.682022761 | AN60: 2.715470814 | AO60: 2.758884516 | AP60: 2.847007036 | AQ60: 2.868927983 | AR60: 2.822658543
A61: 1 | B61: England | C61: 1.570742192 | D61: 1.629499397 | E61: 1.690227155 | F61: 1.740693653 | G61: 1.784149163 | H61: 1.820874195 | I61: 1.853139763 | J61: 1.874761316 | K61: 1.903256486 | L61: 1.926631109 | M61: 1.938140818 | N61: 1.927716411 | O61: 1 | P61: North of England | Q61: =TRANSPOSE(_xlfn.XLOOKUP(P61,#REF!,#REF!)) ->  | Z61: =_xlfn.XLOOKUP(AA61,popdata!L:L,popdata!M:M) -> 4 | AA61: South Yorkshire and Bassetlaw | AB61: =TRANSPOSE(_xlfn.XLOOKUP(AA61,ICSs!$2:$2,ICSs!$5:$10)) -> 2.640445132 | AC61: 2.640445132 | AD61: 2.640445132 | AE61: 2.650257854 | AF61: 2.648703328 | AG61: 2.622374214 | AH61: 5 | AI61: NHS Rotherham CCG | AJ61: =TRANSPOSE(_xlfn.XLOOKUP(AI61,CCGs!$3:$3,CCGs!$6:$14)) -> 2.619612611 | AK61: 2.689975912 | AL61: 2.741526472 | AM61: 2.83156748 | AN61: 2.811078958 | AO61: 2.926932066 | AP61: 3.002916665 | AQ61: 3.021304213 | AR61: 2.995923913
A62: 1 | B62: England | C62: 1.570742192 | D62: 1.629499397 | E62: 1.690227155 | F62: 1.740693653 | G62: 1.784149163 | H62: 1.820874195 | I62: 1.853139763 | J62: 1.874761316 | K62: 1.903256486 | L62: 1.926631109 | M62: 1.938140818 | N62: 1.927716411 | O62: 1 | P62: North of England | Q62: =TRANSPOSE(_xlfn.XLOOKUP(P62,#REF!,#REF!)) ->  | Z62: =_xlfn.XLOOKUP(AA62,popdata!L:L,popdata!M:M) -> 4 | AA62: South Yorkshire and Bassetlaw | AB62: =TRANSPOSE(_xlfn.XLOOKUP(AA62,ICSs!$2:$2,ICSs!$5:$10)) -> 2.640445132 | AC62: 2.640445132 | AD62: 2.640445132 | AE62: 2.650257854 | AF62: 2.648703328 | AG62: 2.622374214 | AH62: 6 | AI62: NHS Sheffield CCG | AJ62: =TRANSPOSE(_xlfn.XLOOKUP(AI62,CCGs!$3:$3,CCGs!$6:$14)) -> 1.943648041 | AK62: 1.971946771 | AL62: 2.008018431 | AM62: 2.057314457 | AN62: 2.047752414 | AO62: 2.068812026 | AP62: 2.102779536 | AQ62: 2.086057508 | AR62: 2.075834461
A63: 1 | B63: England | C63: 1.570742192 | D63: 1.629499397 | E63: 1.690227155 | F63: 1.740693653 | G63: 1.784149163 | H63: 1.820874195 | I63: 1.853139763 | J63: 1.874761316 | K63: 1.903256486 | L63: 1.926631109 | M63: 1.938140818 | N63: 1.927716411 | O63: 1 | P63: North of England | Q63: =TRANSPOSE(_xlfn.XLOOKUP(P63,#REF!,#REF!)) ->  | Z63: =_xlfn.XLOOKUP(AA63,popdata!L:L,popdata!M:M) -> 5 | AA63: Healthier Lancashire and South Cumbria | AB63: =TRANSPOSE(_xlfn.XLOOKUP(AA63,ICSs!$2:$2,ICSs!$5:$10)) -> 2.521101755 | AC63: 2.521101755 | AD63: 2.521101755 | AE63: 2.475218713 | AF63: 2.549018287 | AG63: 2.539068266 | AH63: 2 | AI63: NHS Blackburn with Darwen CCG | AJ63: =TRANSPOSE(_xlfn.XLOOKUP(AI63,CCGs!$3:$3,CCGs!$6:$14)) -> 2.147910803 | AK63: 2.172783218 | AL63: 2.28474409 | AM63: 2.243716431 | AN63: 2.264711129 | AO63: 2.232178574 | AP63: 2.113337933 | AQ63: 2.164574898 | AR63: 2.169288006
A64: 1 | B64: England | C64: 1.570742192 | D64: 1.629499397 | E64: 1.690227155 | F64: 1.740693653 | G64: 1.784149163 | H64: 1.820874195 | I64: 1.853139763 | J64: 1.874761316 | K64: 1.903256486 | L64: 1.926631109 | M64: 1.938140818 | N64: 1.927716411 | O64: 1 | P64: North of England | Q64: =TRANSPOSE(_xlfn.XLOOKUP(P64,#REF!,#REF!)) ->  | Z64: =_xlfn.XLOOKUP(AA64,popdata!L:L,popdata!M:M) -> 5 | AA64: Healthier Lancashire and South Cumbria | AB64: =TRANSPOSE(_xlfn.XLOOKUP(AA64,ICSs!$2:$2,ICSs!$5:$10)) -> 2.521101755 | AC64: 2.521101755 | AD64: 2.521101755 | AE64: 2.475218713 | AF64: 2.549018287 | AG64: 2.539068266 | AH64: 3 | AI64: NHS Blackpool CCG | AJ64: =TRANSPOSE(_xlfn.XLOOKUP(AI64,CCGs!$3:$3,CCGs!$6:$14)) -> 3.105647579 | AK64: 3.358846006 | AL64: 3.633008511 | AM64: 3.699261669 | AN64: 3.727873352 | AO64: 3.702592103 | AP64: 3.733768098 | AQ64: 3.764114715 | AR64: 3.81722581
A65: 1 | B65: England | C65: 1.570742192 | D65: 1.629499397 | E65: 1.690227155 | F65: 1.740693653 | G65: 1.784149163 | H65: 1.820874195 | I65: 1.853139763 | J65: 1.874761316 | K65: 1.903256486 | L65: 1.926631109 | M65: 1.938140818 | N65: 1.927716411 | O65: 1 | P65: North of England | Q65: =TRANSPOSE(_xlfn.XLOOKUP(P65,#REF!,#REF!)) ->  | Z65: =_xlfn.XLOOKUP(AA65,popdata!L:L,popdata!M:M) -> 5 | AA65: Healthier Lancashire and South Cumbria | AB65: =TRANSPOSE(_xlfn.XLOOKUP(AA65,ICSs!$2:$2,ICSs!$5:$10)) -> 2.521101755 | AC65: 2.521101755 | AD65: 2.521101755 | AE65: 2.475218713 | AF65: 2.549018287 | AG65: 2.539068266 | AH65: 4 | AI65: NHS Chorley and South Ribble CCG | AJ65: =TRANSPOSE(_xlfn.XLOOKUP(AI65,CCGs!$3:$3,CCGs!$6:$14)) -> 2.042861725 | AK65: 2.194599569 | AL65: 2.252751893 | AM65: 2.320549545 | AN65: 2.353089908 | AO65: 2.3518252 | AP65: 2.381119542 | AQ65: 2.405971285 | AR65: 2.321365547
A66: 1 | B66: England | C66: 1.570742192 | D66: 1.629499397 | E66: 1.690227155 | F66: 1.740693653 | G66: 1.784149163 | H66: 1.820874195 | I66: 1.853139763 | J66: 1.874761316 | K66: 1.903256486 | L66: 1.926631109 | M66: 1.938140818 | N66: 1.927716411 | O66: 1 | P66: North of England | Q66: =TRANSPOSE(_xlfn.XLOOKUP(P66,#REF!,#REF!)) ->  | Z66: =_xlfn.XLOOKUP(AA66,popdata!L:L,popdata!M:M) -> 5 | AA66: Healthier Lancashire and South Cumbria | AB66: =TRANSPOSE(_xlfn.XLOOKUP(AA66,ICSs!$2:$2,ICSs!$5:$10)) -> 2.521101755 | AC66: 2.521101755 | AD66: 2.521101755 | AE66: 2.475218713 | AF66: 2.549018287 | AG66: 2.539068266 | AH66: 5 | AI66: NHS East Lancashire CCG | AJ66: =TRANSPOSE(_xlfn.XLOOKUP(AI66,CCGs!$3:$3,CCGs!$6:$14)) -> 2.385761 | AK66: 2.420292351 | AL66: 2.445784004 | AM66: 2.492373439 | AN66: 2.558803112 | AO66: 2.595715367 | AP66: 2.499333959 | AQ66: 2.6258422 | AR66: 2.571115974
A67: 1 | B67: England | C67: 1.570742192 | D67: 1.629499397 | E67: 1.690227155 | F67: 1.740693653 | G67: 1.784149163 | H67: 1.820874195 | I67: 1.853139763 | J67: 1.874761316 | K67: 1.903256486 | L67: 1.926631109 | M67: 1.938140818 | N67: 1.927716411 | O67: 1 | P67: North of England | Q67: =TRANSPOSE(_xlfn.XLOOKUP(P67,#REF!,#REF!)) ->  | Z67: =_xlfn.XLOOKUP(AA67,popdata!L:L,popdata!M:M) -> 5 | AA67: Healthier Lancashire and South Cumbria | AB67: =TRANSPOSE(_xlfn.XLOOKUP(AA67,ICSs!$2:$2,ICSs!$5:$10)) -> 2.521101755 | AC67: 2.521101755 | AD67: 2.521101755 | AE67: 2.475218713 | AF67: 2.549018287 | AG67: 2.539068266 | AH67: 6 | AI67: NHS West Lancashire CCG | AJ67: =TRANSPOSE(_xlfn.XLOOKUP(AI67,CCGs!$3:$3,CCGs!$6:$14)) -> 2.12473318 | AK67: 2.138531077 | AL67: 2.178876581 | AM67: 2.135023246 | AN67: 2.287420073 | AO67: 2.300200875 | AP67: 2.266478222 | AQ67: 2.360168972 | AR67: 2.345223165
A68: 1 | B68: England | C68: 1.570742192 | D68: 1.629499397 | E68: 1.690227155 | F68: 1.740693653 | G68: 1.784149163 | H68: 1.820874195 | I68: 1.853139763 | J68: 1.874761316 | K68: 1.903256486 | L68: 1.926631109 | M68: 1.938140818 | N68: 1.927716411 | O68: 1 | P68: North of England | Q68: =TRANSPOSE(_xlfn.XLOOKUP(P68,#REF!,#REF!)) ->  | Z68: =_xlfn.XLOOKUP(AA68,popdata!L:L,popdata!M:M) -> 5 | AA68: Healthier Lancashire and South Cumbria | AB68: =TRANSPOSE(_xlfn.XLOOKUP(AA68,ICSs!$2:$2,ICSs!$5:$10)) -> 2.521101755 | AC68: 2.521101755 | AD68: 2.521101755 | AE68: 2.475218713 | AF68: 2.549018287 | AG68: 2.539068266 | AH68: 7 | AI68: NHS Fylde and Wyre CCG | AJ68: =TRANSPOSE(_xlfn.XLOOKUP(AI68,CCGs!$3:$3,CCGs!$6:$14)) -> 2.408275095 | AK68: 2.515765018 | AL68: 2.654767434 | AM68: 2.786438564 | AN68: 2.897850601 | AO68: 2.85946756 | AP68: 2.912686743 | AQ68: 2.975028719 | AR68: 2.934868746
A69: 1 | B69: England | C69: 1.570742192 | D69: 1.629499397 | E69: 1.690227155 | F69: 1.740693653 | G69: 1.784149163 | H69: 1.820874195 | I69: 1.853139763 | J69: 1.874761316 | K69: 1.903256486 | L69: 1.926631109 | M69: 1.938140818 | N69: 1.927716411 | O69: 1 | P69: North of England | Q69: =TRANSPOSE(_xlfn.XLOOKUP(P69,#REF!,#REF!)) ->  | Z69: =_xlfn.XLOOKUP(AA69,popdata!L:L,popdata!M:M) -> 5 | AA69: Healthier Lancashire and South Cumbria | AB69: =TRANSPOSE(_xlfn.XLOOKUP(AA69,ICSs!$2:$2,ICSs!$5:$10)) -> 2.521101755 | AC69: 2.521101755 | AD69: 2.521101755 | AE69: 2.475218713 | AF69: 2.549018287 | AG69: 2.539068266 | AH69: 8 | AI69: NHS Greater Preston CCG | AJ69: =TRANSPOSE(_xlfn.XLOOKUP(AI69,CCGs!$3:$3,CCGs!$6:$14)) -> 1.951182513 | AK69: 2.00636482 | AL69: 2.038157813 | AM69: 2.04346161 | AN69: 2.12915814 | AO69: 2.060875836 | AP69: 1.92138865 | AQ69: 2.08144115 | AR69: 2.100989597
A70: 1 | B70: England | C70: 1.570742192 | D70: 1.629499397 | E70: 1.690227155 | F70: 1.740693653 | G70: 1.784149163 | H70: 1.820874195 | I70: 1.853139763 | J70: 1.874761316 | K70: 1.903256486 | L70: 1.926631109 | M70: 1.938140818 | N70: 1.927716411 | O70: 1 | P70: North of England | Q70: =TRANSPOSE(_xlfn.XLOOKUP(P70,#REF!,#REF!)) ->  | Z70: =_xlfn.XLOOKUP(AA70,popdata!L:L,popdata!M:M) -> 5 | AA70: Healthier Lancashire and South Cumbria | AB70: =TRANSPOSE(_xlfn.XLOOKUP(AA70,ICSs!$2:$2,ICSs!$5:$10)) -> 2.521101755 | AC70: 2.521101755 | AD70: 2.521101755 | AE70: 2.475218713 | AF70: 2.549018287 | AG70: 2.539068266 | AH70: 9 | AI70: NHS Morecambe Bay CCG | AJ70: =TRANSPOSE(_xlfn.XLOOKUP(AI70,CCGs!$3:$3,CCGs!$6:$14)) -> 2.159319412 | AK70: 2.241976722 | AL70: 2.268857403 | AM70: 2.160996474 | AN70: 2.219333452 | AO70: 2.278135508 | AP70: 2.272999026 | AQ70: 2.270471573 | AR70: 2.301660018
A71: 1 | B71: England | C71: 1.570742192 | D71: 1.629499397 | E71: 1.690227155 | F71: 1.740693653 | G71: 1.784149163 | H71: 1.820874195 | I71: 1.853139763 | J71: 1.874761316 | K71: 1.903256486 | L71: 1.926631109 | M71: 1.938140818 | N71: 1.927716411 | O71: 1 | P71: North of England | Q71: =TRANSPOSE(_xlfn.XLOOKUP(P71,#REF!,#REF!)) ->  | Z71: =_xlfn.XLOOKUP(AA71,popdata!L:L,popdata!M:M) -> 6 | AA71: Cumbria and North East | AB71: =TRANSPOSE(_xlfn.XLOOKUP(AA71,ICSs!$2:$2,ICSs!$5:$10)) -> 2.922763859 | AC71: 2.922763859 | AD71: 2.922763859 | AE71: 2.922763859 | AF71: 2.920352253 | AG71: 2.925175464 | AH71: 2 | AI71: NHS North Tyneside CCG | AJ71: =TRANSPOSE(_xlfn.XLOOKUP(AI71,CCGs!$3:$3,CCGs!$6:$14)) -> 2.300040865 | AK71: 2.393089514 | AL71: 2.448792715 | AM71: 2.499539171 | AN71: 2.570599852 | AO71: 2.620484611 | AP71: 2.643651067 | AQ71: 2.645101313 | AR71: 2.616431422
A72: 1 | B72: England | C72: 1.570742192 | D72: 1.629499397 | E72: 1.690227155 | F72: 1.740693653 | G72: 1.784149163 | H72: 1.820874195 | I72: 1.853139763 | J72: 1.874761316 | K72: 1.903256486 | L72: 1.926631109 | M72: 1.938140818 | N72: 1.927716411 | O72: 1 | P72: North of England | Q72: =TRANSPOSE(_xlfn.XLOOKUP(P72,#REF!,#REF!)) ->  | Z72: =_xlfn.XLOOKUP(AA72,popdata!L:L,popdata!M:M) -> 6 | AA72: Cumbria and North East | AB72: =TRANSPOSE(_xlfn.XLOOKUP(AA72,ICSs!$2:$2,ICSs!$5:$10)) -> 2.922763859 | AC72: 2.922763859 | AD72: 2.922763859 | AE72: 2.922763859 | AF72: 2.920352253 | AG72: 2.925175464 | AH72: 3 | AI72: NHS Northumberland CCG | AJ72: =TRANSPOSE(_xlfn.XLOOKUP(AI72,CCGs!$3:$3,CCGs!$6:$14)) -> 2.447075352 | AK72: 2.508563243 | AL72: 2.546151124 | AM72: 2.614271672 | AN72: 2.687369179 | AO72: 2.737900142 | AP72: 2.800377097 | AQ72: 2.805220273 | AR72: 2.812030938
A73: 1 | B73: England | C73: 1.570742192 | D73: 1.629499397 | E73: 1.690227155 | F73: 1.740693653 | G73: 1.784149163 | H73: 1.820874195 | I73: 1.853139763 | J73: 1.874761316 | K73: 1.903256486 | L73: 1.926631109 | M73: 1.938140818 | N73: 1.927716411 | O73: 1 | P73: North of England | Q73: =TRANSPOSE(_xlfn.XLOOKUP(P73,#REF!,#REF!)) ->  | Z73: =_xlfn.XLOOKUP(AA73,popdata!L:L,popdata!M:M) -> 6 | AA73: Cumbria and North East | AB73: =TRANSPOSE(_xlfn.XLOOKUP(AA73,ICSs!$2:$2,ICSs!$5:$10)) -> 2.922763859 | AC73: 2.922763859 | AD73: 2.922763859 | AE73: 2.922763859 | AF73: 2.920352253 | AG73: 2.925175464 | AH73: 4 | AI73: NHS South Tyneside CCG | AJ73: =TRANSPOSE(_xlfn.XLOOKUP(AI73,CCGs!$3:$3,CCGs!$6:$14)) -> 3.554922649 | AK73: 3.624533513 | AL73: 3.720399281 | AM73: 3.726054629 | AN73: 3.734535341 | AO73: 3.720945311 | AP73: 3.745499114 | AQ73: 3.74114694 | AR73: 3.67995557
A74: 1 | B74: England | C74: 1.570742192 | D74: 1.629499397 | E74: 1.690227155 | F74: 1.740693653 | G74: 1.784149163 | H74: 1.820874195 | I74: 1.853139763 | J74: 1.874761316 | K74: 1.903256486 | L74: 1.926631109 | M74: 1.938140818 | N74: 1.927716411 | O74: 1 | P74: North of England | Q74: =TRANSPOSE(_xlfn.XLOOKUP(P74,#REF!,#REF!)) ->  | Z74: =_xlfn.XLOOKUP(AA74,popdata!L:L,popdata!M:M) -> 6 | AA74: Cumbria and North East | AB74: =TRANSPOSE(_xlfn.XLOOKUP(AA74,ICSs!$2:$2,ICSs!$5:$10)) -> 2.922763859 | AC74: 2.922763859 | AD74: 2.922763859 | AE74: 2.922763859 | AF74: 2.920352253 | AG74: 2.925175464 | AH74: 5 | AI74: NHS Sunderland CCG | AJ74: =TRANSPOSE(_xlfn.XLOOKUP(AI74,CCGs!$3:$3,CCGs!$6:$14)) -> 3.164735303 | AK74: 3.226580305 | AL74: 3.220480108 | AM74: 3.311260698 | AN74: 3.342226227 | AO74: 3.393202022 | AP74: 3.491778459 | AQ74: 3.471686523 | AR74: 3.511499246
A75: 1 | B75: England | C75: 1.570742192 | D75: 1.629499397 | E75: 1.690227155 | F75: 1.740693653 | G75: 1.784149163 | H75: 1.820874195 | I75: 1.853139763 | J75: 1.874761316 | K75: 1.903256486 | L75: 1.926631109 | M75: 1.938140818 | N75: 1.927716411 | O75: 1 | P75: North of England | Q75: =TRANSPOSE(_xlfn.XLOOKUP(P75,#REF!,#REF!)) ->  | Z75: =_xlfn.XLOOKUP(AA75,popdata!L:L,popdata!M:M) -> 6 | AA75: Cumbria and North East | AB75: =TRANSPOSE(_xlfn.XLOOKUP(AA75,ICSs!$2:$2,ICSs!$5:$10)) -> 2.922763859 | AC75: 2.922763859 | AD75: 2.922763859 | AE75: 2.922763859 | AF75: 2.920352253 | AG75: 2.925175464 | AH75: 6 | AI75: NHS Newcastle Gateshead CCG | AJ75: =TRANSPOSE(_xlfn.XLOOKUP(AI75,CCGs!$3:$3,CCGs!$6:$14)) -> 2.41902407 | AK75: 2.41902407 | AL75: 2.38966473 | AM75: 2.399748953 | AN75: 2.420509828 | AO75: 2.420944751 | AP75: 2.43003683 | AQ75: 2.430246732 | AR75: 2.442016665
A76: 1 | B76: England | C76: 1.570742192 | D76: 1.629499397 | E76: 1.690227155 | F76: 1.740693653 | G76: 1.784149163 | H76: 1.820874195 | I76: 1.853139763 | J76: 1.874761316 | K76: 1.903256486 | L76: 1.926631109 | M76: 1.938140818 | N76: 1.927716411 | O76: 1 | P76: North of England | Q76: =TRANSPOSE(_xlfn.XLOOKUP(P76,#REF!,#REF!)) ->  | Z76: =_xlfn.XLOOKUP(AA76,popdata!L:L,popdata!M:M) -> 6 | AA76: Cumbria and North East | AB76: =TRANSPOSE(_xlfn.XLOOKUP(AA76,ICSs!$2:$2,ICSs!$5:$10)) -> 2.922763859 | AC76: 2.922763859 | AD76: 2.922763859 | AE76: 2.922763859 | AF76: 2.920352253 | AG76: 2.925175464 | AH76: 7 | AI76: NHS North Cumbria CCG | AJ76: =TRANSPOSE(_xlfn.XLOOKUP(AI76,CCGs!$3:$3,CCGs!$6:$14)) -> 2.160661649 | AK76: 2.22464898 | AL76: 2.270874645 | AM76: 2.39801657 | AN76: 2.417173661 | AO76: 2.427810029 | AP76: 2.474039189 | AQ76: 2.488121493 | AR76: 2.514131289
A77: 1 | B77: England | C77: 1.570742192 | D77: 1.629499397 | E77: 1.690227155 | F77: 1.740693653 | G77: 1.784149163 | H77: 1.820874195 | I77: 1.853139763 | J77: 1.874761316 | K77: 1.903256486 | L77: 1.926631109 | M77: 1.938140818 | N77: 1.927716411 | O77: 1 | P77: North of England | Q77: =TRANSPOSE(_xlfn.XLOOKUP(P77,#REF!,#REF!)) ->  | Z77: =_xlfn.XLOOKUP(AA77,popdata!L:L,popdata!M:M) -> 6 | AA77: Cumbria and North East | AB77: =TRANSPOSE(_xlfn.XLOOKUP(AA77,ICSs!$2:$2,ICSs!$5:$10)) -> 2.922763859 | AC77: 2.922763859 | AD77: 2.922763859 | AE77: 2.922763859 | AF77: 2.920352253 | AG77: 2.925175464 | AH77: 8 | AI77: NHS County Durham CCG | AJ77: =TRANSPOSE(_xlfn.XLOOKUP(AI77,CCGs!$3:$3,CCGs!$6:$14)) -> 3.13652428 | AK77: 3.13652428 | AL77: 3.13652428 | AM77: 3.13652428 | AN77: 3.13652428 | AO77: 3.13652428 | AP77: 3.13652428 | AQ77: 3.12766146 | AR77: 3.1453871
A78: 1 | B78: England | C78: 1.570742192 | D78: 1.629499397 | E78: 1.690227155 | F78: 1.740693653 | G78: 1.784149163 | H78: 1.820874195 | I78: 1.853139763 | J78: 1.874761316 | K78: 1.903256486 | L78: 1.926631109 | M78: 1.938140818 | N78: 1.927716411 | O78: 1 | P78: North of England | Q78: =TRANSPOSE(_xlfn.XLOOKUP(P78,#REF!,#REF!)) ->  | Z78: =_xlfn.XLOOKUP(AA78,popdata!L:L,popdata!M:M) -> 6 | AA78: Cumbria and North East | AB78: =TRANSPOSE(_xlfn.XLOOKUP(AA78,ICSs!$2:$2,ICSs!$5:$10)) -> 2.922763859 | AC78: 2.922763859 | AD78: 2.922763859 | AE78: 2.922763859 | AF78: 2.920352253 | AG78: 2.925175464 | AH78: 9 | AI78: NHS Tees Valley CCG | AJ78: =TRANSPOSE(_xlfn.XLOOKUP(AI78,CCGs!$3:$3,CCGs!$6:$14)) -> 3.040816176 | AK78: 3.040816176 | AL78: 3.040816176 | AM78: 3.040816176 | AN78: 3.040816176 | AO78: 3.040816176 | AP78: 3.040816176 | AQ78: 3.031725293 | AR78: 3.049907059
A79: 1 | B79: England | C79: 1.570742192 | D79: 1.629499397 | E79: 1.690227155 | F79: 1.740693653 | G79: 1.784149163 | H79: 1.820874195 | I79: 1.853139763 | J79: 1.874761316 | K79: 1.903256486 | L79: 1.926631109 | M79: 1.938140818 | N79: 1.927716411 | O79: 1 | P79: North of England | Q79: =TRANSPOSE(_xlfn.XLOOKUP(P79,#REF!,#REF!)) ->  | Z79: =_xlfn.XLOOKUP(AA79,popdata!L:L,popdata!M:M) -> 7 | AA79: Humber, Coast and Vale | AB79: =TRANSPOSE(_xlfn.XLOOKUP(AA79,ICSs!$2:$2,ICSs!$5:$10)) -> 2.358204226 | AC79: 2.358204226 | AD79: 2.358204226 | AE79: 2.358204226 | AF79: 2.365292953 | AG79: 2.351115499 | AH79: 2 | AI79: NHS East Riding of Yorkshire CCG | AJ79: =TRANSPOSE(_xlfn.XLOOKUP(AI79,CCGs!$3:$3,CCGs!$6:$14)) -> 2.089425275 | AK79: 2.178384287 | AL79: 2.247816648 | AM79: 2.329212752 | AN79: 2.360497477 | AO79: 2.443853856 | AP79: 2.528263305 | AQ79: 2.554877612 | AR79: 2.550113606
A80: 1 | B80: England | C80: 1.570742192 | D80: 1.629499397 | E80: 1.690227155 | F80: 1.740693653 | G80: 1.784149163 | H80: 1.820874195 | I80: 1.853139763 | J80: 1.874761316 | K80: 1.903256486 | L80: 1.926631109 | M80: 1.938140818 | N80: 1.927716411 | O80: 1 | P80: North of England | Q80: =TRANSPOSE(_xlfn.XLOOKUP(P80,#REF!,#REF!)) ->  | Z80: =_xlfn.XLOOKUP(AA80,popdata!L:L,popdata!M:M) -> 7 | AA80: Humber, Coast and Vale | AB80: =TRANSPOSE(_xlfn.XLOOKUP(AA80,ICSs!$2:$2,ICSs!$5:$10)) -> 2.358204226 | AC80: 2.358204226 | AD80: 2.358204226 | AE80: 2.358204226 | AF80: 2.365292953 | AG80: 2.351115499 | AH80: 3 | AI80: NHS Hull CCG | AJ80: =TRANSPOSE(_xlfn.XLOOKUP(AI80,CCGs!$3:$3,CCGs!$6:$14)) -> 2.436781768 | AK80: 2.547157061 | AL80: 2.62265275 | AM80: 2.656968314 | AN80: 2.591440697 | AO80: 2.726995352 | AP80: 2.810044698 | AQ80: 2.87324056 | AR80: 2.850955977
A81: 1 | B81: England | C81: 1.570742192 | D81: 1.629499397 | E81: 1.690227155 | F81: 1.740693653 | G81: 1.784149163 | H81: 1.820874195 | I81: 1.853139763 | J81: 1.874761316 | K81: 1.903256486 | L81: 1.926631109 | M81: 1.938140818 | N81: 1.927716411 | O81: 1 | P81: North of England | Q81: =TRANSPOSE(_xlfn.XLOOKUP(P81,#REF!,#REF!)) ->  | Z81: =_xlfn.XLOOKUP(AA81,popdata!L:L,popdata!M:M) -> 7 | AA81: Humber, Coast and Vale | AB81: =TRANSPOSE(_xlfn.XLOOKUP(AA81,ICSs!$2:$2,ICSs!$5:$10)) -> 2.358204226 | AC81: 2.358204226 | AD81: 2.358204226 | AE81: 2.358204226 | AF81: 2.365292953 | AG81: 2.351115499 | AH81: 4 | AI81: NHS North East Lincolnshire CCG | AJ81: =TRANSPOSE(_xlfn.XLOOKUP(AI81,CCGs!$3:$3,CCGs!$6:$14)) -> 2.181370655 | AK81: 2.244792379 | AL81: 2.299279587 | AM81: 2.412838097 | AN81: 2.415391424 | AO81: 2.544442449 | AP81: 2.657666663 | AQ81: 2.739096888 | AR81: 2.772759268
A82: 1 | B82: England | C82: 1.570742192 | D82: 1.629499397 | E82: 1.690227155 | F82: 1.740693653 | G82: 1.784149163 | H82: 1.820874195 | I82: 1.853139763 | J82: 1.874761316 | K82: 1.903256486 | L82: 1.926631109 | M82: 1.938140818 | N82: 1.927716411 | O82: 1 | P82: North of England | Q82: =TRANSPOSE(_xlfn.XLOOKUP(P82,#REF!,#REF!)) ->  | Z82: =_xlfn.XLOOKUP(AA82,popdata!L:L,popdata!M:M) -> 7 | AA82: Humber, Coast and Vale | AB82: =TRANSPOSE(_xlfn.XLOOKUP(AA82,ICSs!$2:$2,ICSs!$5:$10)) -> 2.358204226 | AC82: 2.358204226 | AD82: 2.358204226 | AE82: 2.358204226 | AF82: 2.365292953 | AG82: 2.351115499 | AH82: 5 | AI82: NHS North Lincolnshire CCG | AJ82: =TRANSPOSE(_xlfn.XLOOKUP(AI82,CCGs!$3:$3,CCGs!$6:$14)) -> 1.963556671 | AK82: 2.043565475 | AL82: 2.114400832 | AM82: 2.170966522 | AN82: 2.250582596 | AO82: 2.325269343 | AP82: 2.408863553 | AQ82: 2.456814454 | AR82: 2.478881572
A83: 1 | B83: England | C83: 1.570742192 | D83: 1.629499397 | E83: 1.690227155 | F83: 1.740693653 | G83: 1.784149163 | H83: 1.820874195 | I83: 1.853139763 | J83: 1.874761316 | K83: 1.903256486 | L83: 1.926631109 | M83: 1.938140818 | N83: 1.927716411 | O83: 1 | P83: North of England | Q83: =TRANSPOSE(_xlfn.XLOOKUP(P83,#REF!,#REF!)) ->  | Z83: =_xlfn.XLOOKUP(AA83,popdata!L:L,popdata!M:M) -> 7 | AA83: Humber, Coast and Vale | AB83: =TRANSPOSE(_xlfn.XLOOKUP(AA83,ICSs!$2:$2,ICSs!$5:$10)) -> 2.358204226 | AC83: 2.358204226 | AD83: 2.358204226 | AE83: 2.358204226 | AF83: 2.365292953 | AG83: 2.351115499 | AH83: 6 | AI83: NHS Vale of York CCG | AJ83: =TRANSPOSE(_xlfn.XLOOKUP(AI83,CCGs!$3:$3,CCGs!$6:$14)) -> 1.665375794 | AK83: 1.613512228 | AL83: 1.65228289 | AM83: 1.693175692 | AN83: 1.667844562 | AO83: 1.724186221 | AP83: 1.764139937 | AQ83: 1.732058553 | AR83: 1.703529051
A84: 1 | B84: England | C84: 1.570742192 | D84: 1.629499397 | E84: 1.690227155 | F84: 1.740693653 | G84: 1.784149163 | H84: 1.820874195 | I84: 1.853139763 | J84: 1.874761316 | K84: 1.903256486 | L84: 1.926631109 | M84: 1.938140818 | N84: 1.927716411 | O84: 1 | P84: North of England | Q84: =TRANSPOSE(_xlfn.XLOOKUP(P84,#REF!,#REF!)) ->  | Z84: =_xlfn.XLOOKUP(AA84,popdata!L:L,popdata!M:M) -> 7 | AA84: Humber, Coast and Vale | AB84: =TRANSPOSE(_xlfn.XLOOKUP(AA84,ICSs!$2:$2,ICSs!$5:$10)) -> 2.358204226 | AC84: 2.358204226 | AD84: 2.358204226 | AE84: 2.358204226 | AF84: 2.365292953 | AG84: 2.351115499 | AH84: 7 | AI84: NHS North Yorkshire CCG | AJ84: =TRANSPOSE(_xlfn.XLOOKUP(AI84,CCGs!$3:$3,CCGs!$6:$14)) -> 2.201335876 | AK84: 2.201335876 | AL84: 2.201335876 | AM84: 2.201335876 | AN84: 2.201335876 | AO84: 2.201335876 | AP84: 2.201335876 | AQ84: 2.215997698 | AR84: 2.186674053
A85: 1 | B85: England | C85: 1.570742192 | D85: 1.629499397 | E85: 1.690227155 | F85: 1.740693653 | G85: 1.784149163 | H85: 1.820874195 | I85: 1.853139763 | J85: 1.874761316 | K85: 1.903256486 | L85: 1.926631109 | M85: 1.938140818 | N85: 1.927716411 | O85: 1 | P85: North of England | Q85: =TRANSPOSE(_xlfn.XLOOKUP(P85,#REF!,#REF!)) ->  | Z85: =_xlfn.XLOOKUP(AA85,popdata!L:L,popdata!M:M) -> 8 | AA85: West Yorkshire and Harrogate (Health and Care Partnership) | AB85: =TRANSPOSE(_xlfn.XLOOKUP(AA85,ICSs!$2:$2,ICSs!$5:$10)) -> 2.210702367 | AC85: 2.210702367 | AD85: 2.210702367 | AE85: 2.210702367 | AF85: 2.218012426 | AG85: 2.203392309 | AH85: 2 | AI85: NHS Calderdale CCG | AJ85: =TRANSPOSE(_xlfn.XLOOKUP(AI85,CCGs!$3:$3,CCGs!$6:$14)) -> 1.905757891 | AK85: 2.015035083 | AL85: 2.107731574 | AM85: 2.200010069 | AN85: 2.254034002 | AO85: 2.258262438 | AP85: 2.286051882 | AQ85: 2.296293962 | AR85: 2.308194654
A86: 1 | B86: England | C86: 1.570742192 | D86: 1.629499397 | E86: 1.690227155 | F86: 1.740693653 | G86: 1.784149163 | H86: 1.820874195 | I86: 1.853139763 | J86: 1.874761316 | K86: 1.903256486 | L86: 1.926631109 | M86: 1.938140818 | N86: 1.927716411 | O86: 1 | P86: North of England | Q86: =TRANSPOSE(_xlfn.XLOOKUP(P86,#REF!,#REF!)) ->  | Z86: =_xlfn.XLOOKUP(AA86,popdata!L:L,popdata!M:M) -> 8 | AA86: West Yorkshire and Harrogate (Health and Care Partnership) | AB86: =TRANSPOSE(_xlfn.XLOOKUP(AA86,ICSs!$2:$2,ICSs!$5:$10)) -> 2.210702367 | AC86: 2.210702367 | AD86: 2.210702367 | AE86: 2.210702367 | AF86: 2.218012426 | AG86: 2.203392309 | AH86: 3 | AI86: NHS Kirklees CCG | AJ86: =TRANSPOSE(_xlfn.XLOOKUP(AI86,CCGs!$3:$3,CCGs!$6:$14)) -> 2.119159027 | AK86: 2.119159027 | AL86: 2.119159027 | AM86: 2.119159027 | AN86: 2.119159027 | AO86: 2.119159027 | AP86: 2.119159027 | AQ86: 2.136435248 | AR86: 2.101882806
A87: 1 | B87: England | C87: 1.570742192 | D87: 1.629499397 | E87: 1.690227155 | F87: 1.740693653 | G87: 1.784149163 | H87: 1.820874195 | I87: 1.853139763 | J87: 1.874761316 | K87: 1.903256486 | L87: 1.926631109 | M87: 1.938140818 | N87: 1.927716411 | O87: 1 | P87: North of England | Q87: =TRANSPOSE(_xlfn.XLOOKUP(P87,#REF!,#REF!)) ->  | Z87: =_xlfn.XLOOKUP(AA87,popdata!L:L,popdata!M:M) -> 8 | AA87: West Yorkshire and Harrogate (Health and Care Partnership) | AB87: =TRANSPOSE(_xlfn.XLOOKUP(AA87,ICSs!$2:$2,ICSs!$5:$10)) -> 2.210702367 | AC87: 2.210702367 | AD87: 2.210702367 | AE87: 2.210702367 | AF87: 2.218012426 | AG87: 2.203392309 | AH87: 4 | AI87: NHS Wakefield CCG | AJ87: =TRANSPOSE(_xlfn.XLOOKUP(AI87,CCGs!$3:$3,CCGs!$6:$14)) -> 2.737284663 | AK87: 2.811939015 | AL87: 2.827228031 | AM87: 2.852534474 | AN87: 2.846259225 | AO87: 2.873751044 | AP87: 2.851443447 | AQ87: 2.841786998 | AR87: 2.809016468
A88: 1 | B88: England | C88: 1.570742192 | D88: 1.629499397 | E88: 1.690227155 | F88: 1.740693653 | G88: 1.784149163 | H88: 1.820874195 | I88: 1.853139763 | J88: 1.874761316 | K88: 1.903256486 | L88: 1.926631109 | M88: 1.938140818 | N88: 1.927716411 | O88: 1 | P88: North of England | Q88: =TRANSPOSE(_xlfn.XLOOKUP(P88,#REF!,#REF!)) ->  | Z88: =_xlfn.XLOOKUP(AA88,popdata!L:L,popdata!M:M) -> 8 | AA88: West Yorkshire and Harrogate (Health and Care Partnership) | AB88: =TRANSPOSE(_xlfn.XLOOKUP(AA88,ICSs!$2:$2,ICSs!$5:$10)) -> 2.210702367 | AC88: 2.210702367 | AD88: 2.210702367 | AE88: 2.210702367 | AF88: 2.218012426 | AG88: 2.203392309 | AH88: 5 | AI88: NHS Leeds CCG | AJ88: =TRANSPOSE(_xlfn.XLOOKUP(AI88,CCGs!$3:$3,CCGs!$6:$14)) -> 2.000298474 | AK88: 2.000298474 | AL88: 2.000298474 | AM88: 2.000298474 | AN88: 2.000298474 | AO88: 1.96042157 | AP88: 2.001083916 | AQ88: 2.024065045 | AR88: 2.015623364
A89: 1 | B89: England | C89: 1.570742192 | D89: 1.629499397 | E89: 1.690227155 | F89: 1.740693653 | G89: 1.784149163 | H89: 1.820874195 | I89: 1.853139763 | J89: 1.874761316 | K89: 1.903256486 | L89: 1.926631109 | M89: 1.938140818 | N89: 1.927716411 | O89: 1 | P89: North of England | Q89: =TRANSPOSE(_xlfn.XLOOKUP(P89,#REF!,#REF!)) ->  | Z89: =_xlfn.XLOOKUP(AA89,popdata!L:L,popdata!M:M) -> 8 | AA89: West Yorkshire and Harrogate (Health and Care Partnership) | AB89: =TRANSPOSE(_xlfn.XLOOKUP(AA89,ICSs!$2:$2,ICSs!$5:$10)) -> 2.210702367 | AC89: 2.210702367 | AD89: 2.210702367 | AE89: 2.210702367 | AF89: 2.218012426 | AG89: 2.203392309 | AH89: 6 | AI89: NHS Bradford District and Craven CCG | AJ89: =TRANSPOSE(_xlfn.XLOOKUP(AI89,CCGs!$3:$3,CCGs!$6:$14)) -> 2.14928391 | AK89: 2.14928391 | AL89: 2.14928391 | AM89: 2.14928391 | AN89: 2.14928391 | AO89: 2.14928391 | AP89: 2.14928391 | AQ89: 2.161106719 | AR89: 2.137461101
A90: 1 | B90: England | C90: 1.570742192 | D90: 1.629499397 | E90: 1.690227155 | F90: 1.740693653 | G90: 1.784149163 | H90: 1.820874195 | I90: 1.853139763 | J90: 1.874761316 | K90: 1.903256486 | L90: 1.926631109 | M90: 1.938140818 | N90: 1.927716411 | O90: 4 | P90: South of England | Q90: =TRANSPOSE(_xlfn.XLOOKUP(P90,#REF!,#REF!)) ->  | Z90: =_xlfn.XLOOKUP(AA90,popdata!L:L,popdata!M:M) -> 2 | AA90: Kent and Medway | AB90: =TRANSPOSE(_xlfn.XLOOKUP(AA90,ICSs!$2:$2,ICSs!$5:$10)) -> 1.926537053 | AC90: 1.973208878 | AD90: 2.001595586 | AE90: 2.051863134 | AF90: 2.054288975 | AG90: 2.050975491 | AH90: 1 | AI90: NHS Kent and Medway CCG | AJ90: =TRANSPOSE(_xlfn.XLOOKUP(AI90,CCGs!$3:$3,CCGs!$6:$14)) -> 2.05391738 | AK90: 2.05391738 | AL90: 2.05391738 | AM90: 2.05391738 | AN90: 2.05391738 | AO90: 2.05391738 | AP90: 2.05391738 | AQ90: 2.056859269 | AR90: 2.050975491
A91: 1 | B91: England | C91: 1.570742192 | D91: 1.629499397 | E91: 1.690227155 | F91: 1.740693653 | G91: 1.784149163 | H91: 1.820874195 | I91: 1.853139763 | J91: 1.874761316 | K91: 1.903256486 | L91: 1.926631109 | M91: 1.938140818 | N91: 1.927716411 | O91: 4 | P91: South of England | Q91: =TRANSPOSE(_xlfn.XLOOKUP(P91,#REF!,#REF!)) ->  | Z91: =_xlfn.XLOOKUP(AA91,popdata!L:L,popdata!M:M) -> 3 | AA91: Frimley Health and Care ICS | AB91: =TRANSPOSE(_xlfn.XLOOKUP(AA91,ICSs!$2:$2,ICSs!$5:$10)) -> 1.174112408 | AC91: 1.214651565 | AD91: 1.262973791 | AE91: 1.287841906 | AF91: 1.288349903 | AG91: 1.281792968 | AH91: 1 | AI91: NHS Frimley CCG | AJ91: =TRANSPOSE(_xlfn.XLOOKUP(AI91,CCGs!$3:$3,CCGs!$6:$14)) -> 1.285071435 | AK91: 1.285071435 | AL91: 1.285071435 | AM91: 1.285071435 | AN91: 1.285071435 | AO91: 1.285071435 | AP91: 1.285071435 | AQ91: 1.288349903 | AR91: 1.281792968
A92: 1 | B92: England | C92: 1.570742192 | D92: 1.629499397 | E92: 1.690227155 | F92: 1.740693653 | G92: 1.784149163 | H92: 1.820874195 | I92: 1.853139763 | J92: 1.874761316 | K92: 1.903256486 | L92: 1.926631109 | M92: 1.938140818 | N92: 1.927716411 | O92: 4 | P92: South of England | Q92: =TRANSPOSE(_xlfn.XLOOKUP(P92,#REF!,#REF!)) ->  | Z92: =_xlfn.XLOOKUP(AA92,popdata!L:L,popdata!M:M) -> 4 | AA92: Cornwall and the Isles of Scilly Health and Social Care Partnership | AB92: =TRANSPOSE(_xlfn.XLOOKUP(AA92,ICSs!$2:$2,ICSs!$5:$10)) -> 2.122833244 | AC92: 2.161137507 | AD92: 2.207668082 | AE92: 2.197594863 | AF92: 2.349394504 | AG92: 2.379400921 | AH92: 1 | AI92: NHS Kernow CCG | AJ92: =TRANSPOSE(_xlfn.XLOOKUP(AI92,CCGs!$3:$3,CCGs!$6:$14)) -> 1.921771783 | AK92: 2.000901371 | AL92: 2.075582215 | AM92: 2.122833244 | AN92: 2.161137507 | AO92: 2.118532249 | AP92: 2.197594863 | AQ92: 2.349394504 | AR92: 2.379400921
A93: 1 | B93: England | C93: 1.570742192 | D93: 1.629499397 | E93: 1.690227155 | F93: 1.740693653 | G93: 1.784149163 | H93: 1.820874195 | I93: 1.853139763 | J93: 1.874761316 | K93: 1.903256486 | L93: 1.926631109 | M93: 1.938140818 | N93: 1.927716411 | O93: 4 | P93: South of England | Q93: =TRANSPOSE(_xlfn.XLOOKUP(P93,#REF!,#REF!)) ->  | Z93: =_xlfn.XLOOKUP(AA93,popdata!L:L,popdata!M:M) -> 5 | AA93: Devon | AB93: =TRANSPOSE(_xlfn.XLOOKUP(AA93,ICSs!$2:$2,ICSs!$5:$10)) -> 2.104482342 | AC93: 2.165553213 | AD93: 2.200815086 | AE93: 2.271498657 | AF93: 2.308500233 | AG93: 2.324645057 | AH93: 1 | AI93: NHS Devon CCG | AJ93: =TRANSPOSE(_xlfn.XLOOKUP(AI93,CCGs!$3:$3,CCGs!$6:$14)) -> 2.271465669 | AK93: 2.271465669 | AL93: 2.271465669 | AM93: 2.271465669 | AN93: 2.271465669 | AO93: 2.188807272 | AP93: 2.271498657 | AQ93: 2.30091169 | AR93: 2.324645057
A94: 1 | B94: England | C94: 1.570742192 | D94: 1.629499397 | E94: 1.690227155 | F94: 1.740693653 | G94: 1.784149163 | H94: 1.820874195 | I94: 1.853139763 | J94: 1.874761316 | K94: 1.903256486 | L94: 1.926631109 | M94: 1.938140818 | N94: 1.927716411 | O94: 4 | P94: South of England | Q94: =TRANSPOSE(_xlfn.XLOOKUP(P94,#REF!,#REF!)) ->  | Z94: =_xlfn.XLOOKUP(AA94,popdata!L:L,popdata!M:M) -> 6 | AA94: Somerset | AB94: =TRANSPOSE(_xlfn.XLOOKUP(AA94,ICSs!$2:$2,ICSs!$5:$10)) -> 2.126023806 | AC94: 2.186274217 | AD94: 2.253338763 | AE94: 2.329975679 | AF94: 2.338158758 | AG94: 2.303447268 | AH94: 1 | AI94: NHS Somerset CCG | AJ94: =TRANSPOSE(_xlfn.XLOOKUP(AI94,CCGs!$3:$3,CCGs!$6:$14)) -> 1.916192345 | AK94: 1.999253158 | AL94: 2.038895465 | AM94: 2.126023806 | AN94: 2.186274217 | AO94: 2.254113731 | AP94: 2.329975679 | AQ94: 2.338158758 | AR94: 2.303447268
A95: 1 | B95: England | C95: 1.570742192 | D95: 1.629499397 | E95: 1.690227155 | F95: 1.740693653 | G95: 1.784149163 | H95: 1.820874195 | I95: 1.853139763 | J95: 1.874761316 | K95: 1.903256486 | L95: 1.926631109 | M95: 1.938140818 | N95: 1.927716411 | O95: 4 | P95: South of England | Q95: =TRANSPOSE(_xlfn.XLOOKUP(P95,#REF!,#REF!)) ->  | Z95: =_xlfn.XLOOKUP(AA95,popdata!L:L,popdata!M:M) -> 7 | AA95: Bristol, North Somerset and South Gloucestershire | AB95: =TRANSPOSE(_xlfn.XLOOKUP(AA95,ICSs!$2:$2,ICSs!$5:$10)) -> 1.702412488 | AC95: 1.762679143 | AD95: 1.78526787 | AE95: 1.81225563 | AF95: 1.807071257 | AG95: 1.818021366 | AH95: 1 | AI95: NHS Bristol, North Somerset and South Gloucestershire CCG | AJ95: =TRANSPOSE(_xlfn.XLOOKUP(AI95,CCGs!$3:$3,CCGs!$6:$14)) -> 1.798508481 | AK95: 1.798508481 | AL95: 1.798508481 | AM95: 1.798508481 | AN95: 1.798508481 | AO95: 1.758471651 | AP95: 1.81225563 | AQ95: 1.805285278 | AR95: 1.818021366
A96: 1 | B96: England | C96: 1.570742192 | D96: 1.629499397 | E96: 1.690227155 | F96: 1.740693653 | G96: 1.784149163 | H96: 1.820874195 | I96: 1.853139763 | J96: 1.874761316 | K96: 1.903256486 | L96: 1.926631109 | M96: 1.938140818 | N96: 1.927716411 | O96: 4 | P96: South of England | Q96: =TRANSPOSE(_xlfn.XLOOKUP(P96,#REF!,#REF!)) ->  | Z96: =_xlfn.XLOOKUP(AA96,popdata!L:L,popdata!M:M) -> 8 | AA96: Bath and North East Somerset, Swindon and Wiltshire | AB96: =TRANSPOSE(_xlfn.XLOOKUP(AA96,ICSs!$2:$2,ICSs!$5:$10)) -> 1.639658477 | AC96: 1.664287519 | AD96: 1.678657844 | AE96: 1.719431084 | AF96: 1.738693028 | AG96: 1.724533402 | AH96: 1 | AI96: NHS Bath and North East Somerset, Swindon and Wiltshire CCG | AJ96: =TRANSPOSE(_xlfn.XLOOKUP(AI96,CCGs!$3:$3,CCGs!$6:$14)) -> 1.731613215 | AK96: 1.731613215 | AL96: 1.731613215 | AM96: 1.731613215 | AN96: 1.731613215 | AO96: 1.731613215 | AP96: 1.731613215 | AQ96: 1.738693028 | AR96: 1.724533402
A97: 1 | B97: England | C97: 1.570742192 | D97: 1.629499397 | E97: 1.690227155 | F97: 1.740693653 | G97: 1.784149163 | H97: 1.820874195 | I97: 1.853139763 | J97: 1.874761316 | K97: 1.903256486 | L97: 1.926631109 | M97: 1.938140818 | N97: 1.927716411 | O97: 4 | P97: South of England | Q97: =TRANSPOSE(_xlfn.XLOOKUP(P97,#REF!,#REF!)) ->  | Z97: =_xlfn.XLOOKUP(AA97,popdata!L:L,popdata!M:M) -> 9 | AA97: Dorset | AB97: =TRANSPOSE(_xlfn.XLOOKUP(AA97,ICSs!$2:$2,ICSs!$5:$10)) -> 1.922554286 | AC97: 2.015697489 | AD97: 2.099067803 | AE97: 2.157783237 | AF97: 2.192688156 | AG97: 2.182421342 | AH97: 1 | AI97: NHS Dorset CCG | AJ97: =TRANSPOSE(_xlfn.XLOOKUP(AI97,CCGs!$3:$3,CCGs!$6:$14)) -> 1.758784854 | AK97: 1.81506167 | AL97: 1.862437671 | AM97: 1.922554286 | AN97: 2.015697489 | AO97: 2.082621839 | AP97: 2.157783237 | AQ97: 2.193479656 | AR97: 2.182421342
A98: 1 | B98: England | C98: 1.570742192 | D98: 1.629499397 | E98: 1.690227155 | F98: 1.740693653 | G98: 1.784149163 | H98: 1.820874195 | I98: 1.853139763 | J98: 1.874761316 | K98: 1.903256486 | L98: 1.926631109 | M98: 1.938140818 | N98: 1.927716411 | O98: 4 | P98: South of England | Q98: =TRANSPOSE(_xlfn.XLOOKUP(P98,#REF!,#REF!)) ->  | Z98: =_xlfn.XLOOKUP(AA98,popdata!L:L,popdata!M:M) -> 10 | AA98: Hampshire and the Isle of Wight | AB98: =TRANSPOSE(_xlfn.XLOOKUP(AA98,ICSs!$2:$2,ICSs!$5:$10)) -> 1.776297822 | AC98: 1.828270647 | AD98: 1.890306106 | AE98: 1.908200801 | AF98: 1.972488764 | AG98: 1.995028987 | AH98: 2 | AI98: NHS Hampshire, Southampton and Isle of Wight CCG | AJ98: =TRANSPOSE(_xlfn.XLOOKUP(AI98,CCGs!$3:$3,CCGs!$6:$14)) -> 1.952393139 | AK98: 1.952393139 | AL98: 1.952393139 | AM98: 1.952393139 | AN98: 1.952393139 | AO98: 1.952393139 | AP98: 1.952393139 | AQ98: 1.933664174 | AR98: 1.971122104
A99: 1 | B99: England | C99: 1.570742192 | D99: 1.629499397 | E99: 1.690227155 | F99: 1.740693653 | G99: 1.784149163 | H99: 1.820874195 | I99: 1.853139763 | J99: 1.874761316 | K99: 1.903256486 | L99: 1.926631109 | M99: 1.938140818 | N99: 1.927716411 | O99: 4 | P99: South of England | Q99: =TRANSPOSE(_xlfn.XLOOKUP(P99,#REF!,#REF!)) ->  | Z99: =_xlfn.XLOOKUP(AA99,popdata!L:L,popdata!M:M) -> 10 | AA99: Hampshire and the Isle of Wight | AB99: =TRANSPOSE(_xlfn.XLOOKUP(AA99,ICSs!$2:$2,ICSs!$5:$10)) -> 1.776297822 | AC99: 1.828270647 | AD99: 1.890306106 | AE99: 1.908200801 | AF99: 1.972488764 | AG99: 1.995028987 | AH99: 3 | AI99: NHS Portsmouth CCG | AJ99: =TRANSPOSE(_xlfn.XLOOKUP(AI99,CCGs!$3:$3,CCGs!$6:$14)) -> 1.795254611 | AK99: 1.885472306 | AL99: 1.952292537 | AM99: 2.00498482 | AN99: 1.926214629 | AO99: 2.080438286 | AP99: 2.093581232 | AQ99: 2.028251984 | AR99: 2.168773144
A100: 1 | B100: England | C100: 1.570742192 | D100: 1.629499397 | E100: 1.690227155 | F100: 1.740693653 | G100: 1.784149163 | H100: 1.820874195 | I100: 1.853139763 | J100: 1.874761316 | K100: 1.903256486 | L100: 1.926631109 | M100: 1.938140818 | N100: 1.927716411 | O100: 4 | P100: South of England | Q100: =TRANSPOSE(_xlfn.XLOOKUP(P100,#REF!,#REF!)) ->  | Z100: =_xlfn.XLOOKUP(AA100,popdata!L:L,popdata!M:M) -> 11 | AA100: Gloucestershire | AB100: =TRANSPOSE(_xlfn.XLOOKUP(AA100,ICSs!$2:$2,ICSs!$5:$10)) -> 1.738129224 | AC100: 1.784159798 | AD100: 1.817956088 | AE100: 1.828091309 | AF100: 1.856919291 | AG100: 1.855814917 | AH100: 1 | AI100: NHS Gloucestershire CCG | AJ100: =TRANSPOSE(_xlfn.XLOOKUP(AI100,CCGs!$3:$3,CCGs!$6:$14)) -> 1.643833409 | AK100: 1.683879874 | AL100: 1.715307634 | AM100: 1.738129224 | AN100: 1.784159798 | AO100: 1.810311895 | AP100: 1.828091309 | AQ100: 1.849834257 | AR100: 1.855814917
A101: 1 | B101: England | C101: 1.570742192 | D101: 1.629499397 | E101: 1.690227155 | F101: 1.740693653 | G101: 1.784149163 | H101: 1.820874195 | I101: 1.853139763 | J101: 1.874761316 | K101: 1.903256486 | L101: 1.926631109 | M101: 1.938140818 | N101: 1.927716411 | O101: 4 | P101: South of England | Q101: =TRANSPOSE(_xlfn.XLOOKUP(P101,#REF!,#REF!)) ->  | Z101: =_xlfn.XLOOKUP(AA101,popdata!L:L,popdata!M:M) -> 12 | AA101: Buckinghamshire, Oxfordshire and Berkshire West | AB101: =TRANSPOSE(_xlfn.XLOOKUP(AA101,ICSs!$2:$2,ICSs!$5:$10)) -> 1.28237872 | AC101: 1.299075229 | AD101: 1.299068608 | AE101: 1.342190122 | AF101: 1.334661543 | AG101: 1.326336033 | AH101: 2 | AI101: NHS Oxfordshire CCG | AJ101: =TRANSPOSE(_xlfn.XLOOKUP(AI101,CCGs!$3:$3,CCGs!$6:$14)) -> 1.212807221 | AK101: 1.253317079 | AL101: 1.288331048 | AM101: 1.343509308 | AN101: 1.355636431 | AO101: 1.377697256 | AP101: 1.400621854 | AQ101: 1.385867672 | AR101: 1.384908652
A102: 1 | B102: England | C102: 1.570742192 | D102: 1.629499397 | E102: 1.690227155 | F102: 1.740693653 | G102: 1.784149163 | H102: 1.820874195 | I102: 1.853139763 | J102: 1.874761316 | K102: 1.903256486 | L102: 1.926631109 | M102: 1.938140818 | N102: 1.927716411 | O102: 4 | P102: South of England | Q102: =TRANSPOSE(_xlfn.XLOOKUP(P102,#REF!,#REF!)) ->  | Z102: =_xlfn.XLOOKUP(AA102,popdata!L:L,popdata!M:M) -> 12 | AA102: Buckinghamshire, Oxfordshire and Berkshire West | AB102: =TRANSPOSE(_xlfn.XLOOKUP(AA102,ICSs!$2:$2,ICSs!$5:$10)) -> 1.28237872 | AC102: 1.299075229 | AD102: 1.299068608 | AE102: 1.342190122 | AF102: 1.334661543 | AG102: 1.326336033 | AH102: 3 | AI102: NHS Berkshire West CCG | AJ102: =TRANSPOSE(_xlfn.XLOOKUP(AI102,CCGs!$3:$3,CCGs!$6:$14)) -> 1.231072534 | AK102: 1.231072534 | AL102: 1.231072534 | AM102: 1.231072534 | AN102: 1.231072534 | AO102: 1.194849503 | AP102: 1.241980094 | AQ102: 1.250758008 | AR102: 1.236702533
A103: 1 | B103: England | C103: 1.570742192 | D103: 1.629499397 | E103: 1.690227155 | F103: 1.740693653 | G103: 1.784149163 | H103: 1.820874195 | I103: 1.853139763 | J103: 1.874761316 | K103: 1.903256486 | L103: 1.926631109 | M103: 1.938140818 | N103: 1.927716411 | O103: 4 | P103: South of England | Q103: =TRANSPOSE(_xlfn.XLOOKUP(P103,#REF!,#REF!)) ->  | Z103: =_xlfn.XLOOKUP(AA103,popdata!L:L,popdata!M:M) -> 12 | AA103: Buckinghamshire, Oxfordshire and Berkshire West | AB103: =TRANSPOSE(_xlfn.XLOOKUP(AA103,ICSs!$2:$2,ICSs!$5:$10)) -> 1.28237872 | AC103: 1.299075229 | AD103: 1.299068608 | AE103: 1.342190122 | AF103: 1.334661543 | AG103: 1.326336033 | AH103: 4 | AI103: NHS Buckinghamshire CCG | AJ103: =TRANSPOSE(_xlfn.XLOOKUP(AI103,CCGs!$3:$3,CCGs!$6:$14)) -> 1.34238674 | AK103: 1.34238674 | AL103: 1.34238674 | AM103: 1.34238674 | AN103: 1.34238674 | AO103: 1.34238674 | AP103: 1.360974081 | AQ103: 1.332327261 | AR103: 1.333858877
A104: 1 | B104: England | C104: 1.570742192 | D104: 1.629499397 | E104: 1.690227155 | F104: 1.740693653 | G104: 1.784149163 | H104: 1.820874195 | I104: 1.853139763 | J104: 1.874761316 | K104: 1.903256486 | L104: 1.926631109 | M104: 1.938140818 | N104: 1.927716411 | O104: 4 | P104: South of England | Q104: =TRANSPOSE(_xlfn.XLOOKUP(P104,#REF!,#REF!)) ->  | Z104: =_xlfn.XLOOKUP(AA104,popdata!L:L,popdata!M:M) -> 13 | AA104: Surrey Heartlands Health and Care Partnership | AB104: =TRANSPOSE(_xlfn.XLOOKUP(AA104,ICSs!$2:$2,ICSs!$5:$10)) -> 1.291023723 | AC104: 1.291023723 | AD104: 1.291023723 | AE104: 1.291023723 | AF104: 1.295146169 | AG104: 1.286901276 | AH104: 1 | AI104: NHS Surrey Heartlands CCG | AJ104: =TRANSPOSE(_xlfn.XLOOKUP(AI104,CCGs!$3:$3,CCGs!$6:$14)) -> 1.291023723 | AK104: 1.291023723 | AL104: 1.291023723 | AM104: 1.291023723 | AN104: 1.291023723 | AO104: 1.291023723 | AP104: 1.291023723 | AQ104: 1.295146169 | AR104: 1.286901276
A105: 1 | B105: England | C105: 1.570742192 | D105: 1.629499397 | E105: 1.690227155 | F105: 1.740693653 | G105: 1.784149163 | H105: 1.820874195 | I105: 1.853139763 | J105: 1.874761316 | K105: 1.903256486 | L105: 1.926631109 | M105: 1.938140818 | N105: 1.927716411 | O105: 4 | P105: South of England | Q105: =TRANSPOSE(_xlfn.XLOOKUP(P105,#REF!,#REF!)) ->  | Z105: =_xlfn.XLOOKUP(AA105,popdata!L:L,popdata!M:M) -> 14 | AA105: Sussex and East Surrey Health and Care Partnership | AB105: =TRANSPOSE(_xlfn.XLOOKUP(AA105,ICSs!$2:$2,ICSs!$5:$10)) -> 1.933412957 | AC105: 1.933412957 | AD105: 1.933412957 | AE105: 1.933412957 | AF105: 1.934613513 | AG105: 1.932212401 | AH105: 2 | AI105: NHS Brighton and Hove CCG | AJ105: =TRANSPOSE(_xlfn.XLOOKUP(AI105,CCGs!$3:$3,CCGs!$6:$14)) -> 1.243581595 | AK105: 1.258740337 | AL105: 1.28226118 | AM105: 1.340025649 | AN105: 1.397871483 | AO105: 1.43734959 | AP105: 1.421823978 | AQ105: 1.480977261 | AR105: 1.498200064
A106: 1 | B106: England | C106: 1.570742192 | D106: 1.629499397 | E106: 1.690227155 | F106: 1.740693653 | G106: 1.784149163 | H106: 1.820874195 | I106: 1.853139763 | J106: 1.874761316 | K106: 1.903256486 | L106: 1.926631109 | M106: 1.938140818 | N106: 1.927716411 | O106: 4 | P106: South of England | Q106: =TRANSPOSE(_xlfn.XLOOKUP(P106,#REF!,#REF!)) ->  | Z106: =_xlfn.XLOOKUP(AA106,popdata!L:L,popdata!M:M) -> 14 | AA106: Sussex and East Surrey Health and Care Partnership | AB106: =TRANSPOSE(_xlfn.XLOOKUP(AA106,ICSs!$2:$2,ICSs!$5:$10)) -> 1.933412957 | AC106: 1.933412957 | AD106: 1.933412957 | AE106: 1.933412957 | AF106: 1.934613513 | AG106: 1.932212401 | AH106: 3 | AI106: NHS East Sussex CCG | AJ106: =TRANSPOSE(_xlfn.XLOOKUP(AI106,CCGs!$3:$3,CCGs!$6:$14)) -> 2.358358167 | AK106: 2.358358167 | AL106: 2.358358167 | AM106: 2.358358167 | AN106: 2.358358167 | AO106: 2.358358167 | AP106: 2.358358167 | AQ106: 2.354788688 | AR106: 2.361927646
A107: 1 | B107: England | C107: 1.570742192 | D107: 1.629499397 | E107: 1.690227155 | F107: 1.740693653 | G107: 1.784149163 | H107: 1.820874195 | I107: 1.853139763 | J107: 1.874761316 | K107: 1.903256486 | L107: 1.926631109 | M107: 1.938140818 | N107: 1.927716411 | O107: 4 | P107: South of England | Q107: =TRANSPOSE(_xlfn.XLOOKUP(P107,#REF!,#REF!)) ->  | Z107: =_xlfn.XLOOKUP(AA107,popdata!L:L,popdata!M:M) -> 14 | AA107: Sussex and East Surrey Health and Care Partnership | AB107: =TRANSPOSE(_xlfn.XLOOKUP(AA107,ICSs!$2:$2,ICSs!$5:$10)) -> 1.933412957 | AC107: 1.933412957 | AD107: 1.933412957 | AE107: 1.933412957 | AF107: 1.934613513 | AG107: 1.932212401 | AH107: 4 | AI107: NHS West Sussex CCG | AJ107: =TRANSPOSE(_xlfn.XLOOKUP(AI107,CCGs!$3:$3,CCGs!$6:$14)) -> 1.831351462 | AK107: 1.831351462 | AL107: 1.831351462 | AM107: 1.831351462 | AN107: 1.831351462 | AO107: 1.831351462 | AP107: 1.831351462 | AQ107: 1.841325864 | AR107: 1.821377059

Sheet listdata (hidden)
B1: Country | C1: 2009 | D1: 2010 | E1: 2011 | F1: 2012 | G1: 2013 | H1: 2014 | I1: 2015 | J1: 2016 | K1: 2017 | L1: 2018 | M1: 2019 | N1: 2020 | P1: Region | Q1: 2012 | R1: 2013 | S1: 2014 | T1: 2015 | U1: 2016 | V1: 2017 | W1: 2018 | X1: 2019 | Y1: 2020 | AA1: ICSName | AB1: 2015 | AC1: 2016 | AD1: 2017 | AE1: 2018 | AF1: 2019 | AG1: 2020 | AI1: CCG Name | AJ1: 2012 | AK1: 2013 | AL1: 2014 | AM1: 2015 | AN1: 2016 | AO1: 2017 | AP1: 2018 | AQ1: 2019 | AR1: 2020
A2: 1 | B2: England | C2: 1.570742192 | D2: 1.629499397 | E2: 1.690227155 | F2: 1.740693653 | G2: 1.784149163 | H2: 1.820874195 | I2: 1.853139763 | J2: 1.874761316 | K2: 1.903256486 | L2: 1.926631109 | M2: 1.938140818 | N2: 1.927716411 | O2: 3 | P2: London | Q2: =TRANSPOSE(_xlfn.XLOOKUP(P2,#REF!,#REF!)) ->  | Z2: =_xlfn.XLOOKUP(AA2,popdata!L:L,popdata!M:M) -> 2 | AA2: North West London Health and Care Partnership | AB2: =TRANSPOSE(_xlfn.XLOOKUP(AA2,ICSs!$2:$2,ICSs!$20:$25)) -> 23034 | AC2: 23781 | AD2: 24496 | AE2: 25235 | AF2: 25468 | AG2: 25171 | AH2: 2 | AI2: NHS North West London CCG | AJ2: =TRANSPOSE(_xlfn.XLOOKUP(AI2,CCGs!$3:$3,CCGs!$28:$36)) -> 25190.5 | AK2: 25190.5 | AL2: 25190.5 | AM2: 25190.5 | AN2: 25190.5 | AO2: 25190.5 | AP2: 25190.5 | AQ2: 25210 | AR2: 25171
A3: 1 | B3: England | C3: 1.570742192 | D3: 1.629499397 | E3: 1.690227155 | F3: 1.740693653 | G3: 1.784149163 | H3: 1.820874195 | I3: 1.853139763 | J3: 1.874761316 | K3: 1.903256486 | L3: 1.926631109 | M3: 1.938140818 | N3: 1.927716411 | O3: 3 | P3: London | Q3: =TRANSPOSE(_xlfn.XLOOKUP(P3,#REF!,#REF!)) ->  | Z3: =_xlfn.XLOOKUP(AA3,popdata!L:L,popdata!M:M) -> 3 | AA3: North London Partners in Health and Care | AB3: =TRANSPOSE(_xlfn.XLOOKUP(AA3,ICSs!$2:$2,ICSs!$20:$25)) -> 17069 | AC3: 18049 | AD3: 18273 | AE3: 19260 | AF3: 20569 | AG3: 19283 | AH3: 3 | AI3: NHS North Central London CCG | AJ3: =TRANSPOSE(_xlfn.XLOOKUP(AI3,CCGs!$3:$3,CCGs!$28:$36)) -> 19342 | AK3: 19342 | AL3: 19342 | AM3: 19342 | AN3: 19342 | AO3: 19342 | AP3: 19342 | AQ3: 19401 | AR3: 19283
A4: 1 | B4: England | C4: 1.570742192 | D4: 1.629499397 | E4: 1.690227155 | F4: 1.740693653 | G4: 1.784149163 | H4: 1.820874195 | I4: 1.853139763 | J4: 1.874761316 | K4: 1.903256486 | L4: 1.926631109 | M4: 1.938140818 | N4: 1.927716411 | O4: 3 | P4: London | Q4: =TRANSPOSE(_xlfn.XLOOKUP(P4,#REF!,#REF!)) ->  | Z4: =_xlfn.XLOOKUP(AA4,popdata!L:L,popdata!M:M) -> 4 | AA4: East London Health and Care Partnership | AB4: =TRANSPOSE(_xlfn.XLOOKUP(AA4,ICSs!$2:$2,ICSs!$20:$25)) -> 23663 | AC4: 24609 | AD4: 24661 | AE4: 25212 | AF4: 25519 | AG4: 25092 | AH4: 4 | AI4: NHS North East London CCG | AJ4: =TRANSPOSE(_xlfn.XLOOKUP(AI4,CCGs!$3:$3,CCGs!$28:$36)) -> 25233 | AK4: 25233 | AL4: 25233 | AM4: 25233 | AN4: 25233 | AO4: 25233 | AP4: 25233 | AQ4: 25374 | AR4: 25092
A5: 1 | B5: England | C5: 1.570742192 | D5: 1.629499397 | E5: 1.690227155 | F5: 1.740693653 | G5: 1.784149163 | H5: 1.820874195 | I5: 1.853139763 | J5: 1.874761316 | K5: 1.903256486 | L5: 1.926631109 | M5: 1.938140818 | N5: 1.927716411 | O5: 3 | P5: London | Q5: =TRANSPOSE(_xlfn.XLOOKUP(P5,#REF!,#REF!)) ->  | Z5: =_xlfn.XLOOKUP(AA5,popdata!L:L,popdata!M:M) -> 5 | AA5: Our Healthier South East London | AB5: =TRANSPOSE(_xlfn.XLOOKUP(AA5,ICSs!$2:$2,ICSs!$20:$25)) -> 23956 | AC5: 25564 | AD5: 26135 | AE5: 26488 | AF5: 26584 | AG5: 26519 | AH5: 5 | AI5: NHS South East London CCG | AJ5: =TRANSPOSE(_xlfn.XLOOKUP(AI5,CCGs!$3:$3,CCGs!$28:$36)) -> 26361 | AK5: 26361 | AL5: 26361 | AM5: 26361 | AN5: 26361 | AO5: 26361 | AP5: 26361 | AQ5: 26203 | AR5: 26519
A6: 1 | B6: England | C6: 1.570742192 | D6: 1.629499397 | E6: 1.690227155 | F6: 1.740693653 | G6: 1.784149163 | H6: 1.820874195 | I6: 1.853139763 | J6: 1.874761316 | K6: 1.903256486 | L6: 1.926631109 | M6: 1.938140818 | N6: 1.927716411 | O6: 3 | P6: London | Q6: =TRANSPOSE(_xlfn.XLOOKUP(P6,#REF!,#REF!)) ->  | Z6: =_xlfn.XLOOKUP(AA6,popdata!L:L,popdata!M:M) -> 6 | AA6: South West London Health and Care Partnership | AB6: =TRANSPOSE(_xlfn.XLOOKUP(AA6,ICSs!$2:$2,ICSs!$20:$25)) -> 17045 | AC6: 17952 | AD6: 18388 | AE6: 18906 | AF6: 19039 | AG6: 18849 | AH6: 6 | AI6: NHS South West London CCG | AJ6: =TRANSPOSE(_xlfn.XLOOKUP(AI6,CCGs!$3:$3,CCGs!$28:$36)) -> 18879 | AK6: 18879 | AL6: 18879 | AM6: 18879 | AN6: 18879 | AO6: 18879 | AP6: 18879 | AQ6: 18909 | AR6: 18849
A7: 1 | B7: England | C7: 1.570742192 | D7: 1.629499397 | E7: 1.690227155 | F7: 1.740693653 | G7: 1.784149163 | H7: 1.820874195 | I7: 1.853139763 | J7: 1.874761316 | K7: 1.903256486 | L7: 1.926631109 | M7: 1.938140818 | N7: 1.927716411 | O7: 2 | P7: Midlands and East of England | Q7: =TRANSPOSE(_xlfn.XLOOKUP(P7,#REF!,#REF!)) ->  | Z7: =_xlfn.XLOOKUP(AA7,popdata!L:L,popdata!M:M) -> 2 | AA7: Staffordshire and Stoke on Trent | AB7: =TRANSPOSE(_xlfn.XLOOKUP(AA7,ICSs!$2:$2,ICSs!$20:$25)) -> 26711.33333 | AC7: 26711.33333 | AD7: 26711.33333 | AE7: 26431 | AF7: 26885 | AG7: 26818 | AH7: 2 | AI7: NHS Cannock Chase CCG | AJ7: =TRANSPOSE(_xlfn.XLOOKUP(AI7,CCGs!$3:$3,CCGs!$28:$36)) -> 2866 | AK7: 2935 | AL7: 2964 | AM7: 2960 | AN7: 3160 | AO7: 3321 | AP7: 3492 | AQ7: 3502 | AR7: 3620
A8: 1 | B8: England | C8: 1.570742192 | D8: 1.629499397 | E8: 1.690227155 | F8: 1.740693653 | G8: 1.784149163 | H8: 1.820874195 | I8: 1.853139763 | J8: 1.874761316 | K8: 1.903256486 | L8: 1.926631109 | M8: 1.938140818 | N8: 1.927716411 | O8: 2 | P8: Midlands and East of England | Q8: =TRANSPOSE(_xlfn.XLOOKUP(P8,#REF!,#REF!)) ->  | Z8: =_xlfn.XLOOKUP(AA8,popdata!L:L,popdata!M:M) -> 2 | AA8: Staffordshire and Stoke on Trent | AB8: =TRANSPOSE(_xlfn.XLOOKUP(AA8,ICSs!$2:$2,ICSs!$20:$25)) -> 26711.33333 | AC8: 26711.33333 | AD8: 26711.33333 | AE8: 26431 | AF8: 26885 | AG8: 26818 | AH8: 3 | AI8: NHS East Staffordshire CCG | AJ8: =TRANSPOSE(_xlfn.XLOOKUP(AI8,CCGs!$3:$3,CCGs!$28:$36)) -> 2201 | AK8: 2318 | AL8: 2291 | AM8: 2340 | AN8: 2470 | AO8: 2629 | AP8: 2661 | AQ8: 2664 | AR8: 2631
A9: 1 | B9: England | C9: 1.570742192 | D9: 1.629499397 | E9: 1.690227155 | F9: 1.740693653 | G9: 1.784149163 | H9: 1.820874195 | I9: 1.853139763 | J9: 1.874761316 | K9: 1.903256486 | L9: 1.926631109 | M9: 1.938140818 | N9: 1.927716411 | O9: 2 | P9: Midlands and East of England | Q9: =TRANSPOSE(_xlfn.XLOOKUP(P9,#REF!,#REF!)) ->  | Z9: =_xlfn.XLOOKUP(AA9,popdata!L:L,popdata!M:M) -> 2 | AA9: Staffordshire and Stoke on Trent | AB9: =TRANSPOSE(_xlfn.XLOOKUP(AA9,ICSs!$2:$2,ICSs!$20:$25)) -> 26711.33333 | AC9: 26711.33333 | AD9: 26711.33333 | AE9: 26431 | AF9: 26885 | AG9: 26818 | AH9: 4 | AI9: NHS North Staffordshire CCG | AJ9: =TRANSPOSE(_xlfn.XLOOKUP(AI9,CCGs!$3:$3,CCGs!$28:$36)) -> 4393 | AK9: 4314 | AL9: 4702 | AM9: 4878 | AN9: 5102 | AO9: 5173 | AP9: 5587 | AQ9: 5696 | AR9: 5638
A10: 1 | B10: England | C10: 1.570742192 | D10: 1.629499397 | E10: 1.690227155 | F10: 1.740693653 | G10: 1.784149163 | H10: 1.820874195 | I10: 1.853139763 | J10: 1.874761316 | K10: 1.903256486 | L10: 1.926631109 | M10: 1.938140818 | N10: 1.927716411 | O10: 2 | P10: Midlands and East of England | Q10: =TRANSPOSE(_xlfn.XLOOKUP(P10,#REF!,#REF!)) ->  | Z10: =_xlfn.XLOOKUP(AA10,popdata!L:L,popdata!M:M) -> 2 | AA10: Staffordshire and Stoke on Trent | AB10: =TRANSPOSE(_xlfn.XLOOKUP(AA10,ICSs!$2:$2,ICSs!$20:$25)) -> 26711.33333 | AC10: 26711.33333 | AD10: 26711.33333 | AE10: 26431 | AF10: 26885 | AG10: 26818 | AH10: 5 | AI10: NHS South East Staffordshire and Seisdon Peninsula CCG | AJ10: =TRANSPOSE(_xlfn.XLOOKUP(AI10,CCGs!$3:$3,CCGs!$28:$36)) -> 3550 | AK10: 3644 | AL10: 3729 | AM10: 3828 | AN10: 3931 | AO10: 4008 | AP10: 4148 | AQ10: 4016 | AR10: 4120
A11: 1 | B11: England | C11: 1.570742192 | D11: 1.629499397 | E11: 1.690227155 | F11: 1.740693653 | G11: 1.784149163 | H11: 1.820874195 | I11: 1.853139763 | J11: 1.874761316 | K11: 1.903256486 | L11: 1.926631109 | M11: 1.938140818 | N11: 1.927716411 | O11: 2 | P11: Midlands and East of England | Q11: =TRANSPOSE(_xlfn.XLOOKUP(P11,#REF!,#REF!)) ->  | Z11: =_xlfn.XLOOKUP(AA11,popdata!L:L,popdata!M:M) -> 2 | AA11: Staffordshire and Stoke on Trent | AB11: =TRANSPOSE(_xlfn.XLOOKUP(AA11,ICSs!$2:$2,ICSs!$20:$25)) -> 26711.33333 | AC11: 26711.33333 | AD11: 26711.33333 | AE11: 26431 | AF11: 26885 | AG11: 26818 | AH11: 6 | AI11: NHS Stafford and Surrounds CCG | AJ11: =TRANSPOSE(_xlfn.XLOOKUP(AI11,CCGs!$3:$3,CCGs!$28:$36)) -> 1949 | AK11: 2034 | AL11: 2165 | AM11: 2304 | AN11: 2417 | AO11: 2549 | AP11: 2723 | AQ11: 2841 | AR11: 2820
A12: 1 | B12: England | C12: 1.570742192 | D12: 1.629499397 | E12: 1.690227155 | F12: 1.740693653 | G12: 1.784149163 | H12: 1.820874195 | I12: 1.853139763 | J12: 1.874761316 | K12: 1.903256486 | L12: 1.926631109 | M12: 1.938140818 | N12: 1.927716411 | O12: 2 | P12: Midlands and East of England | Q12: =TRANSPOSE(_xlfn.XLOOKUP(P12,#REF!,#REF!)) ->  | Z12: =_xlfn.XLOOKUP(AA12,popdata!L:L,popdata!M:M) -> 2 | AA12: Staffordshire and Stoke on Trent | AB12: =TRANSPOSE(_xlfn.XLOOKUP(AA12,ICSs!$2:$2,ICSs!$20:$25)) -> 26711.33333 | AC12: 26711.33333 | AD12: 26711.33333 | AE12: 26431 | AF12: 26885 | AG12: 26818 | AH12: 7 | AI12: NHS Stoke on Trent CCG | AJ12: =TRANSPOSE(_xlfn.XLOOKUP(AI12,CCGs!$3:$3,CCGs!$28:$36)) -> 6504 | AK12: 6609 | AL12: 7026 | AM12: 6990 | AN12: 7165 | AO12: 7227 | AP12: 7820 | AQ12: 7937 | AR12: 7989
A13: 1 | B13: England | C13: 1.570742192 | D13: 1.629499397 | E13: 1.690227155 | F13: 1.740693653 | G13: 1.784149163 | H13: 1.820874195 | I13: 1.853139763 | J13: 1.874761316 | K13: 1.903256486 | L13: 1.926631109 | M13: 1.938140818 | N13: 1.927716411 | O13: 2 | P13: Midlands and East of England | Q13: =TRANSPOSE(_xlfn.XLOOKUP(P13,#REF!,#REF!)) ->  | Z13: =_xlfn.XLOOKUP(AA13,popdata!L:L,popdata!M:M) -> 3 | AA13: Shropshire and Telford and Wrekin | AB13: =TRANSPOSE(_xlfn.XLOOKUP(AA13,ICSs!$2:$2,ICSs!$20:$25)) -> 10036.66667 | AC13: 10036.66667 | AD13: 10036.66667 | AE13: 9832 | AF13: 10057 | AG13: 10221 | AH13: 1 | AI13: NHS Shropshire, Telford and Wrekin CCG | AJ13: =TRANSPOSE(_xlfn.XLOOKUP(AI13,CCGs!$3:$3,CCGs!$28:$36)) -> 10139 | AK13: 10139 | AL13: 10139 | AM13: 10139 | AN13: 10139 | AO13: 10139 | AP13: 10139 | AQ13: 10057 | AR13: 10221
A14: 1 | B14: England | C14: 1.570742192 | D14: 1.629499397 | E14: 1.690227155 | F14: 1.740693653 | G14: 1.784149163 | H14: 1.820874195 | I14: 1.853139763 | J14: 1.874761316 | K14: 1.903256486 | L14: 1.926631109 | M14: 1.938140818 | N14: 1.927716411 | O14: 2 | P14: Midlands and East of England | Q14: =TRANSPOSE(_xlfn.XLOOKUP(P14,#REF!,#REF!)) ->  | Z14: =_xlfn.XLOOKUP(AA14,popdata!L:L,popdata!M:M) -> 4 | AA14: Joined Up Care Derbyshire | AB14: =TRANSPOSE(_xlfn.XLOOKUP(AA14,ICSs!$2:$2,ICSs!$20:$25)) -> 23749.33333 | AC14: 23749.33333 | AD14: 23749.33333 | AE14: 23437 | AF14: 23960 | AG14: 23851 | AH14: 1 | AI14: NHS Derby and Derbyshire CCG | AJ14: =TRANSPOSE(_xlfn.XLOOKUP(AI14,CCGs!$3:$3,CCGs!$28:$36)) -> 23496.75 | AK14: 23496.75 | AL14: 23496.75 | AM14: 23496.75 | AN14: 23496.75 | AO14: 22857 | AP14: 23437 | AQ14: 23842 | AR14: 23851
A15: 1 | B15: England | C15: 1.570742192 | D15: 1.629499397 | E15: 1.690227155 | F15: 1.740693653 | G15: 1.784149163 | H15: 1.820874195 | I15: 1.853139763 | J15: 1.874761316 | K15: 1.903256486 | L15: 1.926631109 | M15: 1.938140818 | N15: 1.927716411 | O15: 2 | P15: Midlands and East of England | Q15: =TRANSPOSE(_xlfn.XLOOKUP(P15,#REF!,#REF!)) ->  | Z15: =_xlfn.XLOOKUP(AA15,popdata!L:L,popdata!M:M) -> 5 | AA15: Lincolnshire | AB15: =TRANSPOSE(_xlfn.XLOOKUP(AA15,ICSs!$2:$2,ICSs!$20:$25)) -> 18311.66667 | AC15: 18311.66667 | AD15: 18311.66667 | AE15: 17844 | AF15: 18605 | AG15: 18486 | AH15: 1 | AI15: NHS Lincolnshire CCG | AJ15: =TRANSPOSE(_xlfn.XLOOKUP(AI15,CCGs!$3:$3,CCGs!$28:$36)) -> 18481.5 | AK15: 18481.5 | AL15: 18481.5 | AM15: 18481.5 | AN15: 18481.5 | AO15: 18481.5 | AP15: 18481.5 | AQ15: 18477 | AR15: 18486
A16: 1 | B16: England | C16: 1.570742192 | D16: 1.629499397 | E16: 1.690227155 | F16: 1.740693653 | G16: 1.784149163 | H16: 1.820874195 | I16: 1.853139763 | J16: 1.874761316 | K16: 1.903256486 | L16: 1.926631109 | M16: 1.938140818 | N16: 1.927716411 | O16: 2 | P16: Midlands and East of England | Q16: =TRANSPOSE(_xlfn.XLOOKUP(P16,#REF!,#REF!)) ->  | Z16: =_xlfn.XLOOKUP(AA16,popdata!L:L,popdata!M:M) -> 6 | AA16: Nottingham and Nottinghamshire Health and Care | AB16: =TRANSPOSE(_xlfn.XLOOKUP(AA16,ICSs!$2:$2,ICSs!$20:$25)) -> 21792.33333 | AC16: 21792.33333 | AD16: 21792.33333 | AE16: 20933 | AF16: 22283 | AG16: 22161 | AH16: 1 | AI16: NHS Nottingham and Nottinghamshire CCG | AJ16: =TRANSPOSE(_xlfn.XLOOKUP(AI16,CCGs!$3:$3,CCGs!$28:$36)) -> 21930.5 | AK16: 21930.5 | AL16: 21930.5 | AM16: 21930.5 | AN16: 21930.5 | AO16: 21930.5 | AP16: 21930.5 | AQ16: 21700 | AR16: 22161
A17: 1 | B17: England | C17: 1.570742192 | D17: 1.629499397 | E17: 1.690227155 | F17: 1.740693653 | G17: 1.784149163 | H17: 1.820874195 | I17: 1.853139763 | J17: 1.874761316 | K17: 1.903256486 | L17: 1.926631109 | M17: 1.938140818 | N17: 1.927716411 | O17: 2 | P17: Midlands and East of England | Q17: =TRANSPOSE(_xlfn.XLOOKUP(P17,#REF!,#REF!)) ->  | Z17: =_xlfn.XLOOKUP(AA17,popdata!L:L,popdata!M:M) -> 7 | AA17: Leicester, Leicestershire and Rutland | AB17: =TRANSPOSE(_xlfn.XLOOKUP(AA17,ICSs!$2:$2,ICSs!$20:$25)) -> 19410 | AC17: 19410 | AD17: 19410 | AE17: 19269 | AF17: 19530 | AG17: 19431 | AH17: 2 | AI17: NHS East Leicestershire and Rutland CCG | AJ17: =TRANSPOSE(_xlfn.XLOOKUP(AI17,CCGs!$3:$3,CCGs!$28:$36)) -> 4973 | AK17: 5236 | AL17: 5459 | AM17: 5591 | AN17: 5710 | AO17: 5803 | AP17: 5984 | AQ17: 6139 | AR17: 6124
A18: 1 | B18: England | C18: 1.570742192 | D18: 1.629499397 | E18: 1.690227155 | F18: 1.740693653 | G18: 1.784149163 | H18: 1.820874195 | I18: 1.853139763 | J18: 1.874761316 | K18: 1.903256486 | L18: 1.926631109 | M18: 1.938140818 | N18: 1.927716411 | O18: 2 | P18: Midlands and East of England | Q18: =TRANSPOSE(_xlfn.XLOOKUP(P18,#REF!,#REF!)) ->  | Z18: =_xlfn.XLOOKUP(AA18,popdata!L:L,popdata!M:M) -> 7 | AA18: Leicester, Leicestershire and Rutland | AB18: =TRANSPOSE(_xlfn.XLOOKUP(AA18,ICSs!$2:$2,ICSs!$20:$25)) -> 19410 | AC18: 19410 | AD18: 19410 | AE18: 19269 | AF18: 19530 | AG18: 19431 | AH18: 3 | AI18: NHS Leicester City CCG | AJ18: =TRANSPOSE(_xlfn.XLOOKUP(AI18,CCGs!$3:$3,CCGs!$28:$36)) -> 5145 | AK18: 5341 | AL18: 5473 | AM18: 5528 | AN18: 5581 | AO18: 5687 | AP18: 5744 | AQ18: 5833 | AR18: 5800
A19: 1 | B19: England | C19: 1.570742192 | D19: 1.629499397 | E19: 1.690227155 | F19: 1.740693653 | G19: 1.784149163 | H19: 1.820874195 | I19: 1.853139763 | J19: 1.874761316 | K19: 1.903256486 | L19: 1.926631109 | M19: 1.938140818 | N19: 1.927716411 | O19: 2 | P19: Midlands and East of England | Q19: =TRANSPOSE(_xlfn.XLOOKUP(P19,#REF!,#REF!)) ->  | Z19: =_xlfn.XLOOKUP(AA19,popdata!L:L,popdata!M:M) -> 7 | AA19: Leicester, Leicestershire and Rutland | AB19: =TRANSPOSE(_xlfn.XLOOKUP(AA19,ICSs!$2:$2,ICSs!$20:$25)) -> 19410 | AC19: 19410 | AD19: 19410 | AE19: 19269 | AF19: 19530 | AG19: 19431 | AH19: 4 | AI19: NHS West Leicestershire CCG | AJ19: =TRANSPOSE(_xlfn.XLOOKUP(AI19,CCGs!$3:$3,CCGs!$28:$36)) -> 6087 | AK19: 6293 | AL19: 6612 | AM19: 6927 | AN19: 7151 | AO19: 7431 | AP19: 7541 | AQ19: 7558 | AR19: 7507
A20: 1 | B20: England | C20: 1.570742192 | D20: 1.629499397 | E20: 1.690227155 | F20: 1.740693653 | G20: 1.784149163 | H20: 1.820874195 | I20: 1.853139763 | J20: 1.874761316 | K20: 1.903256486 | L20: 1.926631109 | M20: 1.938140818 | N20: 1.927716411 | O20: 2 | P20: Midlands and East of England | Q20: =TRANSPOSE(_xlfn.XLOOKUP(P20,#REF!,#REF!)) ->  | Z20: =_xlfn.XLOOKUP(AA20,popdata!L:L,popdata!M:M) -> 8 | AA20: The Black Country and West Birmingham | AB20: =TRANSPOSE(_xlfn.XLOOKUP(AA20,ICSs!$2:$2,ICSs!$20:$25)) -> 28824 | AC20: 28824 | AD20: 27981 | AE20: 29102 | AF20: 29312 | AG20: 28901 | AH20: 1 | AI20: NHS Black Country and West Birmingham CCG | AJ20: =TRANSPOSE(_xlfn.XLOOKUP(AI20,CCGs!$3:$3,CCGs!$28:$36)) -> 28949 | AK20: 28949 | AL20: 28949 | AM20: 28949 | AN20: 28949 | AO20: 28949 | AP20: 28949 | AQ20: 28997 | AR20: 28901
A21: 1 | B21: England | C21: 1.570742192 | D21: 1.629499397 | E21: 1.690227155 | F21: 1.740693653 | G21: 1.784149163 | H21: 1.820874195 | I21: 1.853139763 | J21: 1.874761316 | K21: 1.903256486 | L21: 1.926631109 | M21: 1.938140818 | N21: 1.927716411 | O21: 2 | P21: Midlands and East of England | Q21: =TRANSPOSE(_xlfn.XLOOKUP(P21,#REF!,#REF!)) ->  | Z21: =_xlfn.XLOOKUP(AA21,popdata!L:L,popdata!M:M) -> 9 | AA21: Birmingham and Solihull | AB21: =TRANSPOSE(_xlfn.XLOOKUP(AA21,ICSs!$2:$2,ICSs!$20:$25)) -> 22147.25 | AC21: 22147.25 | AD21: 21742 | AE21: 22179 | AF21: 22346 | AG21: 22322 | AH21: 1 | AI21: NHS Birmingham and Solihull CCG | AJ21: =TRANSPOSE(_xlfn.XLOOKUP(AI21,CCGs!$3:$3,CCGs!$28:$36)) -> 21918.5 | AK21: 21918.5 | AL21: 21918.5 | AM21: 21918.5 | AN21: 21918.5 | AO21: 21164 | AP21: 22179 | AQ21: 22009 | AR21: 22322
A22: 1 | B22: England | C22: 1.570742192 | D22: 1.629499397 | E22: 1.690227155 | F22: 1.740693653 | G22: 1.784149163 | H22: 1.820874195 | I22: 1.853139763 | J22: 1.874761316 | K22: 1.903256486 | L22: 1.926631109 | M22: 1.938140818 | N22: 1.927716411 | O22: 2 | P22: Midlands and East of England | Q22: =TRANSPOSE(_xlfn.XLOOKUP(P22,#REF!,#REF!)) ->  | Z22: =_xlfn.XLOOKUP(AA22,popdata!L:L,popdata!M:M) -> 10 | AA22: Coventry and Warwickshire | AB22: =TRANSPOSE(_xlfn.XLOOKUP(AA22,ICSs!$2:$2,ICSs!$20:$25)) -> 16687.75 | AC22: 16687.75 | AD22: 16330 | AE22: 16742 | AF22: 16731 | AG22: 16948 | AH22: 1 | AI22: NHS Coventry and Warwickshire CCG | AJ22: =TRANSPOSE(_xlfn.XLOOKUP(AI22,CCGs!$3:$3,CCGs!$28:$36)) -> 16799 | AK22: 16799 | AL22: 16799 | AM22: 16799 | AN22: 16799 | AO22: 16799 | AP22: 16799 | AQ22: 16650 | AR22: 16948
A23: 1 | B23: England | C23: 1.570742192 | D23: 1.629499397 | E23: 1.690227155 | F23: 1.740693653 | G23: 1.784149163 | H23: 1.820874195 | I23: 1.853139763 | J23: 1.874761316 | K23: 1.903256486 | L23: 1.926631109 | M23: 1.938140818 | N23: 1.927716411 | O23: 2 | P23: Midlands and East of England | Q23: =TRANSPOSE(_xlfn.XLOOKUP(P23,#REF!,#REF!)) ->  | Z23: =_xlfn.XLOOKUP(AA23,popdata!L:L,popdata!M:M) -> 11 | AA23: Herefordshire and Worcestershire | AB23: =TRANSPOSE(_xlfn.XLOOKUP(AA23,ICSs!$2:$2,ICSs!$20:$25)) -> 15095 | AC23: 15694 | AD23: 16408 | AE23: 17088 | AF23: 17514 | AG23: 17394 | AH23: 1 | AI23: NHS Herefordshire CCG | AJ23: =TRANSPOSE(_xlfn.XLOOKUP(AI23,CCGs!$3:$3,CCGs!$28:$36)) -> 17267 | AK23: 17267 | AL23: 17267 | AM23: 17267 | AN23: 17267 | AO23: 17267 | AP23: 17267 | AQ23: 17140 | AR23: 17394
A24: 1 | B24: England | C24: 1.570742192 | D24: 1.629499397 | E24: 1.690227155 | F24: 1.740693653 | G24: 1.784149163 | H24: 1.820874195 | I24: 1.853139763 | J24: 1.874761316 | K24: 1.903256486 | L24: 1.926631109 | M24: 1.938140818 | N24: 1.927716411 | O24: 2 | P24: Midlands and East of England | Q24: =TRANSPOSE(_xlfn.XLOOKUP(P24,#REF!,#REF!)) ->  | Z24: =_xlfn.XLOOKUP(AA24,popdata!L:L,popdata!M:M) -> 12 | AA24: Northamptonshire | AB24: =TRANSPOSE(_xlfn.XLOOKUP(AA24,ICSs!$2:$2,ICSs!$20:$25)) -> 13987 | AC24: 14240 | AD24: 14593 | AE24: 15005 | AF24: 15349 | AG24: 15328 | AH24: 1 | AI24: NHS Northamptonshire CCG | AJ24: =TRANSPOSE(_xlfn.XLOOKUP(AI24,CCGs!$3:$3,CCGs!$28:$36)) -> 15338.5 | AK24: 15338.5 | AL24: 15338.5 | AM24: 15338.5 | AN24: 15338.5 | AO24: 15338.5 | AP24: 15338.5 | AQ24: 15349 | AR24: 15328
A25: 1 | B25: England | C25: 1.570742192 | D25: 1.629499397 | E25: 1.690227155 | F25: 1.740693653 | G25: 1.784149163 | H25: 1.820874195 | I25: 1.853139763 | J25: 1.874761316 | K25: 1.903256486 | L25: 1.926631109 | M25: 1.938140818 | N25: 1.927716411 | O25: 2 | P25: Midlands and East of England | Q25: =TRANSPOSE(_xlfn.XLOOKUP(P25,#REF!,#REF!)) ->  | Z25: =_xlfn.XLOOKUP(AA25,popdata!L:L,popdata!M:M) -> 13 | AA25: Cambridgeshire and Peterborough | AB25: =TRANSPOSE(_xlfn.XLOOKUP(AA25,ICSs!$2:$2,ICSs!$20:$25)) -> 15612 | AC25: 16020 | AD25: 16513 | AE25: 17039 | AF25: 17367 | AG25: 17507 | AH25: 1 | AI25: NHS Cambridgeshire and Peterborough CCG | AJ25: =TRANSPOSE(_xlfn.XLOOKUP(AI25,CCGs!$3:$3,CCGs!$28:$36)) -> 13977 | AK25: 14420 | AL25: 14999 | AM25: 15612 | AN25: 16020 | AO25: 15214 | AP25: 17039 | AQ25: 17224 | AR25: 17507
A26: 1 | B26: England | C26: 1.570742192 | D26: 1.629499397 | E26: 1.690227155 | F26: 1.740693653 | G26: 1.784149163 | H26: 1.820874195 | I26: 1.853139763 | J26: 1.874761316 | K26: 1.903256486 | L26: 1.926631109 | M26: 1.938140818 | N26: 1.927716411 | O26: 2 | P26: Midlands and East of England | Q26: =TRANSPOSE(_xlfn.XLOOKUP(P26,#REF!,#REF!)) ->  | Z26: =_xlfn.XLOOKUP(AA26,popdata!L:L,popdata!M:M) -> 14 | AA26: Norfolk and Waveney Health and Care Partnership | AB26: =TRANSPOSE(_xlfn.XLOOKUP(AA26,ICSs!$2:$2,ICSs!$20:$25)) -> 22650 | AC26: 23209 | AD26: 22910 | AE26: 24237 | AF26: 24690 | AG26: 24824 | AH26: 1 | AI26: NHS Norfolk and Waveney CCG | AJ26: =TRANSPOSE(_xlfn.XLOOKUP(AI26,CCGs!$3:$3,CCGs!$28:$36)) -> 24757 | AK26: 24757 | AL26: 24757 | AM26: 24757 | AN26: 24757 | AO26: 24757 | AP26: 24757 | AQ26: 24690 | AR26: 24824
A27: 1 | B27: England | C27: 1.570742192 | D27: 1.629499397 | E27: 1.690227155 | F27: 1.740693653 | G27: 1.784149163 | H27: 1.820874195 | I27: 1.853139763 | J27: 1.874761316 | K27: 1.903256486 | L27: 1.926631109 | M27: 1.938140818 | N27: 1.927716411 | O27: 2 | P27: Midlands and East of England | Q27: =TRANSPOSE(_xlfn.XLOOKUP(P27,#REF!,#REF!)) ->  | Z27: =_xlfn.XLOOKUP(AA27,popdata!L:L,popdata!M:M) -> 15 | AA27: Suffolk and North East Essex | AB27: =TRANSPOSE(_xlfn.XLOOKUP(AA27,ICSs!$2:$2,ICSs!$20:$25)) -> 19643 | AC27: 20187 | AD27: 20652 | AE27: 20745 | AF27: 21507 | AG27: 21497 | AH27: 2 | AI27: NHS Ipswich and East Suffolk CCG | AJ27: =TRANSPOSE(_xlfn.XLOOKUP(AI27,CCGs!$3:$3,CCGs!$28:$36)) -> 6295 | AK27: 6522 | AL27: 6698 | AM27: 6907 | AN27: 7062 | AO27: 7227 | AP27: 7429 | AQ27: 7635 | AR27: 7566
A28: 1 | B28: England | C28: 1.570742192 | D28: 1.629499397 | E28: 1.690227155 | F28: 1.740693653 | G28: 1.784149163 | H28: 1.820874195 | I28: 1.853139763 | J28: 1.874761316 | K28: 1.903256486 | L28: 1.926631109 | M28: 1.938140818 | N28: 1.927716411 | O28: 2 | P28: Midlands and East of England | Q28: =TRANSPOSE(_xlfn.XLOOKUP(P28,#REF!,#REF!)) ->  | Z28: =_xlfn.XLOOKUP(AA28,popdata!L:L,popdata!M:M) -> 15 | AA28: Suffolk and North East Essex | AB28: =TRANSPOSE(_xlfn.XLOOKUP(AA28,ICSs!$2:$2,ICSs!$20:$25)) -> 19643 | AC28: 20187 | AD28: 20652 | AE28: 20745 | AF28: 21507 | AG28: 21497 | AH28: 3 | AI28: NHS North East Essex CCG | AJ28: =TRANSPOSE(_xlfn.XLOOKUP(AI28,CCGs!$3:$3,CCGs!$28:$36)) -> 7094 | AK28: 7343 | AL28: 7561 | AM28: 7665 | AN28: 7817 | AO28: 6600 | AP28: 7685 | AQ28: 7988 | AR28: 7971
A29: 1 | B29: England | C29: 1.570742192 | D29: 1.629499397 | E29: 1.690227155 | F29: 1.740693653 | G29: 1.784149163 | H29: 1.820874195 | I29: 1.853139763 | J29: 1.874761316 | K29: 1.903256486 | L29: 1.926631109 | M29: 1.938140818 | N29: 1.927716411 | O29: 2 | P29: Midlands and East of England | Q29: =TRANSPOSE(_xlfn.XLOOKUP(P29,#REF!,#REF!)) ->  | Z29: =_xlfn.XLOOKUP(AA29,popdata!L:L,popdata!M:M) -> 15 | AA29: Suffolk and North East Essex | AB29: =TRANSPOSE(_xlfn.XLOOKUP(AA29,ICSs!$2:$2,ICSs!$20:$25)) -> 19643 | AC29: 20187 | AD29: 20652 | AE29: 20745 | AF29: 21507 | AG29: 21497 | AH29: 4 | AI29: NHS West Suffolk CCG | AJ29: =TRANSPOSE(_xlfn.XLOOKUP(AI29,CCGs!$3:$3,CCGs!$28:$36)) -> 4539 | AK29: 4674 | AL29: 4870 | AM29: 5071 | AN29: 5308 | AO29: 5451 | AP29: 5631 | AQ29: 5860 | AR29: 5960
A30: 1 | B30: England | C30: 1.570742192 | D30: 1.629499397 | E30: 1.690227155 | F30: 1.740693653 | G30: 1.784149163 | H30: 1.820874195 | I30: 1.853139763 | J30: 1.874761316 | K30: 1.903256486 | L30: 1.926631109 | M30: 1.938140818 | N30: 1.927716411 | O30: 2 | P30: Midlands and East of England | Q30: =TRANSPOSE(_xlfn.XLOOKUP(P30,#REF!,#REF!)) ->  | Z30: =_xlfn.XLOOKUP(AA30,popdata!L:L,popdata!M:M) -> 16 | AA30: Bedfordshire, Luton and Milton Keynes | AB30: =TRANSPOSE(_xlfn.XLOOKUP(AA30,ICSs!$2:$2,ICSs!$20:$25)) -> 14572 | AC30: 15138 | AD30: 15456 | AE30: 15834 | AF30: 16280 | AG30: 16549 | AH30: 1 | AI30: NHS Bedfordshire, Luton and Milton Keynes CCG | AJ30: =TRANSPOSE(_xlfn.XLOOKUP(AI30,CCGs!$3:$3,CCGs!$28:$36)) -> 16238.5 | AK30: 16238.5 | AL30: 16238.5 | AM30: 16238.5 | AN30: 16238.5 | AO30: 16238.5 | AP30: 16238.5 | AQ30: 15928 | AR30: 16549
A31: 1 | B31: England | C31: 1.570742192 | D31: 1.629499397 | E31: 1.690227155 | F31: 1.740693653 | G31: 1.784149163 | H31: 1.820874195 | I31: 1.853139763 | J31: 1.874761316 | K31: 1.903256486 | L31: 1.926631109 | M31: 1.938140818 | N31: 1.927716411 | O31: 2 | P31: Midlands and East of England | Q31: =TRANSPOSE(_xlfn.XLOOKUP(P31,#REF!,#REF!)) ->  | Z31: =_xlfn.XLOOKUP(AA31,popdata!L:L,popdata!M:M) -> 17 | AA31: Hertfordshire and West Essex | AB31: =TRANSPOSE(_xlfn.XLOOKUP(AA31,ICSs!$2:$2,ICSs!$20:$25)) -> 22424 | AC31: 23348 | AD31: 23865 | AE31: 24441 | AF31: 24625 | AG31: 24317 | AH31: 2 | AI31: NHS East and North Hertfordshire CCG | AJ31: =TRANSPOSE(_xlfn.XLOOKUP(AI31,CCGs!$3:$3,CCGs!$28:$36)) -> 8494 | AK31: 8680 | AL31: 8852 | AM31: 8890 | AN31: 9298 | AO31: 9199 | AP31: 9584 | AQ31: 9546 | AR31: 9563
A32: 1 | B32: England | C32: 1.570742192 | D32: 1.629499397 | E32: 1.690227155 | F32: 1.740693653 | G32: 1.784149163 | H32: 1.820874195 | I32: 1.853139763 | J32: 1.874761316 | K32: 1.903256486 | L32: 1.926631109 | M32: 1.938140818 | N32: 1.927716411 | O32: 2 | P32: Midlands and East of England | Q32: =TRANSPOSE(_xlfn.XLOOKUP(P32,#REF!,#REF!)) ->  | Z32: =_xlfn.XLOOKUP(AA32,popdata!L:L,popdata!M:M) -> 17 | AA32: Hertfordshire and West Essex | AB32: =TRANSPOSE(_xlfn.XLOOKUP(AA32,ICSs!$2:$2,ICSs!$20:$25)) -> 22424 | AC32: 23348 | AD32: 23865 | AE32: 24441 | AF32: 24625 | AG32: 24317 | AH32: 3 | AI32: NHS Herts Valley CCG | AJ32: =TRANSPOSE(_xlfn.XLOOKUP(AI32,CCGs!$3:$3,CCGs!$28:$36)) -> 7668 | AK32: 7735 | AL32: 7938 | AM32: 8271 | AN32: 8687 | AO32: 8264 | AP32: 9344 | AQ32: 9135 | AR32: 9436
A33: 1 | B33: England | C33: 1.570742192 | D33: 1.629499397 | E33: 1.690227155 | F33: 1.740693653 | G33: 1.784149163 | H33: 1.820874195 | I33: 1.853139763 | J33: 1.874761316 | K33: 1.903256486 | L33: 1.926631109 | M33: 1.938140818 | N33: 1.927716411 | O33: 2 | P33: Midlands and East of England | Q33: =TRANSPOSE(_xlfn.XLOOKUP(P33,#REF!,#REF!)) ->  | Z33: =_xlfn.XLOOKUP(AA33,popdata!L:L,popdata!M:M) -> 17 | AA33: Hertfordshire and West Essex | AB33: =TRANSPOSE(_xlfn.XLOOKUP(AA33,ICSs!$2:$2,ICSs!$20:$25)) -> 22424 | AC33: 23348 | AD33: 23865 | AE33: 24441 | AF33: 24625 | AG33: 24317 | AH33: 4 | AI33: NHS West Essex CCG | AJ33: =TRANSPOSE(_xlfn.XLOOKUP(AI33,CCGs!$3:$3,CCGs!$28:$36)) -> 4732 | AK33: 4858 | AL33: 5060 | AM33: 5263 | AN33: 5363 | AO33: 5444 | AP33: 5513 | AQ33: 5235 | AR33: 5318
A34: 1 | B34: England | C34: 1.570742192 | D34: 1.629499397 | E34: 1.690227155 | F34: 1.740693653 | G34: 1.784149163 | H34: 1.820874195 | I34: 1.853139763 | J34: 1.874761316 | K34: 1.903256486 | L34: 1.926631109 | M34: 1.938140818 | N34: 1.927716411 | O34: 2 | P34: Midlands and East of England | Q34: =TRANSPOSE(_xlfn.XLOOKUP(P34,#REF!,#REF!)) ->  | Z34: =_xlfn.XLOOKUP(AA34,popdata!L:L,popdata!M:M) -> 18 | AA34: Mid and South Essex | AB34: =TRANSPOSE(_xlfn.XLOOKUP(AA34,ICSs!$2:$2,ICSs!$20:$25)) -> 22493 | AC34: 22756 | AD34: 23153 | AE34: 23787 | AF34: 23825 | AG34: 23627 | AH34: 2 | AI34: NHS Basildon and Brentwood CCG | AJ34: =TRANSPOSE(_xlfn.XLOOKUP(AI34,CCGs!$3:$3,CCGs!$28:$36)) -> 4926 | AK34: 5023 | AL34: 5167 | AM34: 5308 | AN34: 5320 | AO34: 5341 | AP34: 5493 | AQ34: 5420 | AR34: 5299
A35: 1 | B35: England | C35: 1.570742192 | D35: 1.629499397 | E35: 1.690227155 | F35: 1.740693653 | G35: 1.784149163 | H35: 1.820874195 | I35: 1.853139763 | J35: 1.874761316 | K35: 1.903256486 | L35: 1.926631109 | M35: 1.938140818 | N35: 1.927716411 | O35: 2 | P35: Midlands and East of England | Q35: =TRANSPOSE(_xlfn.XLOOKUP(P35,#REF!,#REF!)) ->  | Z35: =_xlfn.XLOOKUP(AA35,popdata!L:L,popdata!M:M) -> 18 | AA35: Mid and South Essex | AB35: =TRANSPOSE(_xlfn.XLOOKUP(AA35,ICSs!$2:$2,ICSs!$20:$25)) -> 22493 | AC35: 22756 | AD35: 23153 | AE35: 23787 | AF35: 23825 | AG35: 23627 | AH35: 3 | AI35: NHS Castle Point and Rochford CCG | AJ35: =TRANSPOSE(_xlfn.XLOOKUP(AI35,CCGs!$3:$3,CCGs!$28:$36)) -> 3644 | AK35: 3742 | AL35: 3903 | AM35: 4009 | AN35: 4088 | AO35: 3923 | AP35: 4383 | AQ35: 4327 | AR35: 4336
A36: 1 | B36: England | C36: 1.570742192 | D36: 1.629499397 | E36: 1.690227155 | F36: 1.740693653 | G36: 1.784149163 | H36: 1.820874195 | I36: 1.853139763 | J36: 1.874761316 | K36: 1.903256486 | L36: 1.926631109 | M36: 1.938140818 | N36: 1.927716411 | O36: 2 | P36: Midlands and East of England | Q36: =TRANSPOSE(_xlfn.XLOOKUP(P36,#REF!,#REF!)) ->  | Z36: =_xlfn.XLOOKUP(AA36,popdata!L:L,popdata!M:M) -> 18 | AA36: Mid and South Essex | AB36: =TRANSPOSE(_xlfn.XLOOKUP(AA36,ICSs!$2:$2,ICSs!$20:$25)) -> 22493 | AC36: 22756 | AD36: 23153 | AE36: 23787 | AF36: 23825 | AG36: 23627 | AH36: 4 | AI36: NHS Mid Essex CCG | AJ36: =TRANSPOSE(_xlfn.XLOOKUP(AI36,CCGs!$3:$3,CCGs!$28:$36)) -> 5142 | AK36: 5408 | AL36: 5701 | AM36: 5949 | AN36: 6082 | AO36: 6041 | AP36: 6308 | AQ36: 6406 | AR36: 6461
A37: 1 | B37: England | C37: 1.570742192 | D37: 1.629499397 | E37: 1.690227155 | F37: 1.740693653 | G37: 1.784149163 | H37: 1.820874195 | I37: 1.853139763 | J37: 1.874761316 | K37: 1.903256486 | L37: 1.926631109 | M37: 1.938140818 | N37: 1.927716411 | O37: 2 | P37: Midlands and East of England | Q37: =TRANSPOSE(_xlfn.XLOOKUP(P37,#REF!,#REF!)) ->  | Z37: =_xlfn.XLOOKUP(AA37,popdata!L:L,popdata!M:M) -> 18 | AA37: Mid and South Essex | AB37: =TRANSPOSE(_xlfn.XLOOKUP(AA37,ICSs!$2:$2,ICSs!$20:$25)) -> 22493 | AC37: 22756 | AD37: 23153 | AE37: 23787 | AF37: 23825 | AG37: 23627 | AH37: 5 | AI37: NHS Southend CCG | AJ37: =TRANSPOSE(_xlfn.XLOOKUP(AI37,CCGs!$3:$3,CCGs!$28:$36)) -> 3399 | AK37: 3560 | AL37: 3791 | AM37: 3957 | AN37: 4014 | AO37: 3966 | AP37: 4154 | AQ37: 4112 | AR37: 4101
A38: 1 | B38: England | C38: 1.570742192 | D38: 1.629499397 | E38: 1.690227155 | F38: 1.740693653 | G38: 1.784149163 | H38: 1.820874195 | I38: 1.853139763 | J38: 1.874761316 | K38: 1.903256486 | L38: 1.926631109 | M38: 1.938140818 | N38: 1.927716411 | O38: 2 | P38: Midlands and East of England | Q38: =TRANSPOSE(_xlfn.XLOOKUP(P38,#REF!,#REF!)) ->  | Z38: =_xlfn.XLOOKUP(AA38,popdata!L:L,popdata!M:M) -> 18 | AA38: Mid and South Essex | AB38: =TRANSPOSE(_xlfn.XLOOKUP(AA38,ICSs!$2:$2,ICSs!$20:$25)) -> 22493 | AC38: 22756 | AD38: 23153 | AE38: 23787 | AF38: 23825 | AG38: 23627 | AH38: 6 | AI38: NHS Thurrock CCG | AJ38: =TRANSPOSE(_xlfn.XLOOKUP(AI38,CCGs!$3:$3,CCGs!$28:$36)) -> 2859 | AK38: 2989 | AL38: 3089 | AM38: 3270 | AN38: 3252 | AO38: 3000 | AP38: 3449 | AQ38: 3512 | AR38: 3430
A39: 1 | B39: England | C39: 1.570742192 | D39: 1.629499397 | E39: 1.690227155 | F39: 1.740693653 | G39: 1.784149163 | H39: 1.820874195 | I39: 1.853139763 | J39: 1.874761316 | K39: 1.903256486 | L39: 1.926631109 | M39: 1.938140818 | N39: 1.927716411 | O39: 1 | P39: North of England | Q39: =TRANSPOSE(_xlfn.XLOOKUP(P39,#REF!,#REF!)) ->  | Z39: =_xlfn.XLOOKUP(AA39,popdata!L:L,popdata!M:M) -> 2 | AA39: Greater Manchester Health and Social Care Partnership | AB39: =TRANSPOSE(_xlfn.XLOOKUP(AA39,ICSs!$2:$2,ICSs!$20:$25)) -> 72904.66667 | AC39: 72904.66667 | AD39: 72904.66667 | AE39: 72222 | AF39: 72985 | AG39: 73507 | AH39: 2 | AI39: NHS Bolton CCG | AJ39: =TRANSPOSE(_xlfn.XLOOKUP(AI39,CCGs!$3:$3,CCGs!$28:$36)) -> 6455 | AK39: 6644 | AL39: 6714 | AM39: 6820 | AN39: 6916 | AO39: 7080 | AP39: 7190 | AQ39: 7277 | AR39: 7240
A40: 1 | B40: England | C40: 1.570742192 | D40: 1.629499397 | E40: 1.690227155 | F40: 1.740693653 | G40: 1.784149163 | H40: 1.820874195 | I40: 1.853139763 | J40: 1.874761316 | K40: 1.903256486 | L40: 1.926631109 | M40: 1.938140818 | N40: 1.927716411 | O40: 1 | P40: North of England | Q40: =TRANSPOSE(_xlfn.XLOOKUP(P40,#REF!,#REF!)) ->  | Z40: =_xlfn.XLOOKUP(AA40,popdata!L:L,popdata!M:M) -> 2 | AA40: Greater Manchester Health and Social Care Partnership | AB40: =TRANSPOSE(_xlfn.XLOOKUP(AA40,ICSs!$2:$2,ICSs!$20:$25)) -> 72904.66667 | AC40: 72904.66667 | AD40: 72904.66667 | AE40: 72222 | AF40: 72985 | AG40: 73507 | AH40: 3 | AI40: NHS Bury CCG | AJ40: =TRANSPOSE(_xlfn.XLOOKUP(AI40,CCGs!$3:$3,CCGs!$28:$36)) -> 3721 | AK40: 4046 | AL40: 4235 | AM40: 4256 | AN40: 4273 | AO40: 3710 | AP40: 4475 | AQ40: 4468 | AR40: 4489
A41: 1 | B41: England | C41: 1.570742192 | D41: 1.629499397 | E41: 1.690227155 | F41: 1.740693653 | G41: 1.784149163 | H41: 1.820874195 | I41: 1.853139763 | J41: 1.874761316 | K41: 1.903256486 | L41: 1.926631109 | M41: 1.938140818 | N41: 1.927716411 | O41: 1 | P41: North of England | Q41: =TRANSPOSE(_xlfn.XLOOKUP(P41,#REF!,#REF!)) ->  | Z41: =_xlfn.XLOOKUP(AA41,popdata!L:L,popdata!M:M) -> 2 | AA41: Greater Manchester Health and Social Care Partnership | AB41: =TRANSPOSE(_xlfn.XLOOKUP(AA41,ICSs!$2:$2,ICSs!$20:$25)) -> 72904.66667 | AC41: 72904.66667 | AD41: 72904.66667 | AE41: 72222 | AF41: 72985 | AG41: 73507 | AH41: 4 | AI41: NHS Heywood, Middleton and Rochdale CCG | AJ41: =TRANSPOSE(_xlfn.XLOOKUP(AI41,CCGs!$3:$3,CCGs!$28:$36)) -> 5098 | AK41: 5154 | AL41: 5276 | AM41: 5394 | AN41: 5616 | AO41: 5756 | AP41: 5969 | AQ41: 6061 | AR41: 6108
A42: 1 | B42: England | C42: 1.570742192 | D42: 1.629499397 | E42: 1.690227155 | F42: 1.740693653 | G42: 1.784149163 | H42: 1.820874195 | I42: 1.853139763 | J42: 1.874761316 | K42: 1.903256486 | L42: 1.926631109 | M42: 1.938140818 | N42: 1.927716411 | O42: 1 | P42: North of England | Q42: =TRANSPOSE(_xlfn.XLOOKUP(P42,#REF!,#REF!)) ->  | Z42: =_xlfn.XLOOKUP(AA42,popdata!L:L,popdata!M:M) -> 2 | AA42: Greater Manchester Health and Social Care Partnership | AB42: =TRANSPOSE(_xlfn.XLOOKUP(AA42,ICSs!$2:$2,ICSs!$20:$25)) -> 72904.66667 | AC42: 72904.66667 | AD42: 72904.66667 | AE42: 72222 | AF42: 72985 | AG42: 73507 | AH42: 5 | AI42: NHS Oldham CCG | AJ42: =TRANSPOSE(_xlfn.XLOOKUP(AI42,CCGs!$3:$3,CCGs!$28:$36)) -> 5395 | AK42: 5440 | AL42: 5445 | AM42: 5606 | AN42: 5791 | AO42: 5926 | AP42: 6098 | AQ42: 5931 | AR42: 6108
A43: 1 | B43: England | C43: 1.570742192 | D43: 1.629499397 | E43: 1.690227155 | F43: 1.740693653 | G43: 1.784149163 | H43: 1.820874195 | I43: 1.853139763 | J43: 1.874761316 | K43: 1.903256486 | L43: 1.926631109 | M43: 1.938140818 | N43: 1.927716411 | O43: 1 | P43: North of England | Q43: =TRANSPOSE(_xlfn.XLOOKUP(P43,#REF!,#REF!)) ->  | Z43: =_xlfn.XLOOKUP(AA43,popdata!L:L,popdata!M:M) -> 2 | AA43: Greater Manchester Health and Social Care Partnership | AB43: =TRANSPOSE(_xlfn.XLOOKUP(AA43,ICSs!$2:$2,ICSs!$20:$25)) -> 72904.66667 | AC43: 72904.66667 | AD43: 72904.66667 | AE43: 72222 | AF43: 72985 | AG43: 73507 | AH43: 6 | AI43: NHS Salford CCG | AJ43: =TRANSPOSE(_xlfn.XLOOKUP(AI43,CCGs!$3:$3,CCGs!$28:$36)) -> 6985 | AK43: 7019 | AL43: 6978 | AM43: 6990 | AN43: 6987 | AO43: 6978 | AP43: 7019 | AQ43: 6579 | AR43: 7407
A44: 1 | B44: England | C44: 1.570742192 | D44: 1.629499397 | E44: 1.690227155 | F44: 1.740693653 | G44: 1.784149163 | H44: 1.820874195 | I44: 1.853139763 | J44: 1.874761316 | K44: 1.903256486 | L44: 1.926631109 | M44: 1.938140818 | N44: 1.927716411 | O44: 1 | P44: North of England | Q44: =TRANSPOSE(_xlfn.XLOOKUP(P44,#REF!,#REF!)) ->  | Z44: =_xlfn.XLOOKUP(AA44,popdata!L:L,popdata!M:M) -> 2 | AA44: Greater Manchester Health and Social Care Partnership | AB44: =TRANSPOSE(_xlfn.XLOOKUP(AA44,ICSs!$2:$2,ICSs!$20:$25)) -> 72904.66667 | AC44: 72904.66667 | AD44: 72904.66667 | AE44: 72222 | AF44: 72985 | AG44: 73507 | AH44: 7 | AI44: NHS Stockport CCG | AJ44: =TRANSPOSE(_xlfn.XLOOKUP(AI44,CCGs!$3:$3,CCGs!$28:$36)) -> 6423 | AK44: 6605 | AL44: 6711 | AM44: 6751 | AN44: 7103 | AO44: 6997 | AP44: 7295 | AQ44: 7324 | AR44: 7416
A45: 1 | B45: England | C45: 1.570742192 | D45: 1.629499397 | E45: 1.690227155 | F45: 1.740693653 | G45: 1.784149163 | H45: 1.820874195 | I45: 1.853139763 | J45: 1.874761316 | K45: 1.903256486 | L45: 1.926631109 | M45: 1.938140818 | N45: 1.927716411 | O45: 1 | P45: North of England | Q45: =TRANSPOSE(_xlfn.XLOOKUP(P45,#REF!,#REF!)) ->  | Z45: =_xlfn.XLOOKUP(AA45,popdata!L:L,popdata!M:M) -> 2 | AA45: Greater Manchester Health and Social Care Partnership | AB45: =TRANSPOSE(_xlfn.XLOOKUP(AA45,ICSs!$2:$2,ICSs!$20:$25)) -> 72904.66667 | AC45: 72904.66667 | AD45: 72904.66667 | AE45: 72222 | AF45: 72985 | AG45: 73507 | AH45: 8 | AI45: NHS Tameside and Glossop CCG | AJ45: =TRANSPOSE(_xlfn.XLOOKUP(AI45,CCGs!$3:$3,CCGs!$28:$36)) -> 6154 | AK45: 6303 | AL45: 6500 | AM45: 6572 | AN45: 6964 | AO45: 6840 | AP45: 7552 | AQ45: 7602 | AR45: 7541
A46: 1 | B46: England | C46: 1.570742192 | D46: 1.629499397 | E46: 1.690227155 | F46: 1.740693653 | G46: 1.784149163 | H46: 1.820874195 | I46: 1.853139763 | J46: 1.874761316 | K46: 1.903256486 | L46: 1.926631109 | M46: 1.938140818 | N46: 1.927716411 | O46: 1 | P46: North of England | Q46: =TRANSPOSE(_xlfn.XLOOKUP(P46,#REF!,#REF!)) ->  | Z46: =_xlfn.XLOOKUP(AA46,popdata!L:L,popdata!M:M) -> 2 | AA46: Greater Manchester Health and Social Care Partnership | AB46: =TRANSPOSE(_xlfn.XLOOKUP(AA46,ICSs!$2:$2,ICSs!$20:$25)) -> 72904.66667 | AC46: 72904.66667 | AD46: 72904.66667 | AE46: 72222 | AF46: 72985 | AG46: 73507 | AH46: 9 | AI46: NHS Trafford CCG | AJ46: =TRANSPOSE(_xlfn.XLOOKUP(AI46,CCGs!$3:$3,CCGs!$28:$36)) -> 3860 | AK46: 4317 | AL46: 4468 | AM46: 4523 | AN46: 4693 | AO46: 4738 | AP46: 4822 | AQ46: 4778 | AR46: 4911
A47: 1 | B47: England | C47: 1.570742192 | D47: 1.629499397 | E47: 1.690227155 | F47: 1.740693653 | G47: 1.784149163 | H47: 1.820874195 | I47: 1.853139763 | J47: 1.874761316 | K47: 1.903256486 | L47: 1.926631109 | M47: 1.938140818 | N47: 1.927716411 | O47: 1 | P47: North of England | Q47: =TRANSPOSE(_xlfn.XLOOKUP(P47,#REF!,#REF!)) ->  | Z47: =_xlfn.XLOOKUP(AA47,popdata!L:L,popdata!M:M) -> 2 | AA47: Greater Manchester Health and Social Care Partnership | AB47: =TRANSPOSE(_xlfn.XLOOKUP(AA47,ICSs!$2:$2,ICSs!$20:$25)) -> 72904.66667 | AC47: 72904.66667 | AD47: 72904.66667 | AE47: 72222 | AF47: 72985 | AG47: 73507 | AH47: 10 | AI47: NHS Wigan Borough CCG | AJ47: =TRANSPOSE(_xlfn.XLOOKUP(AI47,CCGs!$3:$3,CCGs!$28:$36)) -> 7107 | AK47: 7239 | AL47: 7462 | AM47: 7831 | AN47: 8248 | AO47: 8426 | AP47: 8744 | AQ47: 8660 | AR47: 8955
A48: 1 | B48: England | C48: 1.570742192 | D48: 1.629499397 | E48: 1.690227155 | F48: 1.740693653 | G48: 1.784149163 | H48: 1.820874195 | I48: 1.853139763 | J48: 1.874761316 | K48: 1.903256486 | L48: 1.926631109 | M48: 1.938140818 | N48: 1.927716411 | O48: 1 | P48: North of England | Q48: =TRANSPOSE(_xlfn.XLOOKUP(P48,#REF!,#REF!)) ->  | Z48: =_xlfn.XLOOKUP(AA48,popdata!L:L,popdata!M:M) -> 2 | AA48: Greater Manchester Health and Social Care Partnership | AB48: =TRANSPOSE(_xlfn.XLOOKUP(AA48,ICSs!$2:$2,ICSs!$20:$25)) -> 72904.66667 | AC48: 72904.66667 | AD48: 72904.66667 | AE48: 72222 | AF48: 72985 | AG48: 73507 | AH48: 11 | AI48: NHS Manchester CCG | AJ48: =TRANSPOSE(_xlfn.XLOOKUP(AI48,CCGs!$3:$3,CCGs!$28:$36)) -> 12699 | AK48: 12699 | AL48: 12699 | AM48: 11703 | AN48: 12198 | AO48: 12647 | AP48: 13058 | AQ48: 13256 | AR48: 13332
A49: 1 | B49: England | C49: 1.570742192 | D49: 1.629499397 | E49: 1.690227155 | F49: 1.740693653 | G49: 1.784149163 | H49: 1.820874195 | I49: 1.853139763 | J49: 1.874761316 | K49: 1.903256486 | L49: 1.926631109 | M49: 1.938140818 | N49: 1.927716411 | O49: 1 | P49: North of England | Q49: =TRANSPOSE(_xlfn.XLOOKUP(P49,#REF!,#REF!)) ->  | Z49: =_xlfn.XLOOKUP(AA49,popdata!L:L,popdata!M:M) -> 3 | AA49: Cheshire and Merseyside | AB49: =TRANSPOSE(_xlfn.XLOOKUP(AA49,ICSs!$2:$2,ICSs!$20:$25)) -> 68844.33333 | AC49: 68844.33333 | AD49: 68844.33333 | AE49: 68194 | AF49: 68903 | AG49: 69436 | AH49: 2 | AI49: NHS Halton CCG | AJ49: =TRANSPOSE(_xlfn.XLOOKUP(AI49,CCGs!$3:$3,CCGs!$28:$36)) -> 3210 | AK49: 3284 | AL49: 3280 | AM49: 3275 | AN49: 3547 | AO49: 3658 | AP49: 3799 | AQ49: 3856 | AR49: 3878
A50: 1 | B50: England | C50: 1.570742192 | D50: 1.629499397 | E50: 1.690227155 | F50: 1.740693653 | G50: 1.784149163 | H50: 1.820874195 | I50: 1.853139763 | J50: 1.874761316 | K50: 1.903256486 | L50: 1.926631109 | M50: 1.938140818 | N50: 1.927716411 | O50: 1 | P50: North of England | Q50: =TRANSPOSE(_xlfn.XLOOKUP(P50,#REF!,#REF!)) ->  | Z50: =_xlfn.XLOOKUP(AA50,popdata!L:L,popdata!M:M) -> 3 | AA50: Cheshire and Merseyside | AB50: =TRANSPOSE(_xlfn.XLOOKUP(AA50,ICSs!$2:$2,ICSs!$20:$25)) -> 68844.33333 | AC50: 68844.33333 | AD50: 68844.33333 | AE50: 68194 | AF50: 68903 | AG50: 69436 | AH50: 3 | AI50: NHS Knowsley CCG | AJ50: =TRANSPOSE(_xlfn.XLOOKUP(AI50,CCGs!$3:$3,CCGs!$28:$36)) -> 5590 | AK50: 5558 | AL50: 5668 | AM50: 5650 | AN50: 5767 | AO50: 5873 | AP50: 5966 | AQ50: 6037 | AR50: 6093
A51: 1 | B51: England | C51: 1.570742192 | D51: 1.629499397 | E51: 1.690227155 | F51: 1.740693653 | G51: 1.784149163 | H51: 1.820874195 | I51: 1.853139763 | J51: 1.874761316 | K51: 1.903256486 | L51: 1.926631109 | M51: 1.938140818 | N51: 1.927716411 | O51: 1 | P51: North of England | Q51: =TRANSPOSE(_xlfn.XLOOKUP(P51,#REF!,#REF!)) ->  | Z51: =_xlfn.XLOOKUP(AA51,popdata!L:L,popdata!M:M) -> 3 | AA51: Cheshire and Merseyside | AB51: =TRANSPOSE(_xlfn.XLOOKUP(AA51,ICSs!$2:$2,ICSs!$20:$25)) -> 68844.33333 | AC51: 68844.33333 | AD51: 68844.33333 | AE51: 68194 | AF51: 68903 | AG51: 69436 | AH51: 4 | AI51: NHS Liverpool CCG | AJ51: =TRANSPOSE(_xlfn.XLOOKUP(AI51,CCGs!$3:$3,CCGs!$28:$36)) -> 14059 | AK51: 14226 | AL51: 14551 | AM51: 14967 | AN51: 15771 | AO51: 15493 | AP51: 16721 | AQ51: 17177 | AR51: 17004
A52: 1 | B52: England | C52: 1.570742192 | D52: 1.629499397 | E52: 1.690227155 | F52: 1.740693653 | G52: 1.784149163 | H52: 1.820874195 | I52: 1.853139763 | J52: 1.874761316 | K52: 1.903256486 | L52: 1.926631109 | M52: 1.938140818 | N52: 1.927716411 | O52: 1 | P52: North of England | Q52: =TRANSPOSE(_xlfn.XLOOKUP(P52,#REF!,#REF!)) ->  | Z52: =_xlfn.XLOOKUP(AA52,popdata!L:L,popdata!M:M) -> 3 | AA52: Cheshire and Merseyside | AB52: =TRANSPOSE(_xlfn.XLOOKUP(AA52,ICSs!$2:$2,ICSs!$20:$25)) -> 68844.33333 | AC52: 68844.33333 | AD52: 68844.33333 | AE52: 68194 | AF52: 68903 | AG52: 69436 | AH52: 5 | AI52: NHS South Sefton CCG | AJ52: =TRANSPOSE(_xlfn.XLOOKUP(AI52,CCGs!$3:$3,CCGs!$28:$36)) -> 4422 | AK52: 4429 | AL52: 4149 | AM52: 4253 | AN52: 4391 | AO52: 4781 | AP52: 4804 | AQ52: 4697 | AR52: 4699
A53: 1 | B53: England | C53: 1.570742192 | D53: 1.629499397 | E53: 1.690227155 | F53: 1.740693653 | G53: 1.784149163 | H53: 1.820874195 | I53: 1.853139763 | J53: 1.874761316 | K53: 1.903256486 | L53: 1.926631109 | M53: 1.938140818 | N53: 1.927716411 | O53: 1 | P53: North of England | Q53: =TRANSPOSE(_xlfn.XLOOKUP(P53,#REF!,#REF!)) ->  | Z53: =_xlfn.XLOOKUP(AA53,popdata!L:L,popdata!M:M) -> 3 | AA53: Cheshire and Merseyside | AB53: =TRANSPOSE(_xlfn.XLOOKUP(AA53,ICSs!$2:$2,ICSs!$20:$25)) -> 68844.33333 | AC53: 68844.33333 | AD53: 68844.33333 | AE53: 68194 | AF53: 68903 | AG53: 69436 | AH53: 6 | AI53: NHS Southport and Formby CCG | AJ53: =TRANSPOSE(_xlfn.XLOOKUP(AI53,CCGs!$3:$3,CCGs!$28:$36)) -> 2430 | AK53: 2479 | AL53: 2477 | AM53: 2565 | AN53: 2656 | AO53: 2510 | AP53: 2627 | AQ53: 2583 | AR53: 2737
A54: 1 | B54: England | C54: 1.570742192 | D54: 1.629499397 | E54: 1.690227155 | F54: 1.740693653 | G54: 1.784149163 | H54: 1.820874195 | I54: 1.853139763 | J54: 1.874761316 | K54: 1.903256486 | L54: 1.926631109 | M54: 1.938140818 | N54: 1.927716411 | O54: 1 | P54: North of England | Q54: =TRANSPOSE(_xlfn.XLOOKUP(P54,#REF!,#REF!)) ->  | Z54: =_xlfn.XLOOKUP(AA54,popdata!L:L,popdata!M:M) -> 3 | AA54: Cheshire and Merseyside | AB54: =TRANSPOSE(_xlfn.XLOOKUP(AA54,ICSs!$2:$2,ICSs!$20:$25)) -> 68844.33333 | AC54: 68844.33333 | AD54: 68844.33333 | AE54: 68194 | AF54: 68903 | AG54: 69436 | AH54: 7 | AI54: NHS St Helens CCG | AJ54: =TRANSPOSE(_xlfn.XLOOKUP(AI54,CCGs!$3:$3,CCGs!$28:$36)) -> 5849 | AK54: 5954 | AL54: 5750 | AM54: 5764 | AN54: 5960 | AO54: 5902 | AP54: 6192 | AQ54: 5745 | AR54: 5953
A55: 1 | B55: England | C55: 1.570742192 | D55: 1.629499397 | E55: 1.690227155 | F55: 1.740693653 | G55: 1.784149163 | H55: 1.820874195 | I55: 1.853139763 | J55: 1.874761316 | K55: 1.903256486 | L55: 1.926631109 | M55: 1.938140818 | N55: 1.927716411 | O55: 1 | P55: North of England | Q55: =TRANSPOSE(_xlfn.XLOOKUP(P55,#REF!,#REF!)) ->  | Z55: =_xlfn.XLOOKUP(AA55,popdata!L:L,popdata!M:M) -> 3 | AA55: Cheshire and Merseyside | AB55: =TRANSPOSE(_xlfn.XLOOKUP(AA55,ICSs!$2:$2,ICSs!$20:$25)) -> 68844.33333 | AC55: 68844.33333 | AD55: 68844.33333 | AE55: 68194 | AF55: 68903 | AG55: 69436 | AH55: 8 | AI55: NHS Warrington CCG | AJ55: =TRANSPOSE(_xlfn.XLOOKUP(AI55,CCGs!$3:$3,CCGs!$28:$36)) -> 3718 | AK55: 3830 | AL55: 3833 | AM55: 3684 | AN55: 3755 | AO55: 3844 | AP55: 4007 | AQ55: 4014 | AR55: 4062
A56: 1 | B56: England | C56: 1.570742192 | D56: 1.629499397 | E56: 1.690227155 | F56: 1.740693653 | G56: 1.784149163 | H56: 1.820874195 | I56: 1.853139763 | J56: 1.874761316 | K56: 1.903256486 | L56: 1.926631109 | M56: 1.938140818 | N56: 1.927716411 | O56: 1 | P56: North of England | Q56: =TRANSPOSE(_xlfn.XLOOKUP(P56,#REF!,#REF!)) ->  | Z56: =_xlfn.XLOOKUP(AA56,popdata!L:L,popdata!M:M) -> 3 | AA56: Cheshire and Merseyside | AB56: =TRANSPOSE(_xlfn.XLOOKUP(AA56,ICSs!$2:$2,ICSs!$20:$25)) -> 68844.33333 | AC56: 68844.33333 | AD56: 68844.33333 | AE56: 68194 | AF56: 68903 | AG56: 69436 | AH56: 9 | AI56: NHS Wirral CCG | AJ56: =TRANSPOSE(_xlfn.XLOOKUP(AI56,CCGs!$3:$3,CCGs!$28:$36)) -> 7814 | AK56: 7643 | AL56: 8003 | AM56: 8050 | AN56: 8364 | AO56: 8486 | AP56: 8724 | AQ56: 8594 | AR56: 9107
A57: 1 | B57: England | C57: 1.570742192 | D57: 1.629499397 | E57: 1.690227155 | F57: 1.740693653 | G57: 1.784149163 | H57: 1.820874195 | I57: 1.853139763 | J57: 1.874761316 | K57: 1.903256486 | L57: 1.926631109 | M57: 1.938140818 | N57: 1.927716411 | O57: 1 | P57: North of England | Q57: =TRANSPOSE(_xlfn.XLOOKUP(P57,#REF!,#REF!)) ->  | Z57: =_xlfn.XLOOKUP(AA57,popdata!L:L,popdata!M:M) -> 3 | AA57: Cheshire and Merseyside | AB57: =TRANSPOSE(_xlfn.XLOOKUP(AA57,ICSs!$2:$2,ICSs!$20:$25)) -> 68844.33333 | AC57: 68844.33333 | AD57: 68844.33333 | AE57: 68194 | AF57: 68903 | AG57: 69436 | AH57: 10 | AI57: NHS Cheshire CCG | AJ57: =TRANSPOSE(_xlfn.XLOOKUP(AI57,CCGs!$3:$3,CCGs!$28:$36)) -> 15660.5 | AK57: 15660.5 | AL57: 15660.5 | AM57: 15660.5 | AN57: 15660.5 | AO57: 15660.5 | AP57: 15660.5 | AQ57: 15418 | AR57: 15903
A58: 1 | B58: England | C58: 1.570742192 | D58: 1.629499397 | E58: 1.690227155 | F58: 1.740693653 | G58: 1.784149163 | H58: 1.820874195 | I58: 1.853139763 | J58: 1.874761316 | K58: 1.903256486 | L58: 1.926631109 | M58: 1.938140818 | N58: 1.927716411 | O58: 1 | P58: North of England | Q58: =TRANSPOSE(_xlfn.XLOOKUP(P58,#REF!,#REF!)) ->  | Z58: =_xlfn.XLOOKUP(AA58,popdata!L:L,popdata!M:M) -> 4 | AA58: South Yorkshire and Bassetlaw | AB58: =TRANSPOSE(_xlfn.XLOOKUP(AA58,ICSs!$2:$2,ICSs!$20:$25)) -> 41814.33333 | AC58: 41814.33333 | AD58: 41814.33333 | AE58: 41647 | AF58: 42104 | AG58: 41692 | AH58: 2 | AI58: NHS Barnsley CCG | AJ58: =TRANSPOSE(_xlfn.XLOOKUP(AI58,CCGs!$3:$3,CCGs!$28:$36)) -> 7705 | AK58: 7899 | AL58: 7941 | AM58: 7742 | AN58: 8254 | AO58: 8475 | AP58: 8699 | AQ58: 8626 | AR58: 8555
A59: 1 | B59: England | C59: 1.570742192 | D59: 1.629499397 | E59: 1.690227155 | F59: 1.740693653 | G59: 1.784149163 | H59: 1.820874195 | I59: 1.853139763 | J59: 1.874761316 | K59: 1.903256486 | L59: 1.926631109 | M59: 1.938140818 | N59: 1.927716411 | O59: 1 | P59: North of England | Q59: =TRANSPOSE(_xlfn.XLOOKUP(P59,#REF!,#REF!)) ->  | Z59: =_xlfn.XLOOKUP(AA59,popdata!L:L,popdata!M:M) -> 4 | AA59: South Yorkshire and Bassetlaw | AB59: =TRANSPOSE(_xlfn.XLOOKUP(AA59,ICSs!$2:$2,ICSs!$20:$25)) -> 41814.33333 | AC59: 41814.33333 | AD59: 41814.33333 | AE59: 41647 | AF59: 42104 | AG59: 41692 | AH59: 3 | AI59: NHS Bassetlaw CCG | AJ59: =TRANSPOSE(_xlfn.XLOOKUP(AI59,CCGs!$3:$3,CCGs!$28:$36)) -> 2721 | AK59: 2787 | AL59: 2837 | AM59: 2809 | AN59: 2959 | AO59: 2887 | AP59: 3024 | AQ59: 3231 | AR59: 3243
A60: 1 | B60: England | C60: 1.570742192 | D60: 1.629499397 | E60: 1.690227155 | F60: 1.740693653 | G60: 1.784149163 | H60: 1.820874195 | I60: 1.853139763 | J60: 1.874761316 | K60: 1.903256486 | L60: 1.926631109 | M60: 1.938140818 | N60: 1.927716411 | O60: 1 | P60: North of England | Q60: =TRANSPOSE(_xlfn.XLOOKUP(P60,#REF!,#REF!)) ->  | Z60: =_xlfn.XLOOKUP(AA60,popdata!L:L,popdata!M:M) -> 4 | AA60: South Yorkshire and Bassetlaw | AB60: =TRANSPOSE(_xlfn.XLOOKUP(AA60,ICSs!$2:$2,ICSs!$20:$25)) -> 41814.33333 | AC60: 41814.33333 | AD60: 41814.33333 | AE60: 41647 | AF60: 42104 | AG60: 41692 | AH60: 4 | AI60: NHS Doncaster CCG | AJ60: =TRANSPOSE(_xlfn.XLOOKUP(AI60,CCGs!$3:$3,CCGs!$28:$36)) -> 8005 | AK60: 8130 | AL60: 8237 | AM60: 8444 | AN60: 8622 | AO60: 8510 | AP60: 9197 | AQ60: 9341 | AR60: 9205
A61: 1 | B61: England | C61: 1.570742192 | D61: 1.629499397 | E61: 1.690227155 | F61: 1.740693653 | G61: 1.784149163 | H61: 1.820874195 | I61: 1.853139763 | J61: 1.874761316 | K61: 1.903256486 | L61: 1.926631109 | M61: 1.938140818 | N61: 1.927716411 | O61: 1 | P61: North of England | Q61: =TRANSPOSE(_xlfn.XLOOKUP(P61,#REF!,#REF!)) ->  | Z61: =_xlfn.XLOOKUP(AA61,popdata!L:L,popdata!M:M) -> 4 | AA61: South Yorkshire and Bassetlaw | AB61: =TRANSPOSE(_xlfn.XLOOKUP(AA61,ICSs!$2:$2,ICSs!$20:$25)) -> 41814.33333 | AC61: 41814.33333 | AD61: 41814.33333 | AE61: 41647 | AF61: 42104 | AG61: 41692 | AH61: 5 | AI61: NHS Rotherham CCG | AJ61: =TRANSPOSE(_xlfn.XLOOKUP(AI61,CCGs!$3:$3,CCGs!$28:$36)) -> 6723 | AK61: 6935 | AL61: 7092 | AM61: 7304 | AN61: 7480 | AO61: 7639 | AP61: 7938 | AQ61: 8007 | AR61: 7938
